{"text_format":"1","workbook":"xlsx","n_sheets":2,"sheets":["自主点検シート","自主点検シート (例)"],"not_rendered":{"charts":0,"images":0,"macros":1,"external_links":0,"defined_names":2,"comments":0,"pivot_tables":0},"unopened":[],"bounds":{"document_bytes":16777216,"sheet_cells":100000,"rows_first":2000,"rows_last":500,"rows_between":2000,"halvings":0,"cell_chars":16384,"cell_head_chars":4096},"cells_cut":0,"cells_raw":0,"read":"whole","date_system":"1900"}

{"sheet":"自主点検シート","index":0,"n_rows":226,"n_cols":143,"rows_kept":226,"cut":false,"hidden":false,"merged":[[54,2,55,42],[2,46,2,47],[2,48,2,49],[2,50,2,51],[2,52,2,53],[2,54,2,55],[2,98,2,103],[0,0,0,74],[1,0,1,38],[1,40,1,55],[1,76,2,91],[2,0,2,14],[2,15,2,28],[2,29,2,38],[2,40,2,41],[2,42,2,43],[2,44,2,45],[3,101,3,103],[3,42,4,43],[3,44,4,45],[3,46,4,47],[3,48,4,49],[3,50,4,51],[3,52,4,53],[3,0,4,14],[3,15,4,28],[3,29,4,32],[3,33,4,34],[3,35,4,38],[3,40,4,41],[7,59,7,64],[7,65,7,70],[52,64,52,67],[52,19,52,21],[11,0,14,1],[11,13,14,15],[9,0,10,1],[9,13,10,15],[9,19,10,24],[7,0,8,24],[7,25,8,55],[12,68,14,70],[19,0,22,1],[19,13,22,15],[15,0,18,1],[15,13,18,15],[16,62,18,64],[20,68,22,70],[53,64,53,67],[53,19,53,21],[3,54,4,55],[3,98,3,100],[11,62,11,64],[11,65,11,67],[11,68,11,70],[11,71,11,73],[19,71,19,73],[23,71,23,73],[27,71,27,73],[31,71,31,73],[35,71,35,73],[39,71,39,73],[43,71,43,73],[44,71,46,73],[12,19,12,24],[12,56,14,58],[12,59,14,61],[12,62,14,64],[12,65,14,67],[15,71,15,73],[11,19,11,24],[11,56,11,58],[9,98,9,105],[10,56,10,58],[10,59,10,61],[10,62,10,64],[10,65,10,67],[10,68,10,70],[10,71,10,73],[10,98,11,105],[11,59,11,61],[7,71,9,73],[8,59,9,61],[8,62,9,64],[8,65,9,67],[8,68,9,70],[7,56,9,58],[12,71,14,73],[13,19,13,24],[14,19,14,24],[15,19,15,24],[15,56,15,58],[17,19,17,24],[18,19,18,24],[16,71,18,73],[24,71,26,73],[19,19,19,24],[15,59,15,61],[15,62,15,64],[15,65,15,67],[15,68,15,70],[19,56,19,58],[19,59,19,61],[19,62,19,64],[19,65,19,67],[19,68,19,70],[16,65,18,67],[16,68,18,70],[16,19,16,24],[16,56,18,58],[16,59,18,61],[20,71,22,73],[21,19,21,24],[22,19,22,24],[23,19,23,24],[23,56,23,58],[20,19,20,24],[20,56,22,58],[20,59,22,61],[20,62,22,64],[20,65,22,67],[32,71,34,73],[27,0,30,1],[27,13,30,15],[27,19,27,24],[23,59,23,61],[23,62,23,64],[23,65,23,67],[23,68,23,70],[23,0,26,1],[23,13,26,15],[27,56,27,58],[27,59,27,61],[27,62,27,64],[27,65,27,67],[27,68,27,70],[24,65,26,67],[24,68,26,70],[27,2,28,12],[29,2,30,12],[24,19,24,24],[24,56,26,58],[24,59,26,61],[24,62,26,64],[25,19,25,24],[28,68,30,70],[28,71,30,73],[29,19,29,24],[30,19,30,24],[31,19,31,24],[31,56,31,58],[28,19,28,24],[28,56,30,58],[28,59,30,61],[28,62,30,64],[28,65,30,67],[40,71,42,73],[35,0,38,1],[35,13,38,15],[35,19,35,24],[31,59,31,61],[31,62,31,64],[31,65,31,67],[31,68,31,70],[31,0,34,1],[31,13,34,15],[35,56,35,58],[35,59,35,61],[35,62,35,64],[35,65,35,67],[35,68,35,70],[32,65,34,67],[32,68,34,70],[31,2,32,12],[33,2,34,12],[37,2,38,12],[32,19,32,24],[32,56,34,58],[32,59,34,61],[32,62,34,64],[36,68,38,70],[36,71,38,73],[37,19,37,24],[38,19,38,24],[39,19,39,24],[39,56,39,58],[36,19,36,24],[36,56,38,58],[36,59,38,61],[36,62,38,64],[36,65,38,67],[43,65,43,67],[43,68,43,70],[40,65,42,67],[40,68,42,70],[44,68,46,70],[45,19,45,24],[46,19,46,24],[39,2,40,12],[41,2,42,12],[40,19,40,24],[40,56,42,58],[40,59,42,61],[40,62,42,64],[41,19,41,24],[42,19,42,24],[39,59,39,61],[39,62,39,64],[39,65,39,67],[39,68,39,70],[44,65,46,67],[47,59,47,61],[47,62,47,64],[47,65,47,67],[47,0,50,1],[47,13,50,15],[47,19,47,24],[47,56,47,58],[44,19,44,24],[44,56,46,58],[44,59,46,61],[44,62,46,64],[50,19,50,24],[43,16,46,18],[47,16,50,18],[47,2,48,12],[49,2,50,12],[43,2,44,12],[45,2,46,12],[43,0,46,1],[43,13,46,15],[43,19,43,24],[43,56,43,58],[43,59,43,61],[43,62,43,64],[47,68,47,70],[47,71,47,73],[48,19,48,24],[48,56,50,58],[48,59,50,61],[48,62,50,64],[66,3,66,77],[11,2,12,12],[13,2,14,12],[15,2,16,12],[17,2,18,12],[19,2,20,12],[21,2,22,12],[56,0,57,74],[58,0,58,74],[59,0,59,74],[48,65,50,67],[48,68,50,70],[48,71,50,73],[49,19,49,24],[31,16,34,18],[35,16,38,18],[39,16,42,18],[55,62,55,74],[52,13,52,18],[53,13,53,18],[52,22,52,24],[53,22,53,24],[9,2,9,12],[10,2,10,12],[9,16,10,18],[11,16,14,18],[15,16,18,18],[19,16,22,18],[23,16,26,18],[27,16,30,18],[35,2,36,12],[23,2,24,12],[25,2,26,12],[33,19,33,24],[34,19,34,24],[26,19,26,24],[52,0,53,12],[39,0,42,1],[39,13,42,15],[65,0,65,2],[65,3,65,74],[60,0,60,2],[60,3,60,74],[61,0,61,2],[61,3,61,74],[62,0,62,2],[63,0,63,2],[63,3,63,74],[64,0,64,2],[64,3,64,74],[62,3,62,74]]}
["雇用調整助成金　休業・教育訓練　および所定外労働時間　自主点検シート",null,null,null,null,null,null,null,null,null,null,null,null,null,null,null,null,null,null,null,null,null,null,null,null,null,null,null,null,null,null,null,null,null,null,null,null,null,null,null,null,null,null,null,null,null,null,null,null,null,null,null,null,null,null,null,null,null,null,null,null,null,null,null,null,null,null,null,null,null,null,null,null,null,null,null,null,null,null,null,null,null,null,null,null,null,null,null,null,null,null,null,null,null,null,null,null,null,null,null,null,null,null,null,null,null,null,null,null,null,null,null,null,null,null,null,null,null,null,null,null,null,null,null,null,null,null,null,null,null,null,null,null,null,null,null,null,null,null,null,"R14年度まで入力済"]
["①申請に関する情報",null,null,null,null,null,null,null,null,null,null,null,null,null,null,null,null,null,null,null,null,null,null,null,null,null,null,null,null,null,null,null,null,null,null,null,null,null,null,null,"②事業所における所定休日",null,null,null,null,null,null,null,null,null,null,null,null,null,null,null,null,null,null,null,null,null,null,null,null,null,null,null,null,null,null,null,null,null,null,null,null,null,null,null,null,null,null,null,null,null,null,null,null,null,null,null,null,null,"ﾌﾟﾙﾀﾞｳﾝ",null,null,null,null,null,null,null,null,null,null,null,null,null,null,null,null,null,null,null,null,null,null,null,null,null,null,null,null,null,null,null,null,null,null,null,null,null,null,null,null,null,null,null,null,null,"2023-04-29",null,45045]
["適用事業所番号",null,null,null,null,null,null,null,null,null,null,null,null,null,null,"事業所名",null,null,null,null,null,null,null,null,null,null,null,null,null,"点検期間",null,null,null,null,null,null,null,null,null,null,"月",null,"火",null,"水",null,"木",null,"金",null,"土",null,"日",null,"祝",null,null,null,null,null,null,null,null,null,null,null,null,null,null,null,null,null,null,null,null,null,null,null,null,null,null,null,null,null,null,null,null,null,null,null,null,null,null,null,null,null,null,null,"集計末尾列",null,null,null,null,null,null,null,null,null,null,null,null,null,null,null,null,null,null,null,null,null,null,null,null,null,null,null,null,null,null,null,null,null,null,null,null,null,null,null,null,null,"2023-05-03",null,45049]
[null,null,null,null,null,null,null,null,null,null,null,null,null,null,null,null,null,null,null,null,null,null,null,null,null,null,null,null,null,null,null,null,null,"～",null,null,null,null,null,null,null,null,null,null,null,null,null,null,null,null,null,null,null,null,null,null,null,null,null,null,null,null,null,null,null,null,null,null,null,null,null,null,null,null,null,null,null,null,null,null,null,null,null,null,null,null,null,null,null,null,null,null,null,null,"○",null,{"$f":"IF(AD4=\"\",\"\",EDATE(AD4,1)-1)","v":""},null,{"$f":"\"$Z$\"","v":"$Z$"},null,null,{"$f":"LEFT(ADDRESS(1,MATCH($AJ$4,$A$10:$BD$10,1),1),LEN(ADDRESS(1,MATCH($AJ$4,$A$10:$BD$10,1),1))-1)","v":{"$error":"#N/A"}},null,null,null,null,null,null,null,null,null,null,null,null,null,null,null,null,null,null,null,null,null,null,null,null,null,null,null,null,null,null,null,null,null,null,null,null,null,null,"2023-05-04",null,45050]
[null,null,null,null,null,null,null,null,null,null,null,null,null,null,null,null,null,null,null,null,null,null,null,null,null,null,null,null,null,null,null,null,null,null,null,null,null,null,null,null,null,null,null,null,null,null,null,null,null,null,null,null,null,null,null,null,null,null,null,null,null,null,null,null,null,null,null,null,null,null,null,null,null,null,null,null,null,null,null,null,null,null,null,null,null,null,null,null,null,null,null,null,null,null,"△",null,null,null,null,null,null,null,null,null,null,null,null,{"$f":"ROW(Z12)","v":12},"～",{"$f":"ROW(Z48)","v":48},null,null,null,null,null,null,null,null,null,null,null,null,null,null,null,null,null,null,null,null,null,null,null,null,null,null,null,null,null,null,"2023-05-05",null,45051]
[null,null,null,null,null,null,null,null,null,null,null,null,null,null,null,null,null,null,null,null,null,null,null,null,null,null,null,null,null,null,null,null,null,null,null,null,null,null,null,null,null,null,null,null,null,null,null,null,null,null,null,null,null,null,null,null,null,null,null,null,null,null,null,null,null,null,null,null,null,null,null,null,null,null,null,null,null,null,null,null,null,null,null,null,null,null,null,null,null,null,null,null,null,null,null,null,null,null,null,null,null,null,null,null,null,null,null,null,null,null,null,null,null,null,null,null,null,null,null,null,null,null,null,null,null,null,null,null,null,null,null,null,null,null,null,null,null,null,null,null,"2023-07-17",null,45124]
[null,null,null,null,null,null,null,null,null,null,null,null,null,null,null,null,null,null,null,null,null,null,null,null,null,null,null,null,null,null,null,null,null,null,null,null,null,null,null,null,null,null,null,null,null,null,null,null,null,null,null,null,null,null,null,null,null,null,null,null,null,null,null,null,null,null,null,null,null,null,null,null,null,null,null,null,null,null,null,null,null,null,null,null,null,null,null,null,null,null,null,null,null,null,null,null,null,null,null,null,null,null,null,null,null,null,null,null,null,null,null,null,null,null,null,null,null,null,null,null,null,null,null,null,null,null,null,null,null,null,null,null,null,null,null,null,null,null,null,null,"2023-08-11",null,45149]
["④休業等対象者",null,null,null,null,null,null,null,null,null,null,null,null,null,null,null,null,null,null,null,null,null,null,null,null,"⑤休業・教育訓練と所定外労働時間の日別内訳",null,null,null,null,null,null,null,null,null,null,null,null,null,null,null,null,null,null,null,null,null,null,null,null,null,null,null,null,null,null,"所定\n労働\n日数",null,null,"休業",null,null,null,null,null,"教育",null,null,null,null,null,"所定外\n労働\n時間",null,null,null,null,null,null,null,null,null,null,null,null,null,null,null,null,null,null,null,null,null,null,null,null,null,null,null,null,null,null,null,null,null,null,null,null,null,null,null,null,null,null,null,null,null,null,null,null,null,null,null,null,null,null,null,null,null,null,null,null,null,null,null,null,null,null,null,null,"2023-09-18",null,45187]
[null,null,null,null,null,null,null,null,null,null,null,null,null,null,null,null,null,null,null,null,null,null,null,null,null,null,null,null,null,null,null,null,null,null,null,null,null,null,null,null,null,null,null,null,null,null,null,null,null,null,null,null,null,null,null,null,null,null,null,"全日",null,null,"短時間",null,null,"全日",null,null,"短時間",null,null,null,null,null,null,null,null,null,null,null,null,null,null,null,null,null,null,null,null,null,null,null,null,null,"公",null,null,null,null,null,null,null,null,null,null,null,null,{"$f":"IFERROR(IF(HLOOKUP(Z$11,$AO$3:$BD$5,2,FALSE)=\"○\",\"公\",IF($BC$4=\"○\",IF(COUNTIF($EK:$EK,Z$10)=1,\"公\",\"\"),\"\")),\"\")","v":""},"","","","","","","","","","","","","","","","","","","","","","","","","","","","","","",null,null,"2023-09-23",null,45192]
["№",null,"氏名",null,null,null,null,null,null,null,null,null,null,"一日の所定労働時間",null,null,"賃金形態",null,null,"項目",null,null,null,null,null,{"$f":"IF($AD$4=\"\",\"\",$AD$4)","v":""},{"$f":"IFERROR(IF($AD$4=\"\",\"\",IF(Z10>=$AJ$4,\"\",Z10+1)),\"\")","v":""},"","","","","","","","","","","","","","","","","","","","","","","","","","","","","",null,null,null,null,null,null,null,null,null,null,null,null,null,null,null,null,null,null,null,null,null,null,null,null,null,null,null,null,null,null,null,null,null,null,null,null,null,null,null,null,null,null,"助成金支給番号",null,null,null,null,null,null,null,null,{"$f":"Z10","v":""},"","","","","","","","","","","","","","","","","","","","","","","","","","","","","","",null,null,"2023-10-09",null,45208]
[null,null,"備考",null,null,null,null,null,null,null,null,null,null,null,null,null,null,null,null,null,null,null,null,null,null,{"$f":"TEXT(Z10,\"aaa\")","v":""},"","","","","","","","","","","","","","","","","","","",{"$f":"TEXT(AT10,\"aaa\")","v":""},{"$f":"TEXT(AU10,\"aaa\")","v":""},{"$f":"TEXT(AV10,\"aaa\")","v":""},"","","","","","","","","(日)",null,null,"(日)",null,null,"(h)",null,null,"(日)",null,null,"(h)",null,null,"(h)",null,null,null,null,null,null,null,null,null,null,null,null,null,null,null,null,null,null,null,null,null,null,null,null,null,null,null,null,null,null,null,null,null,null,null,null,null,null,null,null,null,null,null,null,null,null,null,null,null,null,null,null,null,null,null,null,null,null,null,null,null,null,null,null,null,null,null,null,"2023-11-03",null,45233]
[1,null,null,null,null,null,null,null,null,null,null,null,null,null,null,null,null,null,null,"所定休日",null,null,null,null,null,null,null,null,null,null,null,null,null,null,null,null,null,null,null,null,null,null,null,null,null,null,null,null,null,null,null,null,null,null,null,null,{"$f":"$AJ$4-$AD$4+1-(COUNTIF(INDIRECT(BY12),\"公\"))","v":{"$error":"#N/A"}},null,null,null,null,null,null,null,null,null,null,null,null,null,null,null,null,null,null,null,{"$f":"$CU$4&ROW(BY12)&\":\"&$CX$4&ROW(BY12)","v":{"$error":"#N/A"}},null,null,null,null,null,null,null,null,null,null,null,null,null,null,null,null,null,"月給",null,null,null,null,null,null,null,null,null,null,null,null,null,null,null,null,null,null,null,null,null,null,null,null,null,null,null,null,null,null,null,null,null,null,null,null,null,null,null,null,null,null,null,null,null,"2023-11-23",null,45253]
[null,null,null,null,null,null,null,null,null,null,null,null,null,null,null,null,null,null,null,"休業実績",null,null,null,null,null,null,null,null,null,null,null,null,null,null,null,null,null,null,null,null,null,null,null,null,null,null,null,null,null,null,null,null,null,null,null,null,null,null,null,{"$f":"COUNTIFS(Z12:BD12,\"\",$Z13:$BD13,\"休\")","v":0},null,null,{"$f":"SUMIFS($Z13:$BD13,$Z12:$BD12,\"<>\"&\"公\")","v":0},null,null,{"$f":"COUNTIFS(Z12:BD12,\"\",$Z14:$BD14,\"教\")","v":0},null,null,{"$f":"SUMIFS($Z14:$BD14,$Z12:$BD12,\"<>\"&\"公\")","v":0},null,null,{"$f":"FLOOR(SUM($Z15:$BD15),0.5)","v":0},null,null,null,null,null,null,null,null,null,null,null,null,null,null,null,null,null,null,null,null,null,null,"日給",null,null,null,null,null,null,null,null,null,null,null,"休",{"$f":"IF(OR(Z12=\"公\",Z13=\"\"),\"\",\"A\")","v":""},{"$f":"IF(OR(AA12=\"公\",AA13=\"\"),\"\",\"A\")","v":""},"","","","","","","","","","","","","","","","","","","","","","","","","","","","","",null,null,"2023-12-29",null,45289]
[null,null,null,null,null,null,null,null,null,null,null,null,null,null,null,null,null,null,null,"教育実績",null,null,null,null,null,null,null,null,null,null,null,null,null,null,null,null,null,null,null,null,null,null,null,null,null,null,null,null,null,null,null,null,null,null,null,null,null,null,null,null,null,null,null,null,null,null,null,null,null,null,null,null,null,null,null,null,null,null,null,null,null,null,null,null,null,null,null,null,null,null,null,null,null,null,"時給",null,null,null,null,null,null,null,null,null,null,null,"教",{"$f":"IF(OR(Z12=\"公\",Z14=\"\"),\"\",\"B\")","v":""},{"$f":"IF(OR(AA12=\"公\",AA14=\"\"),\"\",\"B\")","v":""},"","","","","","","","","","","","","","","","","","","","","","","","","","","","","",null,null,"2023-12-30",null,45290]
[null,null,null,null,null,null,null,null,null,null,null,null,null,null,null,null,null,null,null,"残業時間",null,null,null,null,null,null,null,null,null,null,null,null,null,null,null,null,null,null,null,null,null,null,null,null,null,null,null,null,null,null,null,null,null,null,null,null,null,null,null,null,null,null,null,null,null,null,null,null,null,null,null,null,null,null,null,null,null,null,null,null,null,null,null,null,null,null,null,null,null,null,null,null,null,null,"その他",null,null,null,null,null,null,null,null,null,null,null,null,null,null,null,null,null,null,null,null,null,null,null,null,null,null,null,null,null,null,null,null,null,null,null,null,null,null,null,null,null,null,null,null,null,"2023-12-31",null,45291]
[2,null,null,null,null,null,null,null,null,null,null,null,null,null,null,null,null,null,null,"所定休日",null,null,null,null,null,null,null,null,null,null,null,null,null,null,null,null,null,null,null,null,null,null,null,null,null,null,null,null,null,null,null,null,null,null,null,null,{"$f":"$AJ$4-$AD$4+1-(COUNTIF($Z16:$BD16,\"公\"))","v":1},null,null,null,null,null,null,null,null,null,null,null,null,null,null,null,null,null,null,null,{"$f":"$CU$4&ROW(BY16)&\":\"&$CX$4&ROW(BY16)","v":{"$error":"#N/A"}},null,null,null,null,null,null,null,null,null,null,null,null,null,null,null,null,null,null,null,null,null,null,null,null,null,null,null,null,null,null,null,null,null,null,null,null,null,null,null,null,null,null,null,null,null,null,null,null,null,null,null,null,null,null,null,null,null,null,null,null,null,null,null,"2024-01-01",null,45292]
[null,null,null,null,null,null,null,null,null,null,null,null,null,null,null,null,null,null,null,"休業実績",null,null,null,null,null,null,null,null,null,null,null,null,null,null,null,null,null,null,null,null,null,null,null,null,null,null,null,null,null,null,null,null,null,null,null,null,null,null,null,{"$f":"COUNTIFS(Z16:BD16,\"\",$Z17:$BD17,\"休\")","v":0},null,null,{"$f":"SUMIFS($Z17:$BD17,$Z16:$BD16,\"<>\"&\"公\")","v":0},null,null,{"$f":"COUNTIFS(Z16:BD16,\"\",$Z18:$BD18,\"教\")","v":0},null,null,{"$f":"SUMIFS($Z18:$BD18,$Z16:$BD16,\"<>\"&\"公\")","v":0},null,null,{"$f":"FLOOR(SUM($Z19:$BD19),0.5)","v":0},null,null,null,null,null,null,null,null,null,null,null,null,null,null,null,null,null,null,null,null,null,null,"休",null,null,null,null,null,null,null,null,null,null,null,"休",{"$f":"IF(OR(Z16=\"公\",Z17=\"\"),\"\",\"A\")","v":""},{"$f":"IF(OR(AA16=\"公\",AA17=\"\"),\"\",\"A\")","v":""},{"$f":"IF(OR(AB16=\"公\",AB17=\"\"),\"\",\"A\")","v":""},{"$f":"IF(OR(AC16=\"公\",AC17=\"\"),\"\",\"A\")","v":""},{"$f":"IF(OR(AD16=\"公\",AD17=\"\"),\"\",\"A\")","v":""},{"$f":"IF(OR(AE16=\"公\",AE17=\"\"),\"\",\"A\")","v":""},{"$f":"IF(OR(AF16=\"公\",AF17=\"\"),\"\",\"A\")","v":""},{"$f":"IF(OR(AG16=\"公\",AG17=\"\"),\"\",\"A\")","v":""},{"$f":"IF(OR(AH16=\"公\",AH17=\"\"),\"\",\"A\")","v":""},{"$f":"IF(OR(AI16=\"公\",AI17=\"\"),\"\",\"A\")","v":""},{"$f":"IF(OR(AJ16=\"公\",AJ17=\"\"),\"\",\"A\")","v":""},{"$f":"IF(OR(AK16=\"公\",AK17=\"\"),\"\",\"A\")","v":""},{"$f":"IF(OR(AL16=\"公\",AL17=\"\"),\"\",\"A\")","v":""},{"$f":"IF(OR(AM16=\"公\",AM17=\"\"),\"\",\"A\")","v":""},{"$f":"IF(OR(AN16=\"公\",AN17=\"\"),\"\",\"A\")","v":""},{"$f":"IF(OR(AO16=\"公\",AO17=\"\"),\"\",\"A\")","v":""},{"$f":"IF(OR(AP16=\"公\",AP17=\"\"),\"\",\"A\")","v":""},{"$f":"IF(OR(AQ16=\"公\",AQ17=\"\"),\"\",\"A\")","v":""},{"$f":"IF(OR(AR16=\"公\",AR17=\"\"),\"\",\"A\")","v":""},{"$f":"IF(OR(AS16=\"公\",AS17=\"\"),\"\",\"A\")","v":""},{"$f":"IF(OR(AT16=\"公\",AT17=\"\"),\"\",\"A\")","v":""},{"$f":"IF(OR(AU16=\"公\",AU17=\"\"),\"\",\"A\")","v":""},{"$f":"IF(OR(AV16=\"公\",AV17=\"\"),\"\",\"A\")","v":""},{"$f":"IF(OR(AW16=\"公\",AW17=\"\"),\"\",\"A\")","v":""},{"$f":"IF(OR(AX16=\"公\",AX17=\"\"),\"\",\"A\")","v":""},{"$f":"IF(OR(AY16=\"公\",AY17=\"\"),\"\",\"A\")","v":""},{"$f":"IF(OR(AZ16=\"公\",AZ17=\"\"),\"\",\"A\")","v":""},{"$f":"IF(OR(BA16=\"公\",BA17=\"\"),\"\",\"A\")","v":""},{"$f":"IF(OR(BB16=\"公\",BB17=\"\"),\"\",\"A\")","v":""},{"$f":"IF(OR(BC16=\"公\",BC17=\"\"),\"\",\"A\")","v":""},{"$f":"IF(OR(BD16=\"公\",BD17=\"\"),\"\",\"A\")","v":""},null,null,"2024-01-02",null,45293]
[null,null,null,null,null,null,null,null,null,null,null,null,null,null,null,null,null,null,null,"教育実績",null,null,null,null,null,null,null,null,null,null,null,null,null,null,null,null,null,null,null,null,null,null,null,null,null,null,null,null,null,null,null,null,null,null,null,null,null,null,null,null,null,null,null,null,null,null,null,null,null,null,null,null,null,null,null,null,null,null,null,null,null,null,null,null,null,null,null,null,null,null,null,null,null,null,1,null,null,null,null,null,null,null,null,null,null,null,"教",{"$f":"IF(OR(Z16=\"公\",Z18=\"\"),\"\",\"B\")","v":""},{"$f":"IF(OR(AA16=\"公\",AA18=\"\"),\"\",\"B\")","v":""},{"$f":"IF(OR(AB16=\"公\",AB18=\"\"),\"\",\"B\")","v":""},{"$f":"IF(OR(AC16=\"公\",AC18=\"\"),\"\",\"B\")","v":""},{"$f":"IF(OR(AD16=\"公\",AD18=\"\"),\"\",\"B\")","v":""},{"$f":"IF(OR(AE16=\"公\",AE18=\"\"),\"\",\"B\")","v":""},{"$f":"IF(OR(AF16=\"公\",AF18=\"\"),\"\",\"B\")","v":""},{"$f":"IF(OR(AG16=\"公\",AG18=\"\"),\"\",\"B\")","v":""},{"$f":"IF(OR(AH16=\"公\",AH18=\"\"),\"\",\"B\")","v":""},{"$f":"IF(OR(AI16=\"公\",AI18=\"\"),\"\",\"B\")","v":""},{"$f":"IF(OR(AJ16=\"公\",AJ18=\"\"),\"\",\"B\")","v":""},{"$f":"IF(OR(AK16=\"公\",AK18=\"\"),\"\",\"B\")","v":""},{"$f":"IF(OR(AL16=\"公\",AL18=\"\"),\"\",\"B\")","v":""},{"$f":"IF(OR(AM16=\"公\",AM18=\"\"),\"\",\"B\")","v":""},{"$f":"IF(OR(AN16=\"公\",AN18=\"\"),\"\",\"B\")","v":""},{"$f":"IF(OR(AO16=\"公\",AO18=\"\"),\"\",\"B\")","v":""},{"$f":"IF(OR(AP16=\"公\",AP18=\"\"),\"\",\"B\")","v":""},{"$f":"IF(OR(AQ16=\"公\",AQ18=\"\"),\"\",\"B\")","v":""},{"$f":"IF(OR(AR16=\"公\",AR18=\"\"),\"\",\"B\")","v":""},{"$f":"IF(OR(AS16=\"公\",AS18=\"\"),\"\",\"B\")","v":""},{"$f":"IF(OR(AT16=\"公\",AT18=\"\"),\"\",\"B\")","v":""},{"$f":"IF(OR(AU16=\"公\",AU18=\"\"),\"\",\"B\")","v":""},{"$f":"IF(OR(AV16=\"公\",AV18=\"\"),\"\",\"B\")","v":""},{"$f":"IF(OR(AW16=\"公\",AW18=\"\"),\"\",\"B\")","v":""},{"$f":"IF(OR(AX16=\"公\",AX18=\"\"),\"\",\"B\")","v":""},{"$f":"IF(OR(AY16=\"公\",AY18=\"\"),\"\",\"B\")","v":""},{"$f":"IF(OR(AZ16=\"公\",AZ18=\"\"),\"\",\"B\")","v":""},{"$f":"IF(OR(BA16=\"公\",BA18=\"\"),\"\",\"B\")","v":""},{"$f":"IF(OR(BB16=\"公\",BB18=\"\"),\"\",\"B\")","v":""},{"$f":"IF(OR(BC16=\"公\",BC18=\"\"),\"\",\"B\")","v":""},{"$f":"IF(OR(BD16=\"公\",BD18=\"\"),\"\",\"B\")","v":""},null,null,"2024-01-03",null,45294]
[null,null,null,null,null,null,null,null,null,null,null,null,null,null,null,null,null,null,null,"残業時間",null,null,null,null,null,null,null,null,null,null,null,null,null,null,null,null,null,null,null,null,null,null,null,null,null,null,null,null,null,null,null,null,null,null,null,null,null,null,null,null,null,null,null,null,null,null,null,null,null,null,null,null,null,null,null,null,null,null,null,null,null,null,null,null,null,null,null,null,null,null,null,null,null,null,1.5,null,null,null,null,null,null,null,null,null,null,null,null,null,null,null,null,null,null,null,null,null,null,null,null,null,null,null,null,null,null,null,null,null,null,null,null,null,null,null,null,null,null,null,null,null,"2024-01-08",null,45299]
[3,null,null,null,null,null,null,null,null,null,null,null,null,null,null,null,null,null,null,"所定休日",null,null,null,null,null,null,null,null,null,null,null,null,null,null,null,null,null,null,null,null,null,null,null,null,null,null,null,null,null,null,null,null,null,null,null,null,{"$f":"$AJ$4-$AD$4+1-(COUNTIF($Z20:$BD20,\"公\"))","v":1},null,null,null,null,null,null,null,null,null,null,null,null,null,null,null,null,null,null,null,{"$f":"$CU$4&ROW(BY20)&\":\"&$CX$4&ROW(BY20)","v":{"$error":"#N/A"}},null,null,null,null,null,null,null,null,null,null,null,null,null,null,null,null,null,2,null,null,null,null,null,null,null,null,null,null,null,null,null,null,null,null,null,null,null,null,null,null,null,null,null,null,null,null,null,null,null,null,null,null,null,null,null,null,null,null,null,null,null,null,null,"2024-02-11",null,45333]
[null,null,null,null,null,null,null,null,null,null,null,null,null,null,null,null,null,null,null,"休業実績",null,null,null,null,null,null,null,null,null,null,null,null,null,null,null,null,null,null,null,null,null,null,null,null,null,null,null,null,null,null,null,null,null,null,null,null,null,null,null,{"$f":"COUNTIFS(Z20:BD20,\"\",$Z21:$BD21,\"休\")","v":0},null,null,{"$f":"SUMIFS($Z21:$BD21,$Z20:$BD20,\"<>\"&\"公\")","v":0},null,null,{"$f":"COUNTIFS(Z20:BD20,\"\",$Z22:$BD22,\"教\")","v":0},null,null,{"$f":"SUMIFS($Z22:$BD22,$Z20:$BD20,\"<>\"&\"公\")","v":0},null,null,{"$f":"FLOOR(SUM($Z23:$BD23),0.5)","v":0},null,null,null,null,null,null,null,null,null,null,null,null,null,null,null,null,null,null,null,null,null,null,2.5,null,null,null,null,null,null,null,null,null,null,null,"休",{"$f":"IF(OR(Z20=\"公\",Z21=\"\"),\"\",\"A\")","v":""},{"$f":"IF(OR(AA20=\"公\",AA21=\"\"),\"\",\"A\")","v":""},{"$f":"IF(OR(AB20=\"公\",AB21=\"\"),\"\",\"A\")","v":""},{"$f":"IF(OR(AC20=\"公\",AC21=\"\"),\"\",\"A\")","v":""},{"$f":"IF(OR(AD20=\"公\",AD21=\"\"),\"\",\"A\")","v":""},{"$f":"IF(OR(AE20=\"公\",AE21=\"\"),\"\",\"A\")","v":""},{"$f":"IF(OR(AF20=\"公\",AF21=\"\"),\"\",\"A\")","v":""},{"$f":"IF(OR(AG20=\"公\",AG21=\"\"),\"\",\"A\")","v":""},{"$f":"IF(OR(AH20=\"公\",AH21=\"\"),\"\",\"A\")","v":""},{"$f":"IF(OR(AI20=\"公\",AI21=\"\"),\"\",\"A\")","v":""},{"$f":"IF(OR(AJ20=\"公\",AJ21=\"\"),\"\",\"A\")","v":""},{"$f":"IF(OR(AK20=\"公\",AK21=\"\"),\"\",\"A\")","v":""},{"$f":"IF(OR(AL20=\"公\",AL21=\"\"),\"\",\"A\")","v":""},{"$f":"IF(OR(AM20=\"公\",AM21=\"\"),\"\",\"A\")","v":""},{"$f":"IF(OR(AN20=\"公\",AN21=\"\"),\"\",\"A\")","v":""},{"$f":"IF(OR(AO20=\"公\",AO21=\"\"),\"\",\"A\")","v":""},{"$f":"IF(OR(AP20=\"公\",AP21=\"\"),\"\",\"A\")","v":""},{"$f":"IF(OR(AQ20=\"公\",AQ21=\"\"),\"\",\"A\")","v":""},{"$f":"IF(OR(AR20=\"公\",AR21=\"\"),\"\",\"A\")","v":""},{"$f":"IF(OR(AS20=\"公\",AS21=\"\"),\"\",\"A\")","v":""},{"$f":"IF(OR(AT20=\"公\",AT21=\"\"),\"\",\"A\")","v":""},{"$f":"IF(OR(AU20=\"公\",AU21=\"\"),\"\",\"A\")","v":""},{"$f":"IF(OR(AV20=\"公\",AV21=\"\"),\"\",\"A\")","v":""},{"$f":"IF(OR(AW20=\"公\",AW21=\"\"),\"\",\"A\")","v":""},{"$f":"IF(OR(AX20=\"公\",AX21=\"\"),\"\",\"A\")","v":""},{"$f":"IF(OR(AY20=\"公\",AY21=\"\"),\"\",\"A\")","v":""},{"$f":"IF(OR(AZ20=\"公\",AZ21=\"\"),\"\",\"A\")","v":""},{"$f":"IF(OR(BA20=\"公\",BA21=\"\"),\"\",\"A\")","v":""},{"$f":"IF(OR(BB20=\"公\",BB21=\"\"),\"\",\"A\")","v":""},{"$f":"IF(OR(BC20=\"公\",BC21=\"\"),\"\",\"A\")","v":""},{"$f":"IF(OR(BD20=\"公\",BD21=\"\"),\"\",\"A\")","v":""},null,null,"2024-02-12",null,45334]
[null,null,null,null,null,null,null,null,null,null,null,null,null,null,null,null,null,null,null,"教育実績",null,null,null,null,null,null,null,null,null,null,null,null,null,null,null,null,null,null,null,null,null,null,null,null,null,null,null,null,null,null,null,null,null,null,null,null,null,null,null,null,null,null,null,null,null,null,null,null,null,null,null,null,null,null,null,null,null,null,null,null,null,null,null,null,null,null,null,null,null,null,null,null,null,null,3,null,null,null,null,null,null,null,null,null,null,null,"教",{"$f":"IF(OR(Z20=\"公\",Z22=\"\"),\"\",\"B\")","v":""},{"$f":"IF(OR(AA20=\"公\",AA22=\"\"),\"\",\"B\")","v":""},{"$f":"IF(OR(AB20=\"公\",AB22=\"\"),\"\",\"B\")","v":""},{"$f":"IF(OR(AC20=\"公\",AC22=\"\"),\"\",\"B\")","v":""},{"$f":"IF(OR(AD20=\"公\",AD22=\"\"),\"\",\"B\")","v":""},{"$f":"IF(OR(AE20=\"公\",AE22=\"\"),\"\",\"B\")","v":""},{"$f":"IF(OR(AF20=\"公\",AF22=\"\"),\"\",\"B\")","v":""},{"$f":"IF(OR(AG20=\"公\",AG22=\"\"),\"\",\"B\")","v":""},{"$f":"IF(OR(AH20=\"公\",AH22=\"\"),\"\",\"B\")","v":""},{"$f":"IF(OR(AI20=\"公\",AI22=\"\"),\"\",\"B\")","v":""},{"$f":"IF(OR(AJ20=\"公\",AJ22=\"\"),\"\",\"B\")","v":""},{"$f":"IF(OR(AK20=\"公\",AK22=\"\"),\"\",\"B\")","v":""},{"$f":"IF(OR(AL20=\"公\",AL22=\"\"),\"\",\"B\")","v":""},{"$f":"IF(OR(AM20=\"公\",AM22=\"\"),\"\",\"B\")","v":""},{"$f":"IF(OR(AN20=\"公\",AN22=\"\"),\"\",\"B\")","v":""},{"$f":"IF(OR(AO20=\"公\",AO22=\"\"),\"\",\"B\")","v":""},{"$f":"IF(OR(AP20=\"公\",AP22=\"\"),\"\",\"B\")","v":""},{"$f":"IF(OR(AQ20=\"公\",AQ22=\"\"),\"\",\"B\")","v":""},{"$f":"IF(OR(AR20=\"公\",AR22=\"\"),\"\",\"B\")","v":""},{"$f":"IF(OR(AS20=\"公\",AS22=\"\"),\"\",\"B\")","v":""},{"$f":"IF(OR(AT20=\"公\",AT22=\"\"),\"\",\"B\")","v":""},{"$f":"IF(OR(AU20=\"公\",AU22=\"\"),\"\",\"B\")","v":""},{"$f":"IF(OR(AV20=\"公\",AV22=\"\"),\"\",\"B\")","v":""},{"$f":"IF(OR(AW20=\"公\",AW22=\"\"),\"\",\"B\")","v":""},{"$f":"IF(OR(AX20=\"公\",AX22=\"\"),\"\",\"B\")","v":""},{"$f":"IF(OR(AY20=\"公\",AY22=\"\"),\"\",\"B\")","v":""},{"$f":"IF(OR(AZ20=\"公\",AZ22=\"\"),\"\",\"B\")","v":""},{"$f":"IF(OR(BA20=\"公\",BA22=\"\"),\"\",\"B\")","v":""},{"$f":"IF(OR(BB20=\"公\",BB22=\"\"),\"\",\"B\")","v":""},{"$f":"IF(OR(BC20=\"公\",BC22=\"\"),\"\",\"B\")","v":""},{"$f":"IF(OR(BD20=\"公\",BD22=\"\"),\"\",\"B\")","v":""},null,null,"2024-02-23",null,45345]
[null,null,null,null,null,null,null,null,null,null,null,null,null,null,null,null,null,null,null,"残業時間",null,null,null,null,null,null,null,null,null,null,null,null,null,null,null,null,null,null,null,null,null,null,null,null,null,null,null,null,null,null,null,null,null,null,null,null,null,null,null,null,null,null,null,null,null,null,null,null,null,null,null,null,null,null,null,null,null,null,null,null,null,null,null,null,null,null,null,null,null,null,null,null,null,null,3.5,null,null,null,null,null,null,null,null,null,null,null,null,null,null,null,null,null,null,null,null,null,null,null,null,null,null,null,null,null,null,null,null,null,null,null,null,null,null,null,null,null,null,null,null,null,"2024-03-20",null,45371]
[4,null,null,null,null,null,null,null,null,null,null,null,null,null,null,null,null,null,null,"所定休日",null,null,null,null,null,null,null,null,null,null,null,null,null,null,null,null,null,null,null,null,null,null,null,null,null,null,null,null,null,null,null,null,null,null,null,null,{"$f":"$AJ$4-$AD$4+1-(COUNTIF($Z24:$BD24,\"公\"))","v":1},null,null,null,null,null,null,null,null,null,null,null,null,null,null,null,null,null,null,null,{"$f":"$CU$4&ROW(BY24)&\":\"&$CX$4&ROW(BY24)","v":{"$error":"#N/A"}},null,null,null,null,null,null,null,null,null,null,null,null,null,null,null,null,null,4,null,null,null,null,null,null,null,null,null,null,null,null,null,null,null,null,null,null,null,null,null,null,null,null,null,null,null,null,null,null,null,null,null,null,null,null,null,null,null,null,null,null,null,null,null,"2024-04-29",null,45411]
[null,null,null,null,null,null,null,null,null,null,null,null,null,null,null,null,null,null,null,"休業実績",null,null,null,null,null,null,null,null,null,null,null,null,null,null,null,null,null,null,null,null,null,null,null,null,null,null,null,null,null,null,null,null,null,null,null,null,null,null,null,{"$f":"COUNTIFS(Z24:BD24,\"\",$Z25:$BD25,\"休\")","v":0},null,null,{"$f":"SUMIFS($Z25:$BD25,$Z24:$BD24,\"<>\"&\"公\")","v":0},null,null,{"$f":"COUNTIFS(Z24:BD24,\"\",$Z26:$BD26,\"教\")","v":0},null,null,{"$f":"SUMIFS($Z26:$BD26,$Z24:$BD24,\"<>\"&\"公\")","v":0},null,null,{"$f":"FLOOR(SUM($Z27:$BD27),0.5)","v":0},null,null,null,null,null,null,null,null,null,null,null,null,null,null,null,null,null,null,null,null,null,null,4.5,null,null,null,null,null,null,null,null,null,null,null,"休",{"$f":"IF(OR(Z24=\"公\",Z25=\"\"),\"\",\"A\")","v":""},{"$f":"IF(OR(AA24=\"公\",AA25=\"\"),\"\",\"A\")","v":""},{"$f":"IF(OR(AB24=\"公\",AB25=\"\"),\"\",\"A\")","v":""},{"$f":"IF(OR(AC24=\"公\",AC25=\"\"),\"\",\"A\")","v":""},{"$f":"IF(OR(AD24=\"公\",AD25=\"\"),\"\",\"A\")","v":""},{"$f":"IF(OR(AE24=\"公\",AE25=\"\"),\"\",\"A\")","v":""},{"$f":"IF(OR(AF24=\"公\",AF25=\"\"),\"\",\"A\")","v":""},{"$f":"IF(OR(AG24=\"公\",AG25=\"\"),\"\",\"A\")","v":""},{"$f":"IF(OR(AH24=\"公\",AH25=\"\"),\"\",\"A\")","v":""},{"$f":"IF(OR(AI24=\"公\",AI25=\"\"),\"\",\"A\")","v":""},{"$f":"IF(OR(AJ24=\"公\",AJ25=\"\"),\"\",\"A\")","v":""},{"$f":"IF(OR(AK24=\"公\",AK25=\"\"),\"\",\"A\")","v":""},{"$f":"IF(OR(AL24=\"公\",AL25=\"\"),\"\",\"A\")","v":""},{"$f":"IF(OR(AM24=\"公\",AM25=\"\"),\"\",\"A\")","v":""},{"$f":"IF(OR(AN24=\"公\",AN25=\"\"),\"\",\"A\")","v":""},{"$f":"IF(OR(AO24=\"公\",AO25=\"\"),\"\",\"A\")","v":""},{"$f":"IF(OR(AP24=\"公\",AP25=\"\"),\"\",\"A\")","v":""},{"$f":"IF(OR(AQ24=\"公\",AQ25=\"\"),\"\",\"A\")","v":""},{"$f":"IF(OR(AR24=\"公\",AR25=\"\"),\"\",\"A\")","v":""},{"$f":"IF(OR(AS24=\"公\",AS25=\"\"),\"\",\"A\")","v":""},{"$f":"IF(OR(AT24=\"公\",AT25=\"\"),\"\",\"A\")","v":""},{"$f":"IF(OR(AU24=\"公\",AU25=\"\"),\"\",\"A\")","v":""},{"$f":"IF(OR(AV24=\"公\",AV25=\"\"),\"\",\"A\")","v":""},{"$f":"IF(OR(AW24=\"公\",AW25=\"\"),\"\",\"A\")","v":""},{"$f":"IF(OR(AX24=\"公\",AX25=\"\"),\"\",\"A\")","v":""},{"$f":"IF(OR(AY24=\"公\",AY25=\"\"),\"\",\"A\")","v":""},{"$f":"IF(OR(AZ24=\"公\",AZ25=\"\"),\"\",\"A\")","v":""},{"$f":"IF(OR(BA24=\"公\",BA25=\"\"),\"\",\"A\")","v":""},{"$f":"IF(OR(BB24=\"公\",BB25=\"\"),\"\",\"A\")","v":""},{"$f":"IF(OR(BC24=\"公\",BC25=\"\"),\"\",\"A\")","v":""},{"$f":"IF(OR(BD24=\"公\",BD25=\"\"),\"\",\"A\")","v":""},null,null,"2024-05-03",null,45415]
[null,null,null,null,null,null,null,null,null,null,null,null,null,null,null,null,null,null,null,"教育実績",null,null,null,null,null,null,null,null,null,null,null,null,null,null,null,null,null,null,null,null,null,null,null,null,null,null,null,null,null,null,null,null,null,null,null,null,null,null,null,null,null,null,null,null,null,null,null,null,null,null,null,null,null,null,null,null,null,null,null,null,null,null,null,null,null,null,null,null,null,null,null,null,null,null,5,null,null,null,null,null,null,null,null,null,null,null,"教",{"$f":"IF(OR(Z24=\"公\",Z26=\"\"),\"\",\"B\")","v":""},{"$f":"IF(OR(AA24=\"公\",AA26=\"\"),\"\",\"B\")","v":""},{"$f":"IF(OR(AB24=\"公\",AB26=\"\"),\"\",\"B\")","v":""},{"$f":"IF(OR(AC24=\"公\",AC26=\"\"),\"\",\"B\")","v":""},{"$f":"IF(OR(AD24=\"公\",AD26=\"\"),\"\",\"B\")","v":""},{"$f":"IF(OR(AE24=\"公\",AE26=\"\"),\"\",\"B\")","v":""},{"$f":"IF(OR(AF24=\"公\",AF26=\"\"),\"\",\"B\")","v":""},{"$f":"IF(OR(AG24=\"公\",AG26=\"\"),\"\",\"B\")","v":""},{"$f":"IF(OR(AH24=\"公\",AH26=\"\"),\"\",\"B\")","v":""},{"$f":"IF(OR(AI24=\"公\",AI26=\"\"),\"\",\"B\")","v":""},{"$f":"IF(OR(AJ24=\"公\",AJ26=\"\"),\"\",\"B\")","v":""},{"$f":"IF(OR(AK24=\"公\",AK26=\"\"),\"\",\"B\")","v":""},{"$f":"IF(OR(AL24=\"公\",AL26=\"\"),\"\",\"B\")","v":""},{"$f":"IF(OR(AM24=\"公\",AM26=\"\"),\"\",\"B\")","v":""},{"$f":"IF(OR(AN24=\"公\",AN26=\"\"),\"\",\"B\")","v":""},{"$f":"IF(OR(AO24=\"公\",AO26=\"\"),\"\",\"B\")","v":""},{"$f":"IF(OR(AP24=\"公\",AP26=\"\"),\"\",\"B\")","v":""},{"$f":"IF(OR(AQ24=\"公\",AQ26=\"\"),\"\",\"B\")","v":""},{"$f":"IF(OR(AR24=\"公\",AR26=\"\"),\"\",\"B\")","v":""},{"$f":"IF(OR(AS24=\"公\",AS26=\"\"),\"\",\"B\")","v":""},{"$f":"IF(OR(AT24=\"公\",AT26=\"\"),\"\",\"B\")","v":""},{"$f":"IF(OR(AU24=\"公\",AU26=\"\"),\"\",\"B\")","v":""},{"$f":"IF(OR(AV24=\"公\",AV26=\"\"),\"\",\"B\")","v":""},{"$f":"IF(OR(AW24=\"公\",AW26=\"\"),\"\",\"B\")","v":""},{"$f":"IF(OR(AX24=\"公\",AX26=\"\"),\"\",\"B\")","v":""},{"$f":"IF(OR(AY24=\"公\",AY26=\"\"),\"\",\"B\")","v":""},{"$f":"IF(OR(AZ24=\"公\",AZ26=\"\"),\"\",\"B\")","v":""},{"$f":"IF(OR(BA24=\"公\",BA26=\"\"),\"\",\"B\")","v":""},{"$f":"IF(OR(BB24=\"公\",BB26=\"\"),\"\",\"B\")","v":""},{"$f":"IF(OR(BC24=\"公\",BC26=\"\"),\"\",\"B\")","v":""},{"$f":"IF(OR(BD24=\"公\",BD26=\"\"),\"\",\"B\")","v":""},null,null,"2024-05-04",null,45416]
[null,null,null,null,null,null,null,null,null,null,null,null,null,null,null,null,null,null,null,"残業時間",null,null,null,null,null,null,null,null,null,null,null,null,null,null,null,null,null,null,null,null,null,null,null,null,null,null,null,null,null,null,null,null,null,null,null,null,null,null,null,null,null,null,null,null,null,null,null,null,null,null,null,null,null,null,null,null,null,null,null,null,null,null,null,null,null,null,null,null,null,null,null,null,null,null,5.5,null,null,null,null,null,null,null,null,null,null,null,null,null,null,null,null,null,null,null,null,null,null,null,null,null,null,null,null,null,null,null,null,null,null,null,null,null,null,null,null,null,null,null,null,null,"2024-05-05",null,45417]
[5,null,null,null,null,null,null,null,null,null,null,null,null,null,null,null,null,null,null,"所定休日",null,null,null,null,null,null,null,null,null,null,null,null,null,null,null,null,null,null,null,null,null,null,null,null,null,null,null,null,null,null,null,null,null,null,null,null,{"$f":"$AJ$4-$AD$4+1-(COUNTIF($Z28:$BD28,\"公\"))","v":1},null,null,null,null,null,null,null,null,null,null,null,null,null,null,null,null,null,null,null,{"$f":"$CU$4&ROW(BY28)&\":\"&$CX$4&ROW(BY28)","v":{"$error":"#N/A"}},null,null,null,null,null,null,null,null,null,null,null,null,null,null,null,null,null,6,null,null,null,null,null,null,null,null,null,null,null,null,null,null,null,null,null,null,null,null,null,null,null,null,null,null,null,null,null,null,null,null,null,null,null,null,null,null,null,null,null,null,null,null,null,"2024-05-06",null,45418]
[null,null,null,null,null,null,null,null,null,null,null,null,null,null,null,null,null,null,null,"休業実績",null,null,null,null,null,null,null,null,null,null,null,null,null,null,null,null,null,null,null,null,null,null,null,null,null,null,null,null,null,null,null,null,null,null,null,null,null,null,null,{"$f":"COUNTIFS(Z28:BD28,\"\",$Z29:$BD29,\"休\")","v":0},null,null,{"$f":"SUMIFS($Z29:$BD29,$Z28:$BD28,\"<>\"&\"公\")","v":0},null,null,{"$f":"COUNTIFS(Z28:BD28,\"\",$Z30:$BD30,\"教\")","v":0},null,null,{"$f":"SUMIFS($Z30:$BD30,$Z28:$BD28,\"<>\"&\"公\")","v":0},null,null,{"$f":"FLOOR(SUM($Z31:$BD31),0.5)","v":0},null,null,null,null,null,null,null,null,null,null,null,null,null,null,null,null,null,null,null,null,null,null,6.5,null,null,null,null,null,null,null,null,null,null,null,"休",{"$f":"IF(OR(Z28=\"公\",Z29=\"\"),\"\",\"A\")","v":""},{"$f":"IF(OR(AA28=\"公\",AA29=\"\"),\"\",\"A\")","v":""},{"$f":"IF(OR(AB28=\"公\",AB29=\"\"),\"\",\"A\")","v":""},{"$f":"IF(OR(AC28=\"公\",AC29=\"\"),\"\",\"A\")","v":""},{"$f":"IF(OR(AD28=\"公\",AD29=\"\"),\"\",\"A\")","v":""},{"$f":"IF(OR(AE28=\"公\",AE29=\"\"),\"\",\"A\")","v":""},{"$f":"IF(OR(AF28=\"公\",AF29=\"\"),\"\",\"A\")","v":""},{"$f":"IF(OR(AG28=\"公\",AG29=\"\"),\"\",\"A\")","v":""},{"$f":"IF(OR(AH28=\"公\",AH29=\"\"),\"\",\"A\")","v":""},{"$f":"IF(OR(AI28=\"公\",AI29=\"\"),\"\",\"A\")","v":""},{"$f":"IF(OR(AJ28=\"公\",AJ29=\"\"),\"\",\"A\")","v":""},{"$f":"IF(OR(AK28=\"公\",AK29=\"\"),\"\",\"A\")","v":""},{"$f":"IF(OR(AL28=\"公\",AL29=\"\"),\"\",\"A\")","v":""},{"$f":"IF(OR(AM28=\"公\",AM29=\"\"),\"\",\"A\")","v":""},{"$f":"IF(OR(AN28=\"公\",AN29=\"\"),\"\",\"A\")","v":""},{"$f":"IF(OR(AO28=\"公\",AO29=\"\"),\"\",\"A\")","v":""},{"$f":"IF(OR(AP28=\"公\",AP29=\"\"),\"\",\"A\")","v":""},{"$f":"IF(OR(AQ28=\"公\",AQ29=\"\"),\"\",\"A\")","v":""},{"$f":"IF(OR(AR28=\"公\",AR29=\"\"),\"\",\"A\")","v":""},{"$f":"IF(OR(AS28=\"公\",AS29=\"\"),\"\",\"A\")","v":""},{"$f":"IF(OR(AT28=\"公\",AT29=\"\"),\"\",\"A\")","v":""},{"$f":"IF(OR(AU28=\"公\",AU29=\"\"),\"\",\"A\")","v":""},{"$f":"IF(OR(AV28=\"公\",AV29=\"\"),\"\",\"A\")","v":""},{"$f":"IF(OR(AW28=\"公\",AW29=\"\"),\"\",\"A\")","v":""},{"$f":"IF(OR(AX28=\"公\",AX29=\"\"),\"\",\"A\")","v":""},{"$f":"IF(OR(AY28=\"公\",AY29=\"\"),\"\",\"A\")","v":""},{"$f":"IF(OR(AZ28=\"公\",AZ29=\"\"),\"\",\"A\")","v":""},{"$f":"IF(OR(BA28=\"公\",BA29=\"\"),\"\",\"A\")","v":""},{"$f":"IF(OR(BB28=\"公\",BB29=\"\"),\"\",\"A\")","v":""},{"$f":"IF(OR(BC28=\"公\",BC29=\"\"),\"\",\"A\")","v":""},{"$f":"IF(OR(BD28=\"公\",BD29=\"\"),\"\",\"A\")","v":""},null,null,"2024-07-15",null,45488]
[null,null,null,null,null,null,null,null,null,null,null,null,null,null,null,null,null,null,null,"教育実績",null,null,null,null,null,null,null,null,null,null,null,null,null,null,null,null,null,null,null,null,null,null,null,null,null,null,null,null,null,null,null,null,null,null,null,null,null,null,null,null,null,null,null,null,null,null,null,null,null,null,null,null,null,null,null,null,null,null,null,null,null,null,null,null,null,null,null,null,null,null,null,null,null,null,7,null,null,null,null,null,null,null,null,null,null,null,"教",{"$f":"IF(OR(Z28=\"公\",Z30=\"\"),\"\",\"B\")","v":""},{"$f":"IF(OR(AA28=\"公\",AA30=\"\"),\"\",\"B\")","v":""},{"$f":"IF(OR(AB28=\"公\",AB30=\"\"),\"\",\"B\")","v":""},{"$f":"IF(OR(AC28=\"公\",AC30=\"\"),\"\",\"B\")","v":""},{"$f":"IF(OR(AD28=\"公\",AD30=\"\"),\"\",\"B\")","v":""},{"$f":"IF(OR(AE28=\"公\",AE30=\"\"),\"\",\"B\")","v":""},{"$f":"IF(OR(AF28=\"公\",AF30=\"\"),\"\",\"B\")","v":""},{"$f":"IF(OR(AG28=\"公\",AG30=\"\"),\"\",\"B\")","v":""},{"$f":"IF(OR(AH28=\"公\",AH30=\"\"),\"\",\"B\")","v":""},{"$f":"IF(OR(AI28=\"公\",AI30=\"\"),\"\",\"B\")","v":""},{"$f":"IF(OR(AJ28=\"公\",AJ30=\"\"),\"\",\"B\")","v":""},{"$f":"IF(OR(AK28=\"公\",AK30=\"\"),\"\",\"B\")","v":""},{"$f":"IF(OR(AL28=\"公\",AL30=\"\"),\"\",\"B\")","v":""},{"$f":"IF(OR(AM28=\"公\",AM30=\"\"),\"\",\"B\")","v":""},{"$f":"IF(OR(AN28=\"公\",AN30=\"\"),\"\",\"B\")","v":""},{"$f":"IF(OR(AO28=\"公\",AO30=\"\"),\"\",\"B\")","v":""},{"$f":"IF(OR(AP28=\"公\",AP30=\"\"),\"\",\"B\")","v":""},{"$f":"IF(OR(AQ28=\"公\",AQ30=\"\"),\"\",\"B\")","v":""},{"$f":"IF(OR(AR28=\"公\",AR30=\"\"),\"\",\"B\")","v":""},{"$f":"IF(OR(AS28=\"公\",AS30=\"\"),\"\",\"B\")","v":""},{"$f":"IF(OR(AT28=\"公\",AT30=\"\"),\"\",\"B\")","v":""},{"$f":"IF(OR(AU28=\"公\",AU30=\"\"),\"\",\"B\")","v":""},{"$f":"IF(OR(AV28=\"公\",AV30=\"\"),\"\",\"B\")","v":""},{"$f":"IF(OR(AW28=\"公\",AW30=\"\"),\"\",\"B\")","v":""},{"$f":"IF(OR(AX28=\"公\",AX30=\"\"),\"\",\"B\")","v":""},{"$f":"IF(OR(AY28=\"公\",AY30=\"\"),\"\",\"B\")","v":""},{"$f":"IF(OR(AZ28=\"公\",AZ30=\"\"),\"\",\"B\")","v":""},{"$f":"IF(OR(BA28=\"公\",BA30=\"\"),\"\",\"B\")","v":""},{"$f":"IF(OR(BB28=\"公\",BB30=\"\"),\"\",\"B\")","v":""},{"$f":"IF(OR(BC28=\"公\",BC30=\"\"),\"\",\"B\")","v":""},{"$f":"IF(OR(BD28=\"公\",BD30=\"\"),\"\",\"B\")","v":""},null,null,"2024-08-11",null,45515]
[null,null,null,null,null,null,null,null,null,null,null,null,null,null,null,null,null,null,null,"残業時間",null,null,null,null,null,null,null,null,null,null,null,null,null,null,null,null,null,null,null,null,null,null,null,null,null,null,null,null,null,null,null,null,null,null,null,null,null,null,null,null,null,null,null,null,null,null,null,null,null,null,null,null,null,null,null,null,null,null,null,null,null,null,null,null,null,null,null,null,null,null,null,null,null,null,7.5,null,null,null,null,null,null,null,null,null,null,null,null,null,null,null,null,null,null,null,null,null,null,null,null,null,null,null,null,null,null,null,null,null,null,null,null,null,null,null,null,null,null,null,null,null,"2024-08-12",null,45516]
[6,null,null,null,null,null,null,null,null,null,null,null,null,null,null,null,null,null,null,"所定休日",null,null,null,null,null,null,null,null,null,null,null,null,null,null,null,null,null,null,null,null,null,null,null,null,null,null,null,null,null,null,null,null,null,null,null,null,{"$f":"$AJ$4-$AD$4+1-(COUNTIF($Z32:$BD32,\"公\"))","v":1},null,null,null,null,null,null,null,null,null,null,null,null,null,null,null,null,null,null,null,{"$f":"$CU$4&ROW(BY32)&\":\"&$CX$4&ROW(BY32)","v":{"$error":"#N/A"}},null,null,null,null,null,null,null,null,null,null,null,null,null,null,null,null,null,8,null,null,null,null,null,null,null,null,null,null,null,null,null,null,null,null,null,null,null,null,null,null,null,null,null,null,null,null,null,null,null,null,null,null,null,null,null,null,null,null,null,null,null,null,null,"2024-09-16",null,45551]
[null,null,null,null,null,null,null,null,null,null,null,null,null,null,null,null,null,null,null,"休業実績",null,null,null,null,null,null,null,null,null,null,null,null,null,null,null,null,null,null,null,null,null,null,null,null,null,null,null,null,null,null,null,null,null,null,null,null,null,null,null,{"$f":"COUNTIFS(Z32:BD32,\"\",$Z33:$BD33,\"休\")","v":0},null,null,{"$f":"SUMIFS($Z33:$BD33,$Z32:$BD32,\"<>\"&\"公\")","v":0},null,null,{"$f":"COUNTIFS(Z32:BD32,\"\",$Z34:$BD34,\"教\")","v":0},null,null,{"$f":"SUMIFS($Z34:$BD34,$Z32:$BD32,\"<>\"&\"公\")","v":0},null,null,{"$f":"FLOOR(SUM($Z35:$BD35),0.5)","v":0},null,null,null,null,null,null,null,null,null,null,null,null,null,null,null,null,null,null,null,null,null,null,null,null,null,null,null,null,null,null,null,null,null,null,"休",{"$f":"IF(OR(Z32=\"公\",Z33=\"\"),\"\",\"A\")","v":""},{"$f":"IF(OR(AA32=\"公\",AA33=\"\"),\"\",\"A\")","v":""},{"$f":"IF(OR(AB32=\"公\",AB33=\"\"),\"\",\"A\")","v":""},{"$f":"IF(OR(AC32=\"公\",AC33=\"\"),\"\",\"A\")","v":""},{"$f":"IF(OR(AD32=\"公\",AD33=\"\"),\"\",\"A\")","v":""},{"$f":"IF(OR(AE32=\"公\",AE33=\"\"),\"\",\"A\")","v":""},{"$f":"IF(OR(AF32=\"公\",AF33=\"\"),\"\",\"A\")","v":""},{"$f":"IF(OR(AG32=\"公\",AG33=\"\"),\"\",\"A\")","v":""},{"$f":"IF(OR(AH32=\"公\",AH33=\"\"),\"\",\"A\")","v":""},{"$f":"IF(OR(AI32=\"公\",AI33=\"\"),\"\",\"A\")","v":""},{"$f":"IF(OR(AJ32=\"公\",AJ33=\"\"),\"\",\"A\")","v":""},{"$f":"IF(OR(AK32=\"公\",AK33=\"\"),\"\",\"A\")","v":""},{"$f":"IF(OR(AL32=\"公\",AL33=\"\"),\"\",\"A\")","v":""},{"$f":"IF(OR(AM32=\"公\",AM33=\"\"),\"\",\"A\")","v":""},{"$f":"IF(OR(AN32=\"公\",AN33=\"\"),\"\",\"A\")","v":""},{"$f":"IF(OR(AO32=\"公\",AO33=\"\"),\"\",\"A\")","v":""},{"$f":"IF(OR(AP32=\"公\",AP33=\"\"),\"\",\"A\")","v":""},{"$f":"IF(OR(AQ32=\"公\",AQ33=\"\"),\"\",\"A\")","v":""},{"$f":"IF(OR(AR32=\"公\",AR33=\"\"),\"\",\"A\")","v":""},{"$f":"IF(OR(AS32=\"公\",AS33=\"\"),\"\",\"A\")","v":""},{"$f":"IF(OR(AT32=\"公\",AT33=\"\"),\"\",\"A\")","v":""},{"$f":"IF(OR(AU32=\"公\",AU33=\"\"),\"\",\"A\")","v":""},{"$f":"IF(OR(AV32=\"公\",AV33=\"\"),\"\",\"A\")","v":""},{"$f":"IF(OR(AW32=\"公\",AW33=\"\"),\"\",\"A\")","v":""},{"$f":"IF(OR(AX32=\"公\",AX33=\"\"),\"\",\"A\")","v":""},{"$f":"IF(OR(AY32=\"公\",AY33=\"\"),\"\",\"A\")","v":""},{"$f":"IF(OR(AZ32=\"公\",AZ33=\"\"),\"\",\"A\")","v":""},{"$f":"IF(OR(BA32=\"公\",BA33=\"\"),\"\",\"A\")","v":""},{"$f":"IF(OR(BB32=\"公\",BB33=\"\"),\"\",\"A\")","v":""},{"$f":"IF(OR(BC32=\"公\",BC33=\"\"),\"\",\"A\")","v":""},{"$f":"IF(OR(BD32=\"公\",BD33=\"\"),\"\",\"A\")","v":""},null,null,"2024-09-22",null,45557]
[null,null,null,null,null,null,null,null,null,null,null,null,null,null,null,null,null,null,null,"教育実績",null,null,null,null,null,null,null,null,null,null,null,null,null,null,null,null,null,null,null,null,null,null,null,null,null,null,null,null,null,null,null,null,null,null,null,null,null,null,null,null,null,null,null,null,null,null,null,null,null,null,null,null,null,null,null,null,null,null,null,null,null,null,null,null,null,null,null,null,null,null,null,null,null,null,"教",null,null,null,null,null,null,null,null,null,null,null,"教",{"$f":"IF(OR(Z32=\"公\",Z34=\"\"),\"\",\"B\")","v":""},{"$f":"IF(OR(AA32=\"公\",AA34=\"\"),\"\",\"B\")","v":""},{"$f":"IF(OR(AB32=\"公\",AB34=\"\"),\"\",\"B\")","v":""},{"$f":"IF(OR(AC32=\"公\",AC34=\"\"),\"\",\"B\")","v":""},{"$f":"IF(OR(AD32=\"公\",AD34=\"\"),\"\",\"B\")","v":""},{"$f":"IF(OR(AE32=\"公\",AE34=\"\"),\"\",\"B\")","v":""},{"$f":"IF(OR(AF32=\"公\",AF34=\"\"),\"\",\"B\")","v":""},{"$f":"IF(OR(AG32=\"公\",AG34=\"\"),\"\",\"B\")","v":""},{"$f":"IF(OR(AH32=\"公\",AH34=\"\"),\"\",\"B\")","v":""},{"$f":"IF(OR(AI32=\"公\",AI34=\"\"),\"\",\"B\")","v":""},{"$f":"IF(OR(AJ32=\"公\",AJ34=\"\"),\"\",\"B\")","v":""},{"$f":"IF(OR(AK32=\"公\",AK34=\"\"),\"\",\"B\")","v":""},{"$f":"IF(OR(AL32=\"公\",AL34=\"\"),\"\",\"B\")","v":""},{"$f":"IF(OR(AM32=\"公\",AM34=\"\"),\"\",\"B\")","v":""},{"$f":"IF(OR(AN32=\"公\",AN34=\"\"),\"\",\"B\")","v":""},{"$f":"IF(OR(AO32=\"公\",AO34=\"\"),\"\",\"B\")","v":""},{"$f":"IF(OR(AP32=\"公\",AP34=\"\"),\"\",\"B\")","v":""},{"$f":"IF(OR(AQ32=\"公\",AQ34=\"\"),\"\",\"B\")","v":""},{"$f":"IF(OR(AR32=\"公\",AR34=\"\"),\"\",\"B\")","v":""},{"$f":"IF(OR(AS32=\"公\",AS34=\"\"),\"\",\"B\")","v":""},{"$f":"IF(OR(AT32=\"公\",AT34=\"\"),\"\",\"B\")","v":""},{"$f":"IF(OR(AU32=\"公\",AU34=\"\"),\"\",\"B\")","v":""},{"$f":"IF(OR(AV32=\"公\",AV34=\"\"),\"\",\"B\")","v":""},{"$f":"IF(OR(AW32=\"公\",AW34=\"\"),\"\",\"B\")","v":""},{"$f":"IF(OR(AX32=\"公\",AX34=\"\"),\"\",\"B\")","v":""},{"$f":"IF(OR(AY32=\"公\",AY34=\"\"),\"\",\"B\")","v":""},{"$f":"IF(OR(AZ32=\"公\",AZ34=\"\"),\"\",\"B\")","v":""},{"$f":"IF(OR(BA32=\"公\",BA34=\"\"),\"\",\"B\")","v":""},{"$f":"IF(OR(BB32=\"公\",BB34=\"\"),\"\",\"B\")","v":""},{"$f":"IF(OR(BC32=\"公\",BC34=\"\"),\"\",\"B\")","v":""},{"$f":"IF(OR(BD32=\"公\",BD34=\"\"),\"\",\"B\")","v":""},null,null,"2024-09-23",null,45558]
[null,null,null,null,null,null,null,null,null,null,null,null,null,null,null,null,null,null,null,"残業時間",null,null,null,null,null,null,null,null,null,null,null,null,null,null,null,null,null,null,null,null,null,null,null,null,null,null,null,null,null,null,null,null,null,null,null,null,null,null,null,null,null,null,null,null,null,null,null,null,null,null,null,null,null,null,null,null,null,null,null,null,null,null,null,null,null,null,null,null,null,null,null,null,null,null,2,null,null,null,null,null,null,null,null,null,null,null,null,null,null,null,null,null,null,null,null,null,null,null,null,null,null,null,null,null,null,null,null,null,null,null,null,null,null,null,null,null,null,null,null,null,"2024-10-14",null,45579]
[7,null,null,null,null,null,null,null,null,null,null,null,null,null,null,null,null,null,null,"所定休日",null,null,null,null,null,null,null,null,null,null,null,null,null,null,null,null,null,null,null,null,null,null,null,null,null,null,null,null,null,null,null,null,null,null,null,null,{"$f":"$AJ$4-$AD$4+1-(COUNTIF($Z36:$BD36,\"公\"))","v":1},null,null,null,null,null,null,null,null,null,null,null,null,null,null,null,null,null,null,null,{"$f":"$CU$4&ROW(BY36)&\":\"&$CX$4&ROW(BY36)","v":{"$error":"#N/A"}},null,null,null,null,null,null,null,null,null,null,null,null,null,null,null,null,null,2.5,null,null,null,null,null,null,null,null,null,null,null,null,null,null,null,null,null,null,null,null,null,null,null,null,null,null,null,null,null,null,null,null,null,null,null,null,null,null,null,null,null,null,null,null,null,"2024-11-03",null,45599]
[null,null,null,null,null,null,null,null,null,null,null,null,null,null,null,null,null,null,null,"休業実績",null,null,null,null,null,null,null,null,null,null,null,null,null,null,null,null,null,null,null,null,null,null,null,null,null,null,null,null,null,null,null,null,null,null,null,null,null,null,null,{"$f":"COUNTIFS(Z36:BD36,\"\",$Z37:$BD37,\"休\")","v":0},null,null,{"$f":"SUMIFS($Z37:$BD37,$Z36:$BD36,\"<>\"&\"公\")","v":0},null,null,{"$f":"COUNTIFS(Z36:BD36,\"\",$Z38:$BD38,\"教\")","v":0},null,null,{"$f":"SUMIFS($Z38:$BD38,$Z36:$BD36,\"<>\"&\"公\")","v":0},null,null,{"$f":"FLOOR(SUM($Z39:$BD39),0.5)","v":0},null,null,null,null,null,null,null,null,null,null,null,null,null,null,null,null,null,null,null,null,null,null,3,null,null,null,null,null,null,null,null,null,null,null,"休",{"$f":"IF(OR(Z36=\"公\",Z37=\"\"),\"\",\"A\")","v":""},{"$f":"IF(OR(AA36=\"公\",AA37=\"\"),\"\",\"A\")","v":""},{"$f":"IF(OR(AB36=\"公\",AB37=\"\"),\"\",\"A\")","v":""},{"$f":"IF(OR(AC36=\"公\",AC37=\"\"),\"\",\"A\")","v":""},{"$f":"IF(OR(AD36=\"公\",AD37=\"\"),\"\",\"A\")","v":""},{"$f":"IF(OR(AE36=\"公\",AE37=\"\"),\"\",\"A\")","v":""},{"$f":"IF(OR(AF36=\"公\",AF37=\"\"),\"\",\"A\")","v":""},{"$f":"IF(OR(AG36=\"公\",AG37=\"\"),\"\",\"A\")","v":""},{"$f":"IF(OR(AH36=\"公\",AH37=\"\"),\"\",\"A\")","v":""},{"$f":"IF(OR(AI36=\"公\",AI37=\"\"),\"\",\"A\")","v":""},{"$f":"IF(OR(AJ36=\"公\",AJ37=\"\"),\"\",\"A\")","v":""},{"$f":"IF(OR(AK36=\"公\",AK37=\"\"),\"\",\"A\")","v":""},{"$f":"IF(OR(AL36=\"公\",AL37=\"\"),\"\",\"A\")","v":""},{"$f":"IF(OR(AM36=\"公\",AM37=\"\"),\"\",\"A\")","v":""},{"$f":"IF(OR(AN36=\"公\",AN37=\"\"),\"\",\"A\")","v":""},{"$f":"IF(OR(AO36=\"公\",AO37=\"\"),\"\",\"A\")","v":""},{"$f":"IF(OR(AP36=\"公\",AP37=\"\"),\"\",\"A\")","v":""},{"$f":"IF(OR(AQ36=\"公\",AQ37=\"\"),\"\",\"A\")","v":""},{"$f":"IF(OR(AR36=\"公\",AR37=\"\"),\"\",\"A\")","v":""},{"$f":"IF(OR(AS36=\"公\",AS37=\"\"),\"\",\"A\")","v":""},{"$f":"IF(OR(AT36=\"公\",AT37=\"\"),\"\",\"A\")","v":""},{"$f":"IF(OR(AU36=\"公\",AU37=\"\"),\"\",\"A\")","v":""},{"$f":"IF(OR(AV36=\"公\",AV37=\"\"),\"\",\"A\")","v":""},{"$f":"IF(OR(AW36=\"公\",AW37=\"\"),\"\",\"A\")","v":""},{"$f":"IF(OR(AX36=\"公\",AX37=\"\"),\"\",\"A\")","v":""},{"$f":"IF(OR(AY36=\"公\",AY37=\"\"),\"\",\"A\")","v":""},{"$f":"IF(OR(AZ36=\"公\",AZ37=\"\"),\"\",\"A\")","v":""},{"$f":"IF(OR(BA36=\"公\",BA37=\"\"),\"\",\"A\")","v":""},{"$f":"IF(OR(BB36=\"公\",BB37=\"\"),\"\",\"A\")","v":""},{"$f":"IF(OR(BC36=\"公\",BC37=\"\"),\"\",\"A\")","v":""},{"$f":"IF(OR(BD36=\"公\",BD37=\"\"),\"\",\"A\")","v":""},null,null,"2024-11-04",null,45600]
[null,null,null,null,null,null,null,null,null,null,null,null,null,null,null,null,null,null,null,"教育実績",null,null,null,null,null,null,null,null,null,null,null,null,null,null,null,null,null,null,null,null,null,null,null,null,null,null,null,null,null,null,null,null,null,null,null,null,null,null,null,null,null,null,null,null,null,null,null,null,null,null,null,null,null,null,null,null,null,null,null,null,null,null,null,null,null,null,null,null,null,null,null,null,null,null,3.5,null,null,null,null,null,null,null,null,null,null,null,"教",{"$f":"IF(OR(Z36=\"公\",Z38=\"\"),\"\",\"B\")","v":""},{"$f":"IF(OR(AA36=\"公\",AA38=\"\"),\"\",\"B\")","v":""},{"$f":"IF(OR(AB36=\"公\",AB38=\"\"),\"\",\"B\")","v":""},{"$f":"IF(OR(AC36=\"公\",AC38=\"\"),\"\",\"B\")","v":""},{"$f":"IF(OR(AD36=\"公\",AD38=\"\"),\"\",\"B\")","v":""},{"$f":"IF(OR(AE36=\"公\",AE38=\"\"),\"\",\"B\")","v":""},{"$f":"IF(OR(AF36=\"公\",AF38=\"\"),\"\",\"B\")","v":""},{"$f":"IF(OR(AG36=\"公\",AG38=\"\"),\"\",\"B\")","v":""},{"$f":"IF(OR(AH36=\"公\",AH38=\"\"),\"\",\"B\")","v":""},{"$f":"IF(OR(AI36=\"公\",AI38=\"\"),\"\",\"B\")","v":""},{"$f":"IF(OR(AJ36=\"公\",AJ38=\"\"),\"\",\"B\")","v":""},{"$f":"IF(OR(AK36=\"公\",AK38=\"\"),\"\",\"B\")","v":""},{"$f":"IF(OR(AL36=\"公\",AL38=\"\"),\"\",\"B\")","v":""},{"$f":"IF(OR(AM36=\"公\",AM38=\"\"),\"\",\"B\")","v":""},{"$f":"IF(OR(AN36=\"公\",AN38=\"\"),\"\",\"B\")","v":""},{"$f":"IF(OR(AO36=\"公\",AO38=\"\"),\"\",\"B\")","v":""},{"$f":"IF(OR(AP36=\"公\",AP38=\"\"),\"\",\"B\")","v":""},{"$f":"IF(OR(AQ36=\"公\",AQ38=\"\"),\"\",\"B\")","v":""},{"$f":"IF(OR(AR36=\"公\",AR38=\"\"),\"\",\"B\")","v":""},{"$f":"IF(OR(AS36=\"公\",AS38=\"\"),\"\",\"B\")","v":""},{"$f":"IF(OR(AT36=\"公\",AT38=\"\"),\"\",\"B\")","v":""},{"$f":"IF(OR(AU36=\"公\",AU38=\"\"),\"\",\"B\")","v":""},{"$f":"IF(OR(AV36=\"公\",AV38=\"\"),\"\",\"B\")","v":""},{"$f":"IF(OR(AW36=\"公\",AW38=\"\"),\"\",\"B\")","v":""},{"$f":"IF(OR(AX36=\"公\",AX38=\"\"),\"\",\"B\")","v":""},{"$f":"IF(OR(AY36=\"公\",AY38=\"\"),\"\",\"B\")","v":""},{"$f":"IF(OR(AZ36=\"公\",AZ38=\"\"),\"\",\"B\")","v":""},{"$f":"IF(OR(BA36=\"公\",BA38=\"\"),\"\",\"B\")","v":""},{"$f":"IF(OR(BB36=\"公\",BB38=\"\"),\"\",\"B\")","v":""},{"$f":"IF(OR(BC36=\"公\",BC38=\"\"),\"\",\"B\")","v":""},{"$f":"IF(OR(BD36=\"公\",BD38=\"\"),\"\",\"B\")","v":""},null,null,"2024-11-23",null,45619]
[null,null,null,null,null,null,null,null,null,null,null,null,null,null,null,null,null,null,null,"残業時間",null,null,null,null,null,null,null,null,null,null,null,null,null,null,null,null,null,null,null,null,null,null,null,null,null,null,null,null,null,null,null,null,null,null,null,null,null,null,null,null,null,null,null,null,null,null,null,null,null,null,null,null,null,null,null,null,null,null,null,null,null,null,null,null,null,null,null,null,null,null,null,null,null,null,4,null,null,null,null,null,null,null,null,null,null,null,null,null,null,null,null,null,null,null,null,null,null,null,null,null,null,null,null,null,null,null,null,null,null,null,null,null,null,null,null,null,null,null,null,null,"2024-12-29",null,45655]
[8,null,null,null,null,null,null,null,null,null,null,null,null,null,null,null,null,null,null,"所定休日",null,null,null,null,null,null,null,null,null,null,null,null,null,null,null,null,null,null,null,null,null,null,null,null,null,null,null,null,null,null,null,null,null,null,null,null,{"$f":"$AJ$4-$AD$4+1-(COUNTIF($Z40:$BD40,\"公\"))","v":1},null,null,null,null,null,null,null,null,null,null,null,null,null,null,null,null,null,null,null,{"$f":"$CU$4&ROW(BY40)&\":\"&$CX$4&ROW(BY40)","v":{"$error":"#N/A"}},null,null,null,null,null,null,null,null,null,null,null,null,null,null,null,null,null,4.5,null,null,null,null,null,null,null,null,null,null,null,null,null,null,null,null,null,null,null,null,null,null,null,null,null,null,null,null,null,null,null,null,null,null,null,null,null,null,null,null,null,null,null,null,null,"2024-12-30",null,45656]
[null,null,null,null,null,null,null,null,null,null,null,null,null,null,null,null,null,null,null,"休業実績",null,null,null,null,null,null,null,null,null,null,null,null,null,null,null,null,null,null,null,null,null,null,null,null,null,null,null,null,null,null,null,null,null,null,null,null,null,null,null,{"$f":"COUNTIFS(Z40:BD40,\"\",$Z41:$BD41,\"休\")","v":0},null,null,{"$f":"SUMIFS($Z41:$BD41,$Z40:$BD40,\"<>\"&\"公\")","v":0},null,null,{"$f":"COUNTIFS(Z40:BD40,\"\",$Z42:$BD42,\"教\")","v":0},null,null,{"$f":"SUMIFS($Z42:$BD42,$Z40:$BD40,\"<>\"&\"公\")","v":0},null,null,{"$f":"FLOOR(SUM($Z43:$BD43),0.5)","v":0},null,null,null,null,null,null,null,null,null,null,null,null,null,null,null,null,null,null,null,null,null,null,5,null,null,null,null,null,null,null,null,null,null,null,"休",{"$f":"IF(OR(Z40=\"公\",Z41=\"\"),\"\",\"A\")","v":""},{"$f":"IF(OR(AA40=\"公\",AA41=\"\"),\"\",\"A\")","v":""},{"$f":"IF(OR(AB40=\"公\",AB41=\"\"),\"\",\"A\")","v":""},{"$f":"IF(OR(AC40=\"公\",AC41=\"\"),\"\",\"A\")","v":""},{"$f":"IF(OR(AD40=\"公\",AD41=\"\"),\"\",\"A\")","v":""},{"$f":"IF(OR(AE40=\"公\",AE41=\"\"),\"\",\"A\")","v":""},{"$f":"IF(OR(AF40=\"公\",AF41=\"\"),\"\",\"A\")","v":""},{"$f":"IF(OR(AG40=\"公\",AG41=\"\"),\"\",\"A\")","v":""},{"$f":"IF(OR(AH40=\"公\",AH41=\"\"),\"\",\"A\")","v":""},{"$f":"IF(OR(AI40=\"公\",AI41=\"\"),\"\",\"A\")","v":""},{"$f":"IF(OR(AJ40=\"公\",AJ41=\"\"),\"\",\"A\")","v":""},{"$f":"IF(OR(AK40=\"公\",AK41=\"\"),\"\",\"A\")","v":""},{"$f":"IF(OR(AL40=\"公\",AL41=\"\"),\"\",\"A\")","v":""},{"$f":"IF(OR(AM40=\"公\",AM41=\"\"),\"\",\"A\")","v":""},{"$f":"IF(OR(AN40=\"公\",AN41=\"\"),\"\",\"A\")","v":""},{"$f":"IF(OR(AO40=\"公\",AO41=\"\"),\"\",\"A\")","v":""},{"$f":"IF(OR(AP40=\"公\",AP41=\"\"),\"\",\"A\")","v":""},{"$f":"IF(OR(AQ40=\"公\",AQ41=\"\"),\"\",\"A\")","v":""},{"$f":"IF(OR(AR40=\"公\",AR41=\"\"),\"\",\"A\")","v":""},{"$f":"IF(OR(AS40=\"公\",AS41=\"\"),\"\",\"A\")","v":""},{"$f":"IF(OR(AT40=\"公\",AT41=\"\"),\"\",\"A\")","v":""},{"$f":"IF(OR(AU40=\"公\",AU41=\"\"),\"\",\"A\")","v":""},{"$f":"IF(OR(AV40=\"公\",AV41=\"\"),\"\",\"A\")","v":""},{"$f":"IF(OR(AW40=\"公\",AW41=\"\"),\"\",\"A\")","v":""},{"$f":"IF(OR(AX40=\"公\",AX41=\"\"),\"\",\"A\")","v":""},{"$f":"IF(OR(AY40=\"公\",AY41=\"\"),\"\",\"A\")","v":""},{"$f":"IF(OR(AZ40=\"公\",AZ41=\"\"),\"\",\"A\")","v":""},{"$f":"IF(OR(BA40=\"公\",BA41=\"\"),\"\",\"A\")","v":""},{"$f":"IF(OR(BB40=\"公\",BB41=\"\"),\"\",\"A\")","v":""},{"$f":"IF(OR(BC40=\"公\",BC41=\"\"),\"\",\"A\")","v":""},{"$f":"IF(OR(BD40=\"公\",BD41=\"\"),\"\",\"A\")","v":""},null,null,"2024-12-31",null,45657]
[null,null,null,null,null,null,null,null,null,null,null,null,null,null,null,null,null,null,null,"教育実績",null,null,null,null,null,null,null,null,null,null,null,null,null,null,null,null,null,null,null,null,null,null,null,null,null,null,null,null,null,null,null,null,null,null,null,null,null,null,null,null,null,null,null,null,null,null,null,null,null,null,null,null,null,null,null,null,null,null,null,null,null,null,null,null,null,null,null,null,null,null,null,null,null,null,5.5,null,null,null,null,null,null,null,null,null,null,null,"教",{"$f":"IF(OR(Z40=\"公\",Z42=\"\"),\"\",\"B\")","v":""},{"$f":"IF(OR(AA40=\"公\",AA42=\"\"),\"\",\"B\")","v":""},{"$f":"IF(OR(AB40=\"公\",AB42=\"\"),\"\",\"B\")","v":""},{"$f":"IF(OR(AC40=\"公\",AC42=\"\"),\"\",\"B\")","v":""},{"$f":"IF(OR(AD40=\"公\",AD42=\"\"),\"\",\"B\")","v":""},{"$f":"IF(OR(AE40=\"公\",AE42=\"\"),\"\",\"B\")","v":""},{"$f":"IF(OR(AF40=\"公\",AF42=\"\"),\"\",\"B\")","v":""},{"$f":"IF(OR(AG40=\"公\",AG42=\"\"),\"\",\"B\")","v":""},{"$f":"IF(OR(AH40=\"公\",AH42=\"\"),\"\",\"B\")","v":""},{"$f":"IF(OR(AI40=\"公\",AI42=\"\"),\"\",\"B\")","v":""},{"$f":"IF(OR(AJ40=\"公\",AJ42=\"\"),\"\",\"B\")","v":""},{"$f":"IF(OR(AK40=\"公\",AK42=\"\"),\"\",\"B\")","v":""},{"$f":"IF(OR(AL40=\"公\",AL42=\"\"),\"\",\"B\")","v":""},{"$f":"IF(OR(AM40=\"公\",AM42=\"\"),\"\",\"B\")","v":""},{"$f":"IF(OR(AN40=\"公\",AN42=\"\"),\"\",\"B\")","v":""},{"$f":"IF(OR(AO40=\"公\",AO42=\"\"),\"\",\"B\")","v":""},{"$f":"IF(OR(AP40=\"公\",AP42=\"\"),\"\",\"B\")","v":""},{"$f":"IF(OR(AQ40=\"公\",AQ42=\"\"),\"\",\"B\")","v":""},{"$f":"IF(OR(AR40=\"公\",AR42=\"\"),\"\",\"B\")","v":""},{"$f":"IF(OR(AS40=\"公\",AS42=\"\"),\"\",\"B\")","v":""},{"$f":"IF(OR(AT40=\"公\",AT42=\"\"),\"\",\"B\")","v":""},{"$f":"IF(OR(AU40=\"公\",AU42=\"\"),\"\",\"B\")","v":""},{"$f":"IF(OR(AV40=\"公\",AV42=\"\"),\"\",\"B\")","v":""},{"$f":"IF(OR(AW40=\"公\",AW42=\"\"),\"\",\"B\")","v":""},{"$f":"IF(OR(AX40=\"公\",AX42=\"\"),\"\",\"B\")","v":""},{"$f":"IF(OR(AY40=\"公\",AY42=\"\"),\"\",\"B\")","v":""},{"$f":"IF(OR(AZ40=\"公\",AZ42=\"\"),\"\",\"B\")","v":""},{"$f":"IF(OR(BA40=\"公\",BA42=\"\"),\"\",\"B\")","v":""},{"$f":"IF(OR(BB40=\"公\",BB42=\"\"),\"\",\"B\")","v":""},{"$f":"IF(OR(BC40=\"公\",BC42=\"\"),\"\",\"B\")","v":""},{"$f":"IF(OR(BD40=\"公\",BD42=\"\"),\"\",\"B\")","v":""},null,null,"2025-01-01",null,45658]
[null,null,null,null,null,null,null,null,null,null,null,null,null,null,null,null,null,null,null,"残業時間",null,null,null,null,null,null,null,null,null,null,null,null,null,null,null,null,null,null,null,null,null,null,null,null,null,null,null,null,null,null,null,null,null,null,null,null,null,null,null,null,null,null,null,null,null,null,null,null,null,null,null,null,null,null,null,null,null,null,null,null,null,null,null,null,null,null,null,null,null,null,null,null,null,null,6,null,null,null,null,null,null,null,null,null,null,null,null,null,null,null,null,null,null,null,null,null,null,null,null,null,null,null,null,null,null,null,null,null,null,null,null,null,null,null,null,null,null,null,null,null,"2025-01-02",null,45659]
[9,null,null,null,null,null,null,null,null,null,null,null,null,null,null,null,null,null,null,"所定休日",null,null,null,null,null,null,null,null,null,null,null,null,null,null,null,null,null,null,null,null,null,null,null,null,null,null,null,null,null,null,null,null,null,null,null,null,{"$f":"$AJ$4-$AD$4+1-(COUNTIF($Z44:$BD44,\"公\"))","v":1},null,null,null,null,null,null,null,null,null,null,null,null,null,null,null,null,null,null,null,{"$f":"$CU$4&ROW(BY44)&\":\"&$CX$4&ROW(BY44)","v":{"$error":"#N/A"}},null,null,null,null,null,null,null,null,null,null,null,null,null,null,null,null,null,6.5,null,null,null,null,null,null,null,null,null,null,null,null,null,null,null,null,null,null,null,null,null,null,null,null,null,null,null,null,null,null,null,null,null,null,null,null,null,null,null,null,null,null,null,null,null,"2025-01-03",null,45660]
[null,null,null,null,null,null,null,null,null,null,null,null,null,null,null,null,null,null,null,"休業実績",null,null,null,null,null,null,null,null,null,null,null,null,null,null,null,null,null,null,null,null,null,null,null,null,null,null,null,null,null,null,null,null,null,null,null,null,null,null,null,{"$f":"COUNTIFS(Z44:BD44,\"\",$Z45:$BD45,\"休\")","v":0},null,null,{"$f":"SUMIFS($Z45:$BD45,$Z44:$BD44,\"<>\"&\"公\")","v":0},null,null,{"$f":"COUNTIFS(Z44:BD44,\"\",$Z46:$BD46,\"教\")","v":0},null,null,{"$f":"SUMIFS($Z46:$BD46,$Z44:$BD44,\"<>\"&\"公\")","v":0},null,null,{"$f":"FLOOR(SUM($Z47:$BD47),0.5)","v":0},null,null,null,null,null,null,null,null,null,null,null,null,null,null,null,null,null,null,null,null,null,null,7,null,null,null,null,null,null,null,null,null,null,null,"休",{"$f":"IF(OR(Z44=\"公\",Z45=\"\"),\"\",\"A\")","v":""},{"$f":"IF(OR(AA44=\"公\",AA45=\"\"),\"\",\"A\")","v":""},{"$f":"IF(OR(AB44=\"公\",AB45=\"\"),\"\",\"A\")","v":""},{"$f":"IF(OR(AC44=\"公\",AC45=\"\"),\"\",\"A\")","v":""},{"$f":"IF(OR(AD44=\"公\",AD45=\"\"),\"\",\"A\")","v":""},{"$f":"IF(OR(AE44=\"公\",AE45=\"\"),\"\",\"A\")","v":""},{"$f":"IF(OR(AF44=\"公\",AF45=\"\"),\"\",\"A\")","v":""},{"$f":"IF(OR(AG44=\"公\",AG45=\"\"),\"\",\"A\")","v":""},{"$f":"IF(OR(AH44=\"公\",AH45=\"\"),\"\",\"A\")","v":""},{"$f":"IF(OR(AI44=\"公\",AI45=\"\"),\"\",\"A\")","v":""},{"$f":"IF(OR(AJ44=\"公\",AJ45=\"\"),\"\",\"A\")","v":""},{"$f":"IF(OR(AK44=\"公\",AK45=\"\"),\"\",\"A\")","v":""},{"$f":"IF(OR(AL44=\"公\",AL45=\"\"),\"\",\"A\")","v":""},{"$f":"IF(OR(AM44=\"公\",AM45=\"\"),\"\",\"A\")","v":""},{"$f":"IF(OR(AN44=\"公\",AN45=\"\"),\"\",\"A\")","v":""},{"$f":"IF(OR(AO44=\"公\",AO45=\"\"),\"\",\"A\")","v":""},{"$f":"IF(OR(AP44=\"公\",AP45=\"\"),\"\",\"A\")","v":""},{"$f":"IF(OR(AQ44=\"公\",AQ45=\"\"),\"\",\"A\")","v":""},{"$f":"IF(OR(AR44=\"公\",AR45=\"\"),\"\",\"A\")","v":""},{"$f":"IF(OR(AS44=\"公\",AS45=\"\"),\"\",\"A\")","v":""},{"$f":"IF(OR(AT44=\"公\",AT45=\"\"),\"\",\"A\")","v":""},{"$f":"IF(OR(AU44=\"公\",AU45=\"\"),\"\",\"A\")","v":""},{"$f":"IF(OR(AV44=\"公\",AV45=\"\"),\"\",\"A\")","v":""},{"$f":"IF(OR(AW44=\"公\",AW45=\"\"),\"\",\"A\")","v":""},{"$f":"IF(OR(AX44=\"公\",AX45=\"\"),\"\",\"A\")","v":""},{"$f":"IF(OR(AY44=\"公\",AY45=\"\"),\"\",\"A\")","v":""},{"$f":"IF(OR(AZ44=\"公\",AZ45=\"\"),\"\",\"A\")","v":""},{"$f":"IF(OR(BA44=\"公\",BA45=\"\"),\"\",\"A\")","v":""},{"$f":"IF(OR(BB44=\"公\",BB45=\"\"),\"\",\"A\")","v":""},{"$f":"IF(OR(BC44=\"公\",BC45=\"\"),\"\",\"A\")","v":""},{"$f":"IF(OR(BD44=\"公\",BD45=\"\"),\"\",\"A\")","v":""},null,null,"2025-01-13",null,45670]
[null,null,null,null,null,null,null,null,null,null,null,null,null,null,null,null,null,null,null,"教育実績",null,null,null,null,null,null,null,null,null,null,null,null,null,null,null,null,null,null,null,null,null,null,null,null,null,null,null,null,null,null,null,null,null,null,null,null,null,null,null,null,null,null,null,null,null,null,null,null,null,null,null,null,null,null,null,null,null,null,null,null,null,null,null,null,null,null,null,null,null,null,null,null,null,null,7.5,null,null,null,null,null,null,null,null,null,null,null,"教",{"$f":"IF(OR(Z44=\"公\",Z46=\"\"),\"\",\"B\")","v":""},{"$f":"IF(OR(AA44=\"公\",AA46=\"\"),\"\",\"B\")","v":""},{"$f":"IF(OR(AB44=\"公\",AB46=\"\"),\"\",\"B\")","v":""},{"$f":"IF(OR(AC44=\"公\",AC46=\"\"),\"\",\"B\")","v":""},{"$f":"IF(OR(AD44=\"公\",AD46=\"\"),\"\",\"B\")","v":""},{"$f":"IF(OR(AE44=\"公\",AE46=\"\"),\"\",\"B\")","v":""},{"$f":"IF(OR(AF44=\"公\",AF46=\"\"),\"\",\"B\")","v":""},{"$f":"IF(OR(AG44=\"公\",AG46=\"\"),\"\",\"B\")","v":""},{"$f":"IF(OR(AH44=\"公\",AH46=\"\"),\"\",\"B\")","v":""},{"$f":"IF(OR(AI44=\"公\",AI46=\"\"),\"\",\"B\")","v":""},{"$f":"IF(OR(AJ44=\"公\",AJ46=\"\"),\"\",\"B\")","v":""},{"$f":"IF(OR(AK44=\"公\",AK46=\"\"),\"\",\"B\")","v":""},{"$f":"IF(OR(AL44=\"公\",AL46=\"\"),\"\",\"B\")","v":""},{"$f":"IF(OR(AM44=\"公\",AM46=\"\"),\"\",\"B\")","v":""},{"$f":"IF(OR(AN44=\"公\",AN46=\"\"),\"\",\"B\")","v":""},{"$f":"IF(OR(AO44=\"公\",AO46=\"\"),\"\",\"B\")","v":""},{"$f":"IF(OR(AP44=\"公\",AP46=\"\"),\"\",\"B\")","v":""},{"$f":"IF(OR(AQ44=\"公\",AQ46=\"\"),\"\",\"B\")","v":""},{"$f":"IF(OR(AR44=\"公\",AR46=\"\"),\"\",\"B\")","v":""},{"$f":"IF(OR(AS44=\"公\",AS46=\"\"),\"\",\"B\")","v":""},{"$f":"IF(OR(AT44=\"公\",AT46=\"\"),\"\",\"B\")","v":""},{"$f":"IF(OR(AU44=\"公\",AU46=\"\"),\"\",\"B\")","v":""},{"$f":"IF(OR(AV44=\"公\",AV46=\"\"),\"\",\"B\")","v":""},{"$f":"IF(OR(AW44=\"公\",AW46=\"\"),\"\",\"B\")","v":""},{"$f":"IF(OR(AX44=\"公\",AX46=\"\"),\"\",\"B\")","v":""},{"$f":"IF(OR(AY44=\"公\",AY46=\"\"),\"\",\"B\")","v":""},{"$f":"IF(OR(AZ44=\"公\",AZ46=\"\"),\"\",\"B\")","v":""},{"$f":"IF(OR(BA44=\"公\",BA46=\"\"),\"\",\"B\")","v":""},{"$f":"IF(OR(BB44=\"公\",BB46=\"\"),\"\",\"B\")","v":""},{"$f":"IF(OR(BC44=\"公\",BC46=\"\"),\"\",\"B\")","v":""},{"$f":"IF(OR(BD44=\"公\",BD46=\"\"),\"\",\"B\")","v":""},null,null,"2025-02-11",null,45699]
[null,null,null,null,null,null,null,null,null,null,null,null,null,null,null,null,null,null,null,"残業時間",null,null,null,null,null,null,null,null,null,null,null,null,null,null,null,null,null,null,null,null,null,null,null,null,null,null,null,null,null,null,null,null,null,null,null,null,null,null,null,null,null,null,null,null,null,null,null,null,null,null,null,null,null,null,null,null,null,null,null,null,null,null,null,null,null,null,null,null,null,null,null,null,null,null,8,null,null,null,null,null,null,null,null,null,null,null,null,null,null,null,null,null,null,null,null,null,null,null,null,null,null,null,null,null,null,null,null,null,null,null,null,null,null,null,null,null,null,null,null,null,"2025-02-23",null,45711]
[10,null,null,null,null,null,null,null,null,null,null,null,null,null,null,null,null,null,null,"所定休日",null,null,null,null,null,null,null,null,null,null,null,null,null,null,null,null,null,null,null,null,null,null,null,null,null,null,null,null,null,null,null,null,null,null,null,null,{"$f":"$AJ$4-$AD$4+1-(COUNTIF($Z48:$BD48,\"公\"))","v":1},null,null,null,null,null,null,null,null,null,null,null,null,null,null,null,null,null,null,null,{"$f":"$CU$4&ROW(BY48)&\":\"&$CX$4&ROW(BY48)","v":{"$error":"#N/A"}},null,null,null,null,null,null,null,null,null,null,null,null,null,null,null,null,null,null,null,null,null,null,null,null,null,null,null,null,null,null,null,null,null,null,null,null,null,null,null,null,null,null,null,null,null,null,null,null,null,null,null,null,null,null,null,null,null,null,null,null,null,null,null,"2025-02-24",null,45712]
[null,null,null,null,null,null,null,null,null,null,null,null,null,null,null,null,null,null,null,"休業実績",null,null,null,null,null,null,null,null,null,null,null,null,null,null,null,null,null,null,null,null,null,null,null,null,null,null,null,null,null,null,null,null,null,null,null,null,null,null,null,{"$f":"COUNTIFS(Z48:BD48,\"\",$Z49:$BD49,\"休\")","v":0},null,null,{"$f":"SUMIFS($Z49:$BD49,$Z48:$BD48,\"<>\"&\"公\")","v":0},null,null,{"$f":"COUNTIFS(Z48:BD48,\"\",$Z50:$BD50,\"教\")","v":0},null,null,{"$f":"SUMIFS($Z50:$BD50,$Z48:$BD48,\"<>\"&\"公\")","v":0},null,null,{"$f":"FLOOR(SUM($Z51:$BD51),0.5)","v":0},null,null,null,null,null,null,null,null,null,null,null,null,null,null,null,null,null,null,null,null,null,null,null,null,null,null,null,null,null,null,null,null,null,null,"休",{"$f":"IF(OR(Z48=\"公\",Z49=\"\"),\"\",\"A\")","v":""},{"$f":"IF(OR(AA48=\"公\",AA49=\"\"),\"\",\"A\")","v":""},{"$f":"IF(OR(AB48=\"公\",AB49=\"\"),\"\",\"A\")","v":""},{"$f":"IF(OR(AC48=\"公\",AC49=\"\"),\"\",\"A\")","v":""},{"$f":"IF(OR(AD48=\"公\",AD49=\"\"),\"\",\"A\")","v":""},{"$f":"IF(OR(AE48=\"公\",AE49=\"\"),\"\",\"A\")","v":""},{"$f":"IF(OR(AF48=\"公\",AF49=\"\"),\"\",\"A\")","v":""},{"$f":"IF(OR(AG48=\"公\",AG49=\"\"),\"\",\"A\")","v":""},{"$f":"IF(OR(AH48=\"公\",AH49=\"\"),\"\",\"A\")","v":""},{"$f":"IF(OR(AI48=\"公\",AI49=\"\"),\"\",\"A\")","v":""},{"$f":"IF(OR(AJ48=\"公\",AJ49=\"\"),\"\",\"A\")","v":""},{"$f":"IF(OR(AK48=\"公\",AK49=\"\"),\"\",\"A\")","v":""},{"$f":"IF(OR(AL48=\"公\",AL49=\"\"),\"\",\"A\")","v":""},{"$f":"IF(OR(AM48=\"公\",AM49=\"\"),\"\",\"A\")","v":""},{"$f":"IF(OR(AN48=\"公\",AN49=\"\"),\"\",\"A\")","v":""},{"$f":"IF(OR(AO48=\"公\",AO49=\"\"),\"\",\"A\")","v":""},{"$f":"IF(OR(AP48=\"公\",AP49=\"\"),\"\",\"A\")","v":""},{"$f":"IF(OR(AQ48=\"公\",AQ49=\"\"),\"\",\"A\")","v":""},{"$f":"IF(OR(AR48=\"公\",AR49=\"\"),\"\",\"A\")","v":""},{"$f":"IF(OR(AS48=\"公\",AS49=\"\"),\"\",\"A\")","v":""},{"$f":"IF(OR(AT48=\"公\",AT49=\"\"),\"\",\"A\")","v":""},{"$f":"IF(OR(AU48=\"公\",AU49=\"\"),\"\",\"A\")","v":""},{"$f":"IF(OR(AV48=\"公\",AV49=\"\"),\"\",\"A\")","v":""},{"$f":"IF(OR(AW48=\"公\",AW49=\"\"),\"\",\"A\")","v":""},{"$f":"IF(OR(AX48=\"公\",AX49=\"\"),\"\",\"A\")","v":""},{"$f":"IF(OR(AY48=\"公\",AY49=\"\"),\"\",\"A\")","v":""},{"$f":"IF(OR(AZ48=\"公\",AZ49=\"\"),\"\",\"A\")","v":""},{"$f":"IF(OR(BA48=\"公\",BA49=\"\"),\"\",\"A\")","v":""},{"$f":"IF(OR(BB48=\"公\",BB49=\"\"),\"\",\"A\")","v":""},{"$f":"IF(OR(BC48=\"公\",BC49=\"\"),\"\",\"A\")","v":""},{"$f":"IF(OR(BD48=\"公\",BD49=\"\"),\"\",\"A\")","v":""},null,null,"2025-03-20",null,45736]
[null,null,null,null,null,null,null,null,null,null,null,null,null,null,null,null,null,null,null,"教育実績",null,null,null,null,null,null,null,null,null,null,null,null,null,null,null,null,null,null,null,null,null,null,null,null,null,null,null,null,null,null,null,null,null,null,null,null,null,null,null,null,null,null,null,null,null,null,null,null,null,null,null,null,null,null,null,null,null,null,null,null,null,null,null,null,null,null,null,null,null,null,null,null,null,null,null,null,null,null,null,null,null,null,null,null,null,null,"教",{"$f":"IF(OR(Z48=\"公\",Z50=\"\"),\"\",\"B\")","v":""},{"$f":"IF(OR(AA48=\"公\",AA50=\"\"),\"\",\"B\")","v":""},{"$f":"IF(OR(AB48=\"公\",AB50=\"\"),\"\",\"B\")","v":""},{"$f":"IF(OR(AC48=\"公\",AC50=\"\"),\"\",\"B\")","v":""},{"$f":"IF(OR(AD48=\"公\",AD50=\"\"),\"\",\"B\")","v":""},{"$f":"IF(OR(AE48=\"公\",AE50=\"\"),\"\",\"B\")","v":""},{"$f":"IF(OR(AF48=\"公\",AF50=\"\"),\"\",\"B\")","v":""},{"$f":"IF(OR(AG48=\"公\",AG50=\"\"),\"\",\"B\")","v":""},{"$f":"IF(OR(AH48=\"公\",AH50=\"\"),\"\",\"B\")","v":""},{"$f":"IF(OR(AI48=\"公\",AI50=\"\"),\"\",\"B\")","v":""},{"$f":"IF(OR(AJ48=\"公\",AJ50=\"\"),\"\",\"B\")","v":""},{"$f":"IF(OR(AK48=\"公\",AK50=\"\"),\"\",\"B\")","v":""},{"$f":"IF(OR(AL48=\"公\",AL50=\"\"),\"\",\"B\")","v":""},{"$f":"IF(OR(AM48=\"公\",AM50=\"\"),\"\",\"B\")","v":""},{"$f":"IF(OR(AN48=\"公\",AN50=\"\"),\"\",\"B\")","v":""},{"$f":"IF(OR(AO48=\"公\",AO50=\"\"),\"\",\"B\")","v":""},{"$f":"IF(OR(AP48=\"公\",AP50=\"\"),\"\",\"B\")","v":""},{"$f":"IF(OR(AQ48=\"公\",AQ50=\"\"),\"\",\"B\")","v":""},{"$f":"IF(OR(AR48=\"公\",AR50=\"\"),\"\",\"B\")","v":""},{"$f":"IF(OR(AS48=\"公\",AS50=\"\"),\"\",\"B\")","v":""},{"$f":"IF(OR(AT48=\"公\",AT50=\"\"),\"\",\"B\")","v":""},{"$f":"IF(OR(AU48=\"公\",AU50=\"\"),\"\",\"B\")","v":""},{"$f":"IF(OR(AV48=\"公\",AV50=\"\"),\"\",\"B\")","v":""},{"$f":"IF(OR(AW48=\"公\",AW50=\"\"),\"\",\"B\")","v":""},{"$f":"IF(OR(AX48=\"公\",AX50=\"\"),\"\",\"B\")","v":""},{"$f":"IF(OR(AY48=\"公\",AY50=\"\"),\"\",\"B\")","v":""},{"$f":"IF(OR(AZ48=\"公\",AZ50=\"\"),\"\",\"B\")","v":""},{"$f":"IF(OR(BA48=\"公\",BA50=\"\"),\"\",\"B\")","v":""},{"$f":"IF(OR(BB48=\"公\",BB50=\"\"),\"\",\"B\")","v":""},{"$f":"IF(OR(BC48=\"公\",BC50=\"\"),\"\",\"B\")","v":""},{"$f":"IF(OR(BD48=\"公\",BD50=\"\"),\"\",\"B\")","v":""},null,null,"2025-04-29",null,45776]
[null,null,null,null,null,null,null,null,null,null,null,null,null,null,null,null,null,null,null,"残業時間",null,null,null,null,null,null,null,null,null,null,null,null,null,null,null,null,null,null,null,null,null,null,null,null,null,null,null,null,null,null,null,null,null,null,null,null,null,null,null,null,null,null,null,null,null,null,null,null,null,null,null,null,null,null,null,null,null,null,null,null,null,null,null,null,null,null,null,null,null,null,null,null,null,null,null,null,null,null,null,null,null,null,null,null,null,null,null,null,null,null,null,null,null,null,null,null,null,null,null,null,null,null,null,null,null,null,null,null,null,null,null,null,null,null,null,null,null,null,null,null,"2025-05-03",null,45780]
[null,null,null,null,null,null,null,null,null,null,null,null,null,null,null,null,null,null,null,null,null,null,null,null,null,null,null,null,null,null,null,null,null,null,null,null,null,null,null,null,null,null,null,null,null,null,null,null,null,null,null,null,null,null,null,null,null,null,null,null,null,null,null,null,null,null,null,null,null,null,null,null,null,null,null,null,null,null,null,null,null,null,null,null,null,null,null,null,null,null,null,null,null,null,null,null,null,null,null,null,null,null,null,null,null,null,null,null,null,null,null,null,null,null,null,null,null,null,null,null,null,null,null,null,null,null,null,null,null,null,null,null,null,null,null,null,null,null,null,null,"2025-05-04",null,45781]
["⑦事業所の実績",null,null,null,null,null,null,null,null,null,null,null,null,"休業",null,null,null,null,null,{"$f":"COUNTIF(INDIRECT(BY53),$CQ$4)","v":{"$error":"#N/A"}},null,null,"日",null,null,null,null,null,null,null,null,null,null,null,null,null,null,null,null,null,null,null,null,null,null,null,null,null,null,null,null,null,null,null,null,null,null,null,null,null,null,null,null,null,null,null,null,null,null,null,null,null,null,null,null,null,{"$f":"$CU$4&ROW(BY53)&\":\"&$CX$4&ROW(BY53)","v":{"$error":"#N/A"}},null,null,null,null,null,null,null,null,null,null,null,null,null,null,null,null,null,null,null,null,null,null,null,null,null,null,null,"判定",null,"休",{"$f":"IF(COUNTIF(DD$13:DD$50,\"A\")=0,\"\",\"○\")","v":""},{"$f":"IF(COUNTIF(DE$13:DE$50,\"A\")=0,\"\",\"○\")","v":""},"","","","","","","","","","","","","","","","","","","","","","","","","","","","","",null,null,"2025-05-05",null,45782]
[null,null,null,null,null,null,null,null,null,null,null,null,null,"教育",null,null,null,null,null,{"$f":"COUNTIF(INDIRECT(BY54),$CQ$5)","v":{"$error":"#N/A"}},null,null,"日",null,null,null,null,null,null,null,null,null,null,null,null,null,null,null,null,null,null,null,null,null,null,null,null,null,null,null,null,null,null,null,null,null,null,null,null,null,null,null,null,null,null,null,null,null,null,null,null,null,null,null,null,null,{"$f":"$CU$4&ROW(BY54)&\":\"&$CX$4&ROW(BY54)","v":{"$error":"#N/A"}},null,null,null,null,null,null,null,null,null,null,null,null,null,null,null,null,null,null,null,null,null,null,null,null,null,null,null,null,null,"教",{"$f":"IF(COUNTIF(DD$13:DD$50,\"B\")=0,\"\",\"△\")","v":""},"","","","","","","","","","","","","","","","","","","","","","","","","","","","","","",null,null,"2025-05-06",null,45783]
[null,null,"休：全日休業　　　1～8：短時間休業又は短時間教育訓練　　教：全日教育訓練　　公：所定休日",null,null,null,null,null,null,null,null,null,null,null,null,null,null,null,null,null,null,null,null,null,null,null,null,null,null,null,null,null,null,null,null,null,null,null,null,null,null,null,null,null,null,null,null,null,null,null,null,null,null,null,null,null,null,null,null,null,null,null,null,null,null,null,null,null,null,null,null,null,null,null,null,null,null,null,null,null,null,null,null,null,null,null,null,null,null,null,null,null,null,null,null,null,null,null,null,null,null,null,null,null,null,null,null,null,null,null,null,null,null,null,null,null,null,null,null,null,null,null,null,null,null,null,null,null,null,null,null,null,null,null,null,null,null,null,null,null,"2025-07-21",null,45859]
[null,null,null,null,null,null,null,null,null,null,null,null,null,null,null,null,null,null,null,null,null,null,null,null,null,null,null,null,null,null,null,null,null,null,null,null,null,null,null,null,null,null,null,null,null,null,null,null,null,null,null,null,null,null,null,null,null,null,null,null,null,null,"R06.09.13版",null,null,null,null,null,null,null,null,null,null,null,null,null,null,null,null,null,null,null,null,null,null,null,null,null,null,null,null,null,null,null,null,null,null,null,null,null,null,null,null,null,null,null,null,null,null,null,null,null,null,null,null,null,null,null,null,null,null,null,null,null,null,null,null,null,null,null,null,null,null,null,null,null,null,null,null,null,"2025-08-11",null,45880]
["休業・教育訓練　および所定外労働時間　自主点検シートについて",null,null,null,null,null,null,null,null,null,null,null,null,null,null,null,null,null,null,null,null,null,null,null,null,null,null,null,null,null,null,null,null,null,null,null,null,null,null,null,null,null,null,null,null,null,null,null,null,null,null,null,null,null,null,null,null,null,null,null,null,null,null,null,null,null,null,null,null,null,null,null,null,null,null,null,null,null,null,null,null,null,null,null,null,null,null,null,null,null,null,null,null,null,null,null,null,null,null,null,null,null,null,null,null,null,null,null,null,null,null,null,null,null,null,null,null,null,null,null,null,null,null,null,null,null,null,null,null,null,null,null,null,null,null,null,null,null,null,null,"2025-09-15",null,45915]
[null,null,null,null,null,null,null,null,null,null,null,null,null,null,null,null,null,null,null,null,null,null,null,null,null,null,null,null,null,null,null,null,null,null,null,null,null,null,null,null,null,null,null,null,null,null,null,null,null,null,null,null,null,null,null,null,null,null,null,null,null,null,null,null,null,null,null,null,null,null,null,null,null,null,null,null,null,null,null,null,null,null,null,null,null,null,null,null,null,null,null,null,null,null,null,null,null,null,null,null,null,null,null,null,null,null,null,null,null,null,null,null,null,null,null,null,null,null,null,null,null,null,null,null,null,null,null,null,null,null,null,null,null,null,null,null,null,null,null,null,"2025-09-23",null,45923]
["　この自主点検シートは、計画届に基づいて休業及び教育訓練が適切に実施されていることを確認するためのものです。支給申請にあたりこのシートの作成・提出は任意ですが、支給申請の審査を円滑に進めるため、作成・提出の御協力をお願いします。",null,null,null,null,null,null,null,null,null,null,null,null,null,null,null,null,null,null,null,null,null,null,null,null,null,null,null,null,null,null,null,null,null,null,null,null,null,null,null,null,null,null,null,null,null,null,null,null,null,null,null,null,null,null,null,null,null,null,null,null,null,null,null,null,null,null,null,null,null,null,null,null,null,null,null,null,null,null,null,null,null,null,null,null,null,null,null,null,null,null,null,null,null,null,null,null,null,null,null,null,null,null,null,null,null,null,null,null,null,null,null,null,null,null,null,null,null,null,null,null,null,null,null,null,null,null,null,null,null,null,null,null,null,null,null,null,null,null,null,"2025-10-13",null,45943]
["【作成手順】",null,null,null,null,null,null,null,null,null,null,null,null,null,null,null,null,null,null,null,null,null,null,null,null,null,null,null,null,null,null,null,null,null,null,null,null,null,null,null,null,null,null,null,null,null,null,null,null,null,null,null,null,null,null,null,null,null,null,null,null,null,null,null,null,null,null,null,null,null,null,null,null,null,null,null,null,null,null,null,null,null,null,null,null,null,null,null,null,null,null,null,null,null,null,null,null,null,null,null,null,null,null,null,null,null,null,null,null,null,null,null,null,null,null,null,null,null,null,null,null,null,null,null,null,null,null,null,null,null,null,null,null,null,null,null,null,null,null,null,"2025-11-03",null,45964]
[1,null,null,"①「申請に関する情報」欄に「適用事業所番号」「事業所名」「点検期間」を入力してください。１か月を超える期間を点検するときは、賃金計算期間ごとに分けて作成してください。",null,null,null,null,null,null,null,null,null,null,null,null,null,null,null,null,null,null,null,null,null,null,null,null,null,null,null,null,null,null,null,null,null,null,null,null,null,null,null,null,null,null,null,null,null,null,null,null,null,null,null,null,null,null,null,null,null,null,null,null,null,null,null,null,null,null,null,null,null,null,null,null,null,null,null,null,null,null,null,null,null,null,null,null,null,null,null,null,null,null,null,null,null,null,null,null,null,null,null,null,null,null,null,null,null,null,null,null,null,null,null,null,null,null,null,null,null,null,null,null,null,null,null,null,null,null,null,null,null,null,null,null,null,null,null,null,"2025-11-23",null,45984]
[2,null,null,"②「事業所における所定休日」欄に所定休日となる曜日に〇を入力してください。事業所において複数の休日カレンダーが存在するときは、適用される休日カレンダーごとに分けてシートを作成していただいても結構です。",null,null,null,null,null,null,null,null,null,null,null,null,null,null,null,null,null,null,null,null,null,null,null,null,null,null,null,null,null,null,null,null,null,null,null,null,null,null,null,null,null,null,null,null,null,null,null,null,null,null,null,null,null,null,null,null,null,null,null,null,null,null,null,null,null,null,null,null,null,null,null,null,null,null,null,null,null,null,null,null,null,null,null,null,null,null,null,null,null,null,null,null,null,null,null,null,null,null,null,null,null,null,null,null,null,null,null,null,null,null,null,null,null,null,null,null,null,null,null,null,null,null,null,null,null,null,null,null,null,null,null,null,null,null,null,null,"2025-11-24",null,45985]
[3,null,null,"２の入力後、右上にある③「曜日を内訳へ反映」ボタンを押すと、⑤欄に休日が反映されます。",null,null,null,null,null,null,null,null,null,null,null,null,null,null,null,null,null,null,null,null,null,null,null,null,null,null,null,null,null,null,null,null,null,null,null,null,null,null,null,null,null,null,null,null,null,null,null,null,null,null,null,null,null,null,null,null,null,null,null,null,null,null,null,null,null,null,null,null,null,null,null,null,null,null,null,null,null,null,null,null,null,null,null,null,null,null,null,null,null,null,null,null,null,null,null,null,null,null,null,null,null,null,null,null,null,null,null,null,null,null,null,null,null,null,null,null,null,null,null,null,null,null,null,null,null,null,null,null,null,null,null,null,null,null,null,null,"2025-12-29",null,46020]
[4,null,null,"④欄の「休業等対象者」は、様式第５号（３）「休業・教育訓練実績一覧表及び所定外労働等の実施状況に関する申出書」と同様に、休業等を実施した対象労働者が該当します。休業等対象者のうち任意の１０名（休業等対象者が１０名に満たないときは、全員。）を点検対象者として抽出し、「氏名」「一日の所定労働時間」「賃金形態」をそれぞれ入力してください。\n休業等対象者が１０名に満たない場合を除き、点検対象者は、所属部署、雇用形態又は賃金形態等の労働条件の異なる休業等対象者から偏りなく抽出し、支給申請ごとに再抽出してください。\n氏名欄の下は備考欄ととなっていますので、退職申し出又は解雇の予告等があったときは、その旨及びその事実の生じた年月日を記載してください。また、必要に応じて、休業等対象者の所属部署・職名等を記載するなどして活用してください。",null,null,null,null,null,null,null,null,null,null,null,null,null,null,null,null,null,null,null,null,null,null,null,null,null,null,null,null,null,null,null,null,null,null,null,null,null,null,null,null,null,null,null,null,null,null,null,null,null,null,null,null,null,null,null,null,null,null,null,null,null,null,null,null,null,null,null,null,null,null,null,null,null,null,null,null,null,null,null,null,null,null,null,null,null,null,null,null,null,null,null,null,null,null,null,null,null,null,null,null,null,null,null,null,null,null,null,null,null,null,null,null,null,null,null,null,null,null,null,null,null,null,null,null,null,null,null,null,null,null,null,null,null,null,null,null,"2025-12-30",null,46021]
[5,null,null,"⑤欄に休業・教育訓練と所定外労働時間の日別内訳を入力してください。（※数値は全て時間単位で入力してください。）\n　・所定休日：事業所稼働日と同一でない場合（追加で所定休日がある場合）、プルダウンから「公」を選択してください。\n　・休業実績：全日休業は「休」を、短時間の休業はその時間をプルダウンから選択してください。（１時間以上が助成対象。30分未満切捨て。）\n　・教育実績：全日教育訓練は「教」を、短時間の教育訓練はその時間をプルダウンから選択してください。（２時間以上が助成対象。）\n　・残業時間：所定外又は法定外となる労働時間（分単位の労働時間は、６０で除して小数点第四位以下を切捨て。）を入力してください。\n　　　　　　　端数切捨ての影響により、分単位の合計時間が集計と一致しないときは、集計を赤色で手書き補正してください。",null,null,null,null,null,null,null,null,null,null,null,null,null,null,null,null,null,null,null,null,null,null,null,null,null,null,null,null,null,null,null,null,null,null,null,null,null,null,null,null,null,null,null,null,null,null,null,null,null,null,null,null,null,null,null,null,null,null,null,null,null,null,null,null,null,null,null,null,null,null,null,null,null,null,null,null,null,null,null,null,null,null,null,null,null,null,null,null,null,null,null,null,null,null,null,null,null,null,null,null,null,null,null,null,null,null,null,null,null,null,null,null,null,null,null,null,null,null,null,null,null,null,null,null,null,null,null,null,null,null,null,null,null,null,null,null,"2025-12-31",null,46022]
[6,null,null,"⑤欄の入力完了後、右上にある⑥「実績を反映する」ボタンを押すと、⑦欄には休業実績がある日に○印、教育訓練実績がある日に△印がつきます。\n自主点検表に記載された休業等対象者以外の労働者が⑦欄で○又は△印のない日にも休業又は教育訓練を実施している場合、実施日をプルダウンで○又は△印を選択してください。\n一つの点検期間について複数のシートを作成したときは、いずれかのシートの⑦欄に○又は△印をつけてください。\n既にご提出いただいている計画届及び休業協定書と⑦欄の集計を比較し、計画（協定）の範囲内で休業等が実施されているか点検してください。\n　休業：計画時の休業予定日数を超過する日数は助成対象外となります。\n　教育：計画時の教育訓練予定日と実施日は一致する必要があります。",null,null,null,null,null,null,null,null,null,null,null,null,null,null,null,null,null,null,null,null,null,null,null,null,null,null,null,null,null,null,null,null,null,null,null,null,null,null,null,null,null,null,null,null,null,null,null,null,null,null,null,null,null,null,null,null,null,null,null,null,null,null,null,null,null,null,null,null,null,null,null,null,null,null,null,null,null,null,null,null,null,null,null,null,null,null,null,null,null,null,null,null,null,null,null,null,null,null,null,null,null,null,null,null,null,null,null,null,null,null,null,null,null,null,null,null,null,null,null,null,null,null,null,null,null,null,null,null,null,null,null,null,null,null,null,null,"2026-01-01",null,46023]
[null,null,null,"※次月の申請等で作成済シートを転用する場合で、⑤・⑦欄を初期化したい場合は、シート右下⑧「内容をクリア」ボタンをクリックしてください。\n　⑤・⑦欄が初期化されます。（マクロによる処理のため「元に戻る」ボタンが使用できません。ご注意ください。）\n※このシートは、手書きにより作成していただいても結構です。",null,null,null,null,null,null,null,null,null,null,null,null,null,null,null,null,null,null,null,null,null,null,null,null,null,null,null,null,null,null,null,null,null,null,null,null,null,null,null,null,null,null,null,null,null,null,null,null,null,null,null,null,null,null,null,null,null,null,null,null,null,null,null,null,null,null,null,null,null,null,null,null,null,null,null,null,null,null,null,null,null,null,null,null,null,null,null,null,null,null,null,null,null,null,null,null,null,null,null,null,null,null,null,null,null,null,null,null,null,null,null,null,null,null,null,null,null,null,null,null,null,null,null,null,null,null,null,null,null,null,null,null,null,null,null,null,"2026-01-02",null,46024]
[null,null,null,null,null,null,null,null,null,null,null,null,null,null,null,null,null,null,null,null,null,null,null,null,null,null,null,null,null,null,null,null,null,null,null,null,null,null,null,null,null,null,null,null,null,null,null,null,null,null,null,null,null,null,null,null,null,null,null,null,null,null,null,null,null,null,null,null,null,null,null,null,null,null,null,null,null,null,null,null,null,null,null,null,null,null,null,null,null,null,null,null,null,null,null,null,null,null,null,null,null,null,null,null,null,null,null,null,null,null,null,null,null,null,null,null,null,null,null,null,null,null,null,null,null,null,null,null,null,null,null,null,null,null,null,null,null,null,null,null,"2026-01-03",null,46025]
[null,null,null,null,null,null,null,null,null,null,null,null,null,null,null,null,null,null,null,null,null,null,null,null,null,null,null,null,null,null,null,null,null,null,null,null,null,null,null,null,null,null,null,null,null,null,null,null,null,null,null,null,null,null,null,null,null,null,null,null,null,null,null,null,null,null,null,null,null,null,null,null,null,null,null,null,null,null,null,null,null,null,null,null,null,null,null,null,null,null,null,null,null,null,null,null,null,null,null,null,null,null,null,null,null,null,null,null,null,null,null,null,null,null,null,null,null,null,null,null,null,null,null,null,null,null,null,null,null,null,null,null,null,null,null,null,null,null,null,null,"2026-01-12",null,46034]
[null,null,null,null,null,null,null,null,null,null,null,null,null,null,null,null,null,null,null,null,null,null,null,null,null,null,null,null,null,null,null,null,null,null,null,null,null,null,null,null,null,null,null,null,null,null,null,null,null,null,null,null,null,null,null,null,null,null,null,null,null,null,null,null,null,null,null,null,null,null,null,null,null,null,null,null,null,null,null,null,null,null,null,null,null,null,null,null,null,null,null,null,null,null,null,null,null,null,null,null,null,null,null,null,null,null,null,null,null,null,null,null,null,null,null,null,null,null,null,null,null,null,null,null,null,null,null,null,null,null,null,null,null,null,null,null,null,null,null,null,"2026-02-11",null,46064]
[null,null,null,null,null,null,null,null,null,null,null,null,null,null,null,null,null,null,null,null,null,null,null,null,null,null,null,null,null,null,null,null,null,null,null,null,null,null,null,null,null,null,null,null,null,null,null,null,null,null,null,null,null,null,null,null,null,null,null,null,null,null,null,null,null,null,null,null,null,null,null,null,null,null,null,null,null,null,null,null,null,null,null,null,null,null,null,null,null,null,null,null,null,null,null,null,null,null,null,null,null,null,null,null,null,null,null,null,null,null,null,null,null,null,null,null,null,null,null,null,null,null,null,null,null,null,null,null,null,null,null,null,null,null,null,null,null,null,null,null,"2026-02-23",null,46076]
[null,null,null,null,null,null,null,null,null,null,null,null,null,null,null,null,null,null,null,null,null,null,null,null,null,null,null,null,null,null,null,null,null,null,null,null,null,null,null,null,null,null,null,null,null,null,null,null,null,null,null,null,null,null,null,null,null,null,null,null,null,null,null,null,null,null,null,null,null,null,null,null,null,null,null,null,null,null,null,null,null,null,null,null,null,null,null,null,null,null,null,null,null,null,null,null,null,null,null,null,null,null,null,null,null,null,null,null,null,null,null,null,null,null,null,null,null,null,null,null,null,null,null,null,null,null,null,null,null,null,null,null,null,null,null,null,null,null,null,null,"2026-03-20",null,46101]
[null,null,null,null,null,null,null,null,null,null,null,null,null,null,null,null,null,null,null,null,null,null,null,null,null,null,null,null,null,null,null,null,null,null,null,null,null,null,null,null,null,null,null,null,null,null,null,null,null,null,null,null,null,null,null,null,null,null,null,null,null,null,null,null,null,null,null,null,null,null,null,null,null,null,null,null,null,null,null,null,null,null,null,null,null,null,null,null,null,null,null,null,null,null,null,null,null,null,null,null,null,null,null,null,null,null,null,null,null,null,null,null,null,null,null,null,null,null,null,null,null,null,null,null,null,null,null,null,null,null,null,null,null,null,null,null,null,null,null,null,"2026-04-29",null,46141]
[null,null,null,null,null,null,null,null,null,null,null,null,null,null,null,null,null,null,null,null,null,null,null,null,null,null,null,null,null,null,null,null,null,null,null,null,null,null,null,null,null,null,null,null,null,null,null,null,null,null,null,null,null,null,null,null,null,null,null,null,null,null,null,null,null,null,null,null,null,null,null,null,null,null,null,null,null,null,null,null,null,null,null,null,null,null,null,null,null,null,null,null,null,null,null,null,null,null,null,null,null,null,null,null,null,null,null,null,null,null,null,null,null,null,null,null,null,null,null,null,null,null,null,null,null,null,null,null,null,null,null,null,null,null,null,null,null,null,null,null,"2026-05-03",null,46145]
[null,null,null,null,null,null,null,null,null,null,null,null,null,null,null,null,null,null,null,null,null,null,null,null,null,null,null,null,null,null,null,null,null,null,null,null,null,null,null,null,null,null,null,null,null,null,null,null,null,null,null,null,null,null,null,null,null,null,null,null,null,null,null,null,null,null,null,null,null,null,null,null,null,null,null,null,null,null,null,null,null,null,null,null,null,null,null,null,null,null,null,null,null,null,null,null,null,null,null,null,null,null,null,null,null,null,null,null,null,null,null,null,null,null,null,null,null,null,null,null,null,null,null,null,null,null,null,null,null,null,null,null,null,null,null,null,null,null,null,null,"2026-05-04",null,46146]
[null,null,null,null,null,null,null,null,null,null,null,null,null,null,null,null,null,null,null,null,null,null,null,null,null,null,null,null,null,null,null,null,null,null,null,null,null,null,null,null,null,null,null,null,null,null,null,null,null,null,null,null,null,null,null,null,null,null,null,null,null,null,null,null,null,null,null,null,null,null,null,null,null,null,null,null,null,null,null,null,null,null,null,null,null,null,null,null,null,null,null,null,null,null,null,null,null,null,null,null,null,null,null,null,null,null,null,null,null,null,null,null,null,null,null,null,null,null,null,null,null,null,null,null,null,null,null,null,null,null,null,null,null,null,null,null,null,null,null,null,"2026-05-05",null,46147]
[null,null,null,null,null,null,null,null,null,null,null,null,null,null,null,null,null,null,null,null,null,null,null,null,null,null,null,null,null,null,null,null,null,null,null,null,null,null,null,null,null,null,null,null,null,null,null,null,null,null,null,null,null,null,null,null,null,null,null,null,null,null,null,null,null,null,null,null,null,null,null,null,null,null,null,null,null,null,null,null,null,null,null,null,null,null,null,null,null,null,null,null,null,null,null,null,null,null,null,null,null,null,null,null,null,null,null,null,null,null,null,null,null,null,null,null,null,null,null,null,null,null,null,null,null,null,null,null,null,null,null,null,null,null,null,null,null,null,null,null,"2026-05-06",null,46148]
[null,null,null,null,null,null,null,null,null,null,null,null,null,null,null,null,null,null,null,null,null,null,null,null,null,null,null,null,null,null,null,null,null,null,null,null,null,null,null,null,null,null,null,null,null,null,null,null,null,null,null,null,null,null,null,null,null,null,null,null,null,null,null,null,null,null,null,null,null,null,null,null,null,null,null,null,null,null,null,null,null,null,null,null,null,null,null,null,null,null,null,null,null,null,null,null,null,null,null,null,null,null,null,null,null,null,null,null,null,null,null,null,null,null,null,null,null,null,null,null,null,null,null,null,null,null,null,null,null,null,null,null,null,null,null,null,null,null,null,null,"2026-07-20",null,46223]
[null,null,null,null,null,null,null,null,null,null,null,null,null,null,null,null,null,null,null,null,null,null,null,null,null,null,null,null,null,null,null,null,null,null,null,null,null,null,null,null,null,null,null,null,null,null,null,null,null,null,null,null,null,null,null,null,null,null,null,null,null,null,null,null,null,null,null,null,null,null,null,null,null,null,null,null,null,null,null,null,null,null,null,null,null,null,null,null,null,null,null,null,null,null,null,null,null,null,null,null,null,null,null,null,null,null,null,null,null,null,null,null,null,null,null,null,null,null,null,null,null,null,null,null,null,null,null,null,null,null,null,null,null,null,null,null,null,null,null,null,"2026-08-11",null,46245]
[null,null,null,null,null,null,null,null,null,null,null,null,null,null,null,null,null,null,null,null,null,null,null,null,null,null,null,null,null,null,null,null,null,null,null,null,null,null,null,null,null,null,null,null,null,null,null,null,null,null,null,null,null,null,null,null,null,null,null,null,null,null,null,null,null,null,null,null,null,null,null,null,null,null,null,null,null,null,null,null,null,null,null,null,null,null,null,null,null,null,null,null,null,null,null,null,null,null,null,null,null,null,null,null,null,null,null,null,null,null,null,null,null,null,null,null,null,null,null,null,null,null,null,null,null,null,null,null,null,null,null,null,null,null,null,null,null,null,null,null,"2026-09-21",null,46286]
[null,null,null,null,null,null,null,null,null,null,null,null,null,null,null,null,null,null,null,null,null,null,null,null,null,null,null,null,null,null,null,null,null,null,null,null,null,null,null,null,null,null,null,null,null,null,null,null,null,null,null,null,null,null,null,null,null,null,null,null,null,null,null,null,null,null,null,null,null,null,null,null,null,null,null,null,null,null,null,null,null,null,null,null,null,null,null,null,null,null,null,null,null,null,null,null,null,null,null,null,null,null,null,null,null,null,null,null,null,null,null,null,null,null,null,null,null,null,null,null,null,null,null,null,null,null,null,null,null,null,null,null,null,null,null,null,null,null,null,null,"2026-09-22",null,46287]
[null,null,null,null,null,null,null,null,null,null,null,null,null,null,null,null,null,null,null,null,null,null,null,null,null,null,null,null,null,null,null,null,null,null,null,null,null,null,null,null,null,null,null,null,null,null,null,null,null,null,null,null,null,null,null,null,null,null,null,null,null,null,null,null,null,null,null,null,null,null,null,null,null,null,null,null,null,null,null,null,null,null,null,null,null,null,null,null,null,null,null,null,null,null,null,null,null,null,null,null,null,null,null,null,null,null,null,null,null,null,null,null,null,null,null,null,null,null,null,null,null,null,null,null,null,null,null,null,null,null,null,null,null,null,null,null,null,null,null,null,"2026-09-23",null,46288]
[null,null,null,null,null,null,null,null,null,null,null,null,null,null,null,null,null,null,null,null,null,null,null,null,null,null,null,null,null,null,null,null,null,null,null,null,null,null,null,null,null,null,null,null,null,null,null,null,null,null,null,null,null,null,null,null,null,null,null,null,null,null,null,null,null,null,null,null,null,null,null,null,null,null,null,null,null,null,null,null,null,null,null,null,null,null,null,null,null,null,null,null,null,null,null,null,null,null,null,null,null,null,null,null,null,null,null,null,null,null,null,null,null,null,null,null,null,null,null,null,null,null,null,null,null,null,null,null,null,null,null,null,null,null,null,null,null,null,null,null,"2026-10-12",null,46307]
[null,null,null,null,null,null,null,null,null,null,null,null,null,null,null,null,null,null,null,null,null,null,null,null,null,null,null,null,null,null,null,null,null,null,null,null,null,null,null,null,null,null,null,null,null,null,null,null,null,null,null,null,null,null,null,null,null,null,null,null,null,null,null,null,null,null,null,null,null,null,null,null,null,null,null,null,null,null,null,null,null,null,null,null,null,null,null,null,null,null,null,null,null,null,null,null,null,null,null,null,null,null,null,null,null,null,null,null,null,null,null,null,null,null,null,null,null,null,null,null,null,null,null,null,null,null,null,null,null,null,null,null,null,null,null,null,null,null,null,null,"2026-11-03",null,46329]
[null,null,null,null,null,null,null,null,null,null,null,null,null,null,null,null,null,null,null,null,null,null,null,null,null,null,null,null,null,null,null,null,null,null,null,null,null,null,null,null,null,null,null,null,null,null,null,null,null,null,null,null,null,null,null,null,null,null,null,null,null,null,null,null,null,null,null,null,null,null,null,null,null,null,null,null,null,null,null,null,null,null,null,null,null,null,null,null,null,null,null,null,null,null,null,null,null,null,null,null,null,null,null,null,null,null,null,null,null,null,null,null,null,null,null,null,null,null,null,null,null,null,null,null,null,null,null,null,null,null,null,null,null,null,null,null,null,null,null,null,"2026-11-23",null,46349]
[null,null,null,null,null,null,null,null,null,null,null,null,null,null,null,null,null,null,null,null,null,null,null,null,null,null,null,null,null,null,null,null,null,null,null,null,null,null,null,null,null,null,null,null,null,null,null,null,null,null,null,null,null,null,null,null,null,null,null,null,null,null,null,null,null,null,null,null,null,null,null,null,null,null,null,null,null,null,null,null,null,null,null,null,null,null,null,null,null,null,null,null,null,null,null,null,null,null,null,null,null,null,null,null,null,null,null,null,null,null,null,null,null,null,null,null,null,null,null,null,null,null,null,null,null,null,null,null,null,null,null,null,null,null,null,null,null,null,null,null,"2026-12-29",null,46385]
[null,null,null,null,null,null,null,null,null,null,null,null,null,null,null,null,null,null,null,null,null,null,null,null,null,null,null,null,null,null,null,null,null,null,null,null,null,null,null,null,null,null,null,null,null,null,null,null,null,null,null,null,null,null,null,null,null,null,null,null,null,null,null,null,null,null,null,null,null,null,null,null,null,null,null,null,null,null,null,null,null,null,null,null,null,null,null,null,null,null,null,null,null,null,null,null,null,null,null,null,null,null,null,null,null,null,null,null,null,null,null,null,null,null,null,null,null,null,null,null,null,null,null,null,null,null,null,null,null,null,null,null,null,null,null,null,null,null,null,null,"2026-12-30",null,46386]
[null,null,null,null,null,null,null,null,null,null,null,null,null,null,null,null,null,null,null,null,null,null,null,null,null,null,null,null,null,null,null,null,null,null,null,null,null,null,null,null,null,null,null,null,null,null,null,null,null,null,null,null,null,null,null,null,null,null,null,null,null,null,null,null,null,null,null,null,null,null,null,null,null,null,null,null,null,null,null,null,null,null,null,null,null,null,null,null,null,null,null,null,null,null,null,null,null,null,null,null,null,null,null,null,null,null,null,null,null,null,null,null,null,null,null,null,null,null,null,null,null,null,null,null,null,null,null,null,null,null,null,null,null,null,null,null,null,null,null,null,"2026-12-31",null,46387]
[null,null,null,null,null,null,null,null,null,null,null,null,null,null,null,null,null,null,null,null,null,null,null,null,null,null,null,null,null,null,null,null,null,null,null,null,null,null,null,null,null,null,null,null,null,null,null,null,null,null,null,null,null,null,null,null,null,null,null,null,null,null,null,null,null,null,null,null,null,null,null,null,null,null,null,null,null,null,null,null,null,null,null,null,null,null,null,null,null,null,null,null,null,null,null,null,null,null,null,null,null,null,null,null,null,null,null,null,null,null,null,null,null,null,null,null,null,null,null,null,null,null,null,null,null,null,null,null,null,null,null,null,null,null,null,null,null,null,null,null,"2027-01-01",null,46388]
[null,null,null,null,null,null,null,null,null,null,null,null,null,null,null,null,null,null,null,null,null,null,null,null,null,null,null,null,null,null,null,null,null,null,null,null,null,null,null,null,null,null,null,null,null,null,null,null,null,null,null,null,null,null,null,null,null,null,null,null,null,null,null,null,null,null,null,null,null,null,null,null,null,null,null,null,null,null,null,null,null,null,null,null,null,null,null,null,null,null,null,null,null,null,null,null,null,null,null,null,null,null,null,null,null,null,null,null,null,null,null,null,null,null,null,null,null,null,null,null,null,null,null,null,null,null,null,null,null,null,null,null,null,null,null,null,null,null,null,null,"2027-01-02",null,46389]
[null,null,null,null,null,null,null,null,null,null,null,null,null,null,null,null,null,null,null,null,null,null,null,null,null,null,null,null,null,null,null,null,null,null,null,null,null,null,null,null,null,null,null,null,null,null,null,null,null,null,null,null,null,null,null,null,null,null,null,null,null,null,null,null,null,null,null,null,null,null,null,null,null,null,null,null,null,null,null,null,null,null,null,null,null,null,null,null,null,null,null,null,null,null,null,null,null,null,null,null,null,null,null,null,null,null,null,null,null,null,null,null,null,null,null,null,null,null,null,null,null,null,null,null,null,null,null,null,null,null,null,null,null,null,null,null,null,null,null,null,"2027-01-03",null,46390]
[null,null,null,null,null,null,null,null,null,null,null,null,null,null,null,null,null,null,null,null,null,null,null,null,null,null,null,null,null,null,null,null,null,null,null,null,null,null,null,null,null,null,null,null,null,null,null,null,null,null,null,null,null,null,null,null,null,null,null,null,null,null,null,null,null,null,null,null,null,null,null,null,null,null,null,null,null,null,null,null,null,null,null,null,null,null,null,null,null,null,null,null,null,null,null,null,null,null,null,null,null,null,null,null,null,null,null,null,null,null,null,null,null,null,null,null,null,null,null,null,null,null,null,null,null,null,null,null,null,null,null,null,null,null,null,null,null,null,null,null,"2027-01-11",null,46398]
[null,null,null,null,null,null,null,null,null,null,null,null,null,null,null,null,null,null,null,null,null,null,null,null,null,null,null,null,null,null,null,null,null,null,null,null,null,null,null,null,null,null,null,null,null,null,null,null,null,null,null,null,null,null,null,null,null,null,null,null,null,null,null,null,null,null,null,null,null,null,null,null,null,null,null,null,null,null,null,null,null,null,null,null,null,null,null,null,null,null,null,null,null,null,null,null,null,null,null,null,null,null,null,null,null,null,null,null,null,null,null,null,null,null,null,null,null,null,null,null,null,null,null,null,null,null,null,null,null,null,null,null,null,null,null,null,null,null,null,null,"2027-02-11",null,46429]
[null,null,null,null,null,null,null,null,null,null,null,null,null,null,null,null,null,null,null,null,null,null,null,null,null,null,null,null,null,null,null,null,null,null,null,null,null,null,null,null,null,null,null,null,null,null,null,null,null,null,null,null,null,null,null,null,null,null,null,null,null,null,null,null,null,null,null,null,null,null,null,null,null,null,null,null,null,null,null,null,null,null,null,null,null,null,null,null,null,null,null,null,null,null,null,null,null,null,null,null,null,null,null,null,null,null,null,null,null,null,null,null,null,null,null,null,null,null,null,null,null,null,null,null,null,null,null,null,null,null,null,null,null,null,null,null,null,null,null,null,"2027-02-23",null,46441]
[null,null,null,null,null,null,null,null,null,null,null,null,null,null,null,null,null,null,null,null,null,null,null,null,null,null,null,null,null,null,null,null,null,null,null,null,null,null,null,null,null,null,null,null,null,null,null,null,null,null,null,null,null,null,null,null,null,null,null,null,null,null,null,null,null,null,null,null,null,null,null,null,null,null,null,null,null,null,null,null,null,null,null,null,null,null,null,null,null,null,null,null,null,null,null,null,null,null,null,null,null,null,null,null,null,null,null,null,null,null,null,null,null,null,null,null,null,null,null,null,null,null,null,null,null,null,null,null,null,null,null,null,null,null,null,null,null,null,null,null,"2027-03-21",null,46467]
[null,null,null,null,null,null,null,null,null,null,null,null,null,null,null,null,null,null,null,null,null,null,null,null,null,null,null,null,null,null,null,null,null,null,null,null,null,null,null,null,null,null,null,null,null,null,null,null,null,null,null,null,null,null,null,null,null,null,null,null,null,null,null,null,null,null,null,null,null,null,null,null,null,null,null,null,null,null,null,null,null,null,null,null,null,null,null,null,null,null,null,null,null,null,null,null,null,null,null,null,null,null,null,null,null,null,null,null,null,null,null,null,null,null,null,null,null,null,null,null,null,null,null,null,null,null,null,null,null,null,null,null,null,null,null,null,null,null,null,null,"2027-03-22",null,46468]
[null,null,null,null,null,null,null,null,null,null,null,null,null,null,null,null,null,null,null,null,null,null,null,null,null,null,null,null,null,null,null,null,null,null,null,null,null,null,null,null,null,null,null,null,null,null,null,null,null,null,null,null,null,null,null,null,null,null,null,null,null,null,null,null,null,null,null,null,null,null,null,null,null,null,null,null,null,null,null,null,null,null,null,null,null,null,null,null,null,null,null,null,null,null,null,null,null,null,null,null,null,null,null,null,null,null,null,null,null,null,null,null,null,null,null,null,null,null,null,null,null,null,null,null,null,null,null,null,null,null,null,null,null,null,null,null,null,null,null,null,"2027-04-29",null,46506]
[null,null,null,null,null,null,null,null,null,null,null,null,null,null,null,null,null,null,null,null,null,null,null,null,null,null,null,null,null,null,null,null,null,null,null,null,null,null,null,null,null,null,null,null,null,null,null,null,null,null,null,null,null,null,null,null,null,null,null,null,null,null,null,null,null,null,null,null,null,null,null,null,null,null,null,null,null,null,null,null,null,null,null,null,null,null,null,null,null,null,null,null,null,null,null,null,null,null,null,null,null,null,null,null,null,null,null,null,null,null,null,null,null,null,null,null,null,null,null,null,null,null,null,null,null,null,null,null,null,null,null,null,null,null,null,null,null,null,null,null,"2027-05-03",null,46510]
[null,null,null,null,null,null,null,null,null,null,null,null,null,null,null,null,null,null,null,null,null,null,null,null,null,null,null,null,null,null,null,null,null,null,null,null,null,null,null,null,null,null,null,null,null,null,null,null,null,null,null,null,null,null,null,null,null,null,null,null,null,null,null,null,null,null,null,null,null,null,null,null,null,null,null,null,null,null,null,null,null,null,null,null,null,null,null,null,null,null,null,null,null,null,null,null,null,null,null,null,null,null,null,null,null,null,null,null,null,null,null,null,null,null,null,null,null,null,null,null,null,null,null,null,null,null,null,null,null,null,null,null,null,null,null,null,null,null,null,null,"2027-05-04",null,46511]
[null,null,null,null,null,null,null,null,null,null,null,null,null,null,null,null,null,null,null,null,null,null,null,null,null,null,null,null,null,null,null,null,null,null,null,null,null,null,null,null,null,null,null,null,null,null,null,null,null,null,null,null,null,null,null,null,null,null,null,null,null,null,null,null,null,null,null,null,null,null,null,null,null,null,null,null,null,null,null,null,null,null,null,null,null,null,null,null,null,null,null,null,null,null,null,null,null,null,null,null,null,null,null,null,null,null,null,null,null,null,null,null,null,null,null,null,null,null,null,null,null,null,null,null,null,null,null,null,null,null,null,null,null,null,null,null,null,null,null,null,"2027-05-05",null,46512]
[null,null,null,null,null,null,null,null,null,null,null,null,null,null,null,null,null,null,null,null,null,null,null,null,null,null,null,null,null,null,null,null,null,null,null,null,null,null,null,null,null,null,null,null,null,null,null,null,null,null,null,null,null,null,null,null,null,null,null,null,null,null,null,null,null,null,null,null,null,null,null,null,null,null,null,null,null,null,null,null,null,null,null,null,null,null,null,null,null,null,null,null,null,null,null,null,null,null,null,null,null,null,null,null,null,null,null,null,null,null,null,null,null,null,null,null,null,null,null,null,null,null,null,null,null,null,null,null,null,null,null,null,null,null,null,null,null,null,null,null,"2027-07-19",null,46587]
[null,null,null,null,null,null,null,null,null,null,null,null,null,null,null,null,null,null,null,null,null,null,null,null,null,null,null,null,null,null,null,null,null,null,null,null,null,null,null,null,null,null,null,null,null,null,null,null,null,null,null,null,null,null,null,null,null,null,null,null,null,null,null,null,null,null,null,null,null,null,null,null,null,null,null,null,null,null,null,null,null,null,null,null,null,null,null,null,null,null,null,null,null,null,null,null,null,null,null,null,null,null,null,null,null,null,null,null,null,null,null,null,null,null,null,null,null,null,null,null,null,null,null,null,null,null,null,null,null,null,null,null,null,null,null,null,null,null,null,null,"2027-08-11",null,46610]
[null,null,null,null,null,null,null,null,null,null,null,null,null,null,null,null,null,null,null,null,null,null,null,null,null,null,null,null,null,null,null,null,null,null,null,null,null,null,null,null,null,null,null,null,null,null,null,null,null,null,null,null,null,null,null,null,null,null,null,null,null,null,null,null,null,null,null,null,null,null,null,null,null,null,null,null,null,null,null,null,null,null,null,null,null,null,null,null,null,null,null,null,null,null,null,null,null,null,null,null,null,null,null,null,null,null,null,null,null,null,null,null,null,null,null,null,null,null,null,null,null,null,null,null,null,null,null,null,null,null,null,null,null,null,null,null,null,null,null,null,"2027-09-20",null,46650]
[null,null,null,null,null,null,null,null,null,null,null,null,null,null,null,null,null,null,null,null,null,null,null,null,null,null,null,null,null,null,null,null,null,null,null,null,null,null,null,null,null,null,null,null,null,null,null,null,null,null,null,null,null,null,null,null,null,null,null,null,null,null,null,null,null,null,null,null,null,null,null,null,null,null,null,null,null,null,null,null,null,null,null,null,null,null,null,null,null,null,null,null,null,null,null,null,null,null,null,null,null,null,null,null,null,null,null,null,null,null,null,null,null,null,null,null,null,null,null,null,null,null,null,null,null,null,null,null,null,null,null,null,null,null,null,null,null,null,null,null,"2027-09-23",null,46653]
[null,null,null,null,null,null,null,null,null,null,null,null,null,null,null,null,null,null,null,null,null,null,null,null,null,null,null,null,null,null,null,null,null,null,null,null,null,null,null,null,null,null,null,null,null,null,null,null,null,null,null,null,null,null,null,null,null,null,null,null,null,null,null,null,null,null,null,null,null,null,null,null,null,null,null,null,null,null,null,null,null,null,null,null,null,null,null,null,null,null,null,null,null,null,null,null,null,null,null,null,null,null,null,null,null,null,null,null,null,null,null,null,null,null,null,null,null,null,null,null,null,null,null,null,null,null,null,null,null,null,null,null,null,null,null,null,null,null,null,null,"2027-10-11",null,46671]
[null,null,null,null,null,null,null,null,null,null,null,null,null,null,null,null,null,null,null,null,null,null,null,null,null,null,null,null,null,null,null,null,null,null,null,null,null,null,null,null,null,null,null,null,null,null,null,null,null,null,null,null,null,null,null,null,null,null,null,null,null,null,null,null,null,null,null,null,null,null,null,null,null,null,null,null,null,null,null,null,null,null,null,null,null,null,null,null,null,null,null,null,null,null,null,null,null,null,null,null,null,null,null,null,null,null,null,null,null,null,null,null,null,null,null,null,null,null,null,null,null,null,null,null,null,null,null,null,null,null,null,null,null,null,null,null,null,null,null,null,"2027-11-03",null,46694]
[null,null,null,null,null,null,null,null,null,null,null,null,null,null,null,null,null,null,null,null,null,null,null,null,null,null,null,null,null,null,null,null,null,null,null,null,null,null,null,null,null,null,null,null,null,null,null,null,null,null,null,null,null,null,null,null,null,null,null,null,null,null,null,null,null,null,null,null,null,null,null,null,null,null,null,null,null,null,null,null,null,null,null,null,null,null,null,null,null,null,null,null,null,null,null,null,null,null,null,null,null,null,null,null,null,null,null,null,null,null,null,null,null,null,null,null,null,null,null,null,null,null,null,null,null,null,null,null,null,null,null,null,null,null,null,null,null,null,null,null,"2027-11-23",null,46714]
[null,null,null,null,null,null,null,null,null,null,null,null,null,null,null,null,null,null,null,null,null,null,null,null,null,null,null,null,null,null,null,null,null,null,null,null,null,null,null,null,null,null,null,null,null,null,null,null,null,null,null,null,null,null,null,null,null,null,null,null,null,null,null,null,null,null,null,null,null,null,null,null,null,null,null,null,null,null,null,null,null,null,null,null,null,null,null,null,null,null,null,null,null,null,null,null,null,null,null,null,null,null,null,null,null,null,null,null,null,null,null,null,null,null,null,null,null,null,null,null,null,null,null,null,null,null,null,null,null,null,null,null,null,null,null,null,null,null,null,null,"2027-12-29",null,46750]
[null,null,null,null,null,null,null,null,null,null,null,null,null,null,null,null,null,null,null,null,null,null,null,null,null,null,null,null,null,null,null,null,null,null,null,null,null,null,null,null,null,null,null,null,null,null,null,null,null,null,null,null,null,null,null,null,null,null,null,null,null,null,null,null,null,null,null,null,null,null,null,null,null,null,null,null,null,null,null,null,null,null,null,null,null,null,null,null,null,null,null,null,null,null,null,null,null,null,null,null,null,null,null,null,null,null,null,null,null,null,null,null,null,null,null,null,null,null,null,null,null,null,null,null,null,null,null,null,null,null,null,null,null,null,null,null,null,null,null,null,"2027-12-30",null,46751]
[null,null,null,null,null,null,null,null,null,null,null,null,null,null,null,null,null,null,null,null,null,null,null,null,null,null,null,null,null,null,null,null,null,null,null,null,null,null,null,null,null,null,null,null,null,null,null,null,null,null,null,null,null,null,null,null,null,null,null,null,null,null,null,null,null,null,null,null,null,null,null,null,null,null,null,null,null,null,null,null,null,null,null,null,null,null,null,null,null,null,null,null,null,null,null,null,null,null,null,null,null,null,null,null,null,null,null,null,null,null,null,null,null,null,null,null,null,null,null,null,null,null,null,null,null,null,null,null,null,null,null,null,null,null,null,null,null,null,null,null,"2027-12-31",null,46752]
[null,null,null,null,null,null,null,null,null,null,null,null,null,null,null,null,null,null,null,null,null,null,null,null,null,null,null,null,null,null,null,null,null,null,null,null,null,null,null,null,null,null,null,null,null,null,null,null,null,null,null,null,null,null,null,null,null,null,null,null,null,null,null,null,null,null,null,null,null,null,null,null,null,null,null,null,null,null,null,null,null,null,null,null,null,null,null,null,null,null,null,null,null,null,null,null,null,null,null,null,null,null,null,null,null,null,null,null,null,null,null,null,null,null,null,null,null,null,null,null,null,null,null,null,null,null,null,null,null,null,null,null,null,null,null,null,null,null,null,null,"2028-01-01",null,46753]
[null,null,null,null,null,null,null,null,null,null,null,null,null,null,null,null,null,null,null,null,null,null,null,null,null,null,null,null,null,null,null,null,null,null,null,null,null,null,null,null,null,null,null,null,null,null,null,null,null,null,null,null,null,null,null,null,null,null,null,null,null,null,null,null,null,null,null,null,null,null,null,null,null,null,null,null,null,null,null,null,null,null,null,null,null,null,null,null,null,null,null,null,null,null,null,null,null,null,null,null,null,null,null,null,null,null,null,null,null,null,null,null,null,null,null,null,null,null,null,null,null,null,null,null,null,null,null,null,null,null,null,null,null,null,null,null,null,null,null,null,"2028-01-02",null,46754]
[null,null,null,null,null,null,null,null,null,null,null,null,null,null,null,null,null,null,null,null,null,null,null,null,null,null,null,null,null,null,null,null,null,null,null,null,null,null,null,null,null,null,null,null,null,null,null,null,null,null,null,null,null,null,null,null,null,null,null,null,null,null,null,null,null,null,null,null,null,null,null,null,null,null,null,null,null,null,null,null,null,null,null,null,null,null,null,null,null,null,null,null,null,null,null,null,null,null,null,null,null,null,null,null,null,null,null,null,null,null,null,null,null,null,null,null,null,null,null,null,null,null,null,null,null,null,null,null,null,null,null,null,null,null,null,null,null,null,null,null,"2028-01-03",null,46755]
[null,null,null,null,null,null,null,null,null,null,null,null,null,null,null,null,null,null,null,null,null,null,null,null,null,null,null,null,null,null,null,null,null,null,null,null,null,null,null,null,null,null,null,null,null,null,null,null,null,null,null,null,null,null,null,null,null,null,null,null,null,null,null,null,null,null,null,null,null,null,null,null,null,null,null,null,null,null,null,null,null,null,null,null,null,null,null,null,null,null,null,null,null,null,null,null,null,null,null,null,null,null,null,null,null,null,null,null,null,null,null,null,null,null,null,null,null,null,null,null,null,null,null,null,null,null,null,null,null,null,null,null,null,null,null,null,null,null,null,null,"2028-01-10",null,46762]
[null,null,null,null,null,null,null,null,null,null,null,null,null,null,null,null,null,null,null,null,null,null,null,null,null,null,null,null,null,null,null,null,null,null,null,null,null,null,null,null,null,null,null,null,null,null,null,null,null,null,null,null,null,null,null,null,null,null,null,null,null,null,null,null,null,null,null,null,null,null,null,null,null,null,null,null,null,null,null,null,null,null,null,null,null,null,null,null,null,null,null,null,null,null,null,null,null,null,null,null,null,null,null,null,null,null,null,null,null,null,null,null,null,null,null,null,null,null,null,null,null,null,null,null,null,null,null,null,null,null,null,null,null,null,null,null,null,null,null,null,"2028-02-11",null,46794]
[null,null,null,null,null,null,null,null,null,null,null,null,null,null,null,null,null,null,null,null,null,null,null,null,null,null,null,null,null,null,null,null,null,null,null,null,null,null,null,null,null,null,null,null,null,null,null,null,null,null,null,null,null,null,null,null,null,null,null,null,null,null,null,null,null,null,null,null,null,null,null,null,null,null,null,null,null,null,null,null,null,null,null,null,null,null,null,null,null,null,null,null,null,null,null,null,null,null,null,null,null,null,null,null,null,null,null,null,null,null,null,null,null,null,null,null,null,null,null,null,null,null,null,null,null,null,null,null,null,null,null,null,null,null,null,null,null,null,null,null,"2028-02-23",null,46806]
[null,null,null,null,null,null,null,null,null,null,null,null,null,null,null,null,null,null,null,null,null,null,null,null,null,null,null,null,null,null,null,null,null,null,null,null,null,null,null,null,null,null,null,null,null,null,null,null,null,null,null,null,null,null,null,null,null,null,null,null,null,null,null,null,null,null,null,null,null,null,null,null,null,null,null,null,null,null,null,null,null,null,null,null,null,null,null,null,null,null,null,null,null,null,null,null,null,null,null,null,null,null,null,null,null,null,null,null,null,null,null,null,null,null,null,null,null,null,null,null,null,null,null,null,null,null,null,null,null,null,null,null,null,null,null,null,null,null,null,null,"2028-03-20",null,46832]
[null,null,null,null,null,null,null,null,null,null,null,null,null,null,null,null,null,null,null,null,null,null,null,null,null,null,null,null,null,null,null,null,null,null,null,null,null,null,null,null,null,null,null,null,null,null,null,null,null,null,null,null,null,null,null,null,null,null,null,null,null,null,null,null,null,null,null,null,null,null,null,null,null,null,null,null,null,null,null,null,null,null,null,null,null,null,null,null,null,null,null,null,null,null,null,null,null,null,null,null,null,null,null,null,null,null,null,null,null,null,null,null,null,null,null,null,null,null,null,null,null,null,null,null,null,null,null,null,null,null,null,null,null,null,null,null,null,null,null,null,"2028-04-29",null,46872]
[null,null,null,null,null,null,null,null,null,null,null,null,null,null,null,null,null,null,null,null,null,null,null,null,null,null,null,null,null,null,null,null,null,null,null,null,null,null,null,null,null,null,null,null,null,null,null,null,null,null,null,null,null,null,null,null,null,null,null,null,null,null,null,null,null,null,null,null,null,null,null,null,null,null,null,null,null,null,null,null,null,null,null,null,null,null,null,null,null,null,null,null,null,null,null,null,null,null,null,null,null,null,null,null,null,null,null,null,null,null,null,null,null,null,null,null,null,null,null,null,null,null,null,null,null,null,null,null,null,null,null,null,null,null,null,null,null,null,null,null,"2028-05-03",null,46876]
[null,null,null,null,null,null,null,null,null,null,null,null,null,null,null,null,null,null,null,null,null,null,null,null,null,null,null,null,null,null,null,null,null,null,null,null,null,null,null,null,null,null,null,null,null,null,null,null,null,null,null,null,null,null,null,null,null,null,null,null,null,null,null,null,null,null,null,null,null,null,null,null,null,null,null,null,null,null,null,null,null,null,null,null,null,null,null,null,null,null,null,null,null,null,null,null,null,null,null,null,null,null,null,null,null,null,null,null,null,null,null,null,null,null,null,null,null,null,null,null,null,null,null,null,null,null,null,null,null,null,null,null,null,null,null,null,null,null,null,null,"2028-05-04",null,46877]
[null,null,null,null,null,null,null,null,null,null,null,null,null,null,null,null,null,null,null,null,null,null,null,null,null,null,null,null,null,null,null,null,null,null,null,null,null,null,null,null,null,null,null,null,null,null,null,null,null,null,null,null,null,null,null,null,null,null,null,null,null,null,null,null,null,null,null,null,null,null,null,null,null,null,null,null,null,null,null,null,null,null,null,null,null,null,null,null,null,null,null,null,null,null,null,null,null,null,null,null,null,null,null,null,null,null,null,null,null,null,null,null,null,null,null,null,null,null,null,null,null,null,null,null,null,null,null,null,null,null,null,null,null,null,null,null,null,null,null,null,"2028-05-05",null,46878]
[null,null,null,null,null,null,null,null,null,null,null,null,null,null,null,null,null,null,null,null,null,null,null,null,null,null,null,null,null,null,null,null,null,null,null,null,null,null,null,null,null,null,null,null,null,null,null,null,null,null,null,null,null,null,null,null,null,null,null,null,null,null,null,null,null,null,null,null,null,null,null,null,null,null,null,null,null,null,null,null,null,null,null,null,null,null,null,null,null,null,null,null,null,null,null,null,null,null,null,null,null,null,null,null,null,null,null,null,null,null,null,null,null,null,null,null,null,null,null,null,null,null,null,null,null,null,null,null,null,null,null,null,null,null,null,null,null,null,null,null,"2028-07-17",null,46951]
[null,null,null,null,null,null,null,null,null,null,null,null,null,null,null,null,null,null,null,null,null,null,null,null,null,null,null,null,null,null,null,null,null,null,null,null,null,null,null,null,null,null,null,null,null,null,null,null,null,null,null,null,null,null,null,null,null,null,null,null,null,null,null,null,null,null,null,null,null,null,null,null,null,null,null,null,null,null,null,null,null,null,null,null,null,null,null,null,null,null,null,null,null,null,null,null,null,null,null,null,null,null,null,null,null,null,null,null,null,null,null,null,null,null,null,null,null,null,null,null,null,null,null,null,null,null,null,null,null,null,null,null,null,null,null,null,null,null,null,null,"2028-08-11",null,46976]
[null,null,null,null,null,null,null,null,null,null,null,null,null,null,null,null,null,null,null,null,null,null,null,null,null,null,null,null,null,null,null,null,null,null,null,null,null,null,null,null,null,null,null,null,null,null,null,null,null,null,null,null,null,null,null,null,null,null,null,null,null,null,null,null,null,null,null,null,null,null,null,null,null,null,null,null,null,null,null,null,null,null,null,null,null,null,null,null,null,null,null,null,null,null,null,null,null,null,null,null,null,null,null,null,null,null,null,null,null,null,null,null,null,null,null,null,null,null,null,null,null,null,null,null,null,null,null,null,null,null,null,null,null,null,null,null,null,null,null,null,"2028-09-18",null,47014]
[null,null,null,null,null,null,null,null,null,null,null,null,null,null,null,null,null,null,null,null,null,null,null,null,null,null,null,null,null,null,null,null,null,null,null,null,null,null,null,null,null,null,null,null,null,null,null,null,null,null,null,null,null,null,null,null,null,null,null,null,null,null,null,null,null,null,null,null,null,null,null,null,null,null,null,null,null,null,null,null,null,null,null,null,null,null,null,null,null,null,null,null,null,null,null,null,null,null,null,null,null,null,null,null,null,null,null,null,null,null,null,null,null,null,null,null,null,null,null,null,null,null,null,null,null,null,null,null,null,null,null,null,null,null,null,null,null,null,null,null,"2028-09-22",null,47018]
[null,null,null,null,null,null,null,null,null,null,null,null,null,null,null,null,null,null,null,null,null,null,null,null,null,null,null,null,null,null,null,null,null,null,null,null,null,null,null,null,null,null,null,null,null,null,null,null,null,null,null,null,null,null,null,null,null,null,null,null,null,null,null,null,null,null,null,null,null,null,null,null,null,null,null,null,null,null,null,null,null,null,null,null,null,null,null,null,null,null,null,null,null,null,null,null,null,null,null,null,null,null,null,null,null,null,null,null,null,null,null,null,null,null,null,null,null,null,null,null,null,null,null,null,null,null,null,null,null,null,null,null,null,null,null,null,null,null,null,null,"2028-10-09",null,47035]
[null,null,null,null,null,null,null,null,null,null,null,null,null,null,null,null,null,null,null,null,null,null,null,null,null,null,null,null,null,null,null,null,null,null,null,null,null,null,null,null,null,null,null,null,null,null,null,null,null,null,null,null,null,null,null,null,null,null,null,null,null,null,null,null,null,null,null,null,null,null,null,null,null,null,null,null,null,null,null,null,null,null,null,null,null,null,null,null,null,null,null,null,null,null,null,null,null,null,null,null,null,null,null,null,null,null,null,null,null,null,null,null,null,null,null,null,null,null,null,null,null,null,null,null,null,null,null,null,null,null,null,null,null,null,null,null,null,null,null,null,"2028-11-03",null,47060]
[null,null,null,null,null,null,null,null,null,null,null,null,null,null,null,null,null,null,null,null,null,null,null,null,null,null,null,null,null,null,null,null,null,null,null,null,null,null,null,null,null,null,null,null,null,null,null,null,null,null,null,null,null,null,null,null,null,null,null,null,null,null,null,null,null,null,null,null,null,null,null,null,null,null,null,null,null,null,null,null,null,null,null,null,null,null,null,null,null,null,null,null,null,null,null,null,null,null,null,null,null,null,null,null,null,null,null,null,null,null,null,null,null,null,null,null,null,null,null,null,null,null,null,null,null,null,null,null,null,null,null,null,null,null,null,null,null,null,null,null,"2028-11-23",null,47080]
[null,null,null,null,null,null,null,null,null,null,null,null,null,null,null,null,null,null,null,null,null,null,null,null,null,null,null,null,null,null,null,null,null,null,null,null,null,null,null,null,null,null,null,null,null,null,null,null,null,null,null,null,null,null,null,null,null,null,null,null,null,null,null,null,null,null,null,null,null,null,null,null,null,null,null,null,null,null,null,null,null,null,null,null,null,null,null,null,null,null,null,null,null,null,null,null,null,null,null,null,null,null,null,null,null,null,null,null,null,null,null,null,null,null,null,null,null,null,null,null,null,null,null,null,null,null,null,null,null,null,null,null,null,null,null,null,null,null,null,null,"2028-12-29",null,47116]
[null,null,null,null,null,null,null,null,null,null,null,null,null,null,null,null,null,null,null,null,null,null,null,null,null,null,null,null,null,null,null,null,null,null,null,null,null,null,null,null,null,null,null,null,null,null,null,null,null,null,null,null,null,null,null,null,null,null,null,null,null,null,null,null,null,null,null,null,null,null,null,null,null,null,null,null,null,null,null,null,null,null,null,null,null,null,null,null,null,null,null,null,null,null,null,null,null,null,null,null,null,null,null,null,null,null,null,null,null,null,null,null,null,null,null,null,null,null,null,null,null,null,null,null,null,null,null,null,null,null,null,null,null,null,null,null,null,null,null,null,"2028-12-30",null,47117]
[null,null,null,null,null,null,null,null,null,null,null,null,null,null,null,null,null,null,null,null,null,null,null,null,null,null,null,null,null,null,null,null,null,null,null,null,null,null,null,null,null,null,null,null,null,null,null,null,null,null,null,null,null,null,null,null,null,null,null,null,null,null,null,null,null,null,null,null,null,null,null,null,null,null,null,null,null,null,null,null,null,null,null,null,null,null,null,null,null,null,null,null,null,null,null,null,null,null,null,null,null,null,null,null,null,null,null,null,null,null,null,null,null,null,null,null,null,null,null,null,null,null,null,null,null,null,null,null,null,null,null,null,null,null,null,null,null,null,null,null,"2028-12-31",null,47118]
[null,null,null,null,null,null,null,null,null,null,null,null,null,null,null,null,null,null,null,null,null,null,null,null,null,null,null,null,null,null,null,null,null,null,null,null,null,null,null,null,null,null,null,null,null,null,null,null,null,null,null,null,null,null,null,null,null,null,null,null,null,null,null,null,null,null,null,null,null,null,null,null,null,null,null,null,null,null,null,null,null,null,null,null,null,null,null,null,null,null,null,null,null,null,null,null,null,null,null,null,null,null,null,null,null,null,null,null,null,null,null,null,null,null,null,null,null,null,null,null,null,null,null,null,null,null,null,null,null,null,null,null,null,null,null,null,null,null,null,null,"2029-01-01",null,47119]
[null,null,null,null,null,null,null,null,null,null,null,null,null,null,null,null,null,null,null,null,null,null,null,null,null,null,null,null,null,null,null,null,null,null,null,null,null,null,null,null,null,null,null,null,null,null,null,null,null,null,null,null,null,null,null,null,null,null,null,null,null,null,null,null,null,null,null,null,null,null,null,null,null,null,null,null,null,null,null,null,null,null,null,null,null,null,null,null,null,null,null,null,null,null,null,null,null,null,null,null,null,null,null,null,null,null,null,null,null,null,null,null,null,null,null,null,null,null,null,null,null,null,null,null,null,null,null,null,null,null,null,null,null,null,null,null,null,null,null,null,"2029-01-02",null,47120]
[null,null,null,null,null,null,null,null,null,null,null,null,null,null,null,null,null,null,null,null,null,null,null,null,null,null,null,null,null,null,null,null,null,null,null,null,null,null,null,null,null,null,null,null,null,null,null,null,null,null,null,null,null,null,null,null,null,null,null,null,null,null,null,null,null,null,null,null,null,null,null,null,null,null,null,null,null,null,null,null,null,null,null,null,null,null,null,null,null,null,null,null,null,null,null,null,null,null,null,null,null,null,null,null,null,null,null,null,null,null,null,null,null,null,null,null,null,null,null,null,null,null,null,null,null,null,null,null,null,null,null,null,null,null,null,null,null,null,null,null,"2029-01-03",null,47121]
[null,null,null,null,null,null,null,null,null,null,null,null,null,null,null,null,null,null,null,null,null,null,null,null,null,null,null,null,null,null,null,null,null,null,null,null,null,null,null,null,null,null,null,null,null,null,null,null,null,null,null,null,null,null,null,null,null,null,null,null,null,null,null,null,null,null,null,null,null,null,null,null,null,null,null,null,null,null,null,null,null,null,null,null,null,null,null,null,null,null,null,null,null,null,null,null,null,null,null,null,null,null,null,null,null,null,null,null,null,null,null,null,null,null,null,null,null,null,null,null,null,null,null,null,null,null,null,null,null,null,null,null,null,null,null,null,null,null,null,null,"2029-01-08",null,47126]
[null,null,null,null,null,null,null,null,null,null,null,null,null,null,null,null,null,null,null,null,null,null,null,null,null,null,null,null,null,null,null,null,null,null,null,null,null,null,null,null,null,null,null,null,null,null,null,null,null,null,null,null,null,null,null,null,null,null,null,null,null,null,null,null,null,null,null,null,null,null,null,null,null,null,null,null,null,null,null,null,null,null,null,null,null,null,null,null,null,null,null,null,null,null,null,null,null,null,null,null,null,null,null,null,null,null,null,null,null,null,null,null,null,null,null,null,null,null,null,null,null,null,null,null,null,null,null,null,null,null,null,null,null,null,null,null,null,null,null,null,"2029-02-11",null,47160]
[null,null,null,null,null,null,null,null,null,null,null,null,null,null,null,null,null,null,null,null,null,null,null,null,null,null,null,null,null,null,null,null,null,null,null,null,null,null,null,null,null,null,null,null,null,null,null,null,null,null,null,null,null,null,null,null,null,null,null,null,null,null,null,null,null,null,null,null,null,null,null,null,null,null,null,null,null,null,null,null,null,null,null,null,null,null,null,null,null,null,null,null,null,null,null,null,null,null,null,null,null,null,null,null,null,null,null,null,null,null,null,null,null,null,null,null,null,null,null,null,null,null,null,null,null,null,null,null,null,null,null,null,null,null,null,null,null,null,null,null,"2029-02-12",null,47161]
[null,null,null,null,null,null,null,null,null,null,null,null,null,null,null,null,null,null,null,null,null,null,null,null,null,null,null,null,null,null,null,null,null,null,null,null,null,null,null,null,null,null,null,null,null,null,null,null,null,null,null,null,null,null,null,null,null,null,null,null,null,null,null,null,null,null,null,null,null,null,null,null,null,null,null,null,null,null,null,null,null,null,null,null,null,null,null,null,null,null,null,null,null,null,null,null,null,null,null,null,null,null,null,null,null,null,null,null,null,null,null,null,null,null,null,null,null,null,null,null,null,null,null,null,null,null,null,null,null,null,null,null,null,null,null,null,null,null,null,null,"2029-02-23",null,47172]
[null,null,null,null,null,null,null,null,null,null,null,null,null,null,null,null,null,null,null,null,null,null,null,null,null,null,null,null,null,null,null,null,null,null,null,null,null,null,null,null,null,null,null,null,null,null,null,null,null,null,null,null,null,null,null,null,null,null,null,null,null,null,null,null,null,null,null,null,null,null,null,null,null,null,null,null,null,null,null,null,null,null,null,null,null,null,null,null,null,null,null,null,null,null,null,null,null,null,null,null,null,null,null,null,null,null,null,null,null,null,null,null,null,null,null,null,null,null,null,null,null,null,null,null,null,null,null,null,null,null,null,null,null,null,null,null,null,null,null,null,"2029-03-20",null,47197]
[null,null,null,null,null,null,null,null,null,null,null,null,null,null,null,null,null,null,null,null,null,null,null,null,null,null,null,null,null,null,null,null,null,null,null,null,null,null,null,null,null,null,null,null,null,null,null,null,null,null,null,null,null,null,null,null,null,null,null,null,null,null,null,null,null,null,null,null,null,null,null,null,null,null,null,null,null,null,null,null,null,null,null,null,null,null,null,null,null,null,null,null,null,null,null,null,null,null,null,null,null,null,null,null,null,null,null,null,null,null,null,null,null,null,null,null,null,null,null,null,null,null,null,null,null,null,null,null,null,null,null,null,null,null,null,null,null,null,null,null,"2029-04-29",null,47237]
[null,null,null,null,null,null,null,null,null,null,null,null,null,null,null,null,null,null,null,null,null,null,null,null,null,null,null,null,null,null,null,null,null,null,null,null,null,null,null,null,null,null,null,null,null,null,null,null,null,null,null,null,null,null,null,null,null,null,null,null,null,null,null,null,null,null,null,null,null,null,null,null,null,null,null,null,null,null,null,null,null,null,null,null,null,null,null,null,null,null,null,null,null,null,null,null,null,null,null,null,null,null,null,null,null,null,null,null,null,null,null,null,null,null,null,null,null,null,null,null,null,null,null,null,null,null,null,null,null,null,null,null,null,null,null,null,null,null,null,null,"2029-04-30",null,47238]
[null,null,null,null,null,null,null,null,null,null,null,null,null,null,null,null,null,null,null,null,null,null,null,null,null,null,null,null,null,null,null,null,null,null,null,null,null,null,null,null,null,null,null,null,null,null,null,null,null,null,null,null,null,null,null,null,null,null,null,null,null,null,null,null,null,null,null,null,null,null,null,null,null,null,null,null,null,null,null,null,null,null,null,null,null,null,null,null,null,null,null,null,null,null,null,null,null,null,null,null,null,null,null,null,null,null,null,null,null,null,null,null,null,null,null,null,null,null,null,null,null,null,null,null,null,null,null,null,null,null,null,null,null,null,null,null,null,null,null,null,"2029-05-03",null,47241]
[null,null,null,null,null,null,null,null,null,null,null,null,null,null,null,null,null,null,null,null,null,null,null,null,null,null,null,null,null,null,null,null,null,null,null,null,null,null,null,null,null,null,null,null,null,null,null,null,null,null,null,null,null,null,null,null,null,null,null,null,null,null,null,null,null,null,null,null,null,null,null,null,null,null,null,null,null,null,null,null,null,null,null,null,null,null,null,null,null,null,null,null,null,null,null,null,null,null,null,null,null,null,null,null,null,null,null,null,null,null,null,null,null,null,null,null,null,null,null,null,null,null,null,null,null,null,null,null,null,null,null,null,null,null,null,null,null,null,null,null,"2029-05-04",null,47242]
[null,null,null,null,null,null,null,null,null,null,null,null,null,null,null,null,null,null,null,null,null,null,null,null,null,null,null,null,null,null,null,null,null,null,null,null,null,null,null,null,null,null,null,null,null,null,null,null,null,null,null,null,null,null,null,null,null,null,null,null,null,null,null,null,null,null,null,null,null,null,null,null,null,null,null,null,null,null,null,null,null,null,null,null,null,null,null,null,null,null,null,null,null,null,null,null,null,null,null,null,null,null,null,null,null,null,null,null,null,null,null,null,null,null,null,null,null,null,null,null,null,null,null,null,null,null,null,null,null,null,null,null,null,null,null,null,null,null,null,null,"2029-05-05",null,47243]
[null,null,null,null,null,null,null,null,null,null,null,null,null,null,null,null,null,null,null,null,null,null,null,null,null,null,null,null,null,null,null,null,null,null,null,null,null,null,null,null,null,null,null,null,null,null,null,null,null,null,null,null,null,null,null,null,null,null,null,null,null,null,null,null,null,null,null,null,null,null,null,null,null,null,null,null,null,null,null,null,null,null,null,null,null,null,null,null,null,null,null,null,null,null,null,null,null,null,null,null,null,null,null,null,null,null,null,null,null,null,null,null,null,null,null,null,null,null,null,null,null,null,null,null,null,null,null,null,null,null,null,null,null,null,null,null,null,null,null,null,"2029-07-16",null,47315]
[null,null,null,null,null,null,null,null,null,null,null,null,null,null,null,null,null,null,null,null,null,null,null,null,null,null,null,null,null,null,null,null,null,null,null,null,null,null,null,null,null,null,null,null,null,null,null,null,null,null,null,null,null,null,null,null,null,null,null,null,null,null,null,null,null,null,null,null,null,null,null,null,null,null,null,null,null,null,null,null,null,null,null,null,null,null,null,null,null,null,null,null,null,null,null,null,null,null,null,null,null,null,null,null,null,null,null,null,null,null,null,null,null,null,null,null,null,null,null,null,null,null,null,null,null,null,null,null,null,null,null,null,null,null,null,null,null,null,null,null,"2029-08-11",null,47341]
[null,null,null,null,null,null,null,null,null,null,null,null,null,null,null,null,null,null,null,null,null,null,null,null,null,null,null,null,null,null,null,null,null,null,null,null,null,null,null,null,null,null,null,null,null,null,null,null,null,null,null,null,null,null,null,null,null,null,null,null,null,null,null,null,null,null,null,null,null,null,null,null,null,null,null,null,null,null,null,null,null,null,null,null,null,null,null,null,null,null,null,null,null,null,null,null,null,null,null,null,null,null,null,null,null,null,null,null,null,null,null,null,null,null,null,null,null,null,null,null,null,null,null,null,null,null,null,null,null,null,null,null,null,null,null,null,null,null,null,null,"2029-09-17",null,47378]
[null,null,null,null,null,null,null,null,null,null,null,null,null,null,null,null,null,null,null,null,null,null,null,null,null,null,null,null,null,null,null,null,null,null,null,null,null,null,null,null,null,null,null,null,null,null,null,null,null,null,null,null,null,null,null,null,null,null,null,null,null,null,null,null,null,null,null,null,null,null,null,null,null,null,null,null,null,null,null,null,null,null,null,null,null,null,null,null,null,null,null,null,null,null,null,null,null,null,null,null,null,null,null,null,null,null,null,null,null,null,null,null,null,null,null,null,null,null,null,null,null,null,null,null,null,null,null,null,null,null,null,null,null,null,null,null,null,null,null,null,"2029-09-23",null,47384]
[null,null,null,null,null,null,null,null,null,null,null,null,null,null,null,null,null,null,null,null,null,null,null,null,null,null,null,null,null,null,null,null,null,null,null,null,null,null,null,null,null,null,null,null,null,null,null,null,null,null,null,null,null,null,null,null,null,null,null,null,null,null,null,null,null,null,null,null,null,null,null,null,null,null,null,null,null,null,null,null,null,null,null,null,null,null,null,null,null,null,null,null,null,null,null,null,null,null,null,null,null,null,null,null,null,null,null,null,null,null,null,null,null,null,null,null,null,null,null,null,null,null,null,null,null,null,null,null,null,null,null,null,null,null,null,null,null,null,null,null,"2029-09-24",null,47385]
[null,null,null,null,null,null,null,null,null,null,null,null,null,null,null,null,null,null,null,null,null,null,null,null,null,null,null,null,null,null,null,null,null,null,null,null,null,null,null,null,null,null,null,null,null,null,null,null,null,null,null,null,null,null,null,null,null,null,null,null,null,null,null,null,null,null,null,null,null,null,null,null,null,null,null,null,null,null,null,null,null,null,null,null,null,null,null,null,null,null,null,null,null,null,null,null,null,null,null,null,null,null,null,null,null,null,null,null,null,null,null,null,null,null,null,null,null,null,null,null,null,null,null,null,null,null,null,null,null,null,null,null,null,null,null,null,null,null,null,null,"2029-10-08",null,47399]
[null,null,null,null,null,null,null,null,null,null,null,null,null,null,null,null,null,null,null,null,null,null,null,null,null,null,null,null,null,null,null,null,null,null,null,null,null,null,null,null,null,null,null,null,null,null,null,null,null,null,null,null,null,null,null,null,null,null,null,null,null,null,null,null,null,null,null,null,null,null,null,null,null,null,null,null,null,null,null,null,null,null,null,null,null,null,null,null,null,null,null,null,null,null,null,null,null,null,null,null,null,null,null,null,null,null,null,null,null,null,null,null,null,null,null,null,null,null,null,null,null,null,null,null,null,null,null,null,null,null,null,null,null,null,null,null,null,null,null,null,"2029-11-03",null,47425]
[null,null,null,null,null,null,null,null,null,null,null,null,null,null,null,null,null,null,null,null,null,null,null,null,null,null,null,null,null,null,null,null,null,null,null,null,null,null,null,null,null,null,null,null,null,null,null,null,null,null,null,null,null,null,null,null,null,null,null,null,null,null,null,null,null,null,null,null,null,null,null,null,null,null,null,null,null,null,null,null,null,null,null,null,null,null,null,null,null,null,null,null,null,null,null,null,null,null,null,null,null,null,null,null,null,null,null,null,null,null,null,null,null,null,null,null,null,null,null,null,null,null,null,null,null,null,null,null,null,null,null,null,null,null,null,null,null,null,null,null,"2029-11-23",null,47445]
[null,null,null,null,null,null,null,null,null,null,null,null,null,null,null,null,null,null,null,null,null,null,null,null,null,null,null,null,null,null,null,null,null,null,null,null,null,null,null,null,null,null,null,null,null,null,null,null,null,null,null,null,null,null,null,null,null,null,null,null,null,null,null,null,null,null,null,null,null,null,null,null,null,null,null,null,null,null,null,null,null,null,null,null,null,null,null,null,null,null,null,null,null,null,null,null,null,null,null,null,null,null,null,null,null,null,null,null,null,null,null,null,null,null,null,null,null,null,null,null,null,null,null,null,null,null,null,null,null,null,null,null,null,null,null,null,null,null,null,null,"2029-12-24",null,47476]
[null,null,null,null,null,null,null,null,null,null,null,null,null,null,null,null,null,null,null,null,null,null,null,null,null,null,null,null,null,null,null,null,null,null,null,null,null,null,null,null,null,null,null,null,null,null,null,null,null,null,null,null,null,null,null,null,null,null,null,null,null,null,null,null,null,null,null,null,null,null,null,null,null,null,null,null,null,null,null,null,null,null,null,null,null,null,null,null,null,null,null,null,null,null,null,null,null,null,null,null,null,null,null,null,null,null,null,null,null,null,null,null,null,null,null,null,null,null,null,null,null,null,null,null,null,null,null,null,null,null,null,null,null,null,null,null,null,null,null,null,"2029-12-29",null,47481]
[null,null,null,null,null,null,null,null,null,null,null,null,null,null,null,null,null,null,null,null,null,null,null,null,null,null,null,null,null,null,null,null,null,null,null,null,null,null,null,null,null,null,null,null,null,null,null,null,null,null,null,null,null,null,null,null,null,null,null,null,null,null,null,null,null,null,null,null,null,null,null,null,null,null,null,null,null,null,null,null,null,null,null,null,null,null,null,null,null,null,null,null,null,null,null,null,null,null,null,null,null,null,null,null,null,null,null,null,null,null,null,null,null,null,null,null,null,null,null,null,null,null,null,null,null,null,null,null,null,null,null,null,null,null,null,null,null,null,null,null,"2029-12-30",null,47482]
[null,null,null,null,null,null,null,null,null,null,null,null,null,null,null,null,null,null,null,null,null,null,null,null,null,null,null,null,null,null,null,null,null,null,null,null,null,null,null,null,null,null,null,null,null,null,null,null,null,null,null,null,null,null,null,null,null,null,null,null,null,null,null,null,null,null,null,null,null,null,null,null,null,null,null,null,null,null,null,null,null,null,null,null,null,null,null,null,null,null,null,null,null,null,null,null,null,null,null,null,null,null,null,null,null,null,null,null,null,null,null,null,null,null,null,null,null,null,null,null,null,null,null,null,null,null,null,null,null,null,null,null,null,null,null,null,null,null,null,null,"2029-12-31",null,47483]
[null,null,null,null,null,null,null,null,null,null,null,null,null,null,null,null,null,null,null,null,null,null,null,null,null,null,null,null,null,null,null,null,null,null,null,null,null,null,null,null,null,null,null,null,null,null,null,null,null,null,null,null,null,null,null,null,null,null,null,null,null,null,null,null,null,null,null,null,null,null,null,null,null,null,null,null,null,null,null,null,null,null,null,null,null,null,null,null,null,null,null,null,null,null,null,null,null,null,null,null,null,null,null,null,null,null,null,null,null,null,null,null,null,null,null,null,null,null,null,null,null,null,null,null,null,null,null,null,null,null,null,null,null,null,null,null,null,null,null,null,"2030-01-01",null,47484]
[null,null,null,null,null,null,null,null,null,null,null,null,null,null,null,null,null,null,null,null,null,null,null,null,null,null,null,null,null,null,null,null,null,null,null,null,null,null,null,null,null,null,null,null,null,null,null,null,null,null,null,null,null,null,null,null,null,null,null,null,null,null,null,null,null,null,null,null,null,null,null,null,null,null,null,null,null,null,null,null,null,null,null,null,null,null,null,null,null,null,null,null,null,null,null,null,null,null,null,null,null,null,null,null,null,null,null,null,null,null,null,null,null,null,null,null,null,null,null,null,null,null,null,null,null,null,null,null,null,null,null,null,null,null,null,null,null,null,null,null,"2030-01-02",null,47485]
[null,null,null,null,null,null,null,null,null,null,null,null,null,null,null,null,null,null,null,null,null,null,null,null,null,null,null,null,null,null,null,null,null,null,null,null,null,null,null,null,null,null,null,null,null,null,null,null,null,null,null,null,null,null,null,null,null,null,null,null,null,null,null,null,null,null,null,null,null,null,null,null,null,null,null,null,null,null,null,null,null,null,null,null,null,null,null,null,null,null,null,null,null,null,null,null,null,null,null,null,null,null,null,null,null,null,null,null,null,null,null,null,null,null,null,null,null,null,null,null,null,null,null,null,null,null,null,null,null,null,null,null,null,null,null,null,null,null,null,null,"2030-01-03",null,47486]
[null,null,null,null,null,null,null,null,null,null,null,null,null,null,null,null,null,null,null,null,null,null,null,null,null,null,null,null,null,null,null,null,null,null,null,null,null,null,null,null,null,null,null,null,null,null,null,null,null,null,null,null,null,null,null,null,null,null,null,null,null,null,null,null,null,null,null,null,null,null,null,null,null,null,null,null,null,null,null,null,null,null,null,null,null,null,null,null,null,null,null,null,null,null,null,null,null,null,null,null,null,null,null,null,null,null,null,null,null,null,null,null,null,null,null,null,null,null,null,null,null,null,null,null,null,null,null,null,null,null,null,null,null,null,null,null,null,null,null,null,"2030-01-14",null,47497]
[null,null,null,null,null,null,null,null,null,null,null,null,null,null,null,null,null,null,null,null,null,null,null,null,null,null,null,null,null,null,null,null,null,null,null,null,null,null,null,null,null,null,null,null,null,null,null,null,null,null,null,null,null,null,null,null,null,null,null,null,null,null,null,null,null,null,null,null,null,null,null,null,null,null,null,null,null,null,null,null,null,null,null,null,null,null,null,null,null,null,null,null,null,null,null,null,null,null,null,null,null,null,null,null,null,null,null,null,null,null,null,null,null,null,null,null,null,null,null,null,null,null,null,null,null,null,null,null,null,null,null,null,null,null,null,null,null,null,null,null,"2030-02-11",null,47525]
[null,null,null,null,null,null,null,null,null,null,null,null,null,null,null,null,null,null,null,null,null,null,null,null,null,null,null,null,null,null,null,null,null,null,null,null,null,null,null,null,null,null,null,null,null,null,null,null,null,null,null,null,null,null,null,null,null,null,null,null,null,null,null,null,null,null,null,null,null,null,null,null,null,null,null,null,null,null,null,null,null,null,null,null,null,null,null,null,null,null,null,null,null,null,null,null,null,null,null,null,null,null,null,null,null,null,null,null,null,null,null,null,null,null,null,null,null,null,null,null,null,null,null,null,null,null,null,null,null,null,null,null,null,null,null,null,null,null,null,null,"2030-02-23",null,47537]
[null,null,null,null,null,null,null,null,null,null,null,null,null,null,null,null,null,null,null,null,null,null,null,null,null,null,null,null,null,null,null,null,null,null,null,null,null,null,null,null,null,null,null,null,null,null,null,null,null,null,null,null,null,null,null,null,null,null,null,null,null,null,null,null,null,null,null,null,null,null,null,null,null,null,null,null,null,null,null,null,null,null,null,null,null,null,null,null,null,null,null,null,null,null,null,null,null,null,null,null,null,null,null,null,null,null,null,null,null,null,null,null,null,null,null,null,null,null,null,null,null,null,null,null,null,null,null,null,null,null,null,null,null,null,null,null,null,null,null,null,"2030-03-20",null,47562]
[null,null,null,null,null,null,null,null,null,null,null,null,null,null,null,null,null,null,null,null,null,null,null,null,null,null,null,null,null,null,null,null,null,null,null,null,null,null,null,null,null,null,null,null,null,null,null,null,null,null,null,null,null,null,null,null,null,null,null,null,null,null,null,null,null,null,null,null,null,null,null,null,null,null,null,null,null,null,null,null,null,null,null,null,null,null,null,null,null,null,null,null,null,null,null,null,null,null,null,null,null,null,null,null,null,null,null,null,null,null,null,null,null,null,null,null,null,null,null,null,null,null,null,null,null,null,null,null,null,null,null,null,null,null,null,null,null,null,null,null,"2030-04-29",null,47602]
[null,null,null,null,null,null,null,null,null,null,null,null,null,null,null,null,null,null,null,null,null,null,null,null,null,null,null,null,null,null,null,null,null,null,null,null,null,null,null,null,null,null,null,null,null,null,null,null,null,null,null,null,null,null,null,null,null,null,null,null,null,null,null,null,null,null,null,null,null,null,null,null,null,null,null,null,null,null,null,null,null,null,null,null,null,null,null,null,null,null,null,null,null,null,null,null,null,null,null,null,null,null,null,null,null,null,null,null,null,null,null,null,null,null,null,null,null,null,null,null,null,null,null,null,null,null,null,null,null,null,null,null,null,null,null,null,null,null,null,null,"2030-05-03",null,47606]
[null,null,null,null,null,null,null,null,null,null,null,null,null,null,null,null,null,null,null,null,null,null,null,null,null,null,null,null,null,null,null,null,null,null,null,null,null,null,null,null,null,null,null,null,null,null,null,null,null,null,null,null,null,null,null,null,null,null,null,null,null,null,null,null,null,null,null,null,null,null,null,null,null,null,null,null,null,null,null,null,null,null,null,null,null,null,null,null,null,null,null,null,null,null,null,null,null,null,null,null,null,null,null,null,null,null,null,null,null,null,null,null,null,null,null,null,null,null,null,null,null,null,null,null,null,null,null,null,null,null,null,null,null,null,null,null,null,null,null,null,"2030-05-04",null,47607]
[null,null,null,null,null,null,null,null,null,null,null,null,null,null,null,null,null,null,null,null,null,null,null,null,null,null,null,null,null,null,null,null,null,null,null,null,null,null,null,null,null,null,null,null,null,null,null,null,null,null,null,null,null,null,null,null,null,null,null,null,null,null,null,null,null,null,null,null,null,null,null,null,null,null,null,null,null,null,null,null,null,null,null,null,null,null,null,null,null,null,null,null,null,null,null,null,null,null,null,null,null,null,null,null,null,null,null,null,null,null,null,null,null,null,null,null,null,null,null,null,null,null,null,null,null,null,null,null,null,null,null,null,null,null,null,null,null,null,null,null,"2030-05-05",null,47608]
[null,null,null,null,null,null,null,null,null,null,null,null,null,null,null,null,null,null,null,null,null,null,null,null,null,null,null,null,null,null,null,null,null,null,null,null,null,null,null,null,null,null,null,null,null,null,null,null,null,null,null,null,null,null,null,null,null,null,null,null,null,null,null,null,null,null,null,null,null,null,null,null,null,null,null,null,null,null,null,null,null,null,null,null,null,null,null,null,null,null,null,null,null,null,null,null,null,null,null,null,null,null,null,null,null,null,null,null,null,null,null,null,null,null,null,null,null,null,null,null,null,null,null,null,null,null,null,null,null,null,null,null,null,null,null,null,null,null,null,null,"2030-05-06",null,47609]
[null,null,null,null,null,null,null,null,null,null,null,null,null,null,null,null,null,null,null,null,null,null,null,null,null,null,null,null,null,null,null,null,null,null,null,null,null,null,null,null,null,null,null,null,null,null,null,null,null,null,null,null,null,null,null,null,null,null,null,null,null,null,null,null,null,null,null,null,null,null,null,null,null,null,null,null,null,null,null,null,null,null,null,null,null,null,null,null,null,null,null,null,null,null,null,null,null,null,null,null,null,null,null,null,null,null,null,null,null,null,null,null,null,null,null,null,null,null,null,null,null,null,null,null,null,null,null,null,null,null,null,null,null,null,null,null,null,null,null,null,"2030-07-15",null,47679]
[null,null,null,null,null,null,null,null,null,null,null,null,null,null,null,null,null,null,null,null,null,null,null,null,null,null,null,null,null,null,null,null,null,null,null,null,null,null,null,null,null,null,null,null,null,null,null,null,null,null,null,null,null,null,null,null,null,null,null,null,null,null,null,null,null,null,null,null,null,null,null,null,null,null,null,null,null,null,null,null,null,null,null,null,null,null,null,null,null,null,null,null,null,null,null,null,null,null,null,null,null,null,null,null,null,null,null,null,null,null,null,null,null,null,null,null,null,null,null,null,null,null,null,null,null,null,null,null,null,null,null,null,null,null,null,null,null,null,null,null,"2030-08-11",null,47706]
[null,null,null,null,null,null,null,null,null,null,null,null,null,null,null,null,null,null,null,null,null,null,null,null,null,null,null,null,null,null,null,null,null,null,null,null,null,null,null,null,null,null,null,null,null,null,null,null,null,null,null,null,null,null,null,null,null,null,null,null,null,null,null,null,null,null,null,null,null,null,null,null,null,null,null,null,null,null,null,null,null,null,null,null,null,null,null,null,null,null,null,null,null,null,null,null,null,null,null,null,null,null,null,null,null,null,null,null,null,null,null,null,null,null,null,null,null,null,null,null,null,null,null,null,null,null,null,null,null,null,null,null,null,null,null,null,null,null,null,null,"2030-08-12",null,47707]
[null,null,null,null,null,null,null,null,null,null,null,null,null,null,null,null,null,null,null,null,null,null,null,null,null,null,null,null,null,null,null,null,null,null,null,null,null,null,null,null,null,null,null,null,null,null,null,null,null,null,null,null,null,null,null,null,null,null,null,null,null,null,null,null,null,null,null,null,null,null,null,null,null,null,null,null,null,null,null,null,null,null,null,null,null,null,null,null,null,null,null,null,null,null,null,null,null,null,null,null,null,null,null,null,null,null,null,null,null,null,null,null,null,null,null,null,null,null,null,null,null,null,null,null,null,null,null,null,null,null,null,null,null,null,null,null,null,null,null,null,"2030-09-16",null,47742]
[null,null,null,null,null,null,null,null,null,null,null,null,null,null,null,null,null,null,null,null,null,null,null,null,null,null,null,null,null,null,null,null,null,null,null,null,null,null,null,null,null,null,null,null,null,null,null,null,null,null,null,null,null,null,null,null,null,null,null,null,null,null,null,null,null,null,null,null,null,null,null,null,null,null,null,null,null,null,null,null,null,null,null,null,null,null,null,null,null,null,null,null,null,null,null,null,null,null,null,null,null,null,null,null,null,null,null,null,null,null,null,null,null,null,null,null,null,null,null,null,null,null,null,null,null,null,null,null,null,null,null,null,null,null,null,null,null,null,null,null,"2030-09-23",null,47749]
[null,null,null,null,null,null,null,null,null,null,null,null,null,null,null,null,null,null,null,null,null,null,null,null,null,null,null,null,null,null,null,null,null,null,null,null,null,null,null,null,null,null,null,null,null,null,null,null,null,null,null,null,null,null,null,null,null,null,null,null,null,null,null,null,null,null,null,null,null,null,null,null,null,null,null,null,null,null,null,null,null,null,null,null,null,null,null,null,null,null,null,null,null,null,null,null,null,null,null,null,null,null,null,null,null,null,null,null,null,null,null,null,null,null,null,null,null,null,null,null,null,null,null,null,null,null,null,null,null,null,null,null,null,null,null,null,null,null,null,null,"2030-10-14",null,47770]
[null,null,null,null,null,null,null,null,null,null,null,null,null,null,null,null,null,null,null,null,null,null,null,null,null,null,null,null,null,null,null,null,null,null,null,null,null,null,null,null,null,null,null,null,null,null,null,null,null,null,null,null,null,null,null,null,null,null,null,null,null,null,null,null,null,null,null,null,null,null,null,null,null,null,null,null,null,null,null,null,null,null,null,null,null,null,null,null,null,null,null,null,null,null,null,null,null,null,null,null,null,null,null,null,null,null,null,null,null,null,null,null,null,null,null,null,null,null,null,null,null,null,null,null,null,null,null,null,null,null,null,null,null,null,null,null,null,null,null,null,"2030-11-03",null,47790]
[null,null,null,null,null,null,null,null,null,null,null,null,null,null,null,null,null,null,null,null,null,null,null,null,null,null,null,null,null,null,null,null,null,null,null,null,null,null,null,null,null,null,null,null,null,null,null,null,null,null,null,null,null,null,null,null,null,null,null,null,null,null,null,null,null,null,null,null,null,null,null,null,null,null,null,null,null,null,null,null,null,null,null,null,null,null,null,null,null,null,null,null,null,null,null,null,null,null,null,null,null,null,null,null,null,null,null,null,null,null,null,null,null,null,null,null,null,null,null,null,null,null,null,null,null,null,null,null,null,null,null,null,null,null,null,null,null,null,null,null,"2030-11-04",null,47791]
[null,null,null,null,null,null,null,null,null,null,null,null,null,null,null,null,null,null,null,null,null,null,null,null,null,null,null,null,null,null,null,null,null,null,null,null,null,null,null,null,null,null,null,null,null,null,null,null,null,null,null,null,null,null,null,null,null,null,null,null,null,null,null,null,null,null,null,null,null,null,null,null,null,null,null,null,null,null,null,null,null,null,null,null,null,null,null,null,null,null,null,null,null,null,null,null,null,null,null,null,null,null,null,null,null,null,null,null,null,null,null,null,null,null,null,null,null,null,null,null,null,null,null,null,null,null,null,null,null,null,null,null,null,null,null,null,null,null,null,null,"2030-11-23",null,47810]
[null,null,null,null,null,null,null,null,null,null,null,null,null,null,null,null,null,null,null,null,null,null,null,null,null,null,null,null,null,null,null,null,null,null,null,null,null,null,null,null,null,null,null,null,null,null,null,null,null,null,null,null,null,null,null,null,null,null,null,null,null,null,null,null,null,null,null,null,null,null,null,null,null,null,null,null,null,null,null,null,null,null,null,null,null,null,null,null,null,null,null,null,null,null,null,null,null,null,null,null,null,null,null,null,null,null,null,null,null,null,null,null,null,null,null,null,null,null,null,null,null,null,null,null,null,null,null,null,null,null,null,null,null,null,null,null,null,null,null,null,"2030-12-29",null,47846]
[null,null,null,null,null,null,null,null,null,null,null,null,null,null,null,null,null,null,null,null,null,null,null,null,null,null,null,null,null,null,null,null,null,null,null,null,null,null,null,null,null,null,null,null,null,null,null,null,null,null,null,null,null,null,null,null,null,null,null,null,null,null,null,null,null,null,null,null,null,null,null,null,null,null,null,null,null,null,null,null,null,null,null,null,null,null,null,null,null,null,null,null,null,null,null,null,null,null,null,null,null,null,null,null,null,null,null,null,null,null,null,null,null,null,null,null,null,null,null,null,null,null,null,null,null,null,null,null,null,null,null,null,null,null,null,null,null,null,null,null,"2030-12-30",null,47847]
[null,null,null,null,null,null,null,null,null,null,null,null,null,null,null,null,null,null,null,null,null,null,null,null,null,null,null,null,null,null,null,null,null,null,null,null,null,null,null,null,null,null,null,null,null,null,null,null,null,null,null,null,null,null,null,null,null,null,null,null,null,null,null,null,null,null,null,null,null,null,null,null,null,null,null,null,null,null,null,null,null,null,null,null,null,null,null,null,null,null,null,null,null,null,null,null,null,null,null,null,null,null,null,null,null,null,null,null,null,null,null,null,null,null,null,null,null,null,null,null,null,null,null,null,null,null,null,null,null,null,null,null,null,null,null,null,null,null,null,null,"2030-12-31",null,47848]
[null,null,null,null,null,null,null,null,null,null,null,null,null,null,null,null,null,null,null,null,null,null,null,null,null,null,null,null,null,null,null,null,null,null,null,null,null,null,null,null,null,null,null,null,null,null,null,null,null,null,null,null,null,null,null,null,null,null,null,null,null,null,null,null,null,null,null,null,null,null,null,null,null,null,null,null,null,null,null,null,null,null,null,null,null,null,null,null,null,null,null,null,null,null,null,null,null,null,null,null,null,null,null,null,null,null,null,null,null,null,null,null,null,null,null,null,null,null,null,null,null,null,null,null,null,null,null,null,null,null,null,null,null,null,null,null,null,null,null,null,"2031-01-01",null,47849]
[null,null,null,null,null,null,null,null,null,null,null,null,null,null,null,null,null,null,null,null,null,null,null,null,null,null,null,null,null,null,null,null,null,null,null,null,null,null,null,null,null,null,null,null,null,null,null,null,null,null,null,null,null,null,null,null,null,null,null,null,null,null,null,null,null,null,null,null,null,null,null,null,null,null,null,null,null,null,null,null,null,null,null,null,null,null,null,null,null,null,null,null,null,null,null,null,null,null,null,null,null,null,null,null,null,null,null,null,null,null,null,null,null,null,null,null,null,null,null,null,null,null,null,null,null,null,null,null,null,null,null,null,null,null,null,null,null,null,null,null,"2031-01-02",null,47850]
[null,null,null,null,null,null,null,null,null,null,null,null,null,null,null,null,null,null,null,null,null,null,null,null,null,null,null,null,null,null,null,null,null,null,null,null,null,null,null,null,null,null,null,null,null,null,null,null,null,null,null,null,null,null,null,null,null,null,null,null,null,null,null,null,null,null,null,null,null,null,null,null,null,null,null,null,null,null,null,null,null,null,null,null,null,null,null,null,null,null,null,null,null,null,null,null,null,null,null,null,null,null,null,null,null,null,null,null,null,null,null,null,null,null,null,null,null,null,null,null,null,null,null,null,null,null,null,null,null,null,null,null,null,null,null,null,null,null,null,null,"2031-01-03",null,47851]
[null,null,null,null,null,null,null,null,null,null,null,null,null,null,null,null,null,null,null,null,null,null,null,null,null,null,null,null,null,null,null,null,null,null,null,null,null,null,null,null,null,null,null,null,null,null,null,null,null,null,null,null,null,null,null,null,null,null,null,null,null,null,null,null,null,null,null,null,null,null,null,null,null,null,null,null,null,null,null,null,null,null,null,null,null,null,null,null,null,null,null,null,null,null,null,null,null,null,null,null,null,null,null,null,null,null,null,null,null,null,null,null,null,null,null,null,null,null,null,null,null,null,null,null,null,null,null,null,null,null,null,null,null,null,null,null,null,null,null,null,"2031-01-13",null,47861]
[null,null,null,null,null,null,null,null,null,null,null,null,null,null,null,null,null,null,null,null,null,null,null,null,null,null,null,null,null,null,null,null,null,null,null,null,null,null,null,null,null,null,null,null,null,null,null,null,null,null,null,null,null,null,null,null,null,null,null,null,null,null,null,null,null,null,null,null,null,null,null,null,null,null,null,null,null,null,null,null,null,null,null,null,null,null,null,null,null,null,null,null,null,null,null,null,null,null,null,null,null,null,null,null,null,null,null,null,null,null,null,null,null,null,null,null,null,null,null,null,null,null,null,null,null,null,null,null,null,null,null,null,null,null,null,null,null,null,null,null,"2031-02-11",null,47890]
[null,null,null,null,null,null,null,null,null,null,null,null,null,null,null,null,null,null,null,null,null,null,null,null,null,null,null,null,null,null,null,null,null,null,null,null,null,null,null,null,null,null,null,null,null,null,null,null,null,null,null,null,null,null,null,null,null,null,null,null,null,null,null,null,null,null,null,null,null,null,null,null,null,null,null,null,null,null,null,null,null,null,null,null,null,null,null,null,null,null,null,null,null,null,null,null,null,null,null,null,null,null,null,null,null,null,null,null,null,null,null,null,null,null,null,null,null,null,null,null,null,null,null,null,null,null,null,null,null,null,null,null,null,null,null,null,null,null,null,null,"2031-02-23",null,47902]
[null,null,null,null,null,null,null,null,null,null,null,null,null,null,null,null,null,null,null,null,null,null,null,null,null,null,null,null,null,null,null,null,null,null,null,null,null,null,null,null,null,null,null,null,null,null,null,null,null,null,null,null,null,null,null,null,null,null,null,null,null,null,null,null,null,null,null,null,null,null,null,null,null,null,null,null,null,null,null,null,null,null,null,null,null,null,null,null,null,null,null,null,null,null,null,null,null,null,null,null,null,null,null,null,null,null,null,null,null,null,null,null,null,null,null,null,null,null,null,null,null,null,null,null,null,null,null,null,null,null,null,null,null,null,null,null,null,null,null,null,"2031-02-24",null,47903]
[null,null,null,null,null,null,null,null,null,null,null,null,null,null,null,null,null,null,null,null,null,null,null,null,null,null,null,null,null,null,null,null,null,null,null,null,null,null,null,null,null,null,null,null,null,null,null,null,null,null,null,null,null,null,null,null,null,null,null,null,null,null,null,null,null,null,null,null,null,null,null,null,null,null,null,null,null,null,null,null,null,null,null,null,null,null,null,null,null,null,null,null,null,null,null,null,null,null,null,null,null,null,null,null,null,null,null,null,null,null,null,null,null,null,null,null,null,null,null,null,null,null,null,null,null,null,null,null,null,null,null,null,null,null,null,null,null,null,null,null,"2031-03-21",null,47928]
[null,null,null,null,null,null,null,null,null,null,null,null,null,null,null,null,null,null,null,null,null,null,null,null,null,null,null,null,null,null,null,null,null,null,null,null,null,null,null,null,null,null,null,null,null,null,null,null,null,null,null,null,null,null,null,null,null,null,null,null,null,null,null,null,null,null,null,null,null,null,null,null,null,null,null,null,null,null,null,null,null,null,null,null,null,null,null,null,null,null,null,null,null,null,null,null,null,null,null,null,null,null,null,null,null,null,null,null,null,null,null,null,null,null,null,null,null,null,null,null,null,null,null,null,null,null,null,null,null,null,null,null,null,null,null,null,null,null,null,null,"2031-04-29",null,47967]
[null,null,null,null,null,null,null,null,null,null,null,null,null,null,null,null,null,null,null,null,null,null,null,null,null,null,null,null,null,null,null,null,null,null,null,null,null,null,null,null,null,null,null,null,null,null,null,null,null,null,null,null,null,null,null,null,null,null,null,null,null,null,null,null,null,null,null,null,null,null,null,null,null,null,null,null,null,null,null,null,null,null,null,null,null,null,null,null,null,null,null,null,null,null,null,null,null,null,null,null,null,null,null,null,null,null,null,null,null,null,null,null,null,null,null,null,null,null,null,null,null,null,null,null,null,null,null,null,null,null,null,null,null,null,null,null,null,null,null,null,"2031-05-03",null,47971]
[null,null,null,null,null,null,null,null,null,null,null,null,null,null,null,null,null,null,null,null,null,null,null,null,null,null,null,null,null,null,null,null,null,null,null,null,null,null,null,null,null,null,null,null,null,null,null,null,null,null,null,null,null,null,null,null,null,null,null,null,null,null,null,null,null,null,null,null,null,null,null,null,null,null,null,null,null,null,null,null,null,null,null,null,null,null,null,null,null,null,null,null,null,null,null,null,null,null,null,null,null,null,null,null,null,null,null,null,null,null,null,null,null,null,null,null,null,null,null,null,null,null,null,null,null,null,null,null,null,null,null,null,null,null,null,null,null,null,null,null,"2031-05-04",null,47972]
[null,null,null,null,null,null,null,null,null,null,null,null,null,null,null,null,null,null,null,null,null,null,null,null,null,null,null,null,null,null,null,null,null,null,null,null,null,null,null,null,null,null,null,null,null,null,null,null,null,null,null,null,null,null,null,null,null,null,null,null,null,null,null,null,null,null,null,null,null,null,null,null,null,null,null,null,null,null,null,null,null,null,null,null,null,null,null,null,null,null,null,null,null,null,null,null,null,null,null,null,null,null,null,null,null,null,null,null,null,null,null,null,null,null,null,null,null,null,null,null,null,null,null,null,null,null,null,null,null,null,null,null,null,null,null,null,null,null,null,null,"2031-05-05",null,47973]
[null,null,null,null,null,null,null,null,null,null,null,null,null,null,null,null,null,null,null,null,null,null,null,null,null,null,null,null,null,null,null,null,null,null,null,null,null,null,null,null,null,null,null,null,null,null,null,null,null,null,null,null,null,null,null,null,null,null,null,null,null,null,null,null,null,null,null,null,null,null,null,null,null,null,null,null,null,null,null,null,null,null,null,null,null,null,null,null,null,null,null,null,null,null,null,null,null,null,null,null,null,null,null,null,null,null,null,null,null,null,null,null,null,null,null,null,null,null,null,null,null,null,null,null,null,null,null,null,null,null,null,null,null,null,null,null,null,null,null,null,"2031-05-06",null,47974]
[null,null,null,null,null,null,null,null,null,null,null,null,null,null,null,null,null,null,null,null,null,null,null,null,null,null,null,null,null,null,null,null,null,null,null,null,null,null,null,null,null,null,null,null,null,null,null,null,null,null,null,null,null,null,null,null,null,null,null,null,null,null,null,null,null,null,null,null,null,null,null,null,null,null,null,null,null,null,null,null,null,null,null,null,null,null,null,null,null,null,null,null,null,null,null,null,null,null,null,null,null,null,null,null,null,null,null,null,null,null,null,null,null,null,null,null,null,null,null,null,null,null,null,null,null,null,null,null,null,null,null,null,null,null,null,null,null,null,null,null,"2031-07-21",null,48050]
[null,null,null,null,null,null,null,null,null,null,null,null,null,null,null,null,null,null,null,null,null,null,null,null,null,null,null,null,null,null,null,null,null,null,null,null,null,null,null,null,null,null,null,null,null,null,null,null,null,null,null,null,null,null,null,null,null,null,null,null,null,null,null,null,null,null,null,null,null,null,null,null,null,null,null,null,null,null,null,null,null,null,null,null,null,null,null,null,null,null,null,null,null,null,null,null,null,null,null,null,null,null,null,null,null,null,null,null,null,null,null,null,null,null,null,null,null,null,null,null,null,null,null,null,null,null,null,null,null,null,null,null,null,null,null,null,null,null,null,null,"2031-08-11",null,48071]
[null,null,null,null,null,null,null,null,null,null,null,null,null,null,null,null,null,null,null,null,null,null,null,null,null,null,null,null,null,null,null,null,null,null,null,null,null,null,null,null,null,null,null,null,null,null,null,null,null,null,null,null,null,null,null,null,null,null,null,null,null,null,null,null,null,null,null,null,null,null,null,null,null,null,null,null,null,null,null,null,null,null,null,null,null,null,null,null,null,null,null,null,null,null,null,null,null,null,null,null,null,null,null,null,null,null,null,null,null,null,null,null,null,null,null,null,null,null,null,null,null,null,null,null,null,null,null,null,null,null,null,null,null,null,null,null,null,null,null,null,"2031-09-15",null,48106]
[null,null,null,null,null,null,null,null,null,null,null,null,null,null,null,null,null,null,null,null,null,null,null,null,null,null,null,null,null,null,null,null,null,null,null,null,null,null,null,null,null,null,null,null,null,null,null,null,null,null,null,null,null,null,null,null,null,null,null,null,null,null,null,null,null,null,null,null,null,null,null,null,null,null,null,null,null,null,null,null,null,null,null,null,null,null,null,null,null,null,null,null,null,null,null,null,null,null,null,null,null,null,null,null,null,null,null,null,null,null,null,null,null,null,null,null,null,null,null,null,null,null,null,null,null,null,null,null,null,null,null,null,null,null,null,null,null,null,null,null,"2031-09-23",null,48114]
[null,null,null,null,null,null,null,null,null,null,null,null,null,null,null,null,null,null,null,null,null,null,null,null,null,null,null,null,null,null,null,null,null,null,null,null,null,null,null,null,null,null,null,null,null,null,null,null,null,null,null,null,null,null,null,null,null,null,null,null,null,null,null,null,null,null,null,null,null,null,null,null,null,null,null,null,null,null,null,null,null,null,null,null,null,null,null,null,null,null,null,null,null,null,null,null,null,null,null,null,null,null,null,null,null,null,null,null,null,null,null,null,null,null,null,null,null,null,null,null,null,null,null,null,null,null,null,null,null,null,null,null,null,null,null,null,null,null,null,null,"2031-10-13",null,48134]
[null,null,null,null,null,null,null,null,null,null,null,null,null,null,null,null,null,null,null,null,null,null,null,null,null,null,null,null,null,null,null,null,null,null,null,null,null,null,null,null,null,null,null,null,null,null,null,null,null,null,null,null,null,null,null,null,null,null,null,null,null,null,null,null,null,null,null,null,null,null,null,null,null,null,null,null,null,null,null,null,null,null,null,null,null,null,null,null,null,null,null,null,null,null,null,null,null,null,null,null,null,null,null,null,null,null,null,null,null,null,null,null,null,null,null,null,null,null,null,null,null,null,null,null,null,null,null,null,null,null,null,null,null,null,null,null,null,null,null,null,"2031-11-03",null,48155]
[null,null,null,null,null,null,null,null,null,null,null,null,null,null,null,null,null,null,null,null,null,null,null,null,null,null,null,null,null,null,null,null,null,null,null,null,null,null,null,null,null,null,null,null,null,null,null,null,null,null,null,null,null,null,null,null,null,null,null,null,null,null,null,null,null,null,null,null,null,null,null,null,null,null,null,null,null,null,null,null,null,null,null,null,null,null,null,null,null,null,null,null,null,null,null,null,null,null,null,null,null,null,null,null,null,null,null,null,null,null,null,null,null,null,null,null,null,null,null,null,null,null,null,null,null,null,null,null,null,null,null,null,null,null,null,null,null,null,null,null,"2031-11-23",null,48175]
[null,null,null,null,null,null,null,null,null,null,null,null,null,null,null,null,null,null,null,null,null,null,null,null,null,null,null,null,null,null,null,null,null,null,null,null,null,null,null,null,null,null,null,null,null,null,null,null,null,null,null,null,null,null,null,null,null,null,null,null,null,null,null,null,null,null,null,null,null,null,null,null,null,null,null,null,null,null,null,null,null,null,null,null,null,null,null,null,null,null,null,null,null,null,null,null,null,null,null,null,null,null,null,null,null,null,null,null,null,null,null,null,null,null,null,null,null,null,null,null,null,null,null,null,null,null,null,null,null,null,null,null,null,null,null,null,null,null,null,null,"2031-11-24",null,48176]
[null,null,null,null,null,null,null,null,null,null,null,null,null,null,null,null,null,null,null,null,null,null,null,null,null,null,null,null,null,null,null,null,null,null,null,null,null,null,null,null,null,null,null,null,null,null,null,null,null,null,null,null,null,null,null,null,null,null,null,null,null,null,null,null,null,null,null,null,null,null,null,null,null,null,null,null,null,null,null,null,null,null,null,null,null,null,null,null,null,null,null,null,null,null,null,null,null,null,null,null,null,null,null,null,null,null,null,null,null,null,null,null,null,null,null,null,null,null,null,null,null,null,null,null,null,null,null,null,null,null,null,null,null,null,null,null,null,null,null,null,"2031-12-29",null,48211]
[null,null,null,null,null,null,null,null,null,null,null,null,null,null,null,null,null,null,null,null,null,null,null,null,null,null,null,null,null,null,null,null,null,null,null,null,null,null,null,null,null,null,null,null,null,null,null,null,null,null,null,null,null,null,null,null,null,null,null,null,null,null,null,null,null,null,null,null,null,null,null,null,null,null,null,null,null,null,null,null,null,null,null,null,null,null,null,null,null,null,null,null,null,null,null,null,null,null,null,null,null,null,null,null,null,null,null,null,null,null,null,null,null,null,null,null,null,null,null,null,null,null,null,null,null,null,null,null,null,null,null,null,null,null,null,null,null,null,null,null,"2031-12-30",null,48212]
[null,null,null,null,null,null,null,null,null,null,null,null,null,null,null,null,null,null,null,null,null,null,null,null,null,null,null,null,null,null,null,null,null,null,null,null,null,null,null,null,null,null,null,null,null,null,null,null,null,null,null,null,null,null,null,null,null,null,null,null,null,null,null,null,null,null,null,null,null,null,null,null,null,null,null,null,null,null,null,null,null,null,null,null,null,null,null,null,null,null,null,null,null,null,null,null,null,null,null,null,null,null,null,null,null,null,null,null,null,null,null,null,null,null,null,null,null,null,null,null,null,null,null,null,null,null,null,null,null,null,null,null,null,null,null,null,null,null,null,null,"2031-12-31",null,48213]
[null,null,null,null,null,null,null,null,null,null,null,null,null,null,null,null,null,null,null,null,null,null,null,null,null,null,null,null,null,null,null,null,null,null,null,null,null,null,null,null,null,null,null,null,null,null,null,null,null,null,null,null,null,null,null,null,null,null,null,null,null,null,null,null,null,null,null,null,null,null,null,null,null,null,null,null,null,null,null,null,null,null,null,null,null,null,null,null,null,null,null,null,null,null,null,null,null,null,null,null,null,null,null,null,null,null,null,null,null,null,null,null,null,null,null,null,null,null,null,null,null,null,null,null,null,null,null,null,null,null,null,null,null,null,null,null,null,null,null,null,"2032-01-01",null,48214]
[null,null,null,null,null,null,null,null,null,null,null,null,null,null,null,null,null,null,null,null,null,null,null,null,null,null,null,null,null,null,null,null,null,null,null,null,null,null,null,null,null,null,null,null,null,null,null,null,null,null,null,null,null,null,null,null,null,null,null,null,null,null,null,null,null,null,null,null,null,null,null,null,null,null,null,null,null,null,null,null,null,null,null,null,null,null,null,null,null,null,null,null,null,null,null,null,null,null,null,null,null,null,null,null,null,null,null,null,null,null,null,null,null,null,null,null,null,null,null,null,null,null,null,null,null,null,null,null,null,null,null,null,null,null,null,null,null,null,null,null,"2032-01-02",null,48215]
[null,null,null,null,null,null,null,null,null,null,null,null,null,null,null,null,null,null,null,null,null,null,null,null,null,null,null,null,null,null,null,null,null,null,null,null,null,null,null,null,null,null,null,null,null,null,null,null,null,null,null,null,null,null,null,null,null,null,null,null,null,null,null,null,null,null,null,null,null,null,null,null,null,null,null,null,null,null,null,null,null,null,null,null,null,null,null,null,null,null,null,null,null,null,null,null,null,null,null,null,null,null,null,null,null,null,null,null,null,null,null,null,null,null,null,null,null,null,null,null,null,null,null,null,null,null,null,null,null,null,null,null,null,null,null,null,null,null,null,null,"2032-01-03",null,48216]
[null,null,null,null,null,null,null,null,null,null,null,null,null,null,null,null,null,null,null,null,null,null,null,null,null,null,null,null,null,null,null,null,null,null,null,null,null,null,null,null,null,null,null,null,null,null,null,null,null,null,null,null,null,null,null,null,null,null,null,null,null,null,null,null,null,null,null,null,null,null,null,null,null,null,null,null,null,null,null,null,null,null,null,null,null,null,null,null,null,null,null,null,null,null,null,null,null,null,null,null,null,null,null,null,null,null,null,null,null,null,null,null,null,null,null,null,null,null,null,null,null,null,null,null,null,null,null,null,null,null,null,null,null,null,null,null,null,null,null,null,"2032-01-12",null,48225]
[null,null,null,null,null,null,null,null,null,null,null,null,null,null,null,null,null,null,null,null,null,null,null,null,null,null,null,null,null,null,null,null,null,null,null,null,null,null,null,null,null,null,null,null,null,null,null,null,null,null,null,null,null,null,null,null,null,null,null,null,null,null,null,null,null,null,null,null,null,null,null,null,null,null,null,null,null,null,null,null,null,null,null,null,null,null,null,null,null,null,null,null,null,null,null,null,null,null,null,null,null,null,null,null,null,null,null,null,null,null,null,null,null,null,null,null,null,null,null,null,null,null,null,null,null,null,null,null,null,null,null,null,null,null,null,null,null,null,null,null,"2032-02-11",null,48255]
[null,null,null,null,null,null,null,null,null,null,null,null,null,null,null,null,null,null,null,null,null,null,null,null,null,null,null,null,null,null,null,null,null,null,null,null,null,null,null,null,null,null,null,null,null,null,null,null,null,null,null,null,null,null,null,null,null,null,null,null,null,null,null,null,null,null,null,null,null,null,null,null,null,null,null,null,null,null,null,null,null,null,null,null,null,null,null,null,null,null,null,null,null,null,null,null,null,null,null,null,null,null,null,null,null,null,null,null,null,null,null,null,null,null,null,null,null,null,null,null,null,null,null,null,null,null,null,null,null,null,null,null,null,null,null,null,null,null,null,null,"2032-02-23",null,48267]
[null,null,null,null,null,null,null,null,null,null,null,null,null,null,null,null,null,null,null,null,null,null,null,null,null,null,null,null,null,null,null,null,null,null,null,null,null,null,null,null,null,null,null,null,null,null,null,null,null,null,null,null,null,null,null,null,null,null,null,null,null,null,null,null,null,null,null,null,null,null,null,null,null,null,null,null,null,null,null,null,null,null,null,null,null,null,null,null,null,null,null,null,null,null,null,null,null,null,null,null,null,null,null,null,null,null,null,null,null,null,null,null,null,null,null,null,null,null,null,null,null,null,null,null,null,null,null,null,null,null,null,null,null,null,null,null,null,null,null,null,"2032-03-20",null,48293]
[null,null,null,null,null,null,null,null,null,null,null,null,null,null,null,null,null,null,null,null,null,null,null,null,null,null,null,null,null,null,null,null,null,null,null,null,null,null,null,null,null,null,null,null,null,null,null,null,null,null,null,null,null,null,null,null,null,null,null,null,null,null,null,null,null,null,null,null,null,null,null,null,null,null,null,null,null,null,null,null,null,null,null,null,null,null,null,null,null,null,null,null,null,null,null,null,null,null,null,null,null,null,null,null,null,null,null,null,null,null,null,null,null,null,null,null,null,null,null,null,null,null,null,null,null,null,null,null,null,null,null,null,null,null,null,null,null,null,null,null,"2032-04-29",null,48333]
[null,null,null,null,null,null,null,null,null,null,null,null,null,null,null,null,null,null,null,null,null,null,null,null,null,null,null,null,null,null,null,null,null,null,null,null,null,null,null,null,null,null,null,null,null,null,null,null,null,null,null,null,null,null,null,null,null,null,null,null,null,null,null,null,null,null,null,null,null,null,null,null,null,null,null,null,null,null,null,null,null,null,null,null,null,null,null,null,null,null,null,null,null,null,null,null,null,null,null,null,null,null,null,null,null,null,null,null,null,null,null,null,null,null,null,null,null,null,null,null,null,null,null,null,null,null,null,null,null,null,null,null,null,null,null,null,null,null,null,null,"2032-05-03",null,48337]
[null,null,null,null,null,null,null,null,null,null,null,null,null,null,null,null,null,null,null,null,null,null,null,null,null,null,null,null,null,null,null,null,null,null,null,null,null,null,null,null,null,null,null,null,null,null,null,null,null,null,null,null,null,null,null,null,null,null,null,null,null,null,null,null,null,null,null,null,null,null,null,null,null,null,null,null,null,null,null,null,null,null,null,null,null,null,null,null,null,null,null,null,null,null,null,null,null,null,null,null,null,null,null,null,null,null,null,null,null,null,null,null,null,null,null,null,null,null,null,null,null,null,null,null,null,null,null,null,null,null,null,null,null,null,null,null,null,null,null,null,"2032-05-04",null,48338]
[null,null,null,null,null,null,null,null,null,null,null,null,null,null,null,null,null,null,null,null,null,null,null,null,null,null,null,null,null,null,null,null,null,null,null,null,null,null,null,null,null,null,null,null,null,null,null,null,null,null,null,null,null,null,null,null,null,null,null,null,null,null,null,null,null,null,null,null,null,null,null,null,null,null,null,null,null,null,null,null,null,null,null,null,null,null,null,null,null,null,null,null,null,null,null,null,null,null,null,null,null,null,null,null,null,null,null,null,null,null,null,null,null,null,null,null,null,null,null,null,null,null,null,null,null,null,null,null,null,null,null,null,null,null,null,null,null,null,null,null,"2032-05-05",null,48339]
[null,null,null,null,null,null,null,null,null,null,null,null,null,null,null,null,null,null,null,null,null,null,null,null,null,null,null,null,null,null,null,null,null,null,null,null,null,null,null,null,null,null,null,null,null,null,null,null,null,null,null,null,null,null,null,null,null,null,null,null,null,null,null,null,null,null,null,null,null,null,null,null,null,null,null,null,null,null,null,null,null,null,null,null,null,null,null,null,null,null,null,null,null,null,null,null,null,null,null,null,null,null,null,null,null,null,null,null,null,null,null,null,null,null,null,null,null,null,null,null,null,null,null,null,null,null,null,null,null,null,null,null,null,null,null,null,null,null,null,null,"2032-07-19",null,48414]
[null,null,null,null,null,null,null,null,null,null,null,null,null,null,null,null,null,null,null,null,null,null,null,null,null,null,null,null,null,null,null,null,null,null,null,null,null,null,null,null,null,null,null,null,null,null,null,null,null,null,null,null,null,null,null,null,null,null,null,null,null,null,null,null,null,null,null,null,null,null,null,null,null,null,null,null,null,null,null,null,null,null,null,null,null,null,null,null,null,null,null,null,null,null,null,null,null,null,null,null,null,null,null,null,null,null,null,null,null,null,null,null,null,null,null,null,null,null,null,null,null,null,null,null,null,null,null,null,null,null,null,null,null,null,null,null,null,null,null,null,"2032-08-11",null,48437]
[null,null,null,null,null,null,null,null,null,null,null,null,null,null,null,null,null,null,null,null,null,null,null,null,null,null,null,null,null,null,null,null,null,null,null,null,null,null,null,null,null,null,null,null,null,null,null,null,null,null,null,null,null,null,null,null,null,null,null,null,null,null,null,null,null,null,null,null,null,null,null,null,null,null,null,null,null,null,null,null,null,null,null,null,null,null,null,null,null,null,null,null,null,null,null,null,null,null,null,null,null,null,null,null,null,null,null,null,null,null,null,null,null,null,null,null,null,null,null,null,null,null,null,null,null,null,null,null,null,null,null,null,null,null,null,null,null,null,null,null,"2032-09-20",null,48477]
[null,null,null,null,null,null,null,null,null,null,null,null,null,null,null,null,null,null,null,null,null,null,null,null,null,null,null,null,null,null,null,null,null,null,null,null,null,null,null,null,null,null,null,null,null,null,null,null,null,null,null,null,null,null,null,null,null,null,null,null,null,null,null,null,null,null,null,null,null,null,null,null,null,null,null,null,null,null,null,null,null,null,null,null,null,null,null,null,null,null,null,null,null,null,null,null,null,null,null,null,null,null,null,null,null,null,null,null,null,null,null,null,null,null,null,null,null,null,null,null,null,null,null,null,null,null,null,null,null,null,null,null,null,null,null,null,null,null,null,null,"2032-09-21",null,48478]
[null,null,null,null,null,null,null,null,null,null,null,null,null,null,null,null,null,null,null,null,null,null,null,null,null,null,null,null,null,null,null,null,null,null,null,null,null,null,null,null,null,null,null,null,null,null,null,null,null,null,null,null,null,null,null,null,null,null,null,null,null,null,null,null,null,null,null,null,null,null,null,null,null,null,null,null,null,null,null,null,null,null,null,null,null,null,null,null,null,null,null,null,null,null,null,null,null,null,null,null,null,null,null,null,null,null,null,null,null,null,null,null,null,null,null,null,null,null,null,null,null,null,null,null,null,null,null,null,null,null,null,null,null,null,null,null,null,null,null,null,"2032-09-22",null,48479]
[null,null,null,null,null,null,null,null,null,null,null,null,null,null,null,null,null,null,null,null,null,null,null,null,null,null,null,null,null,null,null,null,null,null,null,null,null,null,null,null,null,null,null,null,null,null,null,null,null,null,null,null,null,null,null,null,null,null,null,null,null,null,null,null,null,null,null,null,null,null,null,null,null,null,null,null,null,null,null,null,null,null,null,null,null,null,null,null,null,null,null,null,null,null,null,null,null,null,null,null,null,null,null,null,null,null,null,null,null,null,null,null,null,null,null,null,null,null,null,null,null,null,null,null,null,null,null,null,null,null,null,null,null,null,null,null,null,null,null,null,"2032-10-11",null,48498]
[null,null,null,null,null,null,null,null,null,null,null,null,null,null,null,null,null,null,null,null,null,null,null,null,null,null,null,null,null,null,null,null,null,null,null,null,null,null,null,null,null,null,null,null,null,null,null,null,null,null,null,null,null,null,null,null,null,null,null,null,null,null,null,null,null,null,null,null,null,null,null,null,null,null,null,null,null,null,null,null,null,null,null,null,null,null,null,null,null,null,null,null,null,null,null,null,null,null,null,null,null,null,null,null,null,null,null,null,null,null,null,null,null,null,null,null,null,null,null,null,null,null,null,null,null,null,null,null,null,null,null,null,null,null,null,null,null,null,null,null,"2032-11-03",null,48521]
[null,null,null,null,null,null,null,null,null,null,null,null,null,null,null,null,null,null,null,null,null,null,null,null,null,null,null,null,null,null,null,null,null,null,null,null,null,null,null,null,null,null,null,null,null,null,null,null,null,null,null,null,null,null,null,null,null,null,null,null,null,null,null,null,null,null,null,null,null,null,null,null,null,null,null,null,null,null,null,null,null,null,null,null,null,null,null,null,null,null,null,null,null,null,null,null,null,null,null,null,null,null,null,null,null,null,null,null,null,null,null,null,null,null,null,null,null,null,null,null,null,null,null,null,null,null,null,null,null,null,null,null,null,null,null,null,null,null,null,null,"2032-11-23",null,48541]
[null,null,null,null,null,null,null,null,null,null,null,null,null,null,null,null,null,null,null,null,null,null,null,null,null,null,null,null,null,null,null,null,null,null,null,null,null,null,null,null,null,null,null,null,null,null,null,null,null,null,null,null,null,null,null,null,null,null,null,null,null,null,null,null,null,null,null,null,null,null,null,null,null,null,null,null,null,null,null,null,null,null,null,null,null,null,null,null,null,null,null,null,null,null,null,null,null,null,null,null,null,null,null,null,null,null,null,null,null,null,null,null,null,null,null,null,null,null,null,null,null,null,null,null,null,null,null,null,null,null,null,null,null,null,null,null,null,null,null,null,"2032-12-29",null,48577]
[null,null,null,null,null,null,null,null,null,null,null,null,null,null,null,null,null,null,null,null,null,null,null,null,null,null,null,null,null,null,null,null,null,null,null,null,null,null,null,null,null,null,null,null,null,null,null,null,null,null,null,null,null,null,null,null,null,null,null,null,null,null,null,null,null,null,null,null,null,null,null,null,null,null,null,null,null,null,null,null,null,null,null,null,null,null,null,null,null,null,null,null,null,null,null,null,null,null,null,null,null,null,null,null,null,null,null,null,null,null,null,null,null,null,null,null,null,null,null,null,null,null,null,null,null,null,null,null,null,null,null,null,null,null,null,null,null,null,null,null,"2032-12-30",null,48578]
[null,null,null,null,null,null,null,null,null,null,null,null,null,null,null,null,null,null,null,null,null,null,null,null,null,null,null,null,null,null,null,null,null,null,null,null,null,null,null,null,null,null,null,null,null,null,null,null,null,null,null,null,null,null,null,null,null,null,null,null,null,null,null,null,null,null,null,null,null,null,null,null,null,null,null,null,null,null,null,null,null,null,null,null,null,null,null,null,null,null,null,null,null,null,null,null,null,null,null,null,null,null,null,null,null,null,null,null,null,null,null,null,null,null,null,null,null,null,null,null,null,null,null,null,null,null,null,null,null,null,null,null,null,null,null,null,null,null,null,null,"2032-12-31",null,48579]

{"sheet":"自主点検シート (例)","index":1,"n_rows":226,"n_cols":143,"rows_kept":226,"cut":false,"hidden":false,"merged":[[66,3,66,77],[62,0,62,2],[62,3,62,74],[63,0,63,2],[63,3,63,74],[64,0,64,2],[64,3,64,74],[61,0,61,2],[61,3,61,74],[53,13,53,18],[53,19,53,21],[53,22,53,24],[53,64,53,67],[54,2,55,42],[55,62,55,74],[65,0,65,2],[65,3,65,74],[52,0,53,12],[52,13,52,18],[52,19,52,21],[52,22,52,24],[52,64,52,67],[56,0,57,74],[58,0,58,74],[59,0,59,74],[60,0,60,2],[60,3,60,74],[47,62,47,64],[47,65,47,67],[47,68,47,70],[47,71,47,73],[48,19,48,24],[48,56,50,58],[48,59,50,61],[48,62,50,64],[48,65,50,67],[48,68,50,70],[48,71,50,73],[49,19,49,24],[50,19,50,24],[47,0,50,1],[47,2,48,12],[47,13,50,15],[47,16,50,18],[47,19,47,24],[47,56,47,58],[44,19,44,24],[44,56,46,58],[44,59,46,61],[43,0,46,1],[47,59,47,61],[49,2,50,12],[43,56,43,58],[43,59,43,61],[43,62,43,64],[43,65,43,67],[43,68,43,70],[43,71,43,73],[40,68,42,70],[40,71,42,73],[41,2,42,12],[41,19,41,24],[42,19,42,24],[43,2,44,12],[43,13,46,15],[43,16,46,18],[43,19,43,24],[44,71,46,73],[45,2,46,12],[45,19,45,24],[46,19,46,24],[44,62,46,64],[44,65,46,67],[44,68,46,70],[39,62,39,64],[39,65,39,67],[39,68,39,70],[39,71,39,73],[40,19,40,24],[40,56,42,58],[40,59,42,61],[40,62,42,64],[40,65,42,67],[39,0,42,1],[39,2,40,12],[39,13,42,15],[39,16,42,18],[39,19,39,24],[39,56,39,58],[36,19,36,24],[36,56,38,58],[36,59,38,61],[35,0,38,1],[39,59,39,61],[35,56,35,58],[35,59,35,61],[35,62,35,64],[35,65,35,67],[35,68,35,70],[35,71,35,73],[32,68,34,70],[32,71,34,73],[33,2,34,12],[33,19,33,24],[34,19,34,24],[35,2,36,12],[35,13,38,15],[35,16,38,18],[35,19,35,24],[36,71,38,73],[37,2,38,12],[37,19,37,24],[38,19,38,24],[36,62,38,64],[36,65,38,67],[36,68,38,70],[31,62,31,64],[31,65,31,67],[31,68,31,70],[31,71,31,73],[32,19,32,24],[32,56,34,58],[32,59,34,61],[32,62,34,64],[32,65,34,67],[31,0,34,1],[31,2,32,12],[31,13,34,15],[31,16,34,18],[31,19,31,24],[31,56,31,58],[28,19,28,24],[28,56,30,58],[28,59,30,61],[27,0,30,1],[31,59,31,61],[27,56,27,58],[27,59,27,61],[27,62,27,64],[27,65,27,67],[27,68,27,70],[27,71,27,73],[24,68,26,70],[24,71,26,73],[25,2,26,12],[25,19,25,24],[26,19,26,24],[27,2,28,12],[27,13,30,15],[27,16,30,18],[27,19,27,24],[28,71,30,73],[29,2,30,12],[29,19,29,24],[30,19,30,24],[28,62,30,64],[28,65,30,67],[28,68,30,70],[23,62,23,64],[23,65,23,67],[23,68,23,70],[23,71,23,73],[24,19,24,24],[24,56,26,58],[24,59,26,61],[24,62,26,64],[24,65,26,67],[23,0,26,1],[23,2,24,12],[23,13,26,15],[23,16,26,18],[23,19,23,24],[23,56,23,58],[20,19,20,24],[20,56,22,58],[20,59,22,61],[19,0,22,1],[23,59,23,61],[19,56,19,58],[19,59,19,61],[19,62,19,64],[19,65,19,67],[19,68,19,70],[19,71,19,73],[16,68,18,70],[16,71,18,73],[17,2,18,12],[17,19,17,24],[18,19,18,24],[19,2,20,12],[19,13,22,15],[19,16,22,18],[19,19,19,24],[20,71,22,73],[21,2,22,12],[21,19,21,24],[22,19,22,24],[20,62,22,64],[20,65,22,67],[20,68,22,70],[15,59,15,61],[15,62,15,64],[15,65,15,67],[15,68,15,70],[15,71,15,73],[16,19,16,24],[16,56,18,58],[16,59,18,61],[16,62,18,64],[16,65,18,67],[13,2,14,12],[13,19,13,24],[14,19,14,24],[15,0,18,1],[15,2,16,12],[15,13,18,15],[15,16,18,18],[15,19,15,24],[15,56,15,58],[11,0,14,1],[11,2,12,12],[11,13,14,15],[11,16,14,18],[12,19,12,24],[12,56,14,58],[12,59,14,61],[12,62,14,64],[12,65,14,67],[12,68,14,70],[11,19,11,24],[11,56,11,58],[12,71,14,73],[9,98,9,105],[10,2,10,12],[10,56,10,58],[10,59,10,61],[10,62,10,64],[10,65,10,67],[10,68,10,70],[10,71,10,73],[10,98,11,105],[11,59,11,61],[8,62,9,64],[8,65,9,67],[8,68,9,70],[11,62,11,64],[11,65,11,67],[11,68,11,70],[11,71,11,73],[9,0,10,1],[9,2,9,12],[9,13,10,15],[9,16,10,18],[9,19,10,24],[3,54,4,55],[3,98,3,100],[3,101,3,103],[7,0,8,24],[7,25,8,55],[7,56,9,58],[7,59,7,64],[7,65,7,70],[7,71,9,73],[8,59,9,61],[3,42,4,43],[3,44,4,45],[3,46,4,47],[3,48,4,49],[3,50,4,51],[3,52,4,53],[3,0,4,14],[3,15,4,28],[3,29,4,32],[3,33,4,34],[3,35,4,38],[3,40,4,41],[2,46,2,47],[2,48,2,49],[2,50,2,51],[2,52,2,53],[2,54,2,55],[2,98,2,103],[0,0,0,74],[1,0,1,38],[1,40,1,55],[1,76,2,91],[2,0,2,14],[2,15,2,28],[2,29,2,38],[2,40,2,41],[2,42,2,43],[2,44,2,45]]}
["雇用調整助成金　休業・教育訓練　および所定外労働時間　自主点検シート",null,null,null,null,null,null,null,null,null,null,null,null,null,null,null,null,null,null,null,null,null,null,null,null,null,null,null,null,null,null,null,null,null,null,null,null,null,null,null,null,null,null,null,null,null,null,null,null,null,null,null,null,null,null,null,null,null,null,null,null,null,null,null,null,null,null,null,null,null,null,null,null,null,null,null,null,null,null,null,null,null,null,null,null,null,null,null,null,null,null,null,null,null,null,null,null,null,null,null,null,null,null,null,null,null,null,null,null,null,null,null,null,null,null,null,null,null,null,null,null,null,null,null,null,null,null,null,null,null,null,null,null,null,null,null,null,null,null,null,"R14年度まで入力済"]
["①申請に関する情報",null,null,null,null,null,null,null,null,null,null,null,null,null,null,null,null,null,null,null,null,null,null,null,null,null,null,null,null,null,null,null,null,null,null,null,null,null,null,null,"②事業所における所定休日",null,null,null,null,null,null,null,null,null,null,null,null,null,null,null,null,null,null,null,null,null,null,null,null,null,null,null,null,null,null,null,null,null,null,null,null,null,null,null,null,null,null,null,null,null,null,null,null,null,null,null,null,null,"ﾌﾟﾙﾀﾞｳﾝ",null,null,null,null,null,null,null,null,null,null,null,null,null,null,null,null,null,null,null,null,null,null,null,null,null,null,null,null,null,null,null,null,null,null,null,null,null,null,null,null,null,null,null,null,null,"2023-04-29",null,45045]
["適用事業所番号",null,null,null,null,null,null,null,null,null,null,null,null,null,null,"事業所名",null,null,null,null,null,null,null,null,null,null,null,null,null,"点検期間",null,null,null,null,null,null,null,null,null,null,"月",null,"火",null,"水",null,"木",null,"金",null,"土",null,"日",null,"祝",null,null,null,null,null,null,null,null,null,null,null,null,null,null,null,null,null,null,null,null,null,null,null,null,null,null,null,null,null,null,null,null,null,null,null,null,null,null,null,null,null,null,null,"集計末尾列",null,null,null,null,null,null,null,null,null,null,null,null,null,null,null,null,null,null,null,null,null,null,null,null,null,null,null,null,null,null,null,null,null,null,null,null,null,null,null,null,null,"2023-05-03",null,45049]
["2399-999999-9",null,null,null,null,null,null,null,null,null,null,null,null,null,null,"愛知労働工業株式会社",null,null,null,null,null,null,null,null,null,null,null,null,null,"2024-05-01",null,null,null,"～",null,"2024-05-31",null,null,null,null,null,null,null,null,null,null,null,null,null,null,"○",null,"○",null,"○",null,null,null,null,null,null,null,null,null,null,null,null,null,null,null,null,null,null,null,null,null,null,null,null,null,null,null,null,null,null,null,null,null,null,null,null,null,null,null,"○",null,{"$f":"IF(AD4=\"\",\"\",EDATE(AD4,1)-1)","v":"2024-05-31"},null,{"$f":"\"$Z$\"","v":"$Z$"},null,null,{"$f":"LEFT(ADDRESS(1,MATCH($AJ$4,$A$10:$BD$10,1),1),LEN(ADDRESS(1,MATCH($AJ$4,$A$10:$BD$10,1),1))-1)","v":"$BD$"},null,null,null,null,null,null,null,null,null,null,null,null,null,null,null,null,null,null,null,null,null,null,null,null,null,null,null,null,null,null,null,null,null,null,null,null,null,null,"2023-05-04",null,45050]
[null,null,null,null,null,null,null,null,null,null,null,null,null,null,null,null,null,null,null,null,null,null,null,null,null,null,null,null,null,null,null,null,null,null,null,null,null,null,null,null,null,null,null,null,null,null,null,null,null,null,null,null,null,null,null,null,null,null,null,null,null,null,null,null,null,null,null,null,null,null,null,null,null,null,null,null,null,null,null,null,null,null,null,null,null,null,null,null,null,null,null,null,null,null,"△",null,null,null,null,null,null,null,null,null,null,null,null,{"$f":"ROW(Z12)","v":12},"～",{"$f":"ROW(Z48)","v":48},null,null,null,null,null,null,null,null,null,null,null,null,null,null,null,null,null,null,null,null,null,null,null,null,null,null,null,null,null,null,"2023-05-05",null,45051]
[null,null,null,null,null,null,null,null,null,null,null,null,null,null,null,null,null,null,null,null,null,null,null,null,null,null,null,null,null,null,null,null,null,null,null,null,null,null,null,null,null,null,null,null,null,null,null,null,null,null,null,null,null,null,null,null,null,null,null,null,null,null,null,null,null,null,null,null,null,null,null,null,null,null,null,null,null,null,null,null,null,null,null,null,null,null,null,null,null,null,null,null,null,null,null,null,null,null,null,null,null,null,null,null,null,null,null,null,null,null,null,null,null,null,null,null,null,null,null,null,null,null,null,null,null,null,null,null,null,null,null,null,null,null,null,null,null,null,null,null,"2023-07-17",null,45124]
[null,null,null,null,null,null,null,null,null,null,null,null,null,null,null,null,null,null,null,null,null,null,null,null,null,null,null,null,null,null,null,null,null,null,null,null,null,null,null,null,null,null,null,null,null,null,null,null,null,null,null,null,null,null,null,null,null,null,null,null,null,null,null,null,null,null,null,null,null,null,null,null,null,null,null,null,null,null,null,null,null,null,null,null,null,null,null,null,null,null,null,null,null,null,null,null,null,null,null,null,null,null,null,null,null,null,null,null,null,null,null,null,null,null,null,null,null,null,null,null,null,null,null,null,null,null,null,null,null,null,null,null,null,null,null,null,null,null,null,null,"2023-08-11",null,45149]
["④休業等対象者",null,null,null,null,null,null,null,null,null,null,null,null,null,null,null,null,null,null,null,null,null,null,null,null,"⑤休業・教育訓練と所定外労働時間の日別内訳",null,null,null,null,null,null,null,null,null,null,null,null,null,null,null,null,null,null,null,null,null,null,null,null,null,null,null,null,null,null,"所定\n労働\n日数",null,null,"休業",null,null,null,null,null,"教育",null,null,null,null,null,"所定外\n労働\n時間",null,null,null,null,null,null,null,null,null,null,null,null,null,null,null,null,null,null,null,null,null,null,null,null,null,null,null,null,null,null,null,null,null,null,null,null,null,null,null,null,null,null,null,null,null,null,null,null,null,null,null,null,null,null,null,null,null,null,null,null,null,null,null,null,null,null,null,null,"2023-09-18",null,45187]
[null,null,null,null,null,null,null,null,null,null,null,null,null,null,null,null,null,null,null,null,null,null,null,null,null,null,null,null,null,null,null,null,null,null,null,null,null,null,null,null,null,null,null,null,null,null,null,null,null,null,null,null,null,null,null,null,null,null,null,"全日",null,null,"短時間",null,null,"全日",null,null,"短時間",null,null,null,null,null,null,null,null,null,null,null,null,null,null,null,null,null,null,null,null,null,null,null,null,null,"公",null,null,null,null,null,null,null,null,null,null,null,null,{"$f":"IFERROR(IF(HLOOKUP(Z$11,$AO$3:$BD$5,2,FALSE)=\"○\",\"公\",IF($BC$4=\"○\",IF(COUNTIF($EK:$EK,Z$10)=1,\"公\",\"\"),\"\")),\"\")","v":""},"","公","公","公","公","","","","","公","公","","","","","","公","公","","","","","","公","公","","","","","",null,null,"2023-09-23",null,45192]
["№",null,"氏名",null,null,null,null,null,null,null,null,null,null,"一日の所定労働時間",null,null,"賃金形態",null,null,"項目",null,null,null,null,null,{"$f":"IF($AD$4=\"\",\"\",$AD$4)","v":"2024-05-01"},{"$f":"IFERROR(IF($AD$4=\"\",\"\",IF(Z10>=$AJ$4,\"\",Z10+1)),\"\")","v":"2024-05-02"},"2024-05-03","2024-05-04","2024-05-05","2024-05-06","2024-05-07","2024-05-08","2024-05-09","2024-05-10","2024-05-11","2024-05-12","2024-05-13","2024-05-14","2024-05-15","2024-05-16","2024-05-17","2024-05-18","2024-05-19","2024-05-20","2024-05-21","2024-05-22","2024-05-23","2024-05-24","2024-05-25","2024-05-26","2024-05-27","2024-05-28","2024-05-29","2024-05-30","2024-05-31",null,null,null,null,null,null,null,null,null,null,null,null,null,null,null,null,null,null,null,null,null,null,null,null,null,null,null,null,null,null,null,null,null,null,null,null,null,null,null,null,null,null,"助成金支給番号",null,null,null,null,null,null,null,null,{"$f":"Z10","v":"2024-05-01"},"2024-05-02","2024-05-03","2024-05-04","2024-05-05","2024-05-06","2024-05-07","2024-05-08","2024-05-09","2024-05-10","2024-05-11","2024-05-12","2024-05-13","2024-05-14","2024-05-15","2024-05-16","2024-05-17","2024-05-18","2024-05-19","2024-05-20","2024-05-21","2024-05-22","2024-05-23","2024-05-24","2024-05-25","2024-05-26","2024-05-27","2024-05-28","2024-05-29","2024-05-30","2024-05-31",null,null,"2023-10-09",null,45208]
[null,null,"備考",null,null,null,null,null,null,null,null,null,null,null,null,null,null,null,null,null,null,null,null,null,null,{"$f":"TEXT(Z10,\"aaa\")","v":"水"},"木","金","土","日","月","火","水","木","金","土","日","月","火","水","木","金","土","日","月",{"$f":"TEXT(AT10,\"aaa\")","v":"火"},{"$f":"TEXT(AU10,\"aaa\")","v":"水"},{"$f":"TEXT(AV10,\"aaa\")","v":"木"},"金","土","日","月","火","水","木","金","(日)",null,null,"(日)",null,null,"(h)",null,null,"(日)",null,null,"(h)",null,null,"(h)",null,null,null,null,null,null,null,null,null,null,null,null,null,null,null,null,null,null,null,null,null,null,null,null,null,null,null,null,null,null,null,null,null,null,null,null,null,null,null,null,null,null,null,null,null,null,null,null,null,null,null,null,null,null,null,null,null,null,null,null,null,null,null,null,null,null,null,null,"2023-11-03",null,45233]
[1,null,"労働　太郎",null,null,null,null,null,null,null,null,null,null,8,null,null,"月給",null,null,"所定休日",null,null,null,null,null,"","","公","公","公","公",null,"","","","公","公","","","","","","公","公","","","","","","公","公","","","","","",{"$f":"$AJ$4-$AD$4+1-(COUNTIF(INDIRECT(BY12),\"公\"))","v":21},null,null,null,null,null,null,null,null,null,null,null,null,null,null,null,null,null,null,null,{"$f":"$CU$4&ROW(BY12)&\":\"&$CX$4&ROW(BY12)","v":"$Z$12:$BD$12"},null,null,null,null,null,null,null,null,null,null,null,null,null,null,null,null,null,"月給",null,null,null,null,null,null,null,null,null,null,null,null,null,null,null,null,null,null,null,null,null,null,null,null,null,null,null,null,null,null,null,null,null,null,null,null,null,null,null,null,null,null,null,null,null,"2023-11-23",null,45253]
[null,null,null,null,null,null,null,null,null,null,null,null,null,null,null,null,null,null,null,"休業実績",null,null,null,null,null,1,null,2,null,null,null,3,1,"休","休",null,"休",null,null,null,null,1,null,null,null,null,null,null,null,null,null,null,null,null,null,null,null,null,null,{"$f":"COUNTIFS(Z12:BD12,\"\",$Z13:$BD13,\"休\")","v":2},null,null,{"$f":"SUMIFS($Z13:$BD13,$Z12:$BD12,\"<>\"&\"公\")","v":6},null,null,{"$f":"COUNTIFS(Z12:BD12,\"\",$Z14:$BD14,\"教\")","v":4},null,null,{"$f":"SUMIFS($Z14:$BD14,$Z12:$BD12,\"<>\"&\"公\")","v":9.5},null,null,{"$f":"FLOOR(SUM($Z15:$BD15),0.5)","v":16.5},null,null,null,null,null,null,null,null,null,null,null,null,null,null,null,null,null,null,null,null,null,null,"日給",null,null,null,null,null,null,null,null,null,null,null,"休",{"$f":"IF(OR(Z12=\"公\",Z13=\"\"),\"\",\"A\")","v":"A"},{"$f":"IF(OR(AA12=\"公\",AA13=\"\"),\"\",\"A\")","v":""},"","","","","A","A","A","A","","","","","","","A","","","","","","","","","","","","","","",null,null,"2023-12-29",null,45289]
[null,null,"a工場",null,null,null,null,null,null,null,null,null,null,null,null,null,null,null,null,"教育実績",null,null,null,null,null,null,null,null,null,null,null,null,null,null,null,null,null,3,3.5,"教","教",null,null,null,null,null,"教","教",3,null,null,null,null,null,null,null,null,null,null,null,null,null,null,null,null,null,null,null,null,null,null,null,null,null,null,null,null,null,null,null,null,null,null,null,null,null,null,null,null,null,null,null,null,null,"時給",null,null,null,null,null,null,null,null,null,null,null,"教",{"$f":"IF(OR(Z12=\"公\",Z14=\"\"),\"\",\"B\")","v":""},{"$f":"IF(OR(AA12=\"公\",AA14=\"\"),\"\",\"B\")","v":""},"","","","","","","","","","","B","B","B","B","","","","","","B","B","B","","","","","","","",null,null,"2023-12-30",null,45290]
[null,null,null,null,null,null,null,null,null,null,null,null,null,null,null,null,null,null,null,"残業時間",null,null,null,null,null,null,null,null,null,null,null,null,2,null,null,4,null,null,2,null,null,null,null,null,2,1.5,null,null,null,null,null,0.5,1,2.5,1,null,null,null,null,null,null,null,null,null,null,null,null,null,null,null,null,null,null,null,null,null,null,null,null,null,null,null,null,null,null,null,null,null,null,null,null,null,null,null,"その他",null,null,null,null,null,null,null,null,null,null,null,null,null,null,null,null,null,null,null,null,null,null,null,null,null,null,null,null,null,null,null,null,null,null,null,null,null,null,null,null,null,null,null,null,null,"2023-12-31",null,45291]
[2,null,"愛知　花子",null,null,null,null,null,null,null,null,null,null,6.5,null,null,"日給",null,null,"所定休日",null,null,null,null,null,"","","公","公","公","公","",null,"",null,"公","公","","","","","","公","公","","","","","","公","公","","","","","",{"$f":"$AJ$4-$AD$4+1-(COUNTIF($Z16:$BD16,\"公\"))","v":21},null,null,null,null,null,null,null,null,null,null,null,null,null,null,null,null,null,null,null,{"$f":"$CU$4&ROW(BY16)&\":\"&$CX$4&ROW(BY16)","v":"$Z$16:$BD$16"},null,null,null,null,null,null,null,null,null,null,null,null,null,null,null,null,null,null,null,null,null,null,null,null,null,null,null,null,null,null,null,null,null,null,null,null,null,null,null,null,null,null,null,null,null,null,null,null,null,null,null,null,null,null,null,null,null,null,null,null,null,null,null,"2024-01-01",null,45292]
[null,null,null,null,null,null,null,null,null,null,null,null,null,null,null,null,null,null,null,"休業実績",null,null,null,null,null,null,"休",null,null,null,null,null,"休",3,3.5,null,null,null,"休",null,null,null,null,null,null,null,null,null,null,null,null,null,null,null,null,null,null,null,null,{"$f":"COUNTIFS(Z16:BD16,\"\",$Z17:$BD17,\"休\")","v":3},null,null,{"$f":"SUMIFS($Z17:$BD17,$Z16:$BD16,\"<>\"&\"公\")","v":6.5},null,null,{"$f":"COUNTIFS(Z16:BD16,\"\",$Z18:$BD18,\"教\")","v":2},null,null,{"$f":"SUMIFS($Z18:$BD18,$Z16:$BD16,\"<>\"&\"公\")","v":3},null,null,{"$f":"FLOOR(SUM($Z19:$BD19),0.5)","v":3},null,null,null,null,null,null,null,null,null,null,null,null,null,null,null,null,null,null,null,null,null,null,"休",null,null,null,null,null,null,null,null,null,null,null,"休",{"$f":"IF(OR(Z16=\"公\",Z17=\"\"),\"\",\"A\")","v":""},"A","","","","","","A","A","A","","","","A","","","","","","","","","","","","","","","","","",null,null,"2024-01-02",null,45293]
[null,null,"ｂ工場",null,null,null,null,null,null,null,null,null,null,null,null,null,null,null,null,"教育実績",null,null,null,null,null,null,null,null,null,null,null,null,null,null,null,null,null,3,null,"教","教",null,null,null,null,null,null,null,null,null,null,null,null,null,null,null,null,null,null,null,null,null,null,null,null,null,null,null,null,null,null,null,null,null,null,null,null,null,null,null,null,null,null,null,null,null,null,null,null,null,null,null,null,null,1,null,null,null,null,null,null,null,null,null,null,null,"教",{"$f":"IF(OR(Z16=\"公\",Z18=\"\"),\"\",\"B\")","v":""},"","","","","","","","","","","","B","","B","B","","","","","","","","","","","","","","","",null,null,"2024-01-03",null,45294]
[null,null,null,null,null,null,null,null,null,null,null,null,null,null,null,null,null,null,null,"残業時間",null,null,null,null,null,null,null,null,null,null,null,null,null,null,null,null,null,null,null,null,null,null,null,null,2,1,null,null,null,null,null,null,null,null,null,null,null,null,null,null,null,null,null,null,null,null,null,null,null,null,null,null,null,null,null,null,null,null,null,null,null,null,null,null,null,null,null,null,null,null,null,null,null,null,1.5,null,null,null,null,null,null,null,null,null,null,null,null,null,null,null,null,null,null,null,null,null,null,null,null,null,null,null,null,null,null,null,null,null,null,null,null,null,null,null,null,null,null,null,null,null,"2024-01-08",null,45299]
[3,null,"雇用　次郎",null,null,null,null,null,null,null,null,null,null,6,null,null,"時給",null,null,"所定休日",null,null,null,null,null,"","","公","公","公","公","","公","","","公","公","","","公","","","公","公","","","公","","","公","公","","","","","",{"$f":"$AJ$4-$AD$4+1-(COUNTIF($Z20:$BD20,\"公\"))","v":18},null,null,null,null,null,null,null,null,null,null,null,null,null,null,null,null,null,null,null,{"$f":"$CU$4&ROW(BY20)&\":\"&$CX$4&ROW(BY20)","v":"$Z$20:$BD$20"},null,null,null,null,null,null,null,null,null,null,null,null,null,null,null,null,null,2,null,null,null,null,null,null,null,null,null,null,null,null,null,null,null,null,null,null,null,null,null,null,null,null,null,null,null,null,null,null,null,null,null,null,null,null,null,null,null,null,null,null,null,null,null,"2024-02-11",null,45333]
[null,null,null,null,null,null,null,null,null,null,null,null,null,null,null,null,null,null,null,"休業実績",null,null,null,null,null,3,null,null,null,null,null,2,null,"休",null,null,null,null,2,null,null,2,null,null,2,"休",null,null,null,null,null,null,null,null,null,null,null,null,null,{"$f":"COUNTIFS(Z20:BD20,\"\",$Z21:$BD21,\"休\")","v":2},null,null,{"$f":"SUMIFS($Z21:$BD21,$Z20:$BD20,\"<>\"&\"公\")","v":11},null,null,{"$f":"COUNTIFS(Z20:BD20,\"\",$Z22:$BD22,\"教\")","v":1},null,null,{"$f":"SUMIFS($Z22:$BD22,$Z20:$BD20,\"<>\"&\"公\")","v":0},null,null,{"$f":"FLOOR(SUM($Z23:$BD23),0.5)","v":0},null,null,null,null,null,null,null,null,null,null,null,null,null,null,null,null,null,null,null,null,null,null,2.5,null,null,null,null,null,null,null,null,null,null,null,"休",{"$f":"IF(OR(Z20=\"公\",Z21=\"\"),\"\",\"A\")","v":"A"},"","","","","","A","","A","","","","","A","","","A","","","A","A","","","","","","","","","","",null,null,"2024-02-12",null,45334]
[null,null,"5/23退職願受理",null,null,null,null,null,null,null,null,null,null,null,null,null,null,null,null,"教育実績",null,null,null,null,null,null,null,null,null,null,null,null,null,null,null,null,null,null,null,null,"教",null,null,null,null,null,null,null,null,null,null,null,null,null,null,null,null,null,null,null,null,null,null,null,null,null,null,null,null,null,null,null,null,null,null,null,null,null,null,null,null,null,null,null,null,null,null,null,null,null,null,null,null,null,3,null,null,null,null,null,null,null,null,null,null,null,"教",{"$f":"IF(OR(Z20=\"公\",Z22=\"\"),\"\",\"B\")","v":""},"","","","","","","","","","","","","","","B","","","","","","","","","","","","","","","",null,null,"2024-02-23",null,45345]
[null,null,null,null,null,null,null,null,null,null,null,null,null,null,null,null,null,null,null,"残業時間",null,null,null,null,null,null,null,null,null,null,null,null,null,null,null,null,null,null,null,null,null,null,null,null,null,null,null,null,null,null,null,null,null,null,null,null,null,null,null,null,null,null,null,null,null,null,null,null,null,null,null,null,null,null,null,null,null,null,null,null,null,null,null,null,null,null,null,null,null,null,null,null,null,null,3.5,null,null,null,null,null,null,null,null,null,null,null,null,null,null,null,null,null,null,null,null,null,null,null,null,null,null,null,null,null,null,null,null,null,null,null,null,null,null,null,null,null,null,null,null,null,"2024-03-20",null,45371]
[4,null,"安定　和子",null,null,null,null,null,null,null,null,null,null,6.5,null,null,"日給",null,null,"所定休日",null,null,null,null,null,"","","公","公","公","公","","","","","公","公","","","","","公","公","公","","","","","","公","公","","","","","",{"$f":"$AJ$4-$AD$4+1-(COUNTIF($Z24:$BD24,\"公\"))","v":20},null,null,null,null,null,null,null,null,null,null,null,null,null,null,null,null,null,null,null,{"$f":"$CU$4&ROW(BY24)&\":\"&$CX$4&ROW(BY24)","v":"$Z$24:$BD$24"},null,null,null,null,null,null,null,null,null,null,null,null,null,null,null,null,null,4,null,null,null,null,null,null,null,null,null,null,null,null,null,null,null,null,null,null,null,null,null,null,null,null,null,null,null,null,null,null,null,null,null,null,null,null,null,null,null,null,null,null,null,null,null,"2024-04-29",null,45411]
[null,null,null,null,null,null,null,null,null,null,null,null,null,null,null,null,null,null,null,"休業実績",null,null,null,null,null,null,null,null,null,null,null,null,null,null,null,null,null,null,null,null,null,null,null,null,null,null,null,null,null,null,null,null,null,null,null,null,null,null,null,{"$f":"COUNTIFS(Z24:BD24,\"\",$Z25:$BD25,\"休\")","v":0},null,null,{"$f":"SUMIFS($Z25:$BD25,$Z24:$BD24,\"<>\"&\"公\")","v":0},null,null,{"$f":"COUNTIFS(Z24:BD24,\"\",$Z26:$BD26,\"教\")","v":2},null,null,{"$f":"SUMIFS($Z26:$BD26,$Z24:$BD24,\"<>\"&\"公\")","v":3},null,null,{"$f":"FLOOR(SUM($Z27:$BD27),0.5)","v":7},null,null,null,null,null,null,null,null,null,null,null,null,null,null,null,null,null,null,null,null,null,null,4.5,null,null,null,null,null,null,null,null,null,null,null,"休",{"$f":"IF(OR(Z24=\"公\",Z25=\"\"),\"\",\"A\")","v":""},"","","","","","","","","","","","","","","","","","","","","","","","","","","","","","",null,null,"2024-05-03",null,45415]
[null,null,"a工場",null,null,null,null,null,null,null,null,null,null,null,null,null,null,null,null,"教育実績",null,null,null,null,null,null,null,null,null,null,null,null,null,null,null,null,null,3,null,"教","教",null,null,null,null,null,null,null,null,null,null,null,null,null,null,null,null,null,null,null,null,null,null,null,null,null,null,null,null,null,null,null,null,null,null,null,null,null,null,null,null,null,null,null,null,null,null,null,null,null,null,null,null,null,5,null,null,null,null,null,null,null,null,null,null,null,"教",{"$f":"IF(OR(Z24=\"公\",Z26=\"\"),\"\",\"B\")","v":""},"","","","","","","","","","","","B","","B","B","","","","","","","","","","","","","","","",null,null,"2024-05-04",null,45416]
[null,null,null,null,null,null,null,null,null,null,null,null,null,null,null,null,null,null,null,"残業時間",null,null,null,null,null,null,null,null,null,null,null,null,null,1.32,1.1599999999999999,null,null,null,1.1599999999999999,null,null,null,null,null,null,2,1.5,null,null,null,null,null,null,null,null,null,null,null,null,null,null,null,null,null,null,null,null,null,null,null,null,null,null,null,null,null,null,null,null,null,null,null,null,null,null,null,null,null,null,null,null,null,null,null,5.5,null,null,null,null,null,null,null,null,null,null,null,null,null,null,null,null,null,null,null,null,null,null,null,null,null,null,null,null,null,null,null,null,null,null,null,null,null,null,null,null,null,null,null,null,null,"2024-05-05",null,45417]
[5,null,null,null,null,null,null,null,null,null,null,null,null,null,null,null,null,null,null,"所定休日",null,null,null,null,null,"","","公","公","公","公","","","","","公","公","","","","","","公","公","","","","","","公","公","","","","","",{"$f":"$AJ$4-$AD$4+1-(COUNTIF($Z28:$BD28,\"公\"))","v":21},null,null,null,null,null,null,null,null,null,null,null,null,null,null,null,null,null,null,null,{"$f":"$CU$4&ROW(BY28)&\":\"&$CX$4&ROW(BY28)","v":"$Z$28:$BD$28"},null,null,null,null,null,null,null,null,null,null,null,null,null,null,null,null,null,6,null,null,null,null,null,null,null,null,null,null,null,null,null,null,null,null,null,null,null,null,null,null,null,null,null,null,null,null,null,null,null,null,null,null,null,null,null,null,null,null,null,null,null,null,null,"2024-05-06",null,45418]
[null,null,null,null,null,null,null,null,null,null,null,null,null,null,null,null,null,null,null,"休業実績",null,null,null,null,null,null,null,null,null,null,null,null,null,null,null,null,null,null,null,null,null,null,null,null,null,null,null,null,null,null,null,null,null,null,null,null,null,null,null,{"$f":"COUNTIFS(Z28:BD28,\"\",$Z29:$BD29,\"休\")","v":0},null,null,{"$f":"SUMIFS($Z29:$BD29,$Z28:$BD28,\"<>\"&\"公\")","v":0},null,null,{"$f":"COUNTIFS(Z28:BD28,\"\",$Z30:$BD30,\"教\")","v":0},null,null,{"$f":"SUMIFS($Z30:$BD30,$Z28:$BD28,\"<>\"&\"公\")","v":0},null,null,{"$f":"FLOOR(SUM($Z31:$BD31),0.5)","v":0},null,null,null,null,null,null,null,null,null,null,null,null,null,null,null,null,null,null,null,null,null,null,6.5,null,null,null,null,null,null,null,null,null,null,null,"休",{"$f":"IF(OR(Z28=\"公\",Z29=\"\"),\"\",\"A\")","v":""},"","","","","","","","","","","","","","","","","","","","","","","","","","","","","","",null,null,"2024-07-15",null,45488]
[null,null,null,null,null,null,null,null,null,null,null,null,null,null,null,null,null,null,null,"教育実績",null,null,null,null,null,null,null,null,null,null,null,null,null,null,null,null,null,null,null,null,null,null,null,null,null,null,null,null,null,null,null,null,null,null,null,null,null,null,null,null,null,null,null,null,null,null,null,null,null,null,null,null,null,null,null,null,null,null,null,null,null,null,null,null,null,null,null,null,null,null,null,null,null,null,7,null,null,null,null,null,null,null,null,null,null,null,"教",{"$f":"IF(OR(Z28=\"公\",Z30=\"\"),\"\",\"B\")","v":""},"","","","","","","","","","","","","","","","","","","","","","","","","","","","","","",null,null,"2024-08-11",null,45515]
[null,null,null,null,null,null,null,null,null,null,null,null,null,null,null,null,null,null,null,"残業時間",null,null,null,null,null,null,null,null,null,null,null,null,null,null,null,null,null,null,null,null,null,null,null,null,null,null,null,null,null,null,null,null,null,null,null,null,null,null,null,null,null,null,null,null,null,null,null,null,null,null,null,null,null,null,null,null,null,null,null,null,null,null,null,null,null,null,null,null,null,null,null,null,null,null,7.5,null,null,null,null,null,null,null,null,null,null,null,null,null,null,null,null,null,null,null,null,null,null,null,null,null,null,null,null,null,null,null,null,null,null,null,null,null,null,null,null,null,null,null,null,null,"2024-08-12",null,45516]
[6,null,null,null,null,null,null,null,null,null,null,null,null,null,null,null,null,null,null,"所定休日",null,null,null,null,null,"","","公","公","公","公","","","","","公","公","","","","","","公","公","","","","","","公","公","","","","","",{"$f":"$AJ$4-$AD$4+1-(COUNTIF($Z32:$BD32,\"公\"))","v":21},null,null,null,null,null,null,null,null,null,null,null,null,null,null,null,null,null,null,null,{"$f":"$CU$4&ROW(BY32)&\":\"&$CX$4&ROW(BY32)","v":"$Z$32:$BD$32"},null,null,null,null,null,null,null,null,null,null,null,null,null,null,null,null,null,8,null,null,null,null,null,null,null,null,null,null,null,null,null,null,null,null,null,null,null,null,null,null,null,null,null,null,null,null,null,null,null,null,null,null,null,null,null,null,null,null,null,null,null,null,null,"2024-09-16",null,45551]
[null,null,null,null,null,null,null,null,null,null,null,null,null,null,null,null,null,null,null,"休業実績",null,null,null,null,null,null,null,null,null,null,null,null,null,null,null,null,null,null,null,null,null,null,null,null,null,null,null,null,null,null,null,null,null,null,null,null,null,null,null,{"$f":"COUNTIFS(Z32:BD32,\"\",$Z33:$BD33,\"休\")","v":0},null,null,{"$f":"SUMIFS($Z33:$BD33,$Z32:$BD32,\"<>\"&\"公\")","v":0},null,null,{"$f":"COUNTIFS(Z32:BD32,\"\",$Z34:$BD34,\"教\")","v":0},null,null,{"$f":"SUMIFS($Z34:$BD34,$Z32:$BD32,\"<>\"&\"公\")","v":0},null,null,{"$f":"FLOOR(SUM($Z35:$BD35),0.5)","v":0},null,null,null,null,null,null,null,null,null,null,null,null,null,null,null,null,null,null,null,null,null,null,null,null,null,null,null,null,null,null,null,null,null,null,"休",{"$f":"IF(OR(Z32=\"公\",Z33=\"\"),\"\",\"A\")","v":""},"","","","","","","","","","","","","","","","","","","","","","","","","","","","","","",null,null,"2024-09-22",null,45557]
[null,null,null,null,null,null,null,null,null,null,null,null,null,null,null,null,null,null,null,"教育実績",null,null,null,null,null,null,null,null,null,null,null,null,null,null,null,null,null,null,null,null,null,null,null,null,null,null,null,null,null,null,null,null,null,null,null,null,null,null,null,null,null,null,null,null,null,null,null,null,null,null,null,null,null,null,null,null,null,null,null,null,null,null,null,null,null,null,null,null,null,null,null,null,null,null,"教",null,null,null,null,null,null,null,null,null,null,null,"教",{"$f":"IF(OR(Z32=\"公\",Z34=\"\"),\"\",\"B\")","v":""},"","","","","","","","","","","","","","","","","","","","","","","","","","","","","","",null,null,"2024-09-23",null,45558]
[null,null,null,null,null,null,null,null,null,null,null,null,null,null,null,null,null,null,null,"残業時間",null,null,null,null,null,null,null,null,null,null,null,null,null,null,null,null,null,null,null,null,null,null,null,null,null,null,null,null,null,null,null,null,null,null,null,null,null,null,null,null,null,null,null,null,null,null,null,null,null,null,null,null,null,null,null,null,null,null,null,null,null,null,null,null,null,null,null,null,null,null,null,null,null,null,2,null,null,null,null,null,null,null,null,null,null,null,null,null,null,null,null,null,null,null,null,null,null,null,null,null,null,null,null,null,null,null,null,null,null,null,null,null,null,null,null,null,null,null,null,null,"2024-10-14",null,45579]
[7,null,null,null,null,null,null,null,null,null,null,null,null,null,null,null,null,null,null,"所定休日",null,null,null,null,null,"","","公","公","公","公","","","","","公","公","","","","","","公","公","","","","","","公","公","","","","","",{"$f":"$AJ$4-$AD$4+1-(COUNTIF($Z36:$BD36,\"公\"))","v":21},null,null,null,null,null,null,null,null,null,null,null,null,null,null,null,null,null,null,null,{"$f":"$CU$4&ROW(BY36)&\":\"&$CX$4&ROW(BY36)","v":"$Z$36:$BD$36"},null,null,null,null,null,null,null,null,null,null,null,null,null,null,null,null,null,2.5,null,null,null,null,null,null,null,null,null,null,null,null,null,null,null,null,null,null,null,null,null,null,null,null,null,null,null,null,null,null,null,null,null,null,null,null,null,null,null,null,null,null,null,null,null,"2024-11-03",null,45599]
[null,null,null,null,null,null,null,null,null,null,null,null,null,null,null,null,null,null,null,"休業実績",null,null,null,null,null,null,null,null,null,null,null,null,null,null,null,null,null,null,null,null,null,null,null,null,null,null,null,null,null,null,null,null,null,null,null,null,null,null,null,{"$f":"COUNTIFS(Z36:BD36,\"\",$Z37:$BD37,\"休\")","v":0},null,null,{"$f":"SUMIFS($Z37:$BD37,$Z36:$BD36,\"<>\"&\"公\")","v":0},null,null,{"$f":"COUNTIFS(Z36:BD36,\"\",$Z38:$BD38,\"教\")","v":0},null,null,{"$f":"SUMIFS($Z38:$BD38,$Z36:$BD36,\"<>\"&\"公\")","v":0},null,null,{"$f":"FLOOR(SUM($Z39:$BD39),0.5)","v":0},null,null,null,null,null,null,null,null,null,null,null,null,null,null,null,null,null,null,null,null,null,null,3,null,null,null,null,null,null,null,null,null,null,null,"休",{"$f":"IF(OR(Z36=\"公\",Z37=\"\"),\"\",\"A\")","v":""},"","","","","","","","","","","","","","","","","","","","","","","","","","","","","","",null,null,"2024-11-04",null,45600]
[null,null,null,null,null,null,null,null,null,null,null,null,null,null,null,null,null,null,null,"教育実績",null,null,null,null,null,null,null,null,null,null,null,null,null,null,null,null,null,null,null,null,null,null,null,null,null,null,null,null,null,null,null,null,null,null,null,null,null,null,null,null,null,null,null,null,null,null,null,null,null,null,null,null,null,null,null,null,null,null,null,null,null,null,null,null,null,null,null,null,null,null,null,null,null,null,3.5,null,null,null,null,null,null,null,null,null,null,null,"教",{"$f":"IF(OR(Z36=\"公\",Z38=\"\"),\"\",\"B\")","v":""},"","","","","","","","","","","","","","","","","","","","","","","","","","","","","","",null,null,"2024-11-23",null,45619]
[null,null,null,null,null,null,null,null,null,null,null,null,null,null,null,null,null,null,null,"残業時間",null,null,null,null,null,null,null,null,null,null,null,null,null,null,null,null,null,null,null,null,null,null,null,null,null,null,null,null,null,null,null,null,null,null,null,null,null,null,null,null,null,null,null,null,null,null,null,null,null,null,null,null,null,null,null,null,null,null,null,null,null,null,null,null,null,null,null,null,null,null,null,null,null,null,4,null,null,null,null,null,null,null,null,null,null,null,null,null,null,null,null,null,null,null,null,null,null,null,null,null,null,null,null,null,null,null,null,null,null,null,null,null,null,null,null,null,null,null,null,null,"2024-12-29",null,45655]
[8,null,null,null,null,null,null,null,null,null,null,null,null,null,null,null,null,null,null,"所定休日",null,null,null,null,null,"","","公","公","公","公","","","","","公","公","","","","","","公","公","","","","","","公","公","","","","","",{"$f":"$AJ$4-$AD$4+1-(COUNTIF($Z40:$BD40,\"公\"))","v":21},null,null,null,null,null,null,null,null,null,null,null,null,null,null,null,null,null,null,null,{"$f":"$CU$4&ROW(BY40)&\":\"&$CX$4&ROW(BY40)","v":"$Z$40:$BD$40"},null,null,null,null,null,null,null,null,null,null,null,null,null,null,null,null,null,4.5,null,null,null,null,null,null,null,null,null,null,null,null,null,null,null,null,null,null,null,null,null,null,null,null,null,null,null,null,null,null,null,null,null,null,null,null,null,null,null,null,null,null,null,null,null,"2024-12-30",null,45656]
[null,null,null,null,null,null,null,null,null,null,null,null,null,null,null,null,null,null,null,"休業実績",null,null,null,null,null,null,null,null,null,null,null,null,null,null,null,null,null,null,null,null,null,null,null,null,null,null,null,null,null,null,null,null,null,null,null,null,null,null,null,{"$f":"COUNTIFS(Z40:BD40,\"\",$Z41:$BD41,\"休\")","v":0},null,null,{"$f":"SUMIFS($Z41:$BD41,$Z40:$BD40,\"<>\"&\"公\")","v":0},null,null,{"$f":"COUNTIFS(Z40:BD40,\"\",$Z42:$BD42,\"教\")","v":0},null,null,{"$f":"SUMIFS($Z42:$BD42,$Z40:$BD40,\"<>\"&\"公\")","v":0},null,null,{"$f":"FLOOR(SUM($Z43:$BD43),0.5)","v":0},null,null,null,null,null,null,null,null,null,null,null,null,null,null,null,null,null,null,null,null,null,null,5,null,null,null,null,null,null,null,null,null,null,null,"休",{"$f":"IF(OR(Z40=\"公\",Z41=\"\"),\"\",\"A\")","v":""},"","","","","","","","","","","","","","","","","","","","","","","","","","","","","","",null,null,"2024-12-31",null,45657]
[null,null,null,null,null,null,null,null,null,null,null,null,null,null,null,null,null,null,null,"教育実績",null,null,null,null,null,null,null,null,null,null,null,null,null,null,null,null,null,null,null,null,null,null,null,null,null,null,null,null,null,null,null,null,null,null,null,null,null,null,null,null,null,null,null,null,null,null,null,null,null,null,null,null,null,null,null,null,null,null,null,null,null,null,null,null,null,null,null,null,null,null,null,null,null,null,5.5,null,null,null,null,null,null,null,null,null,null,null,"教",{"$f":"IF(OR(Z40=\"公\",Z42=\"\"),\"\",\"B\")","v":""},"","","","","","","","","","","","","","","","","","","","","","","","","","","","","","",null,null,"2025-01-01",null,45658]
[null,null,null,null,null,null,null,null,null,null,null,null,null,null,null,null,null,null,null,"残業時間",null,null,null,null,null,null,null,null,null,null,null,null,null,null,null,null,null,null,null,null,null,null,null,null,null,null,null,null,null,null,null,null,null,null,null,null,null,null,null,null,null,null,null,null,null,null,null,null,null,null,null,null,null,null,null,null,null,null,null,null,null,null,null,null,null,null,null,null,null,null,null,null,null,null,6,null,null,null,null,null,null,null,null,null,null,null,null,null,null,null,null,null,null,null,null,null,null,null,null,null,null,null,null,null,null,null,null,null,null,null,null,null,null,null,null,null,null,null,null,null,"2025-01-02",null,45659]
[9,null,null,null,null,null,null,null,null,null,null,null,null,null,null,null,null,null,null,"所定休日",null,null,null,null,null,"","","公","公","公","公","","","","","公","公","","","","","","公","公","","","","","","公","公","","","","","",{"$f":"$AJ$4-$AD$4+1-(COUNTIF($Z44:$BD44,\"公\"))","v":21},null,null,null,null,null,null,null,null,null,null,null,null,null,null,null,null,null,null,null,{"$f":"$CU$4&ROW(BY44)&\":\"&$CX$4&ROW(BY44)","v":"$Z$44:$BD$44"},null,null,null,null,null,null,null,null,null,null,null,null,null,null,null,null,null,6.5,null,null,null,null,null,null,null,null,null,null,null,null,null,null,null,null,null,null,null,null,null,null,null,null,null,null,null,null,null,null,null,null,null,null,null,null,null,null,null,null,null,null,null,null,null,"2025-01-03",null,45660]
[null,null,null,null,null,null,null,null,null,null,null,null,null,null,null,null,null,null,null,"休業実績",null,null,null,null,null,null,null,null,null,null,null,null,null,null,null,null,null,null,null,null,null,null,null,null,null,null,null,null,null,null,null,null,null,null,null,null,null,null,null,{"$f":"COUNTIFS(Z44:BD44,\"\",$Z45:$BD45,\"休\")","v":0},null,null,{"$f":"SUMIFS($Z45:$BD45,$Z44:$BD44,\"<>\"&\"公\")","v":0},null,null,{"$f":"COUNTIFS(Z44:BD44,\"\",$Z46:$BD46,\"教\")","v":0},null,null,{"$f":"SUMIFS($Z46:$BD46,$Z44:$BD44,\"<>\"&\"公\")","v":0},null,null,{"$f":"FLOOR(SUM($Z47:$BD47),0.5)","v":0},null,null,null,null,null,null,null,null,null,null,null,null,null,null,null,null,null,null,null,null,null,null,7,null,null,null,null,null,null,null,null,null,null,null,"休",{"$f":"IF(OR(Z44=\"公\",Z45=\"\"),\"\",\"A\")","v":""},"","","","","","","","","","","","","","","","","","","","","","","","","","","","","","",null,null,"2025-01-13",null,45670]
[null,null,null,null,null,null,null,null,null,null,null,null,null,null,null,null,null,null,null,"教育実績",null,null,null,null,null,null,null,null,null,null,null,null,null,null,null,null,null,null,null,null,null,null,null,null,null,null,null,null,null,null,null,null,null,null,null,null,null,null,null,null,null,null,null,null,null,null,null,null,null,null,null,null,null,null,null,null,null,null,null,null,null,null,null,null,null,null,null,null,null,null,null,null,null,null,7.5,null,null,null,null,null,null,null,null,null,null,null,"教",{"$f":"IF(OR(Z44=\"公\",Z46=\"\"),\"\",\"B\")","v":""},"","","","","","","","","","","","","","","","","","","","","","","","","","","","","","",null,null,"2025-02-11",null,45699]
[null,null,null,null,null,null,null,null,null,null,null,null,null,null,null,null,null,null,null,"残業時間",null,null,null,null,null,null,null,null,null,null,null,null,null,null,null,null,null,null,null,null,null,null,null,null,null,null,null,null,null,null,null,null,null,null,null,null,null,null,null,null,null,null,null,null,null,null,null,null,null,null,null,null,null,null,null,null,null,null,null,null,null,null,null,null,null,null,null,null,null,null,null,null,null,null,8,null,null,null,null,null,null,null,null,null,null,null,null,null,null,null,null,null,null,null,null,null,null,null,null,null,null,null,null,null,null,null,null,null,null,null,null,null,null,null,null,null,null,null,null,null,"2025-02-23",null,45711]
[10,null,null,null,null,null,null,null,null,null,null,null,null,null,null,null,null,null,null,"所定休日",null,null,null,null,null,"","","公","公","公","公","","","","","公","公","","","","","","公","公","","","","","","公","公","","","","","",{"$f":"$AJ$4-$AD$4+1-(COUNTIF($Z48:$BD48,\"公\"))","v":21},null,null,null,null,null,null,null,null,null,null,null,null,null,null,null,null,null,null,null,{"$f":"$CU$4&ROW(BY48)&\":\"&$CX$4&ROW(BY48)","v":"$Z$48:$BD$48"},null,null,null,null,null,null,null,null,null,null,null,null,null,null,null,null,null,null,null,null,null,null,null,null,null,null,null,null,null,null,null,null,null,null,null,null,null,null,null,null,null,null,null,null,null,null,null,null,null,null,null,null,null,null,null,null,null,null,null,null,null,null,null,"2025-02-24",null,45712]
[null,null,null,null,null,null,null,null,null,null,null,null,null,null,null,null,null,null,null,"休業実績",null,null,null,null,null,null,null,null,null,null,null,null,null,null,null,null,null,null,null,null,null,null,null,null,null,null,null,null,null,null,null,null,null,null,null,null,null,null,null,{"$f":"COUNTIFS(Z48:BD48,\"\",$Z49:$BD49,\"休\")","v":0},null,null,{"$f":"SUMIFS($Z49:$BD49,$Z48:$BD48,\"<>\"&\"公\")","v":0},null,null,{"$f":"COUNTIFS(Z48:BD48,\"\",$Z50:$BD50,\"教\")","v":0},null,null,{"$f":"SUMIFS($Z50:$BD50,$Z48:$BD48,\"<>\"&\"公\")","v":0},null,null,{"$f":"FLOOR(SUM($Z51:$BD51),0.5)","v":0},null,null,null,null,null,null,null,null,null,null,null,null,null,null,null,null,null,null,null,null,null,null,null,null,null,null,null,null,null,null,null,null,null,null,"休",{"$f":"IF(OR(Z48=\"公\",Z49=\"\"),\"\",\"A\")","v":""},"","","","","","","","","","","","","","","","","","","","","","","","","","","","","","",null,null,"2025-03-20",null,45736]
[null,null,null,null,null,null,null,null,null,null,null,null,null,null,null,null,null,null,null,"教育実績",null,null,null,null,null,null,null,null,null,null,null,null,null,null,null,null,null,null,null,null,null,null,null,null,null,null,null,null,null,null,null,null,null,null,null,null,null,null,null,null,null,null,null,null,null,null,null,null,null,null,null,null,null,null,null,null,null,null,null,null,null,null,null,null,null,null,null,null,null,null,null,null,null,null,null,null,null,null,null,null,null,null,null,null,null,null,"教",{"$f":"IF(OR(Z48=\"公\",Z50=\"\"),\"\",\"B\")","v":""},"","","","","","","","","","","","","","","","","","","","","","","","","","","","","","",null,null,"2025-04-29",null,45776]
[null,null,null,null,null,null,null,null,null,null,null,null,null,null,null,null,null,null,null,"残業時間",null,null,null,null,null,null,null,null,null,null,null,null,null,null,null,null,null,null,null,null,null,null,null,null,null,null,null,null,null,null,null,null,null,null,null,null,null,null,null,null,null,null,null,null,null,null,null,null,null,null,null,null,null,null,null,null,null,null,null,null,null,null,null,null,null,null,null,null,null,null,null,null,null,null,null,null,null,null,null,null,null,null,null,null,null,null,null,null,null,null,null,null,null,null,null,null,null,null,null,null,null,null,null,null,null,null,null,null,null,null,null,null,null,null,null,null,null,null,null,null,"2025-05-03",null,45780]
[null,null,null,null,null,null,null,null,null,null,null,null,null,null,null,null,null,null,null,null,null,null,null,null,null,null,null,null,null,null,null,null,null,null,null,null,null,null,null,null,null,null,null,null,null,null,null,null,null,null,null,null,null,null,null,null,null,null,null,null,null,null,null,null,null,null,null,null,null,null,null,null,null,null,null,null,null,null,null,null,null,null,null,null,null,null,null,null,null,null,null,null,null,null,null,null,null,null,null,null,null,null,null,null,null,null,null,null,null,null,null,null,null,null,null,null,null,null,null,null,null,null,null,null,null,null,null,null,null,null,null,null,null,null,null,null,null,null,null,null,"2025-05-04",null,45781]
["⑦事業所の実績",null,null,null,null,null,null,null,null,null,null,null,null,"休業",null,null,null,null,null,{"$f":"COUNTIF(INDIRECT(BY53),$CQ$4)","v":10},null,null,"日",null,null,"○","○","","","","","○","○","○","○","","","","○","","","○","","","○","○","","","","","","","","","","",null,null,null,null,null,null,null,null,null,null,null,null,null,null,null,null,null,null,null,null,{"$f":"$CU$4&ROW(BY53)&\":\"&$CX$4&ROW(BY53)","v":"$Z$53:$BD$53"},null,null,null,null,null,null,null,null,null,null,null,null,null,null,null,null,null,null,null,null,null,null,null,null,null,null,null,"判定",null,"休",{"$f":"IF(COUNTIF(DD$13:DD$50,\"A\")=0,\"\",\"○\")","v":"○"},{"$f":"IF(COUNTIF(DE$13:DE$50,\"A\")=0,\"\",\"○\")","v":"○"},"","","","","○","○","○","○","","","","○","","","○","","","○","○","","","","","","","","","","",null,null,"2025-05-05",null,45782]
[null,null,null,null,null,null,null,null,null,null,null,null,null,"教育",null,null,null,null,null,{"$f":"COUNTIF(INDIRECT(BY54),$CQ$5)","v":7},null,null,"日",null,null,"","","","","","","","","","","","","△","△","△","△","","","","","","△","△","△","","","","","","","",null,null,null,null,null,null,null,null,null,null,null,null,null,null,null,null,null,null,null,null,{"$f":"$CU$4&ROW(BY54)&\":\"&$CX$4&ROW(BY54)","v":"$Z$54:$BD$54"},null,null,null,null,null,null,null,null,null,null,null,null,null,null,null,null,null,null,null,null,null,null,null,null,null,null,null,null,null,"教",{"$f":"IF(COUNTIF(DD$13:DD$50,\"B\")=0,\"\",\"△\")","v":""},"","","","","","","","","","","","△","△","△","△","","","","","","△","△","△","","","","","","","",null,null,"2025-05-06",null,45783]
[null,null,"休：全日休業　　　1～8：短時間休業又は短時間教育訓練　　教：全日教育訓練　　公：所定休日",null,null,null,null,null,null,null,null,null,null,null,null,null,null,null,null,null,null,null,null,null,null,null,null,null,null,null,null,null,null,null,null,null,null,null,null,null,null,null,null,null,null,null,null,null,null,null,null,null,null,null,null,null,null,null,null,null,null,null,null,null,null,null,null,null,null,null,null,null,null,null,null,null,null,null,null,null,null,null,null,null,null,null,null,null,null,null,null,null,null,null,null,null,null,null,null,null,null,null,null,null,null,null,null,null,null,null,null,null,null,null,null,null,null,null,null,null,null,null,null,null,null,null,null,null,null,null,null,null,null,null,null,null,null,null,null,null,"2025-07-21",null,45859]
[null,null,null,null,null,null,null,null,null,null,null,null,null,null,null,null,null,null,null,null,null,null,null,null,null,null,null,null,null,null,null,null,null,null,null,null,null,null,null,null,null,null,null,null,null,null,null,null,null,null,null,null,null,null,null,null,null,null,null,null,null,null,"R06.09.13版",null,null,null,null,null,null,null,null,null,null,null,null,null,null,null,null,null,null,null,null,null,null,null,null,null,null,null,null,null,null,null,null,null,null,null,null,null,null,null,null,null,null,null,null,null,null,null,null,null,null,null,null,null,null,null,null,null,null,null,null,null,null,null,null,null,null,null,null,null,null,null,null,null,null,null,null,null,"2025-08-11",null,45880]
["休業・教育訓練　および所定外労働時間　自主点検シートについて",null,null,null,null,null,null,null,null,null,null,null,null,null,null,null,null,null,null,null,null,null,null,null,null,null,null,null,null,null,null,null,null,null,null,null,null,null,null,null,null,null,null,null,null,null,null,null,null,null,null,null,null,null,null,null,null,null,null,null,null,null,null,null,null,null,null,null,null,null,null,null,null,null,null,null,null,null,null,null,null,null,null,null,null,null,null,null,null,null,null,null,null,null,null,null,null,null,null,null,null,null,null,null,null,null,null,null,null,null,null,null,null,null,null,null,null,null,null,null,null,null,null,null,null,null,null,null,null,null,null,null,null,null,null,null,null,null,null,null,"2025-09-15",null,45915]
[null,null,null,null,null,null,null,null,null,null,null,null,null,null,null,null,null,null,null,null,null,null,null,null,null,null,null,null,null,null,null,null,null,null,null,null,null,null,null,null,null,null,null,null,null,null,null,null,null,null,null,null,null,null,null,null,null,null,null,null,null,null,null,null,null,null,null,null,null,null,null,null,null,null,null,null,null,null,null,null,null,null,null,null,null,null,null,null,null,null,null,null,null,null,null,null,null,null,null,null,null,null,null,null,null,null,null,null,null,null,null,null,null,null,null,null,null,null,null,null,null,null,null,null,null,null,null,null,null,null,null,null,null,null,null,null,null,null,null,null,"2025-09-23",null,45923]
["　この自主点検シートは、計画届に基づいて休業及び教育訓練が適切に実施されていることを確認するためのものです。支給申請にあたりこのシートの作成・提出は任意ですが、支給申請の審査を円滑に進めるため、作成・提出の御協力をお願いします。",null,null,null,null,null,null,null,null,null,null,null,null,null,null,null,null,null,null,null,null,null,null,null,null,null,null,null,null,null,null,null,null,null,null,null,null,null,null,null,null,null,null,null,null,null,null,null,null,null,null,null,null,null,null,null,null,null,null,null,null,null,null,null,null,null,null,null,null,null,null,null,null,null,null,null,null,null,null,null,null,null,null,null,null,null,null,null,null,null,null,null,null,null,null,null,null,null,null,null,null,null,null,null,null,null,null,null,null,null,null,null,null,null,null,null,null,null,null,null,null,null,null,null,null,null,null,null,null,null,null,null,null,null,null,null,null,null,null,null,"2025-10-13",null,45943]
["【作成手順】",null,null,null,null,null,null,null,null,null,null,null,null,null,null,null,null,null,null,null,null,null,null,null,null,null,null,null,null,null,null,null,null,null,null,null,null,null,null,null,null,null,null,null,null,null,null,null,null,null,null,null,null,null,null,null,null,null,null,null,null,null,null,null,null,null,null,null,null,null,null,null,null,null,null,null,null,null,null,null,null,null,null,null,null,null,null,null,null,null,null,null,null,null,null,null,null,null,null,null,null,null,null,null,null,null,null,null,null,null,null,null,null,null,null,null,null,null,null,null,null,null,null,null,null,null,null,null,null,null,null,null,null,null,null,null,null,null,null,null,"2025-11-03",null,45964]
[1,null,null,"①「申請に関する情報」欄に「適用事業所番号」「事業所名」「点検期間」を入力してください。１か月を超える期間を点検するときは、賃金計算期間ごとに分けて作成してください。",null,null,null,null,null,null,null,null,null,null,null,null,null,null,null,null,null,null,null,null,null,null,null,null,null,null,null,null,null,null,null,null,null,null,null,null,null,null,null,null,null,null,null,null,null,null,null,null,null,null,null,null,null,null,null,null,null,null,null,null,null,null,null,null,null,null,null,null,null,null,null,null,null,null,null,null,null,null,null,null,null,null,null,null,null,null,null,null,null,null,null,null,null,null,null,null,null,null,null,null,null,null,null,null,null,null,null,null,null,null,null,null,null,null,null,null,null,null,null,null,null,null,null,null,null,null,null,null,null,null,null,null,null,null,null,null,"2025-11-23",null,45984]
[2,null,null,"②「事業所における所定休日」欄に所定休日となる曜日に〇を入力してください。事業所において複数の休日カレンダーが存在するときは、適用される休日カレンダーごとに分けてシートを作成していただいても結構です。",null,null,null,null,null,null,null,null,null,null,null,null,null,null,null,null,null,null,null,null,null,null,null,null,null,null,null,null,null,null,null,null,null,null,null,null,null,null,null,null,null,null,null,null,null,null,null,null,null,null,null,null,null,null,null,null,null,null,null,null,null,null,null,null,null,null,null,null,null,null,null,null,null,null,null,null,null,null,null,null,null,null,null,null,null,null,null,null,null,null,null,null,null,null,null,null,null,null,null,null,null,null,null,null,null,null,null,null,null,null,null,null,null,null,null,null,null,null,null,null,null,null,null,null,null,null,null,null,null,null,null,null,null,null,null,null,"2025-11-24",null,45985]
[3,null,null,"２の入力後、右上にある③「曜日を内訳へ反映」ボタンを押すと、⑤欄に休日が反映されます。",null,null,null,null,null,null,null,null,null,null,null,null,null,null,null,null,null,null,null,null,null,null,null,null,null,null,null,null,null,null,null,null,null,null,null,null,null,null,null,null,null,null,null,null,null,null,null,null,null,null,null,null,null,null,null,null,null,null,null,null,null,null,null,null,null,null,null,null,null,null,null,null,null,null,null,null,null,null,null,null,null,null,null,null,null,null,null,null,null,null,null,null,null,null,null,null,null,null,null,null,null,null,null,null,null,null,null,null,null,null,null,null,null,null,null,null,null,null,null,null,null,null,null,null,null,null,null,null,null,null,null,null,null,null,null,null,"2025-12-29",null,46020]
[4,null,null,"④欄の「休業等対象者」は、様式第５号（３）「休業・教育訓練実績一覧表及び所定外労働等の実施状況に関する申出書」と同様に、休業等を実施した対象労働者が該当します。休業等対象者のうち任意の１０名（休業等対象者が１０名に満たないときは、全員。）を点検対象者として抽出し、「氏名」「一日の所定労働時間」「賃金形態」をそれぞれ入力してください。\n休業等対象者が１０名に満たない場合を除き、点検対象者は、所属部署、雇用形態又は賃金形態等の労働条件の異なる休業等対象者から偏りなく抽出し、支給申請ごとに再抽出してください。\n氏名欄の下は備考欄ととなっていますので、退職申し出又は解雇の予告等があったときは、その旨及びその事実の生じた年月日を記載してください。また、必要に応じて、休業等対象者の所属部署・職名等を記載するなどして活用してください。",null,null,null,null,null,null,null,null,null,null,null,null,null,null,null,null,null,null,null,null,null,null,null,null,null,null,null,null,null,null,null,null,null,null,null,null,null,null,null,null,null,null,null,null,null,null,null,null,null,null,null,null,null,null,null,null,null,null,null,null,null,null,null,null,null,null,null,null,null,null,null,null,null,null,null,null,null,null,null,null,null,null,null,null,null,null,null,null,null,null,null,null,null,null,null,null,null,null,null,null,null,null,null,null,null,null,null,null,null,null,null,null,null,null,null,null,null,null,null,null,null,null,null,null,null,null,null,null,null,null,null,null,null,null,null,null,"2025-12-30",null,46021]
[5,null,null,"⑤欄に休業・教育訓練と所定外労働時間の日別内訳を入力してください。（※数値は全て時間単位で入力してください。）\n　・所定休日：事業所稼働日と同一でない場合（追加で所定休日がある場合）、プルダウンから「公」を選択してください。\n　・休業実績：全日休業は「休」を、短時間の休業はその時間をプルダウンから選択してください。（１時間以上が助成対象。30分未満切捨て。）\n　・教育実績：全日教育訓練は「教」を、短時間の教育訓練はその時間をプルダウンから選択してください。（２時間以上が助成対象。）\n　・残業時間：所定外又は法定外となる労働時間（分単位の労働時間は、６０で除して小数点第四位以下を切捨て。）を入力してください。\n　　　　　　　端数切捨ての影響により、分単位の合計時間が集計と一致しないときは、集計を赤色で手書き補正してください。",null,null,null,null,null,null,null,null,null,null,null,null,null,null,null,null,null,null,null,null,null,null,null,null,null,null,null,null,null,null,null,null,null,null,null,null,null,null,null,null,null,null,null,null,null,null,null,null,null,null,null,null,null,null,null,null,null,null,null,null,null,null,null,null,null,null,null,null,null,null,null,null,null,null,null,null,null,null,null,null,null,null,null,null,null,null,null,null,null,null,null,null,null,null,null,null,null,null,null,null,null,null,null,null,null,null,null,null,null,null,null,null,null,null,null,null,null,null,null,null,null,null,null,null,null,null,null,null,null,null,null,null,null,null,null,null,"2025-12-31",null,46022]
[6,null,null,"⑤欄の入力完了後、右上にある⑥「実績を反映する」ボタンを押すと、⑦欄には休業実績がある日に○印、教育訓練実績がある日に△印がつきます。\n自主点検表に記載された休業等対象者以外の労働者が⑦欄で○又は△印のない日にも休業又は教育訓練を実施している場合、実施日をプルダウンで○又は△印を選択してください。\n一つの点検期間について複数のシートを作成したときは、いずれかのシートの⑦欄に○又は△印をつけてください。\n既にご提出いただいている計画届及び休業協定書と⑦欄の集計を比較し、計画（協定）の範囲内で休業等が実施されているか点検してください。\n　休業：計画時の休業予定日数を超過する日数は助成対象外となります。\n　教育：計画時の教育訓練予定日と実施日は一致する必要があります。",null,null,null,null,null,null,null,null,null,null,null,null,null,null,null,null,null,null,null,null,null,null,null,null,null,null,null,null,null,null,null,null,null,null,null,null,null,null,null,null,null,null,null,null,null,null,null,null,null,null,null,null,null,null,null,null,null,null,null,null,null,null,null,null,null,null,null,null,null,null,null,null,null,null,null,null,null,null,null,null,null,null,null,null,null,null,null,null,null,null,null,null,null,null,null,null,null,null,null,null,null,null,null,null,null,null,null,null,null,null,null,null,null,null,null,null,null,null,null,null,null,null,null,null,null,null,null,null,null,null,null,null,null,null,null,null,"2026-01-01",null,46023]
[null,null,null,"※次月の申請等で作成済シートを転用する場合で、⑤・⑦欄を初期化したい場合は、シート右下⑧「内容をクリア」ボタンをクリックしてください。\n　⑤・⑦欄が初期化されます。（マクロによる処理のため「元に戻る」ボタンが使用できません。ご注意ください。）\n※このシートは、手書きにより作成していただいても結構です。",null,null,null,null,null,null,null,null,null,null,null,null,null,null,null,null,null,null,null,null,null,null,null,null,null,null,null,null,null,null,null,null,null,null,null,null,null,null,null,null,null,null,null,null,null,null,null,null,null,null,null,null,null,null,null,null,null,null,null,null,null,null,null,null,null,null,null,null,null,null,null,null,null,null,null,null,null,null,null,null,null,null,null,null,null,null,null,null,null,null,null,null,null,null,null,null,null,null,null,null,null,null,null,null,null,null,null,null,null,null,null,null,null,null,null,null,null,null,null,null,null,null,null,null,null,null,null,null,null,null,null,null,null,null,null,null,"2026-01-02",null,46024]
[null,null,null,null,null,null,null,null,null,null,null,null,null,null,null,null,null,null,null,null,null,null,null,null,null,null,null,null,null,null,null,null,null,null,null,null,null,null,null,null,null,null,null,null,null,null,null,null,null,null,null,null,null,null,null,null,null,null,null,null,null,null,null,null,null,null,null,null,null,null,null,null,null,null,null,null,null,null,null,null,null,null,null,null,null,null,null,null,null,null,null,null,null,null,null,null,null,null,null,null,null,null,null,null,null,null,null,null,null,null,null,null,null,null,null,null,null,null,null,null,null,null,null,null,null,null,null,null,null,null,null,null,null,null,null,null,null,null,null,null,"2026-01-03",null,46025]
[null,null,null,null,null,null,null,null,null,null,null,null,null,null,null,null,null,null,null,null,null,null,null,null,null,null,null,null,null,null,null,null,null,null,null,null,null,null,null,null,null,null,null,null,null,null,null,null,null,null,null,null,null,null,null,null,null,null,null,null,null,null,null,null,null,null,null,null,null,null,null,null,null,null,null,null,null,null,null,null,null,null,null,null,null,null,null,null,null,null,null,null,null,null,null,null,null,null,null,null,null,null,null,null,null,null,null,null,null,null,null,null,null,null,null,null,null,null,null,null,null,null,null,null,null,null,null,null,null,null,null,null,null,null,null,null,null,null,null,null,"2026-01-12",null,46034]
[null,null,null,null,null,null,null,null,null,null,null,null,null,null,null,null,null,null,null,null,null,null,null,null,null,null,null,null,null,null,null,null,null,null,null,null,null,null,null,null,null,null,null,null,null,null,null,null,null,null,null,null,null,null,null,null,null,null,null,null,null,null,null,null,null,null,null,null,null,null,null,null,null,null,null,null,null,null,null,null,null,null,null,null,null,null,null,null,null,null,null,null,null,null,null,null,null,null,null,null,null,null,null,null,null,null,null,null,null,null,null,null,null,null,null,null,null,null,null,null,null,null,null,null,null,null,null,null,null,null,null,null,null,null,null,null,null,null,null,null,"2026-02-11",null,46064]
[null,null,null,null,null,null,null,null,null,null,null,null,null,null,null,null,null,null,null,null,null,null,null,null,null,null,null,null,null,null,null,null,null,null,null,null,null,null,null,null,null,null,null,null,null,null,null,null,null,null,null,null,null,null,null,null,null,null,null,null,null,null,null,null,null,null,null,null,null,null,null,null,null,null,null,null,null,null,null,null,null,null,null,null,null,null,null,null,null,null,null,null,null,null,null,null,null,null,null,null,null,null,null,null,null,null,null,null,null,null,null,null,null,null,null,null,null,null,null,null,null,null,null,null,null,null,null,null,null,null,null,null,null,null,null,null,null,null,null,null,"2026-02-23",null,46076]
[null,null,null,null,null,null,null,null,null,null,null,null,null,null,null,null,null,null,null,null,null,null,null,null,null,null,null,null,null,null,null,null,null,null,null,null,null,null,null,null,null,null,null,null,null,null,null,null,null,null,null,null,null,null,null,null,null,null,null,null,null,null,null,null,null,null,null,null,null,null,null,null,null,null,null,null,null,null,null,null,null,null,null,null,null,null,null,null,null,null,null,null,null,null,null,null,null,null,null,null,null,null,null,null,null,null,null,null,null,null,null,null,null,null,null,null,null,null,null,null,null,null,null,null,null,null,null,null,null,null,null,null,null,null,null,null,null,null,null,null,"2026-03-20",null,46101]
[null,null,null,null,null,null,null,null,null,null,null,null,null,null,null,null,null,null,null,null,null,null,null,null,null,null,null,null,null,null,null,null,null,null,null,null,null,null,null,null,null,null,null,null,null,null,null,null,null,null,null,null,null,null,null,null,null,null,null,null,null,null,null,null,null,null,null,null,null,null,null,null,null,null,null,null,null,null,null,null,null,null,null,null,null,null,null,null,null,null,null,null,null,null,null,null,null,null,null,null,null,null,null,null,null,null,null,null,null,null,null,null,null,null,null,null,null,null,null,null,null,null,null,null,null,null,null,null,null,null,null,null,null,null,null,null,null,null,null,null,"2026-04-29",null,46141]
[null,null,null,null,null,null,null,null,null,null,null,null,null,null,null,null,null,null,null,null,null,null,null,null,null,null,null,null,null,null,null,null,null,null,null,null,null,null,null,null,null,null,null,null,null,null,null,null,null,null,null,null,null,null,null,null,null,null,null,null,null,null,null,null,null,null,null,null,null,null,null,null,null,null,null,null,null,null,null,null,null,null,null,null,null,null,null,null,null,null,null,null,null,null,null,null,null,null,null,null,null,null,null,null,null,null,null,null,null,null,null,null,null,null,null,null,null,null,null,null,null,null,null,null,null,null,null,null,null,null,null,null,null,null,null,null,null,null,null,null,"2026-05-03",null,46145]
[null,null,null,null,null,null,null,null,null,null,null,null,null,null,null,null,null,null,null,null,null,null,null,null,null,null,null,null,null,null,null,null,null,null,null,null,null,null,null,null,null,null,null,null,null,null,null,null,null,null,null,null,null,null,null,null,null,null,null,null,null,null,null,null,null,null,null,null,null,null,null,null,null,null,null,null,null,null,null,null,null,null,null,null,null,null,null,null,null,null,null,null,null,null,null,null,null,null,null,null,null,null,null,null,null,null,null,null,null,null,null,null,null,null,null,null,null,null,null,null,null,null,null,null,null,null,null,null,null,null,null,null,null,null,null,null,null,null,null,null,"2026-05-04",null,46146]
[null,null,null,null,null,null,null,null,null,null,null,null,null,null,null,null,null,null,null,null,null,null,null,null,null,null,null,null,null,null,null,null,null,null,null,null,null,null,null,null,null,null,null,null,null,null,null,null,null,null,null,null,null,null,null,null,null,null,null,null,null,null,null,null,null,null,null,null,null,null,null,null,null,null,null,null,null,null,null,null,null,null,null,null,null,null,null,null,null,null,null,null,null,null,null,null,null,null,null,null,null,null,null,null,null,null,null,null,null,null,null,null,null,null,null,null,null,null,null,null,null,null,null,null,null,null,null,null,null,null,null,null,null,null,null,null,null,null,null,null,"2026-05-05",null,46147]
[null,null,null,null,null,null,null,null,null,null,null,null,null,null,null,null,null,null,null,null,null,null,null,null,null,null,null,null,null,null,null,null,null,null,null,null,null,null,null,null,null,null,null,null,null,null,null,null,null,null,null,null,null,null,null,null,null,null,null,null,null,null,null,null,null,null,null,null,null,null,null,null,null,null,null,null,null,null,null,null,null,null,null,null,null,null,null,null,null,null,null,null,null,null,null,null,null,null,null,null,null,null,null,null,null,null,null,null,null,null,null,null,null,null,null,null,null,null,null,null,null,null,null,null,null,null,null,null,null,null,null,null,null,null,null,null,null,null,null,null,"2026-05-06",null,46148]
[null,null,null,null,null,null,null,null,null,null,null,null,null,null,null,null,null,null,null,null,null,null,null,null,null,null,null,null,null,null,null,null,null,null,null,null,null,null,null,null,null,null,null,null,null,null,null,null,null,null,null,null,null,null,null,null,null,null,null,null,null,null,null,null,null,null,null,null,null,null,null,null,null,null,null,null,null,null,null,null,null,null,null,null,null,null,null,null,null,null,null,null,null,null,null,null,null,null,null,null,null,null,null,null,null,null,null,null,null,null,null,null,null,null,null,null,null,null,null,null,null,null,null,null,null,null,null,null,null,null,null,null,null,null,null,null,null,null,null,null,"2026-07-20",null,46223]
[null,null,null,null,null,null,null,null,null,null,null,null,null,null,null,null,null,null,null,null,null,null,null,null,null,null,null,null,null,null,null,null,null,null,null,null,null,null,null,null,null,null,null,null,null,null,null,null,null,null,null,null,null,null,null,null,null,null,null,null,null,null,null,null,null,null,null,null,null,null,null,null,null,null,null,null,null,null,null,null,null,null,null,null,null,null,null,null,null,null,null,null,null,null,null,null,null,null,null,null,null,null,null,null,null,null,null,null,null,null,null,null,null,null,null,null,null,null,null,null,null,null,null,null,null,null,null,null,null,null,null,null,null,null,null,null,null,null,null,null,"2026-08-11",null,46245]
[null,null,null,null,null,null,null,null,null,null,null,null,null,null,null,null,null,null,null,null,null,null,null,null,null,null,null,null,null,null,null,null,null,null,null,null,null,null,null,null,null,null,null,null,null,null,null,null,null,null,null,null,null,null,null,null,null,null,null,null,null,null,null,null,null,null,null,null,null,null,null,null,null,null,null,null,null,null,null,null,null,null,null,null,null,null,null,null,null,null,null,null,null,null,null,null,null,null,null,null,null,null,null,null,null,null,null,null,null,null,null,null,null,null,null,null,null,null,null,null,null,null,null,null,null,null,null,null,null,null,null,null,null,null,null,null,null,null,null,null,"2026-09-21",null,46286]
[null,null,null,null,null,null,null,null,null,null,null,null,null,null,null,null,null,null,null,null,null,null,null,null,null,null,null,null,null,null,null,null,null,null,null,null,null,null,null,null,null,null,null,null,null,null,null,null,null,null,null,null,null,null,null,null,null,null,null,null,null,null,null,null,null,null,null,null,null,null,null,null,null,null,null,null,null,null,null,null,null,null,null,null,null,null,null,null,null,null,null,null,null,null,null,null,null,null,null,null,null,null,null,null,null,null,null,null,null,null,null,null,null,null,null,null,null,null,null,null,null,null,null,null,null,null,null,null,null,null,null,null,null,null,null,null,null,null,null,null,"2026-09-22",null,46287]
[null,null,null,null,null,null,null,null,null,null,null,null,null,null,null,null,null,null,null,null,null,null,null,null,null,null,null,null,null,null,null,null,null,null,null,null,null,null,null,null,null,null,null,null,null,null,null,null,null,null,null,null,null,null,null,null,null,null,null,null,null,null,null,null,null,null,null,null,null,null,null,null,null,null,null,null,null,null,null,null,null,null,null,null,null,null,null,null,null,null,null,null,null,null,null,null,null,null,null,null,null,null,null,null,null,null,null,null,null,null,null,null,null,null,null,null,null,null,null,null,null,null,null,null,null,null,null,null,null,null,null,null,null,null,null,null,null,null,null,null,"2026-09-23",null,46288]
[null,null,null,null,null,null,null,null,null,null,null,null,null,null,null,null,null,null,null,null,null,null,null,null,null,null,null,null,null,null,null,null,null,null,null,null,null,null,null,null,null,null,null,null,null,null,null,null,null,null,null,null,null,null,null,null,null,null,null,null,null,null,null,null,null,null,null,null,null,null,null,null,null,null,null,null,null,null,null,null,null,null,null,null,null,null,null,null,null,null,null,null,null,null,null,null,null,null,null,null,null,null,null,null,null,null,null,null,null,null,null,null,null,null,null,null,null,null,null,null,null,null,null,null,null,null,null,null,null,null,null,null,null,null,null,null,null,null,null,null,"2026-10-12",null,46307]
[null,null,null,null,null,null,null,null,null,null,null,null,null,null,null,null,null,null,null,null,null,null,null,null,null,null,null,null,null,null,null,null,null,null,null,null,null,null,null,null,null,null,null,null,null,null,null,null,null,null,null,null,null,null,null,null,null,null,null,null,null,null,null,null,null,null,null,null,null,null,null,null,null,null,null,null,null,null,null,null,null,null,null,null,null,null,null,null,null,null,null,null,null,null,null,null,null,null,null,null,null,null,null,null,null,null,null,null,null,null,null,null,null,null,null,null,null,null,null,null,null,null,null,null,null,null,null,null,null,null,null,null,null,null,null,null,null,null,null,null,"2026-11-03",null,46329]
[null,null,null,null,null,null,null,null,null,null,null,null,null,null,null,null,null,null,null,null,null,null,null,null,null,null,null,null,null,null,null,null,null,null,null,null,null,null,null,null,null,null,null,null,null,null,null,null,null,null,null,null,null,null,null,null,null,null,null,null,null,null,null,null,null,null,null,null,null,null,null,null,null,null,null,null,null,null,null,null,null,null,null,null,null,null,null,null,null,null,null,null,null,null,null,null,null,null,null,null,null,null,null,null,null,null,null,null,null,null,null,null,null,null,null,null,null,null,null,null,null,null,null,null,null,null,null,null,null,null,null,null,null,null,null,null,null,null,null,null,"2026-11-23",null,46349]
[null,null,null,null,null,null,null,null,null,null,null,null,null,null,null,null,null,null,null,null,null,null,null,null,null,null,null,null,null,null,null,null,null,null,null,null,null,null,null,null,null,null,null,null,null,null,null,null,null,null,null,null,null,null,null,null,null,null,null,null,null,null,null,null,null,null,null,null,null,null,null,null,null,null,null,null,null,null,null,null,null,null,null,null,null,null,null,null,null,null,null,null,null,null,null,null,null,null,null,null,null,null,null,null,null,null,null,null,null,null,null,null,null,null,null,null,null,null,null,null,null,null,null,null,null,null,null,null,null,null,null,null,null,null,null,null,null,null,null,null,"2026-12-29",null,46385]
[null,null,null,null,null,null,null,null,null,null,null,null,null,null,null,null,null,null,null,null,null,null,null,null,null,null,null,null,null,null,null,null,null,null,null,null,null,null,null,null,null,null,null,null,null,null,null,null,null,null,null,null,null,null,null,null,null,null,null,null,null,null,null,null,null,null,null,null,null,null,null,null,null,null,null,null,null,null,null,null,null,null,null,null,null,null,null,null,null,null,null,null,null,null,null,null,null,null,null,null,null,null,null,null,null,null,null,null,null,null,null,null,null,null,null,null,null,null,null,null,null,null,null,null,null,null,null,null,null,null,null,null,null,null,null,null,null,null,null,null,"2026-12-30",null,46386]
[null,null,null,null,null,null,null,null,null,null,null,null,null,null,null,null,null,null,null,null,null,null,null,null,null,null,null,null,null,null,null,null,null,null,null,null,null,null,null,null,null,null,null,null,null,null,null,null,null,null,null,null,null,null,null,null,null,null,null,null,null,null,null,null,null,null,null,null,null,null,null,null,null,null,null,null,null,null,null,null,null,null,null,null,null,null,null,null,null,null,null,null,null,null,null,null,null,null,null,null,null,null,null,null,null,null,null,null,null,null,null,null,null,null,null,null,null,null,null,null,null,null,null,null,null,null,null,null,null,null,null,null,null,null,null,null,null,null,null,null,"2026-12-31",null,46387]
[null,null,null,null,null,null,null,null,null,null,null,null,null,null,null,null,null,null,null,null,null,null,null,null,null,null,null,null,null,null,null,null,null,null,null,null,null,null,null,null,null,null,null,null,null,null,null,null,null,null,null,null,null,null,null,null,null,null,null,null,null,null,null,null,null,null,null,null,null,null,null,null,null,null,null,null,null,null,null,null,null,null,null,null,null,null,null,null,null,null,null,null,null,null,null,null,null,null,null,null,null,null,null,null,null,null,null,null,null,null,null,null,null,null,null,null,null,null,null,null,null,null,null,null,null,null,null,null,null,null,null,null,null,null,null,null,null,null,null,null,"2027-01-01",null,46388]
[null,null,null,null,null,null,null,null,null,null,null,null,null,null,null,null,null,null,null,null,null,null,null,null,null,null,null,null,null,null,null,null,null,null,null,null,null,null,null,null,null,null,null,null,null,null,null,null,null,null,null,null,null,null,null,null,null,null,null,null,null,null,null,null,null,null,null,null,null,null,null,null,null,null,null,null,null,null,null,null,null,null,null,null,null,null,null,null,null,null,null,null,null,null,null,null,null,null,null,null,null,null,null,null,null,null,null,null,null,null,null,null,null,null,null,null,null,null,null,null,null,null,null,null,null,null,null,null,null,null,null,null,null,null,null,null,null,null,null,null,"2027-01-02",null,46389]
[null,null,null,null,null,null,null,null,null,null,null,null,null,null,null,null,null,null,null,null,null,null,null,null,null,null,null,null,null,null,null,null,null,null,null,null,null,null,null,null,null,null,null,null,null,null,null,null,null,null,null,null,null,null,null,null,null,null,null,null,null,null,null,null,null,null,null,null,null,null,null,null,null,null,null,null,null,null,null,null,null,null,null,null,null,null,null,null,null,null,null,null,null,null,null,null,null,null,null,null,null,null,null,null,null,null,null,null,null,null,null,null,null,null,null,null,null,null,null,null,null,null,null,null,null,null,null,null,null,null,null,null,null,null,null,null,null,null,null,null,"2027-01-03",null,46390]
[null,null,null,null,null,null,null,null,null,null,null,null,null,null,null,null,null,null,null,null,null,null,null,null,null,null,null,null,null,null,null,null,null,null,null,null,null,null,null,null,null,null,null,null,null,null,null,null,null,null,null,null,null,null,null,null,null,null,null,null,null,null,null,null,null,null,null,null,null,null,null,null,null,null,null,null,null,null,null,null,null,null,null,null,null,null,null,null,null,null,null,null,null,null,null,null,null,null,null,null,null,null,null,null,null,null,null,null,null,null,null,null,null,null,null,null,null,null,null,null,null,null,null,null,null,null,null,null,null,null,null,null,null,null,null,null,null,null,null,null,"2027-01-11",null,46398]
[null,null,null,null,null,null,null,null,null,null,null,null,null,null,null,null,null,null,null,null,null,null,null,null,null,null,null,null,null,null,null,null,null,null,null,null,null,null,null,null,null,null,null,null,null,null,null,null,null,null,null,null,null,null,null,null,null,null,null,null,null,null,null,null,null,null,null,null,null,null,null,null,null,null,null,null,null,null,null,null,null,null,null,null,null,null,null,null,null,null,null,null,null,null,null,null,null,null,null,null,null,null,null,null,null,null,null,null,null,null,null,null,null,null,null,null,null,null,null,null,null,null,null,null,null,null,null,null,null,null,null,null,null,null,null,null,null,null,null,null,"2027-02-11",null,46429]
[null,null,null,null,null,null,null,null,null,null,null,null,null,null,null,null,null,null,null,null,null,null,null,null,null,null,null,null,null,null,null,null,null,null,null,null,null,null,null,null,null,null,null,null,null,null,null,null,null,null,null,null,null,null,null,null,null,null,null,null,null,null,null,null,null,null,null,null,null,null,null,null,null,null,null,null,null,null,null,null,null,null,null,null,null,null,null,null,null,null,null,null,null,null,null,null,null,null,null,null,null,null,null,null,null,null,null,null,null,null,null,null,null,null,null,null,null,null,null,null,null,null,null,null,null,null,null,null,null,null,null,null,null,null,null,null,null,null,null,null,"2027-02-23",null,46441]
[null,null,null,null,null,null,null,null,null,null,null,null,null,null,null,null,null,null,null,null,null,null,null,null,null,null,null,null,null,null,null,null,null,null,null,null,null,null,null,null,null,null,null,null,null,null,null,null,null,null,null,null,null,null,null,null,null,null,null,null,null,null,null,null,null,null,null,null,null,null,null,null,null,null,null,null,null,null,null,null,null,null,null,null,null,null,null,null,null,null,null,null,null,null,null,null,null,null,null,null,null,null,null,null,null,null,null,null,null,null,null,null,null,null,null,null,null,null,null,null,null,null,null,null,null,null,null,null,null,null,null,null,null,null,null,null,null,null,null,null,"2027-03-21",null,46467]
[null,null,null,null,null,null,null,null,null,null,null,null,null,null,null,null,null,null,null,null,null,null,null,null,null,null,null,null,null,null,null,null,null,null,null,null,null,null,null,null,null,null,null,null,null,null,null,null,null,null,null,null,null,null,null,null,null,null,null,null,null,null,null,null,null,null,null,null,null,null,null,null,null,null,null,null,null,null,null,null,null,null,null,null,null,null,null,null,null,null,null,null,null,null,null,null,null,null,null,null,null,null,null,null,null,null,null,null,null,null,null,null,null,null,null,null,null,null,null,null,null,null,null,null,null,null,null,null,null,null,null,null,null,null,null,null,null,null,null,null,"2027-03-22",null,46468]
[null,null,null,null,null,null,null,null,null,null,null,null,null,null,null,null,null,null,null,null,null,null,null,null,null,null,null,null,null,null,null,null,null,null,null,null,null,null,null,null,null,null,null,null,null,null,null,null,null,null,null,null,null,null,null,null,null,null,null,null,null,null,null,null,null,null,null,null,null,null,null,null,null,null,null,null,null,null,null,null,null,null,null,null,null,null,null,null,null,null,null,null,null,null,null,null,null,null,null,null,null,null,null,null,null,null,null,null,null,null,null,null,null,null,null,null,null,null,null,null,null,null,null,null,null,null,null,null,null,null,null,null,null,null,null,null,null,null,null,null,"2027-04-29",null,46506]
[null,null,null,null,null,null,null,null,null,null,null,null,null,null,null,null,null,null,null,null,null,null,null,null,null,null,null,null,null,null,null,null,null,null,null,null,null,null,null,null,null,null,null,null,null,null,null,null,null,null,null,null,null,null,null,null,null,null,null,null,null,null,null,null,null,null,null,null,null,null,null,null,null,null,null,null,null,null,null,null,null,null,null,null,null,null,null,null,null,null,null,null,null,null,null,null,null,null,null,null,null,null,null,null,null,null,null,null,null,null,null,null,null,null,null,null,null,null,null,null,null,null,null,null,null,null,null,null,null,null,null,null,null,null,null,null,null,null,null,null,"2027-05-03",null,46510]
[null,null,null,null,null,null,null,null,null,null,null,null,null,null,null,null,null,null,null,null,null,null,null,null,null,null,null,null,null,null,null,null,null,null,null,null,null,null,null,null,null,null,null,null,null,null,null,null,null,null,null,null,null,null,null,null,null,null,null,null,null,null,null,null,null,null,null,null,null,null,null,null,null,null,null,null,null,null,null,null,null,null,null,null,null,null,null,null,null,null,null,null,null,null,null,null,null,null,null,null,null,null,null,null,null,null,null,null,null,null,null,null,null,null,null,null,null,null,null,null,null,null,null,null,null,null,null,null,null,null,null,null,null,null,null,null,null,null,null,null,"2027-05-04",null,46511]
[null,null,null,null,null,null,null,null,null,null,null,null,null,null,null,null,null,null,null,null,null,null,null,null,null,null,null,null,null,null,null,null,null,null,null,null,null,null,null,null,null,null,null,null,null,null,null,null,null,null,null,null,null,null,null,null,null,null,null,null,null,null,null,null,null,null,null,null,null,null,null,null,null,null,null,null,null,null,null,null,null,null,null,null,null,null,null,null,null,null,null,null,null,null,null,null,null,null,null,null,null,null,null,null,null,null,null,null,null,null,null,null,null,null,null,null,null,null,null,null,null,null,null,null,null,null,null,null,null,null,null,null,null,null,null,null,null,null,null,null,"2027-05-05",null,46512]
[null,null,null,null,null,null,null,null,null,null,null,null,null,null,null,null,null,null,null,null,null,null,null,null,null,null,null,null,null,null,null,null,null,null,null,null,null,null,null,null,null,null,null,null,null,null,null,null,null,null,null,null,null,null,null,null,null,null,null,null,null,null,null,null,null,null,null,null,null,null,null,null,null,null,null,null,null,null,null,null,null,null,null,null,null,null,null,null,null,null,null,null,null,null,null,null,null,null,null,null,null,null,null,null,null,null,null,null,null,null,null,null,null,null,null,null,null,null,null,null,null,null,null,null,null,null,null,null,null,null,null,null,null,null,null,null,null,null,null,null,"2027-07-19",null,46587]
[null,null,null,null,null,null,null,null,null,null,null,null,null,null,null,null,null,null,null,null,null,null,null,null,null,null,null,null,null,null,null,null,null,null,null,null,null,null,null,null,null,null,null,null,null,null,null,null,null,null,null,null,null,null,null,null,null,null,null,null,null,null,null,null,null,null,null,null,null,null,null,null,null,null,null,null,null,null,null,null,null,null,null,null,null,null,null,null,null,null,null,null,null,null,null,null,null,null,null,null,null,null,null,null,null,null,null,null,null,null,null,null,null,null,null,null,null,null,null,null,null,null,null,null,null,null,null,null,null,null,null,null,null,null,null,null,null,null,null,null,"2027-08-11",null,46610]
[null,null,null,null,null,null,null,null,null,null,null,null,null,null,null,null,null,null,null,null,null,null,null,null,null,null,null,null,null,null,null,null,null,null,null,null,null,null,null,null,null,null,null,null,null,null,null,null,null,null,null,null,null,null,null,null,null,null,null,null,null,null,null,null,null,null,null,null,null,null,null,null,null,null,null,null,null,null,null,null,null,null,null,null,null,null,null,null,null,null,null,null,null,null,null,null,null,null,null,null,null,null,null,null,null,null,null,null,null,null,null,null,null,null,null,null,null,null,null,null,null,null,null,null,null,null,null,null,null,null,null,null,null,null,null,null,null,null,null,null,"2027-09-20",null,46650]
[null,null,null,null,null,null,null,null,null,null,null,null,null,null,null,null,null,null,null,null,null,null,null,null,null,null,null,null,null,null,null,null,null,null,null,null,null,null,null,null,null,null,null,null,null,null,null,null,null,null,null,null,null,null,null,null,null,null,null,null,null,null,null,null,null,null,null,null,null,null,null,null,null,null,null,null,null,null,null,null,null,null,null,null,null,null,null,null,null,null,null,null,null,null,null,null,null,null,null,null,null,null,null,null,null,null,null,null,null,null,null,null,null,null,null,null,null,null,null,null,null,null,null,null,null,null,null,null,null,null,null,null,null,null,null,null,null,null,null,null,"2027-09-23",null,46653]
[null,null,null,null,null,null,null,null,null,null,null,null,null,null,null,null,null,null,null,null,null,null,null,null,null,null,null,null,null,null,null,null,null,null,null,null,null,null,null,null,null,null,null,null,null,null,null,null,null,null,null,null,null,null,null,null,null,null,null,null,null,null,null,null,null,null,null,null,null,null,null,null,null,null,null,null,null,null,null,null,null,null,null,null,null,null,null,null,null,null,null,null,null,null,null,null,null,null,null,null,null,null,null,null,null,null,null,null,null,null,null,null,null,null,null,null,null,null,null,null,null,null,null,null,null,null,null,null,null,null,null,null,null,null,null,null,null,null,null,null,"2027-10-11",null,46671]
[null,null,null,null,null,null,null,null,null,null,null,null,null,null,null,null,null,null,null,null,null,null,null,null,null,null,null,null,null,null,null,null,null,null,null,null,null,null,null,null,null,null,null,null,null,null,null,null,null,null,null,null,null,null,null,null,null,null,null,null,null,null,null,null,null,null,null,null,null,null,null,null,null,null,null,null,null,null,null,null,null,null,null,null,null,null,null,null,null,null,null,null,null,null,null,null,null,null,null,null,null,null,null,null,null,null,null,null,null,null,null,null,null,null,null,null,null,null,null,null,null,null,null,null,null,null,null,null,null,null,null,null,null,null,null,null,null,null,null,null,"2027-11-03",null,46694]
[null,null,null,null,null,null,null,null,null,null,null,null,null,null,null,null,null,null,null,null,null,null,null,null,null,null,null,null,null,null,null,null,null,null,null,null,null,null,null,null,null,null,null,null,null,null,null,null,null,null,null,null,null,null,null,null,null,null,null,null,null,null,null,null,null,null,null,null,null,null,null,null,null,null,null,null,null,null,null,null,null,null,null,null,null,null,null,null,null,null,null,null,null,null,null,null,null,null,null,null,null,null,null,null,null,null,null,null,null,null,null,null,null,null,null,null,null,null,null,null,null,null,null,null,null,null,null,null,null,null,null,null,null,null,null,null,null,null,null,null,"2027-11-23",null,46714]
[null,null,null,null,null,null,null,null,null,null,null,null,null,null,null,null,null,null,null,null,null,null,null,null,null,null,null,null,null,null,null,null,null,null,null,null,null,null,null,null,null,null,null,null,null,null,null,null,null,null,null,null,null,null,null,null,null,null,null,null,null,null,null,null,null,null,null,null,null,null,null,null,null,null,null,null,null,null,null,null,null,null,null,null,null,null,null,null,null,null,null,null,null,null,null,null,null,null,null,null,null,null,null,null,null,null,null,null,null,null,null,null,null,null,null,null,null,null,null,null,null,null,null,null,null,null,null,null,null,null,null,null,null,null,null,null,null,null,null,null,"2027-12-29",null,46750]
[null,null,null,null,null,null,null,null,null,null,null,null,null,null,null,null,null,null,null,null,null,null,null,null,null,null,null,null,null,null,null,null,null,null,null,null,null,null,null,null,null,null,null,null,null,null,null,null,null,null,null,null,null,null,null,null,null,null,null,null,null,null,null,null,null,null,null,null,null,null,null,null,null,null,null,null,null,null,null,null,null,null,null,null,null,null,null,null,null,null,null,null,null,null,null,null,null,null,null,null,null,null,null,null,null,null,null,null,null,null,null,null,null,null,null,null,null,null,null,null,null,null,null,null,null,null,null,null,null,null,null,null,null,null,null,null,null,null,null,null,"2027-12-30",null,46751]
[null,null,null,null,null,null,null,null,null,null,null,null,null,null,null,null,null,null,null,null,null,null,null,null,null,null,null,null,null,null,null,null,null,null,null,null,null,null,null,null,null,null,null,null,null,null,null,null,null,null,null,null,null,null,null,null,null,null,null,null,null,null,null,null,null,null,null,null,null,null,null,null,null,null,null,null,null,null,null,null,null,null,null,null,null,null,null,null,null,null,null,null,null,null,null,null,null,null,null,null,null,null,null,null,null,null,null,null,null,null,null,null,null,null,null,null,null,null,null,null,null,null,null,null,null,null,null,null,null,null,null,null,null,null,null,null,null,null,null,null,"2027-12-31",null,46752]
[null,null,null,null,null,null,null,null,null,null,null,null,null,null,null,null,null,null,null,null,null,null,null,null,null,null,null,null,null,null,null,null,null,null,null,null,null,null,null,null,null,null,null,null,null,null,null,null,null,null,null,null,null,null,null,null,null,null,null,null,null,null,null,null,null,null,null,null,null,null,null,null,null,null,null,null,null,null,null,null,null,null,null,null,null,null,null,null,null,null,null,null,null,null,null,null,null,null,null,null,null,null,null,null,null,null,null,null,null,null,null,null,null,null,null,null,null,null,null,null,null,null,null,null,null,null,null,null,null,null,null,null,null,null,null,null,null,null,null,null,"2028-01-01",null,46753]
[null,null,null,null,null,null,null,null,null,null,null,null,null,null,null,null,null,null,null,null,null,null,null,null,null,null,null,null,null,null,null,null,null,null,null,null,null,null,null,null,null,null,null,null,null,null,null,null,null,null,null,null,null,null,null,null,null,null,null,null,null,null,null,null,null,null,null,null,null,null,null,null,null,null,null,null,null,null,null,null,null,null,null,null,null,null,null,null,null,null,null,null,null,null,null,null,null,null,null,null,null,null,null,null,null,null,null,null,null,null,null,null,null,null,null,null,null,null,null,null,null,null,null,null,null,null,null,null,null,null,null,null,null,null,null,null,null,null,null,null,"2028-01-02",null,46754]
[null,null,null,null,null,null,null,null,null,null,null,null,null,null,null,null,null,null,null,null,null,null,null,null,null,null,null,null,null,null,null,null,null,null,null,null,null,null,null,null,null,null,null,null,null,null,null,null,null,null,null,null,null,null,null,null,null,null,null,null,null,null,null,null,null,null,null,null,null,null,null,null,null,null,null,null,null,null,null,null,null,null,null,null,null,null,null,null,null,null,null,null,null,null,null,null,null,null,null,null,null,null,null,null,null,null,null,null,null,null,null,null,null,null,null,null,null,null,null,null,null,null,null,null,null,null,null,null,null,null,null,null,null,null,null,null,null,null,null,null,"2028-01-03",null,46755]
[null,null,null,null,null,null,null,null,null,null,null,null,null,null,null,null,null,null,null,null,null,null,null,null,null,null,null,null,null,null,null,null,null,null,null,null,null,null,null,null,null,null,null,null,null,null,null,null,null,null,null,null,null,null,null,null,null,null,null,null,null,null,null,null,null,null,null,null,null,null,null,null,null,null,null,null,null,null,null,null,null,null,null,null,null,null,null,null,null,null,null,null,null,null,null,null,null,null,null,null,null,null,null,null,null,null,null,null,null,null,null,null,null,null,null,null,null,null,null,null,null,null,null,null,null,null,null,null,null,null,null,null,null,null,null,null,null,null,null,null,"2028-01-10",null,46762]
[null,null,null,null,null,null,null,null,null,null,null,null,null,null,null,null,null,null,null,null,null,null,null,null,null,null,null,null,null,null,null,null,null,null,null,null,null,null,null,null,null,null,null,null,null,null,null,null,null,null,null,null,null,null,null,null,null,null,null,null,null,null,null,null,null,null,null,null,null,null,null,null,null,null,null,null,null,null,null,null,null,null,null,null,null,null,null,null,null,null,null,null,null,null,null,null,null,null,null,null,null,null,null,null,null,null,null,null,null,null,null,null,null,null,null,null,null,null,null,null,null,null,null,null,null,null,null,null,null,null,null,null,null,null,null,null,null,null,null,null,"2028-02-11",null,46794]
[null,null,null,null,null,null,null,null,null,null,null,null,null,null,null,null,null,null,null,null,null,null,null,null,null,null,null,null,null,null,null,null,null,null,null,null,null,null,null,null,null,null,null,null,null,null,null,null,null,null,null,null,null,null,null,null,null,null,null,null,null,null,null,null,null,null,null,null,null,null,null,null,null,null,null,null,null,null,null,null,null,null,null,null,null,null,null,null,null,null,null,null,null,null,null,null,null,null,null,null,null,null,null,null,null,null,null,null,null,null,null,null,null,null,null,null,null,null,null,null,null,null,null,null,null,null,null,null,null,null,null,null,null,null,null,null,null,null,null,null,"2028-02-23",null,46806]
[null,null,null,null,null,null,null,null,null,null,null,null,null,null,null,null,null,null,null,null,null,null,null,null,null,null,null,null,null,null,null,null,null,null,null,null,null,null,null,null,null,null,null,null,null,null,null,null,null,null,null,null,null,null,null,null,null,null,null,null,null,null,null,null,null,null,null,null,null,null,null,null,null,null,null,null,null,null,null,null,null,null,null,null,null,null,null,null,null,null,null,null,null,null,null,null,null,null,null,null,null,null,null,null,null,null,null,null,null,null,null,null,null,null,null,null,null,null,null,null,null,null,null,null,null,null,null,null,null,null,null,null,null,null,null,null,null,null,null,null,"2028-03-20",null,46832]
[null,null,null,null,null,null,null,null,null,null,null,null,null,null,null,null,null,null,null,null,null,null,null,null,null,null,null,null,null,null,null,null,null,null,null,null,null,null,null,null,null,null,null,null,null,null,null,null,null,null,null,null,null,null,null,null,null,null,null,null,null,null,null,null,null,null,null,null,null,null,null,null,null,null,null,null,null,null,null,null,null,null,null,null,null,null,null,null,null,null,null,null,null,null,null,null,null,null,null,null,null,null,null,null,null,null,null,null,null,null,null,null,null,null,null,null,null,null,null,null,null,null,null,null,null,null,null,null,null,null,null,null,null,null,null,null,null,null,null,null,"2028-04-29",null,46872]
[null,null,null,null,null,null,null,null,null,null,null,null,null,null,null,null,null,null,null,null,null,null,null,null,null,null,null,null,null,null,null,null,null,null,null,null,null,null,null,null,null,null,null,null,null,null,null,null,null,null,null,null,null,null,null,null,null,null,null,null,null,null,null,null,null,null,null,null,null,null,null,null,null,null,null,null,null,null,null,null,null,null,null,null,null,null,null,null,null,null,null,null,null,null,null,null,null,null,null,null,null,null,null,null,null,null,null,null,null,null,null,null,null,null,null,null,null,null,null,null,null,null,null,null,null,null,null,null,null,null,null,null,null,null,null,null,null,null,null,null,"2028-05-03",null,46876]
[null,null,null,null,null,null,null,null,null,null,null,null,null,null,null,null,null,null,null,null,null,null,null,null,null,null,null,null,null,null,null,null,null,null,null,null,null,null,null,null,null,null,null,null,null,null,null,null,null,null,null,null,null,null,null,null,null,null,null,null,null,null,null,null,null,null,null,null,null,null,null,null,null,null,null,null,null,null,null,null,null,null,null,null,null,null,null,null,null,null,null,null,null,null,null,null,null,null,null,null,null,null,null,null,null,null,null,null,null,null,null,null,null,null,null,null,null,null,null,null,null,null,null,null,null,null,null,null,null,null,null,null,null,null,null,null,null,null,null,null,"2028-05-04",null,46877]
[null,null,null,null,null,null,null,null,null,null,null,null,null,null,null,null,null,null,null,null,null,null,null,null,null,null,null,null,null,null,null,null,null,null,null,null,null,null,null,null,null,null,null,null,null,null,null,null,null,null,null,null,null,null,null,null,null,null,null,null,null,null,null,null,null,null,null,null,null,null,null,null,null,null,null,null,null,null,null,null,null,null,null,null,null,null,null,null,null,null,null,null,null,null,null,null,null,null,null,null,null,null,null,null,null,null,null,null,null,null,null,null,null,null,null,null,null,null,null,null,null,null,null,null,null,null,null,null,null,null,null,null,null,null,null,null,null,null,null,null,"2028-05-05",null,46878]
[null,null,null,null,null,null,null,null,null,null,null,null,null,null,null,null,null,null,null,null,null,null,null,null,null,null,null,null,null,null,null,null,null,null,null,null,null,null,null,null,null,null,null,null,null,null,null,null,null,null,null,null,null,null,null,null,null,null,null,null,null,null,null,null,null,null,null,null,null,null,null,null,null,null,null,null,null,null,null,null,null,null,null,null,null,null,null,null,null,null,null,null,null,null,null,null,null,null,null,null,null,null,null,null,null,null,null,null,null,null,null,null,null,null,null,null,null,null,null,null,null,null,null,null,null,null,null,null,null,null,null,null,null,null,null,null,null,null,null,null,"2028-07-17",null,46951]
[null,null,null,null,null,null,null,null,null,null,null,null,null,null,null,null,null,null,null,null,null,null,null,null,null,null,null,null,null,null,null,null,null,null,null,null,null,null,null,null,null,null,null,null,null,null,null,null,null,null,null,null,null,null,null,null,null,null,null,null,null,null,null,null,null,null,null,null,null,null,null,null,null,null,null,null,null,null,null,null,null,null,null,null,null,null,null,null,null,null,null,null,null,null,null,null,null,null,null,null,null,null,null,null,null,null,null,null,null,null,null,null,null,null,null,null,null,null,null,null,null,null,null,null,null,null,null,null,null,null,null,null,null,null,null,null,null,null,null,null,"2028-08-11",null,46976]
[null,null,null,null,null,null,null,null,null,null,null,null,null,null,null,null,null,null,null,null,null,null,null,null,null,null,null,null,null,null,null,null,null,null,null,null,null,null,null,null,null,null,null,null,null,null,null,null,null,null,null,null,null,null,null,null,null,null,null,null,null,null,null,null,null,null,null,null,null,null,null,null,null,null,null,null,null,null,null,null,null,null,null,null,null,null,null,null,null,null,null,null,null,null,null,null,null,null,null,null,null,null,null,null,null,null,null,null,null,null,null,null,null,null,null,null,null,null,null,null,null,null,null,null,null,null,null,null,null,null,null,null,null,null,null,null,null,null,null,null,"2028-09-18",null,47014]
[null,null,null,null,null,null,null,null,null,null,null,null,null,null,null,null,null,null,null,null,null,null,null,null,null,null,null,null,null,null,null,null,null,null,null,null,null,null,null,null,null,null,null,null,null,null,null,null,null,null,null,null,null,null,null,null,null,null,null,null,null,null,null,null,null,null,null,null,null,null,null,null,null,null,null,null,null,null,null,null,null,null,null,null,null,null,null,null,null,null,null,null,null,null,null,null,null,null,null,null,null,null,null,null,null,null,null,null,null,null,null,null,null,null,null,null,null,null,null,null,null,null,null,null,null,null,null,null,null,null,null,null,null,null,null,null,null,null,null,null,"2028-09-22",null,47018]
[null,null,null,null,null,null,null,null,null,null,null,null,null,null,null,null,null,null,null,null,null,null,null,null,null,null,null,null,null,null,null,null,null,null,null,null,null,null,null,null,null,null,null,null,null,null,null,null,null,null,null,null,null,null,null,null,null,null,null,null,null,null,null,null,null,null,null,null,null,null,null,null,null,null,null,null,null,null,null,null,null,null,null,null,null,null,null,null,null,null,null,null,null,null,null,null,null,null,null,null,null,null,null,null,null,null,null,null,null,null,null,null,null,null,null,null,null,null,null,null,null,null,null,null,null,null,null,null,null,null,null,null,null,null,null,null,null,null,null,null,"2028-10-09",null,47035]
[null,null,null,null,null,null,null,null,null,null,null,null,null,null,null,null,null,null,null,null,null,null,null,null,null,null,null,null,null,null,null,null,null,null,null,null,null,null,null,null,null,null,null,null,null,null,null,null,null,null,null,null,null,null,null,null,null,null,null,null,null,null,null,null,null,null,null,null,null,null,null,null,null,null,null,null,null,null,null,null,null,null,null,null,null,null,null,null,null,null,null,null,null,null,null,null,null,null,null,null,null,null,null,null,null,null,null,null,null,null,null,null,null,null,null,null,null,null,null,null,null,null,null,null,null,null,null,null,null,null,null,null,null,null,null,null,null,null,null,null,"2028-11-03",null,47060]
[null,null,null,null,null,null,null,null,null,null,null,null,null,null,null,null,null,null,null,null,null,null,null,null,null,null,null,null,null,null,null,null,null,null,null,null,null,null,null,null,null,null,null,null,null,null,null,null,null,null,null,null,null,null,null,null,null,null,null,null,null,null,null,null,null,null,null,null,null,null,null,null,null,null,null,null,null,null,null,null,null,null,null,null,null,null,null,null,null,null,null,null,null,null,null,null,null,null,null,null,null,null,null,null,null,null,null,null,null,null,null,null,null,null,null,null,null,null,null,null,null,null,null,null,null,null,null,null,null,null,null,null,null,null,null,null,null,null,null,null,"2028-11-23",null,47080]
[null,null,null,null,null,null,null,null,null,null,null,null,null,null,null,null,null,null,null,null,null,null,null,null,null,null,null,null,null,null,null,null,null,null,null,null,null,null,null,null,null,null,null,null,null,null,null,null,null,null,null,null,null,null,null,null,null,null,null,null,null,null,null,null,null,null,null,null,null,null,null,null,null,null,null,null,null,null,null,null,null,null,null,null,null,null,null,null,null,null,null,null,null,null,null,null,null,null,null,null,null,null,null,null,null,null,null,null,null,null,null,null,null,null,null,null,null,null,null,null,null,null,null,null,null,null,null,null,null,null,null,null,null,null,null,null,null,null,null,null,"2028-12-29",null,47116]
[null,null,null,null,null,null,null,null,null,null,null,null,null,null,null,null,null,null,null,null,null,null,null,null,null,null,null,null,null,null,null,null,null,null,null,null,null,null,null,null,null,null,null,null,null,null,null,null,null,null,null,null,null,null,null,null,null,null,null,null,null,null,null,null,null,null,null,null,null,null,null,null,null,null,null,null,null,null,null,null,null,null,null,null,null,null,null,null,null,null,null,null,null,null,null,null,null,null,null,null,null,null,null,null,null,null,null,null,null,null,null,null,null,null,null,null,null,null,null,null,null,null,null,null,null,null,null,null,null,null,null,null,null,null,null,null,null,null,null,null,"2028-12-30",null,47117]
[null,null,null,null,null,null,null,null,null,null,null,null,null,null,null,null,null,null,null,null,null,null,null,null,null,null,null,null,null,null,null,null,null,null,null,null,null,null,null,null,null,null,null,null,null,null,null,null,null,null,null,null,null,null,null,null,null,null,null,null,null,null,null,null,null,null,null,null,null,null,null,null,null,null,null,null,null,null,null,null,null,null,null,null,null,null,null,null,null,null,null,null,null,null,null,null,null,null,null,null,null,null,null,null,null,null,null,null,null,null,null,null,null,null,null,null,null,null,null,null,null,null,null,null,null,null,null,null,null,null,null,null,null,null,null,null,null,null,null,null,"2028-12-31",null,47118]
[null,null,null,null,null,null,null,null,null,null,null,null,null,null,null,null,null,null,null,null,null,null,null,null,null,null,null,null,null,null,null,null,null,null,null,null,null,null,null,null,null,null,null,null,null,null,null,null,null,null,null,null,null,null,null,null,null,null,null,null,null,null,null,null,null,null,null,null,null,null,null,null,null,null,null,null,null,null,null,null,null,null,null,null,null,null,null,null,null,null,null,null,null,null,null,null,null,null,null,null,null,null,null,null,null,null,null,null,null,null,null,null,null,null,null,null,null,null,null,null,null,null,null,null,null,null,null,null,null,null,null,null,null,null,null,null,null,null,null,null,"2029-01-01",null,47119]
[null,null,null,null,null,null,null,null,null,null,null,null,null,null,null,null,null,null,null,null,null,null,null,null,null,null,null,null,null,null,null,null,null,null,null,null,null,null,null,null,null,null,null,null,null,null,null,null,null,null,null,null,null,null,null,null,null,null,null,null,null,null,null,null,null,null,null,null,null,null,null,null,null,null,null,null,null,null,null,null,null,null,null,null,null,null,null,null,null,null,null,null,null,null,null,null,null,null,null,null,null,null,null,null,null,null,null,null,null,null,null,null,null,null,null,null,null,null,null,null,null,null,null,null,null,null,null,null,null,null,null,null,null,null,null,null,null,null,null,null,"2029-01-02",null,47120]
[null,null,null,null,null,null,null,null,null,null,null,null,null,null,null,null,null,null,null,null,null,null,null,null,null,null,null,null,null,null,null,null,null,null,null,null,null,null,null,null,null,null,null,null,null,null,null,null,null,null,null,null,null,null,null,null,null,null,null,null,null,null,null,null,null,null,null,null,null,null,null,null,null,null,null,null,null,null,null,null,null,null,null,null,null,null,null,null,null,null,null,null,null,null,null,null,null,null,null,null,null,null,null,null,null,null,null,null,null,null,null,null,null,null,null,null,null,null,null,null,null,null,null,null,null,null,null,null,null,null,null,null,null,null,null,null,null,null,null,null,"2029-01-03",null,47121]
[null,null,null,null,null,null,null,null,null,null,null,null,null,null,null,null,null,null,null,null,null,null,null,null,null,null,null,null,null,null,null,null,null,null,null,null,null,null,null,null,null,null,null,null,null,null,null,null,null,null,null,null,null,null,null,null,null,null,null,null,null,null,null,null,null,null,null,null,null,null,null,null,null,null,null,null,null,null,null,null,null,null,null,null,null,null,null,null,null,null,null,null,null,null,null,null,null,null,null,null,null,null,null,null,null,null,null,null,null,null,null,null,null,null,null,null,null,null,null,null,null,null,null,null,null,null,null,null,null,null,null,null,null,null,null,null,null,null,null,null,"2029-01-08",null,47126]
[null,null,null,null,null,null,null,null,null,null,null,null,null,null,null,null,null,null,null,null,null,null,null,null,null,null,null,null,null,null,null,null,null,null,null,null,null,null,null,null,null,null,null,null,null,null,null,null,null,null,null,null,null,null,null,null,null,null,null,null,null,null,null,null,null,null,null,null,null,null,null,null,null,null,null,null,null,null,null,null,null,null,null,null,null,null,null,null,null,null,null,null,null,null,null,null,null,null,null,null,null,null,null,null,null,null,null,null,null,null,null,null,null,null,null,null,null,null,null,null,null,null,null,null,null,null,null,null,null,null,null,null,null,null,null,null,null,null,null,null,"2029-02-11",null,47160]
[null,null,null,null,null,null,null,null,null,null,null,null,null,null,null,null,null,null,null,null,null,null,null,null,null,null,null,null,null,null,null,null,null,null,null,null,null,null,null,null,null,null,null,null,null,null,null,null,null,null,null,null,null,null,null,null,null,null,null,null,null,null,null,null,null,null,null,null,null,null,null,null,null,null,null,null,null,null,null,null,null,null,null,null,null,null,null,null,null,null,null,null,null,null,null,null,null,null,null,null,null,null,null,null,null,null,null,null,null,null,null,null,null,null,null,null,null,null,null,null,null,null,null,null,null,null,null,null,null,null,null,null,null,null,null,null,null,null,null,null,"2029-02-12",null,47161]
[null,null,null,null,null,null,null,null,null,null,null,null,null,null,null,null,null,null,null,null,null,null,null,null,null,null,null,null,null,null,null,null,null,null,null,null,null,null,null,null,null,null,null,null,null,null,null,null,null,null,null,null,null,null,null,null,null,null,null,null,null,null,null,null,null,null,null,null,null,null,null,null,null,null,null,null,null,null,null,null,null,null,null,null,null,null,null,null,null,null,null,null,null,null,null,null,null,null,null,null,null,null,null,null,null,null,null,null,null,null,null,null,null,null,null,null,null,null,null,null,null,null,null,null,null,null,null,null,null,null,null,null,null,null,null,null,null,null,null,null,"2029-02-23",null,47172]
[null,null,null,null,null,null,null,null,null,null,null,null,null,null,null,null,null,null,null,null,null,null,null,null,null,null,null,null,null,null,null,null,null,null,null,null,null,null,null,null,null,null,null,null,null,null,null,null,null,null,null,null,null,null,null,null,null,null,null,null,null,null,null,null,null,null,null,null,null,null,null,null,null,null,null,null,null,null,null,null,null,null,null,null,null,null,null,null,null,null,null,null,null,null,null,null,null,null,null,null,null,null,null,null,null,null,null,null,null,null,null,null,null,null,null,null,null,null,null,null,null,null,null,null,null,null,null,null,null,null,null,null,null,null,null,null,null,null,null,null,"2029-03-20",null,47197]
[null,null,null,null,null,null,null,null,null,null,null,null,null,null,null,null,null,null,null,null,null,null,null,null,null,null,null,null,null,null,null,null,null,null,null,null,null,null,null,null,null,null,null,null,null,null,null,null,null,null,null,null,null,null,null,null,null,null,null,null,null,null,null,null,null,null,null,null,null,null,null,null,null,null,null,null,null,null,null,null,null,null,null,null,null,null,null,null,null,null,null,null,null,null,null,null,null,null,null,null,null,null,null,null,null,null,null,null,null,null,null,null,null,null,null,null,null,null,null,null,null,null,null,null,null,null,null,null,null,null,null,null,null,null,null,null,null,null,null,null,"2029-04-29",null,47237]
[null,null,null,null,null,null,null,null,null,null,null,null,null,null,null,null,null,null,null,null,null,null,null,null,null,null,null,null,null,null,null,null,null,null,null,null,null,null,null,null,null,null,null,null,null,null,null,null,null,null,null,null,null,null,null,null,null,null,null,null,null,null,null,null,null,null,null,null,null,null,null,null,null,null,null,null,null,null,null,null,null,null,null,null,null,null,null,null,null,null,null,null,null,null,null,null,null,null,null,null,null,null,null,null,null,null,null,null,null,null,null,null,null,null,null,null,null,null,null,null,null,null,null,null,null,null,null,null,null,null,null,null,null,null,null,null,null,null,null,null,"2029-04-30",null,47238]
[null,null,null,null,null,null,null,null,null,null,null,null,null,null,null,null,null,null,null,null,null,null,null,null,null,null,null,null,null,null,null,null,null,null,null,null,null,null,null,null,null,null,null,null,null,null,null,null,null,null,null,null,null,null,null,null,null,null,null,null,null,null,null,null,null,null,null,null,null,null,null,null,null,null,null,null,null,null,null,null,null,null,null,null,null,null,null,null,null,null,null,null,null,null,null,null,null,null,null,null,null,null,null,null,null,null,null,null,null,null,null,null,null,null,null,null,null,null,null,null,null,null,null,null,null,null,null,null,null,null,null,null,null,null,null,null,null,null,null,null,"2029-05-03",null,47241]
[null,null,null,null,null,null,null,null,null,null,null,null,null,null,null,null,null,null,null,null,null,null,null,null,null,null,null,null,null,null,null,null,null,null,null,null,null,null,null,null,null,null,null,null,null,null,null,null,null,null,null,null,null,null,null,null,null,null,null,null,null,null,null,null,null,null,null,null,null,null,null,null,null,null,null,null,null,null,null,null,null,null,null,null,null,null,null,null,null,null,null,null,null,null,null,null,null,null,null,null,null,null,null,null,null,null,null,null,null,null,null,null,null,null,null,null,null,null,null,null,null,null,null,null,null,null,null,null,null,null,null,null,null,null,null,null,null,null,null,null,"2029-05-04",null,47242]
[null,null,null,null,null,null,null,null,null,null,null,null,null,null,null,null,null,null,null,null,null,null,null,null,null,null,null,null,null,null,null,null,null,null,null,null,null,null,null,null,null,null,null,null,null,null,null,null,null,null,null,null,null,null,null,null,null,null,null,null,null,null,null,null,null,null,null,null,null,null,null,null,null,null,null,null,null,null,null,null,null,null,null,null,null,null,null,null,null,null,null,null,null,null,null,null,null,null,null,null,null,null,null,null,null,null,null,null,null,null,null,null,null,null,null,null,null,null,null,null,null,null,null,null,null,null,null,null,null,null,null,null,null,null,null,null,null,null,null,null,"2029-05-05",null,47243]
[null,null,null,null,null,null,null,null,null,null,null,null,null,null,null,null,null,null,null,null,null,null,null,null,null,null,null,null,null,null,null,null,null,null,null,null,null,null,null,null,null,null,null,null,null,null,null,null,null,null,null,null,null,null,null,null,null,null,null,null,null,null,null,null,null,null,null,null,null,null,null,null,null,null,null,null,null,null,null,null,null,null,null,null,null,null,null,null,null,null,null,null,null,null,null,null,null,null,null,null,null,null,null,null,null,null,null,null,null,null,null,null,null,null,null,null,null,null,null,null,null,null,null,null,null,null,null,null,null,null,null,null,null,null,null,null,null,null,null,null,"2029-07-16",null,47315]
[null,null,null,null,null,null,null,null,null,null,null,null,null,null,null,null,null,null,null,null,null,null,null,null,null,null,null,null,null,null,null,null,null,null,null,null,null,null,null,null,null,null,null,null,null,null,null,null,null,null,null,null,null,null,null,null,null,null,null,null,null,null,null,null,null,null,null,null,null,null,null,null,null,null,null,null,null,null,null,null,null,null,null,null,null,null,null,null,null,null,null,null,null,null,null,null,null,null,null,null,null,null,null,null,null,null,null,null,null,null,null,null,null,null,null,null,null,null,null,null,null,null,null,null,null,null,null,null,null,null,null,null,null,null,null,null,null,null,null,null,"2029-08-11",null,47341]
[null,null,null,null,null,null,null,null,null,null,null,null,null,null,null,null,null,null,null,null,null,null,null,null,null,null,null,null,null,null,null,null,null,null,null,null,null,null,null,null,null,null,null,null,null,null,null,null,null,null,null,null,null,null,null,null,null,null,null,null,null,null,null,null,null,null,null,null,null,null,null,null,null,null,null,null,null,null,null,null,null,null,null,null,null,null,null,null,null,null,null,null,null,null,null,null,null,null,null,null,null,null,null,null,null,null,null,null,null,null,null,null,null,null,null,null,null,null,null,null,null,null,null,null,null,null,null,null,null,null,null,null,null,null,null,null,null,null,null,null,"2029-09-17",null,47378]
[null,null,null,null,null,null,null,null,null,null,null,null,null,null,null,null,null,null,null,null,null,null,null,null,null,null,null,null,null,null,null,null,null,null,null,null,null,null,null,null,null,null,null,null,null,null,null,null,null,null,null,null,null,null,null,null,null,null,null,null,null,null,null,null,null,null,null,null,null,null,null,null,null,null,null,null,null,null,null,null,null,null,null,null,null,null,null,null,null,null,null,null,null,null,null,null,null,null,null,null,null,null,null,null,null,null,null,null,null,null,null,null,null,null,null,null,null,null,null,null,null,null,null,null,null,null,null,null,null,null,null,null,null,null,null,null,null,null,null,null,"2029-09-23",null,47384]
[null,null,null,null,null,null,null,null,null,null,null,null,null,null,null,null,null,null,null,null,null,null,null,null,null,null,null,null,null,null,null,null,null,null,null,null,null,null,null,null,null,null,null,null,null,null,null,null,null,null,null,null,null,null,null,null,null,null,null,null,null,null,null,null,null,null,null,null,null,null,null,null,null,null,null,null,null,null,null,null,null,null,null,null,null,null,null,null,null,null,null,null,null,null,null,null,null,null,null,null,null,null,null,null,null,null,null,null,null,null,null,null,null,null,null,null,null,null,null,null,null,null,null,null,null,null,null,null,null,null,null,null,null,null,null,null,null,null,null,null,"2029-09-24",null,47385]
[null,null,null,null,null,null,null,null,null,null,null,null,null,null,null,null,null,null,null,null,null,null,null,null,null,null,null,null,null,null,null,null,null,null,null,null,null,null,null,null,null,null,null,null,null,null,null,null,null,null,null,null,null,null,null,null,null,null,null,null,null,null,null,null,null,null,null,null,null,null,null,null,null,null,null,null,null,null,null,null,null,null,null,null,null,null,null,null,null,null,null,null,null,null,null,null,null,null,null,null,null,null,null,null,null,null,null,null,null,null,null,null,null,null,null,null,null,null,null,null,null,null,null,null,null,null,null,null,null,null,null,null,null,null,null,null,null,null,null,null,"2029-10-08",null,47399]
[null,null,null,null,null,null,null,null,null,null,null,null,null,null,null,null,null,null,null,null,null,null,null,null,null,null,null,null,null,null,null,null,null,null,null,null,null,null,null,null,null,null,null,null,null,null,null,null,null,null,null,null,null,null,null,null,null,null,null,null,null,null,null,null,null,null,null,null,null,null,null,null,null,null,null,null,null,null,null,null,null,null,null,null,null,null,null,null,null,null,null,null,null,null,null,null,null,null,null,null,null,null,null,null,null,null,null,null,null,null,null,null,null,null,null,null,null,null,null,null,null,null,null,null,null,null,null,null,null,null,null,null,null,null,null,null,null,null,null,null,"2029-11-03",null,47425]
[null,null,null,null,null,null,null,null,null,null,null,null,null,null,null,null,null,null,null,null,null,null,null,null,null,null,null,null,null,null,null,null,null,null,null,null,null,null,null,null,null,null,null,null,null,null,null,null,null,null,null,null,null,null,null,null,null,null,null,null,null,null,null,null,null,null,null,null,null,null,null,null,null,null,null,null,null,null,null,null,null,null,null,null,null,null,null,null,null,null,null,null,null,null,null,null,null,null,null,null,null,null,null,null,null,null,null,null,null,null,null,null,null,null,null,null,null,null,null,null,null,null,null,null,null,null,null,null,null,null,null,null,null,null,null,null,null,null,null,null,"2029-11-23",null,47445]
[null,null,null,null,null,null,null,null,null,null,null,null,null,null,null,null,null,null,null,null,null,null,null,null,null,null,null,null,null,null,null,null,null,null,null,null,null,null,null,null,null,null,null,null,null,null,null,null,null,null,null,null,null,null,null,null,null,null,null,null,null,null,null,null,null,null,null,null,null,null,null,null,null,null,null,null,null,null,null,null,null,null,null,null,null,null,null,null,null,null,null,null,null,null,null,null,null,null,null,null,null,null,null,null,null,null,null,null,null,null,null,null,null,null,null,null,null,null,null,null,null,null,null,null,null,null,null,null,null,null,null,null,null,null,null,null,null,null,null,null,"2029-12-24",null,47476]
[null,null,null,null,null,null,null,null,null,null,null,null,null,null,null,null,null,null,null,null,null,null,null,null,null,null,null,null,null,null,null,null,null,null,null,null,null,null,null,null,null,null,null,null,null,null,null,null,null,null,null,null,null,null,null,null,null,null,null,null,null,null,null,null,null,null,null,null,null,null,null,null,null,null,null,null,null,null,null,null,null,null,null,null,null,null,null,null,null,null,null,null,null,null,null,null,null,null,null,null,null,null,null,null,null,null,null,null,null,null,null,null,null,null,null,null,null,null,null,null,null,null,null,null,null,null,null,null,null,null,null,null,null,null,null,null,null,null,null,null,"2029-12-29",null,47481]
[null,null,null,null,null,null,null,null,null,null,null,null,null,null,null,null,null,null,null,null,null,null,null,null,null,null,null,null,null,null,null,null,null,null,null,null,null,null,null,null,null,null,null,null,null,null,null,null,null,null,null,null,null,null,null,null,null,null,null,null,null,null,null,null,null,null,null,null,null,null,null,null,null,null,null,null,null,null,null,null,null,null,null,null,null,null,null,null,null,null,null,null,null,null,null,null,null,null,null,null,null,null,null,null,null,null,null,null,null,null,null,null,null,null,null,null,null,null,null,null,null,null,null,null,null,null,null,null,null,null,null,null,null,null,null,null,null,null,null,null,"2029-12-30",null,47482]
[null,null,null,null,null,null,null,null,null,null,null,null,null,null,null,null,null,null,null,null,null,null,null,null,null,null,null,null,null,null,null,null,null,null,null,null,null,null,null,null,null,null,null,null,null,null,null,null,null,null,null,null,null,null,null,null,null,null,null,null,null,null,null,null,null,null,null,null,null,null,null,null,null,null,null,null,null,null,null,null,null,null,null,null,null,null,null,null,null,null,null,null,null,null,null,null,null,null,null,null,null,null,null,null,null,null,null,null,null,null,null,null,null,null,null,null,null,null,null,null,null,null,null,null,null,null,null,null,null,null,null,null,null,null,null,null,null,null,null,null,"2029-12-31",null,47483]
[null,null,null,null,null,null,null,null,null,null,null,null,null,null,null,null,null,null,null,null,null,null,null,null,null,null,null,null,null,null,null,null,null,null,null,null,null,null,null,null,null,null,null,null,null,null,null,null,null,null,null,null,null,null,null,null,null,null,null,null,null,null,null,null,null,null,null,null,null,null,null,null,null,null,null,null,null,null,null,null,null,null,null,null,null,null,null,null,null,null,null,null,null,null,null,null,null,null,null,null,null,null,null,null,null,null,null,null,null,null,null,null,null,null,null,null,null,null,null,null,null,null,null,null,null,null,null,null,null,null,null,null,null,null,null,null,null,null,null,null,"2030-01-01",null,47484]
[null,null,null,null,null,null,null,null,null,null,null,null,null,null,null,null,null,null,null,null,null,null,null,null,null,null,null,null,null,null,null,null,null,null,null,null,null,null,null,null,null,null,null,null,null,null,null,null,null,null,null,null,null,null,null,null,null,null,null,null,null,null,null,null,null,null,null,null,null,null,null,null,null,null,null,null,null,null,null,null,null,null,null,null,null,null,null,null,null,null,null,null,null,null,null,null,null,null,null,null,null,null,null,null,null,null,null,null,null,null,null,null,null,null,null,null,null,null,null,null,null,null,null,null,null,null,null,null,null,null,null,null,null,null,null,null,null,null,null,null,"2030-01-02",null,47485]
[null,null,null,null,null,null,null,null,null,null,null,null,null,null,null,null,null,null,null,null,null,null,null,null,null,null,null,null,null,null,null,null,null,null,null,null,null,null,null,null,null,null,null,null,null,null,null,null,null,null,null,null,null,null,null,null,null,null,null,null,null,null,null,null,null,null,null,null,null,null,null,null,null,null,null,null,null,null,null,null,null,null,null,null,null,null,null,null,null,null,null,null,null,null,null,null,null,null,null,null,null,null,null,null,null,null,null,null,null,null,null,null,null,null,null,null,null,null,null,null,null,null,null,null,null,null,null,null,null,null,null,null,null,null,null,null,null,null,null,null,"2030-01-03",null,47486]
[null,null,null,null,null,null,null,null,null,null,null,null,null,null,null,null,null,null,null,null,null,null,null,null,null,null,null,null,null,null,null,null,null,null,null,null,null,null,null,null,null,null,null,null,null,null,null,null,null,null,null,null,null,null,null,null,null,null,null,null,null,null,null,null,null,null,null,null,null,null,null,null,null,null,null,null,null,null,null,null,null,null,null,null,null,null,null,null,null,null,null,null,null,null,null,null,null,null,null,null,null,null,null,null,null,null,null,null,null,null,null,null,null,null,null,null,null,null,null,null,null,null,null,null,null,null,null,null,null,null,null,null,null,null,null,null,null,null,null,null,"2030-01-14",null,47497]
[null,null,null,null,null,null,null,null,null,null,null,null,null,null,null,null,null,null,null,null,null,null,null,null,null,null,null,null,null,null,null,null,null,null,null,null,null,null,null,null,null,null,null,null,null,null,null,null,null,null,null,null,null,null,null,null,null,null,null,null,null,null,null,null,null,null,null,null,null,null,null,null,null,null,null,null,null,null,null,null,null,null,null,null,null,null,null,null,null,null,null,null,null,null,null,null,null,null,null,null,null,null,null,null,null,null,null,null,null,null,null,null,null,null,null,null,null,null,null,null,null,null,null,null,null,null,null,null,null,null,null,null,null,null,null,null,null,null,null,null,"2030-02-11",null,47525]
[null,null,null,null,null,null,null,null,null,null,null,null,null,null,null,null,null,null,null,null,null,null,null,null,null,null,null,null,null,null,null,null,null,null,null,null,null,null,null,null,null,null,null,null,null,null,null,null,null,null,null,null,null,null,null,null,null,null,null,null,null,null,null,null,null,null,null,null,null,null,null,null,null,null,null,null,null,null,null,null,null,null,null,null,null,null,null,null,null,null,null,null,null,null,null,null,null,null,null,null,null,null,null,null,null,null,null,null,null,null,null,null,null,null,null,null,null,null,null,null,null,null,null,null,null,null,null,null,null,null,null,null,null,null,null,null,null,null,null,null,"2030-02-23",null,47537]
[null,null,null,null,null,null,null,null,null,null,null,null,null,null,null,null,null,null,null,null,null,null,null,null,null,null,null,null,null,null,null,null,null,null,null,null,null,null,null,null,null,null,null,null,null,null,null,null,null,null,null,null,null,null,null,null,null,null,null,null,null,null,null,null,null,null,null,null,null,null,null,null,null,null,null,null,null,null,null,null,null,null,null,null,null,null,null,null,null,null,null,null,null,null,null,null,null,null,null,null,null,null,null,null,null,null,null,null,null,null,null,null,null,null,null,null,null,null,null,null,null,null,null,null,null,null,null,null,null,null,null,null,null,null,null,null,null,null,null,null,"2030-03-20",null,47562]
[null,null,null,null,null,null,null,null,null,null,null,null,null,null,null,null,null,null,null,null,null,null,null,null,null,null,null,null,null,null,null,null,null,null,null,null,null,null,null,null,null,null,null,null,null,null,null,null,null,null,null,null,null,null,null,null,null,null,null,null,null,null,null,null,null,null,null,null,null,null,null,null,null,null,null,null,null,null,null,null,null,null,null,null,null,null,null,null,null,null,null,null,null,null,null,null,null,null,null,null,null,null,null,null,null,null,null,null,null,null,null,null,null,null,null,null,null,null,null,null,null,null,null,null,null,null,null,null,null,null,null,null,null,null,null,null,null,null,null,null,"2030-04-29",null,47602]
[null,null,null,null,null,null,null,null,null,null,null,null,null,null,null,null,null,null,null,null,null,null,null,null,null,null,null,null,null,null,null,null,null,null,null,null,null,null,null,null,null,null,null,null,null,null,null,null,null,null,null,null,null,null,null,null,null,null,null,null,null,null,null,null,null,null,null,null,null,null,null,null,null,null,null,null,null,null,null,null,null,null,null,null,null,null,null,null,null,null,null,null,null,null,null,null,null,null,null,null,null,null,null,null,null,null,null,null,null,null,null,null,null,null,null,null,null,null,null,null,null,null,null,null,null,null,null,null,null,null,null,null,null,null,null,null,null,null,null,null,"2030-05-03",null,47606]
[null,null,null,null,null,null,null,null,null,null,null,null,null,null,null,null,null,null,null,null,null,null,null,null,null,null,null,null,null,null,null,null,null,null,null,null,null,null,null,null,null,null,null,null,null,null,null,null,null,null,null,null,null,null,null,null,null,null,null,null,null,null,null,null,null,null,null,null,null,null,null,null,null,null,null,null,null,null,null,null,null,null,null,null,null,null,null,null,null,null,null,null,null,null,null,null,null,null,null,null,null,null,null,null,null,null,null,null,null,null,null,null,null,null,null,null,null,null,null,null,null,null,null,null,null,null,null,null,null,null,null,null,null,null,null,null,null,null,null,null,"2030-05-04",null,47607]
[null,null,null,null,null,null,null,null,null,null,null,null,null,null,null,null,null,null,null,null,null,null,null,null,null,null,null,null,null,null,null,null,null,null,null,null,null,null,null,null,null,null,null,null,null,null,null,null,null,null,null,null,null,null,null,null,null,null,null,null,null,null,null,null,null,null,null,null,null,null,null,null,null,null,null,null,null,null,null,null,null,null,null,null,null,null,null,null,null,null,null,null,null,null,null,null,null,null,null,null,null,null,null,null,null,null,null,null,null,null,null,null,null,null,null,null,null,null,null,null,null,null,null,null,null,null,null,null,null,null,null,null,null,null,null,null,null,null,null,null,"2030-05-05",null,47608]
[null,null,null,null,null,null,null,null,null,null,null,null,null,null,null,null,null,null,null,null,null,null,null,null,null,null,null,null,null,null,null,null,null,null,null,null,null,null,null,null,null,null,null,null,null,null,null,null,null,null,null,null,null,null,null,null,null,null,null,null,null,null,null,null,null,null,null,null,null,null,null,null,null,null,null,null,null,null,null,null,null,null,null,null,null,null,null,null,null,null,null,null,null,null,null,null,null,null,null,null,null,null,null,null,null,null,null,null,null,null,null,null,null,null,null,null,null,null,null,null,null,null,null,null,null,null,null,null,null,null,null,null,null,null,null,null,null,null,null,null,"2030-05-06",null,47609]
[null,null,null,null,null,null,null,null,null,null,null,null,null,null,null,null,null,null,null,null,null,null,null,null,null,null,null,null,null,null,null,null,null,null,null,null,null,null,null,null,null,null,null,null,null,null,null,null,null,null,null,null,null,null,null,null,null,null,null,null,null,null,null,null,null,null,null,null,null,null,null,null,null,null,null,null,null,null,null,null,null,null,null,null,null,null,null,null,null,null,null,null,null,null,null,null,null,null,null,null,null,null,null,null,null,null,null,null,null,null,null,null,null,null,null,null,null,null,null,null,null,null,null,null,null,null,null,null,null,null,null,null,null,null,null,null,null,null,null,null,"2030-07-15",null,47679]
[null,null,null,null,null,null,null,null,null,null,null,null,null,null,null,null,null,null,null,null,null,null,null,null,null,null,null,null,null,null,null,null,null,null,null,null,null,null,null,null,null,null,null,null,null,null,null,null,null,null,null,null,null,null,null,null,null,null,null,null,null,null,null,null,null,null,null,null,null,null,null,null,null,null,null,null,null,null,null,null,null,null,null,null,null,null,null,null,null,null,null,null,null,null,null,null,null,null,null,null,null,null,null,null,null,null,null,null,null,null,null,null,null,null,null,null,null,null,null,null,null,null,null,null,null,null,null,null,null,null,null,null,null,null,null,null,null,null,null,null,"2030-08-11",null,47706]
[null,null,null,null,null,null,null,null,null,null,null,null,null,null,null,null,null,null,null,null,null,null,null,null,null,null,null,null,null,null,null,null,null,null,null,null,null,null,null,null,null,null,null,null,null,null,null,null,null,null,null,null,null,null,null,null,null,null,null,null,null,null,null,null,null,null,null,null,null,null,null,null,null,null,null,null,null,null,null,null,null,null,null,null,null,null,null,null,null,null,null,null,null,null,null,null,null,null,null,null,null,null,null,null,null,null,null,null,null,null,null,null,null,null,null,null,null,null,null,null,null,null,null,null,null,null,null,null,null,null,null,null,null,null,null,null,null,null,null,null,"2030-08-12",null,47707]
[null,null,null,null,null,null,null,null,null,null,null,null,null,null,null,null,null,null,null,null,null,null,null,null,null,null,null,null,null,null,null,null,null,null,null,null,null,null,null,null,null,null,null,null,null,null,null,null,null,null,null,null,null,null,null,null,null,null,null,null,null,null,null,null,null,null,null,null,null,null,null,null,null,null,null,null,null,null,null,null,null,null,null,null,null,null,null,null,null,null,null,null,null,null,null,null,null,null,null,null,null,null,null,null,null,null,null,null,null,null,null,null,null,null,null,null,null,null,null,null,null,null,null,null,null,null,null,null,null,null,null,null,null,null,null,null,null,null,null,null,"2030-09-16",null,47742]
[null,null,null,null,null,null,null,null,null,null,null,null,null,null,null,null,null,null,null,null,null,null,null,null,null,null,null,null,null,null,null,null,null,null,null,null,null,null,null,null,null,null,null,null,null,null,null,null,null,null,null,null,null,null,null,null,null,null,null,null,null,null,null,null,null,null,null,null,null,null,null,null,null,null,null,null,null,null,null,null,null,null,null,null,null,null,null,null,null,null,null,null,null,null,null,null,null,null,null,null,null,null,null,null,null,null,null,null,null,null,null,null,null,null,null,null,null,null,null,null,null,null,null,null,null,null,null,null,null,null,null,null,null,null,null,null,null,null,null,null,"2030-09-23",null,47749]
[null,null,null,null,null,null,null,null,null,null,null,null,null,null,null,null,null,null,null,null,null,null,null,null,null,null,null,null,null,null,null,null,null,null,null,null,null,null,null,null,null,null,null,null,null,null,null,null,null,null,null,null,null,null,null,null,null,null,null,null,null,null,null,null,null,null,null,null,null,null,null,null,null,null,null,null,null,null,null,null,null,null,null,null,null,null,null,null,null,null,null,null,null,null,null,null,null,null,null,null,null,null,null,null,null,null,null,null,null,null,null,null,null,null,null,null,null,null,null,null,null,null,null,null,null,null,null,null,null,null,null,null,null,null,null,null,null,null,null,null,"2030-10-14",null,47770]
[null,null,null,null,null,null,null,null,null,null,null,null,null,null,null,null,null,null,null,null,null,null,null,null,null,null,null,null,null,null,null,null,null,null,null,null,null,null,null,null,null,null,null,null,null,null,null,null,null,null,null,null,null,null,null,null,null,null,null,null,null,null,null,null,null,null,null,null,null,null,null,null,null,null,null,null,null,null,null,null,null,null,null,null,null,null,null,null,null,null,null,null,null,null,null,null,null,null,null,null,null,null,null,null,null,null,null,null,null,null,null,null,null,null,null,null,null,null,null,null,null,null,null,null,null,null,null,null,null,null,null,null,null,null,null,null,null,null,null,null,"2030-11-03",null,47790]
[null,null,null,null,null,null,null,null,null,null,null,null,null,null,null,null,null,null,null,null,null,null,null,null,null,null,null,null,null,null,null,null,null,null,null,null,null,null,null,null,null,null,null,null,null,null,null,null,null,null,null,null,null,null,null,null,null,null,null,null,null,null,null,null,null,null,null,null,null,null,null,null,null,null,null,null,null,null,null,null,null,null,null,null,null,null,null,null,null,null,null,null,null,null,null,null,null,null,null,null,null,null,null,null,null,null,null,null,null,null,null,null,null,null,null,null,null,null,null,null,null,null,null,null,null,null,null,null,null,null,null,null,null,null,null,null,null,null,null,null,"2030-11-04",null,47791]
[null,null,null,null,null,null,null,null,null,null,null,null,null,null,null,null,null,null,null,null,null,null,null,null,null,null,null,null,null,null,null,null,null,null,null,null,null,null,null,null,null,null,null,null,null,null,null,null,null,null,null,null,null,null,null,null,null,null,null,null,null,null,null,null,null,null,null,null,null,null,null,null,null,null,null,null,null,null,null,null,null,null,null,null,null,null,null,null,null,null,null,null,null,null,null,null,null,null,null,null,null,null,null,null,null,null,null,null,null,null,null,null,null,null,null,null,null,null,null,null,null,null,null,null,null,null,null,null,null,null,null,null,null,null,null,null,null,null,null,null,"2030-11-23",null,47810]
[null,null,null,null,null,null,null,null,null,null,null,null,null,null,null,null,null,null,null,null,null,null,null,null,null,null,null,null,null,null,null,null,null,null,null,null,null,null,null,null,null,null,null,null,null,null,null,null,null,null,null,null,null,null,null,null,null,null,null,null,null,null,null,null,null,null,null,null,null,null,null,null,null,null,null,null,null,null,null,null,null,null,null,null,null,null,null,null,null,null,null,null,null,null,null,null,null,null,null,null,null,null,null,null,null,null,null,null,null,null,null,null,null,null,null,null,null,null,null,null,null,null,null,null,null,null,null,null,null,null,null,null,null,null,null,null,null,null,null,null,"2030-12-29",null,47846]
[null,null,null,null,null,null,null,null,null,null,null,null,null,null,null,null,null,null,null,null,null,null,null,null,null,null,null,null,null,null,null,null,null,null,null,null,null,null,null,null,null,null,null,null,null,null,null,null,null,null,null,null,null,null,null,null,null,null,null,null,null,null,null,null,null,null,null,null,null,null,null,null,null,null,null,null,null,null,null,null,null,null,null,null,null,null,null,null,null,null,null,null,null,null,null,null,null,null,null,null,null,null,null,null,null,null,null,null,null,null,null,null,null,null,null,null,null,null,null,null,null,null,null,null,null,null,null,null,null,null,null,null,null,null,null,null,null,null,null,null,"2030-12-30",null,47847]
[null,null,null,null,null,null,null,null,null,null,null,null,null,null,null,null,null,null,null,null,null,null,null,null,null,null,null,null,null,null,null,null,null,null,null,null,null,null,null,null,null,null,null,null,null,null,null,null,null,null,null,null,null,null,null,null,null,null,null,null,null,null,null,null,null,null,null,null,null,null,null,null,null,null,null,null,null,null,null,null,null,null,null,null,null,null,null,null,null,null,null,null,null,null,null,null,null,null,null,null,null,null,null,null,null,null,null,null,null,null,null,null,null,null,null,null,null,null,null,null,null,null,null,null,null,null,null,null,null,null,null,null,null,null,null,null,null,null,null,null,"2030-12-31",null,47848]
[null,null,null,null,null,null,null,null,null,null,null,null,null,null,null,null,null,null,null,null,null,null,null,null,null,null,null,null,null,null,null,null,null,null,null,null,null,null,null,null,null,null,null,null,null,null,null,null,null,null,null,null,null,null,null,null,null,null,null,null,null,null,null,null,null,null,null,null,null,null,null,null,null,null,null,null,null,null,null,null,null,null,null,null,null,null,null,null,null,null,null,null,null,null,null,null,null,null,null,null,null,null,null,null,null,null,null,null,null,null,null,null,null,null,null,null,null,null,null,null,null,null,null,null,null,null,null,null,null,null,null,null,null,null,null,null,null,null,null,null,"2031-01-01",null,47849]
[null,null,null,null,null,null,null,null,null,null,null,null,null,null,null,null,null,null,null,null,null,null,null,null,null,null,null,null,null,null,null,null,null,null,null,null,null,null,null,null,null,null,null,null,null,null,null,null,null,null,null,null,null,null,null,null,null,null,null,null,null,null,null,null,null,null,null,null,null,null,null,null,null,null,null,null,null,null,null,null,null,null,null,null,null,null,null,null,null,null,null,null,null,null,null,null,null,null,null,null,null,null,null,null,null,null,null,null,null,null,null,null,null,null,null,null,null,null,null,null,null,null,null,null,null,null,null,null,null,null,null,null,null,null,null,null,null,null,null,null,"2031-01-02",null,47850]
[null,null,null,null,null,null,null,null,null,null,null,null,null,null,null,null,null,null,null,null,null,null,null,null,null,null,null,null,null,null,null,null,null,null,null,null,null,null,null,null,null,null,null,null,null,null,null,null,null,null,null,null,null,null,null,null,null,null,null,null,null,null,null,null,null,null,null,null,null,null,null,null,null,null,null,null,null,null,null,null,null,null,null,null,null,null,null,null,null,null,null,null,null,null,null,null,null,null,null,null,null,null,null,null,null,null,null,null,null,null,null,null,null,null,null,null,null,null,null,null,null,null,null,null,null,null,null,null,null,null,null,null,null,null,null,null,null,null,null,null,"2031-01-03",null,47851]
[null,null,null,null,null,null,null,null,null,null,null,null,null,null,null,null,null,null,null,null,null,null,null,null,null,null,null,null,null,null,null,null,null,null,null,null,null,null,null,null,null,null,null,null,null,null,null,null,null,null,null,null,null,null,null,null,null,null,null,null,null,null,null,null,null,null,null,null,null,null,null,null,null,null,null,null,null,null,null,null,null,null,null,null,null,null,null,null,null,null,null,null,null,null,null,null,null,null,null,null,null,null,null,null,null,null,null,null,null,null,null,null,null,null,null,null,null,null,null,null,null,null,null,null,null,null,null,null,null,null,null,null,null,null,null,null,null,null,null,null,"2031-01-13",null,47861]
[null,null,null,null,null,null,null,null,null,null,null,null,null,null,null,null,null,null,null,null,null,null,null,null,null,null,null,null,null,null,null,null,null,null,null,null,null,null,null,null,null,null,null,null,null,null,null,null,null,null,null,null,null,null,null,null,null,null,null,null,null,null,null,null,null,null,null,null,null,null,null,null,null,null,null,null,null,null,null,null,null,null,null,null,null,null,null,null,null,null,null,null,null,null,null,null,null,null,null,null,null,null,null,null,null,null,null,null,null,null,null,null,null,null,null,null,null,null,null,null,null,null,null,null,null,null,null,null,null,null,null,null,null,null,null,null,null,null,null,null,"2031-02-11",null,47890]
[null,null,null,null,null,null,null,null,null,null,null,null,null,null,null,null,null,null,null,null,null,null,null,null,null,null,null,null,null,null,null,null,null,null,null,null,null,null,null,null,null,null,null,null,null,null,null,null,null,null,null,null,null,null,null,null,null,null,null,null,null,null,null,null,null,null,null,null,null,null,null,null,null,null,null,null,null,null,null,null,null,null,null,null,null,null,null,null,null,null,null,null,null,null,null,null,null,null,null,null,null,null,null,null,null,null,null,null,null,null,null,null,null,null,null,null,null,null,null,null,null,null,null,null,null,null,null,null,null,null,null,null,null,null,null,null,null,null,null,null,"2031-02-23",null,47902]
[null,null,null,null,null,null,null,null,null,null,null,null,null,null,null,null,null,null,null,null,null,null,null,null,null,null,null,null,null,null,null,null,null,null,null,null,null,null,null,null,null,null,null,null,null,null,null,null,null,null,null,null,null,null,null,null,null,null,null,null,null,null,null,null,null,null,null,null,null,null,null,null,null,null,null,null,null,null,null,null,null,null,null,null,null,null,null,null,null,null,null,null,null,null,null,null,null,null,null,null,null,null,null,null,null,null,null,null,null,null,null,null,null,null,null,null,null,null,null,null,null,null,null,null,null,null,null,null,null,null,null,null,null,null,null,null,null,null,null,null,"2031-02-24",null,47903]
[null,null,null,null,null,null,null,null,null,null,null,null,null,null,null,null,null,null,null,null,null,null,null,null,null,null,null,null,null,null,null,null,null,null,null,null,null,null,null,null,null,null,null,null,null,null,null,null,null,null,null,null,null,null,null,null,null,null,null,null,null,null,null,null,null,null,null,null,null,null,null,null,null,null,null,null,null,null,null,null,null,null,null,null,null,null,null,null,null,null,null,null,null,null,null,null,null,null,null,null,null,null,null,null,null,null,null,null,null,null,null,null,null,null,null,null,null,null,null,null,null,null,null,null,null,null,null,null,null,null,null,null,null,null,null,null,null,null,null,null,"2031-03-21",null,47928]
[null,null,null,null,null,null,null,null,null,null,null,null,null,null,null,null,null,null,null,null,null,null,null,null,null,null,null,null,null,null,null,null,null,null,null,null,null,null,null,null,null,null,null,null,null,null,null,null,null,null,null,null,null,null,null,null,null,null,null,null,null,null,null,null,null,null,null,null,null,null,null,null,null,null,null,null,null,null,null,null,null,null,null,null,null,null,null,null,null,null,null,null,null,null,null,null,null,null,null,null,null,null,null,null,null,null,null,null,null,null,null,null,null,null,null,null,null,null,null,null,null,null,null,null,null,null,null,null,null,null,null,null,null,null,null,null,null,null,null,null,"2031-04-29",null,47967]
[null,null,null,null,null,null,null,null,null,null,null,null,null,null,null,null,null,null,null,null,null,null,null,null,null,null,null,null,null,null,null,null,null,null,null,null,null,null,null,null,null,null,null,null,null,null,null,null,null,null,null,null,null,null,null,null,null,null,null,null,null,null,null,null,null,null,null,null,null,null,null,null,null,null,null,null,null,null,null,null,null,null,null,null,null,null,null,null,null,null,null,null,null,null,null,null,null,null,null,null,null,null,null,null,null,null,null,null,null,null,null,null,null,null,null,null,null,null,null,null,null,null,null,null,null,null,null,null,null,null,null,null,null,null,null,null,null,null,null,null,"2031-05-03",null,47971]
[null,null,null,null,null,null,null,null,null,null,null,null,null,null,null,null,null,null,null,null,null,null,null,null,null,null,null,null,null,null,null,null,null,null,null,null,null,null,null,null,null,null,null,null,null,null,null,null,null,null,null,null,null,null,null,null,null,null,null,null,null,null,null,null,null,null,null,null,null,null,null,null,null,null,null,null,null,null,null,null,null,null,null,null,null,null,null,null,null,null,null,null,null,null,null,null,null,null,null,null,null,null,null,null,null,null,null,null,null,null,null,null,null,null,null,null,null,null,null,null,null,null,null,null,null,null,null,null,null,null,null,null,null,null,null,null,null,null,null,null,"2031-05-04",null,47972]
[null,null,null,null,null,null,null,null,null,null,null,null,null,null,null,null,null,null,null,null,null,null,null,null,null,null,null,null,null,null,null,null,null,null,null,null,null,null,null,null,null,null,null,null,null,null,null,null,null,null,null,null,null,null,null,null,null,null,null,null,null,null,null,null,null,null,null,null,null,null,null,null,null,null,null,null,null,null,null,null,null,null,null,null,null,null,null,null,null,null,null,null,null,null,null,null,null,null,null,null,null,null,null,null,null,null,null,null,null,null,null,null,null,null,null,null,null,null,null,null,null,null,null,null,null,null,null,null,null,null,null,null,null,null,null,null,null,null,null,null,"2031-05-05",null,47973]
[null,null,null,null,null,null,null,null,null,null,null,null,null,null,null,null,null,null,null,null,null,null,null,null,null,null,null,null,null,null,null,null,null,null,null,null,null,null,null,null,null,null,null,null,null,null,null,null,null,null,null,null,null,null,null,null,null,null,null,null,null,null,null,null,null,null,null,null,null,null,null,null,null,null,null,null,null,null,null,null,null,null,null,null,null,null,null,null,null,null,null,null,null,null,null,null,null,null,null,null,null,null,null,null,null,null,null,null,null,null,null,null,null,null,null,null,null,null,null,null,null,null,null,null,null,null,null,null,null,null,null,null,null,null,null,null,null,null,null,null,"2031-05-06",null,47974]
[null,null,null,null,null,null,null,null,null,null,null,null,null,null,null,null,null,null,null,null,null,null,null,null,null,null,null,null,null,null,null,null,null,null,null,null,null,null,null,null,null,null,null,null,null,null,null,null,null,null,null,null,null,null,null,null,null,null,null,null,null,null,null,null,null,null,null,null,null,null,null,null,null,null,null,null,null,null,null,null,null,null,null,null,null,null,null,null,null,null,null,null,null,null,null,null,null,null,null,null,null,null,null,null,null,null,null,null,null,null,null,null,null,null,null,null,null,null,null,null,null,null,null,null,null,null,null,null,null,null,null,null,null,null,null,null,null,null,null,null,"2031-07-21",null,48050]
[null,null,null,null,null,null,null,null,null,null,null,null,null,null,null,null,null,null,null,null,null,null,null,null,null,null,null,null,null,null,null,null,null,null,null,null,null,null,null,null,null,null,null,null,null,null,null,null,null,null,null,null,null,null,null,null,null,null,null,null,null,null,null,null,null,null,null,null,null,null,null,null,null,null,null,null,null,null,null,null,null,null,null,null,null,null,null,null,null,null,null,null,null,null,null,null,null,null,null,null,null,null,null,null,null,null,null,null,null,null,null,null,null,null,null,null,null,null,null,null,null,null,null,null,null,null,null,null,null,null,null,null,null,null,null,null,null,null,null,null,"2031-08-11",null,48071]
[null,null,null,null,null,null,null,null,null,null,null,null,null,null,null,null,null,null,null,null,null,null,null,null,null,null,null,null,null,null,null,null,null,null,null,null,null,null,null,null,null,null,null,null,null,null,null,null,null,null,null,null,null,null,null,null,null,null,null,null,null,null,null,null,null,null,null,null,null,null,null,null,null,null,null,null,null,null,null,null,null,null,null,null,null,null,null,null,null,null,null,null,null,null,null,null,null,null,null,null,null,null,null,null,null,null,null,null,null,null,null,null,null,null,null,null,null,null,null,null,null,null,null,null,null,null,null,null,null,null,null,null,null,null,null,null,null,null,null,null,"2031-09-15",null,48106]
[null,null,null,null,null,null,null,null,null,null,null,null,null,null,null,null,null,null,null,null,null,null,null,null,null,null,null,null,null,null,null,null,null,null,null,null,null,null,null,null,null,null,null,null,null,null,null,null,null,null,null,null,null,null,null,null,null,null,null,null,null,null,null,null,null,null,null,null,null,null,null,null,null,null,null,null,null,null,null,null,null,null,null,null,null,null,null,null,null,null,null,null,null,null,null,null,null,null,null,null,null,null,null,null,null,null,null,null,null,null,null,null,null,null,null,null,null,null,null,null,null,null,null,null,null,null,null,null,null,null,null,null,null,null,null,null,null,null,null,null,"2031-09-23",null,48114]
[null,null,null,null,null,null,null,null,null,null,null,null,null,null,null,null,null,null,null,null,null,null,null,null,null,null,null,null,null,null,null,null,null,null,null,null,null,null,null,null,null,null,null,null,null,null,null,null,null,null,null,null,null,null,null,null,null,null,null,null,null,null,null,null,null,null,null,null,null,null,null,null,null,null,null,null,null,null,null,null,null,null,null,null,null,null,null,null,null,null,null,null,null,null,null,null,null,null,null,null,null,null,null,null,null,null,null,null,null,null,null,null,null,null,null,null,null,null,null,null,null,null,null,null,null,null,null,null,null,null,null,null,null,null,null,null,null,null,null,null,"2031-10-13",null,48134]
[null,null,null,null,null,null,null,null,null,null,null,null,null,null,null,null,null,null,null,null,null,null,null,null,null,null,null,null,null,null,null,null,null,null,null,null,null,null,null,null,null,null,null,null,null,null,null,null,null,null,null,null,null,null,null,null,null,null,null,null,null,null,null,null,null,null,null,null,null,null,null,null,null,null,null,null,null,null,null,null,null,null,null,null,null,null,null,null,null,null,null,null,null,null,null,null,null,null,null,null,null,null,null,null,null,null,null,null,null,null,null,null,null,null,null,null,null,null,null,null,null,null,null,null,null,null,null,null,null,null,null,null,null,null,null,null,null,null,null,null,"2031-11-03",null,48155]
[null,null,null,null,null,null,null,null,null,null,null,null,null,null,null,null,null,null,null,null,null,null,null,null,null,null,null,null,null,null,null,null,null,null,null,null,null,null,null,null,null,null,null,null,null,null,null,null,null,null,null,null,null,null,null,null,null,null,null,null,null,null,null,null,null,null,null,null,null,null,null,null,null,null,null,null,null,null,null,null,null,null,null,null,null,null,null,null,null,null,null,null,null,null,null,null,null,null,null,null,null,null,null,null,null,null,null,null,null,null,null,null,null,null,null,null,null,null,null,null,null,null,null,null,null,null,null,null,null,null,null,null,null,null,null,null,null,null,null,null,"2031-11-23",null,48175]
[null,null,null,null,null,null,null,null,null,null,null,null,null,null,null,null,null,null,null,null,null,null,null,null,null,null,null,null,null,null,null,null,null,null,null,null,null,null,null,null,null,null,null,null,null,null,null,null,null,null,null,null,null,null,null,null,null,null,null,null,null,null,null,null,null,null,null,null,null,null,null,null,null,null,null,null,null,null,null,null,null,null,null,null,null,null,null,null,null,null,null,null,null,null,null,null,null,null,null,null,null,null,null,null,null,null,null,null,null,null,null,null,null,null,null,null,null,null,null,null,null,null,null,null,null,null,null,null,null,null,null,null,null,null,null,null,null,null,null,null,"2031-11-24",null,48176]
[null,null,null,null,null,null,null,null,null,null,null,null,null,null,null,null,null,null,null,null,null,null,null,null,null,null,null,null,null,null,null,null,null,null,null,null,null,null,null,null,null,null,null,null,null,null,null,null,null,null,null,null,null,null,null,null,null,null,null,null,null,null,null,null,null,null,null,null,null,null,null,null,null,null,null,null,null,null,null,null,null,null,null,null,null,null,null,null,null,null,null,null,null,null,null,null,null,null,null,null,null,null,null,null,null,null,null,null,null,null,null,null,null,null,null,null,null,null,null,null,null,null,null,null,null,null,null,null,null,null,null,null,null,null,null,null,null,null,null,null,"2031-12-29",null,48211]
[null,null,null,null,null,null,null,null,null,null,null,null,null,null,null,null,null,null,null,null,null,null,null,null,null,null,null,null,null,null,null,null,null,null,null,null,null,null,null,null,null,null,null,null,null,null,null,null,null,null,null,null,null,null,null,null,null,null,null,null,null,null,null,null,null,null,null,null,null,null,null,null,null,null,null,null,null,null,null,null,null,null,null,null,null,null,null,null,null,null,null,null,null,null,null,null,null,null,null,null,null,null,null,null,null,null,null,null,null,null,null,null,null,null,null,null,null,null,null,null,null,null,null,null,null,null,null,null,null,null,null,null,null,null,null,null,null,null,null,null,"2031-12-30",null,48212]
[null,null,null,null,null,null,null,null,null,null,null,null,null,null,null,null,null,null,null,null,null,null,null,null,null,null,null,null,null,null,null,null,null,null,null,null,null,null,null,null,null,null,null,null,null,null,null,null,null,null,null,null,null,null,null,null,null,null,null,null,null,null,null,null,null,null,null,null,null,null,null,null,null,null,null,null,null,null,null,null,null,null,null,null,null,null,null,null,null,null,null,null,null,null,null,null,null,null,null,null,null,null,null,null,null,null,null,null,null,null,null,null,null,null,null,null,null,null,null,null,null,null,null,null,null,null,null,null,null,null,null,null,null,null,null,null,null,null,null,null,"2031-12-31",null,48213]
[null,null,null,null,null,null,null,null,null,null,null,null,null,null,null,null,null,null,null,null,null,null,null,null,null,null,null,null,null,null,null,null,null,null,null,null,null,null,null,null,null,null,null,null,null,null,null,null,null,null,null,null,null,null,null,null,null,null,null,null,null,null,null,null,null,null,null,null,null,null,null,null,null,null,null,null,null,null,null,null,null,null,null,null,null,null,null,null,null,null,null,null,null,null,null,null,null,null,null,null,null,null,null,null,null,null,null,null,null,null,null,null,null,null,null,null,null,null,null,null,null,null,null,null,null,null,null,null,null,null,null,null,null,null,null,null,null,null,null,null,"2032-01-01",null,48214]
[null,null,null,null,null,null,null,null,null,null,null,null,null,null,null,null,null,null,null,null,null,null,null,null,null,null,null,null,null,null,null,null,null,null,null,null,null,null,null,null,null,null,null,null,null,null,null,null,null,null,null,null,null,null,null,null,null,null,null,null,null,null,null,null,null,null,null,null,null,null,null,null,null,null,null,null,null,null,null,null,null,null,null,null,null,null,null,null,null,null,null,null,null,null,null,null,null,null,null,null,null,null,null,null,null,null,null,null,null,null,null,null,null,null,null,null,null,null,null,null,null,null,null,null,null,null,null,null,null,null,null,null,null,null,null,null,null,null,null,null,"2032-01-02",null,48215]
[null,null,null,null,null,null,null,null,null,null,null,null,null,null,null,null,null,null,null,null,null,null,null,null,null,null,null,null,null,null,null,null,null,null,null,null,null,null,null,null,null,null,null,null,null,null,null,null,null,null,null,null,null,null,null,null,null,null,null,null,null,null,null,null,null,null,null,null,null,null,null,null,null,null,null,null,null,null,null,null,null,null,null,null,null,null,null,null,null,null,null,null,null,null,null,null,null,null,null,null,null,null,null,null,null,null,null,null,null,null,null,null,null,null,null,null,null,null,null,null,null,null,null,null,null,null,null,null,null,null,null,null,null,null,null,null,null,null,null,null,"2032-01-03",null,48216]
[null,null,null,null,null,null,null,null,null,null,null,null,null,null,null,null,null,null,null,null,null,null,null,null,null,null,null,null,null,null,null,null,null,null,null,null,null,null,null,null,null,null,null,null,null,null,null,null,null,null,null,null,null,null,null,null,null,null,null,null,null,null,null,null,null,null,null,null,null,null,null,null,null,null,null,null,null,null,null,null,null,null,null,null,null,null,null,null,null,null,null,null,null,null,null,null,null,null,null,null,null,null,null,null,null,null,null,null,null,null,null,null,null,null,null,null,null,null,null,null,null,null,null,null,null,null,null,null,null,null,null,null,null,null,null,null,null,null,null,null,"2032-01-12",null,48225]
[null,null,null,null,null,null,null,null,null,null,null,null,null,null,null,null,null,null,null,null,null,null,null,null,null,null,null,null,null,null,null,null,null,null,null,null,null,null,null,null,null,null,null,null,null,null,null,null,null,null,null,null,null,null,null,null,null,null,null,null,null,null,null,null,null,null,null,null,null,null,null,null,null,null,null,null,null,null,null,null,null,null,null,null,null,null,null,null,null,null,null,null,null,null,null,null,null,null,null,null,null,null,null,null,null,null,null,null,null,null,null,null,null,null,null,null,null,null,null,null,null,null,null,null,null,null,null,null,null,null,null,null,null,null,null,null,null,null,null,null,"2032-02-11",null,48255]
[null,null,null,null,null,null,null,null,null,null,null,null,null,null,null,null,null,null,null,null,null,null,null,null,null,null,null,null,null,null,null,null,null,null,null,null,null,null,null,null,null,null,null,null,null,null,null,null,null,null,null,null,null,null,null,null,null,null,null,null,null,null,null,null,null,null,null,null,null,null,null,null,null,null,null,null,null,null,null,null,null,null,null,null,null,null,null,null,null,null,null,null,null,null,null,null,null,null,null,null,null,null,null,null,null,null,null,null,null,null,null,null,null,null,null,null,null,null,null,null,null,null,null,null,null,null,null,null,null,null,null,null,null,null,null,null,null,null,null,null,"2032-02-23",null,48267]
[null,null,null,null,null,null,null,null,null,null,null,null,null,null,null,null,null,null,null,null,null,null,null,null,null,null,null,null,null,null,null,null,null,null,null,null,null,null,null,null,null,null,null,null,null,null,null,null,null,null,null,null,null,null,null,null,null,null,null,null,null,null,null,null,null,null,null,null,null,null,null,null,null,null,null,null,null,null,null,null,null,null,null,null,null,null,null,null,null,null,null,null,null,null,null,null,null,null,null,null,null,null,null,null,null,null,null,null,null,null,null,null,null,null,null,null,null,null,null,null,null,null,null,null,null,null,null,null,null,null,null,null,null,null,null,null,null,null,null,null,"2032-03-20",null,48293]
[null,null,null,null,null,null,null,null,null,null,null,null,null,null,null,null,null,null,null,null,null,null,null,null,null,null,null,null,null,null,null,null,null,null,null,null,null,null,null,null,null,null,null,null,null,null,null,null,null,null,null,null,null,null,null,null,null,null,null,null,null,null,null,null,null,null,null,null,null,null,null,null,null,null,null,null,null,null,null,null,null,null,null,null,null,null,null,null,null,null,null,null,null,null,null,null,null,null,null,null,null,null,null,null,null,null,null,null,null,null,null,null,null,null,null,null,null,null,null,null,null,null,null,null,null,null,null,null,null,null,null,null,null,null,null,null,null,null,null,null,"2032-04-29",null,48333]
[null,null,null,null,null,null,null,null,null,null,null,null,null,null,null,null,null,null,null,null,null,null,null,null,null,null,null,null,null,null,null,null,null,null,null,null,null,null,null,null,null,null,null,null,null,null,null,null,null,null,null,null,null,null,null,null,null,null,null,null,null,null,null,null,null,null,null,null,null,null,null,null,null,null,null,null,null,null,null,null,null,null,null,null,null,null,null,null,null,null,null,null,null,null,null,null,null,null,null,null,null,null,null,null,null,null,null,null,null,null,null,null,null,null,null,null,null,null,null,null,null,null,null,null,null,null,null,null,null,null,null,null,null,null,null,null,null,null,null,null,"2032-05-03",null,48337]
[null,null,null,null,null,null,null,null,null,null,null,null,null,null,null,null,null,null,null,null,null,null,null,null,null,null,null,null,null,null,null,null,null,null,null,null,null,null,null,null,null,null,null,null,null,null,null,null,null,null,null,null,null,null,null,null,null,null,null,null,null,null,null,null,null,null,null,null,null,null,null,null,null,null,null,null,null,null,null,null,null,null,null,null,null,null,null,null,null,null,null,null,null,null,null,null,null,null,null,null,null,null,null,null,null,null,null,null,null,null,null,null,null,null,null,null,null,null,null,null,null,null,null,null,null,null,null,null,null,null,null,null,null,null,null,null,null,null,null,null,"2032-05-04",null,48338]
[null,null,null,null,null,null,null,null,null,null,null,null,null,null,null,null,null,null,null,null,null,null,null,null,null,null,null,null,null,null,null,null,null,null,null,null,null,null,null,null,null,null,null,null,null,null,null,null,null,null,null,null,null,null,null,null,null,null,null,null,null,null,null,null,null,null,null,null,null,null,null,null,null,null,null,null,null,null,null,null,null,null,null,null,null,null,null,null,null,null,null,null,null,null,null,null,null,null,null,null,null,null,null,null,null,null,null,null,null,null,null,null,null,null,null,null,null,null,null,null,null,null,null,null,null,null,null,null,null,null,null,null,null,null,null,null,null,null,null,null,"2032-05-05",null,48339]
[null,null,null,null,null,null,null,null,null,null,null,null,null,null,null,null,null,null,null,null,null,null,null,null,null,null,null,null,null,null,null,null,null,null,null,null,null,null,null,null,null,null,null,null,null,null,null,null,null,null,null,null,null,null,null,null,null,null,null,null,null,null,null,null,null,null,null,null,null,null,null,null,null,null,null,null,null,null,null,null,null,null,null,null,null,null,null,null,null,null,null,null,null,null,null,null,null,null,null,null,null,null,null,null,null,null,null,null,null,null,null,null,null,null,null,null,null,null,null,null,null,null,null,null,null,null,null,null,null,null,null,null,null,null,null,null,null,null,null,null,"2032-07-19",null,48414]
[null,null,null,null,null,null,null,null,null,null,null,null,null,null,null,null,null,null,null,null,null,null,null,null,null,null,null,null,null,null,null,null,null,null,null,null,null,null,null,null,null,null,null,null,null,null,null,null,null,null,null,null,null,null,null,null,null,null,null,null,null,null,null,null,null,null,null,null,null,null,null,null,null,null,null,null,null,null,null,null,null,null,null,null,null,null,null,null,null,null,null,null,null,null,null,null,null,null,null,null,null,null,null,null,null,null,null,null,null,null,null,null,null,null,null,null,null,null,null,null,null,null,null,null,null,null,null,null,null,null,null,null,null,null,null,null,null,null,null,null,"2032-08-11",null,48437]
[null,null,null,null,null,null,null,null,null,null,null,null,null,null,null,null,null,null,null,null,null,null,null,null,null,null,null,null,null,null,null,null,null,null,null,null,null,null,null,null,null,null,null,null,null,null,null,null,null,null,null,null,null,null,null,null,null,null,null,null,null,null,null,null,null,null,null,null,null,null,null,null,null,null,null,null,null,null,null,null,null,null,null,null,null,null,null,null,null,null,null,null,null,null,null,null,null,null,null,null,null,null,null,null,null,null,null,null,null,null,null,null,null,null,null,null,null,null,null,null,null,null,null,null,null,null,null,null,null,null,null,null,null,null,null,null,null,null,null,null,"2032-09-20",null,48477]
[null,null,null,null,null,null,null,null,null,null,null,null,null,null,null,null,null,null,null,null,null,null,null,null,null,null,null,null,null,null,null,null,null,null,null,null,null,null,null,null,null,null,null,null,null,null,null,null,null,null,null,null,null,null,null,null,null,null,null,null,null,null,null,null,null,null,null,null,null,null,null,null,null,null,null,null,null,null,null,null,null,null,null,null,null,null,null,null,null,null,null,null,null,null,null,null,null,null,null,null,null,null,null,null,null,null,null,null,null,null,null,null,null,null,null,null,null,null,null,null,null,null,null,null,null,null,null,null,null,null,null,null,null,null,null,null,null,null,null,null,"2032-09-21",null,48478]
[null,null,null,null,null,null,null,null,null,null,null,null,null,null,null,null,null,null,null,null,null,null,null,null,null,null,null,null,null,null,null,null,null,null,null,null,null,null,null,null,null,null,null,null,null,null,null,null,null,null,null,null,null,null,null,null,null,null,null,null,null,null,null,null,null,null,null,null,null,null,null,null,null,null,null,null,null,null,null,null,null,null,null,null,null,null,null,null,null,null,null,null,null,null,null,null,null,null,null,null,null,null,null,null,null,null,null,null,null,null,null,null,null,null,null,null,null,null,null,null,null,null,null,null,null,null,null,null,null,null,null,null,null,null,null,null,null,null,null,null,"2032-09-22",null,48479]
[null,null,null,null,null,null,null,null,null,null,null,null,null,null,null,null,null,null,null,null,null,null,null,null,null,null,null,null,null,null,null,null,null,null,null,null,null,null,null,null,null,null,null,null,null,null,null,null,null,null,null,null,null,null,null,null,null,null,null,null,null,null,null,null,null,null,null,null,null,null,null,null,null,null,null,null,null,null,null,null,null,null,null,null,null,null,null,null,null,null,null,null,null,null,null,null,null,null,null,null,null,null,null,null,null,null,null,null,null,null,null,null,null,null,null,null,null,null,null,null,null,null,null,null,null,null,null,null,null,null,null,null,null,null,null,null,null,null,null,null,"2032-10-11",null,48498]
[null,null,null,null,null,null,null,null,null,null,null,null,null,null,null,null,null,null,null,null,null,null,null,null,null,null,null,null,null,null,null,null,null,null,null,null,null,null,null,null,null,null,null,null,null,null,null,null,null,null,null,null,null,null,null,null,null,null,null,null,null,null,null,null,null,null,null,null,null,null,null,null,null,null,null,null,null,null,null,null,null,null,null,null,null,null,null,null,null,null,null,null,null,null,null,null,null,null,null,null,null,null,null,null,null,null,null,null,null,null,null,null,null,null,null,null,null,null,null,null,null,null,null,null,null,null,null,null,null,null,null,null,null,null,null,null,null,null,null,null,"2032-11-03",null,48521]
[null,null,null,null,null,null,null,null,null,null,null,null,null,null,null,null,null,null,null,null,null,null,null,null,null,null,null,null,null,null,null,null,null,null,null,null,null,null,null,null,null,null,null,null,null,null,null,null,null,null,null,null,null,null,null,null,null,null,null,null,null,null,null,null,null,null,null,null,null,null,null,null,null,null,null,null,null,null,null,null,null,null,null,null,null,null,null,null,null,null,null,null,null,null,null,null,null,null,null,null,null,null,null,null,null,null,null,null,null,null,null,null,null,null,null,null,null,null,null,null,null,null,null,null,null,null,null,null,null,null,null,null,null,null,null,null,null,null,null,null,"2032-11-23",null,48541]
[null,null,null,null,null,null,null,null,null,null,null,null,null,null,null,null,null,null,null,null,null,null,null,null,null,null,null,null,null,null,null,null,null,null,null,null,null,null,null,null,null,null,null,null,null,null,null,null,null,null,null,null,null,null,null,null,null,null,null,null,null,null,null,null,null,null,null,null,null,null,null,null,null,null,null,null,null,null,null,null,null,null,null,null,null,null,null,null,null,null,null,null,null,null,null,null,null,null,null,null,null,null,null,null,null,null,null,null,null,null,null,null,null,null,null,null,null,null,null,null,null,null,null,null,null,null,null,null,null,null,null,null,null,null,null,null,null,null,null,null,"2032-12-29",null,48577]
[null,null,null,null,null,null,null,null,null,null,null,null,null,null,null,null,null,null,null,null,null,null,null,null,null,null,null,null,null,null,null,null,null,null,null,null,null,null,null,null,null,null,null,null,null,null,null,null,null,null,null,null,null,null,null,null,null,null,null,null,null,null,null,null,null,null,null,null,null,null,null,null,null,null,null,null,null,null,null,null,null,null,null,null,null,null,null,null,null,null,null,null,null,null,null,null,null,null,null,null,null,null,null,null,null,null,null,null,null,null,null,null,null,null,null,null,null,null,null,null,null,null,null,null,null,null,null,null,null,null,null,null,null,null,null,null,null,null,null,null,"2032-12-30",null,48578]
[null,null,null,null,null,null,null,null,null,null,null,null,null,null,null,null,null,null,null,null,null,null,null,null,null,null,null,null,null,null,null,null,null,null,null,null,null,null,null,null,null,null,null,null,null,null,null,null,null,null,null,null,null,null,null,null,null,null,null,null,null,null,null,null,null,null,null,null,null,null,null,null,null,null,null,null,null,null,null,null,null,null,null,null,null,null,null,null,null,null,null,null,null,null,null,null,null,null,null,null,null,null,null,null,null,null,null,null,null,null,null,null,null,null,null,null,null,null,null,null,null,null,null,null,null,null,null,null,null,null,null,null,null,null,null,null,null,null,null,null,"2032-12-31",null,48579]